Workbook

Sheet 1.1 Recommended Cap Structure
A1: =Input!G28 -> Duke Energy Kentucky, Inc.
A2: Recommended Capital Structure and Cost Rates
A3: for Ratemaking Purposes
B6: Type Of Capital | D6: Ratios (1) | F6: Cost Rate | H6: Weighted Cost Rate
B8: Long-Term Debt | D8: =Input!F13 -> 0.46721 | F8: =Input!F16 -> 0.03843 | G8: (1) | H8: =ROUND(F8*D8,4) -> 0.018
B9: Short-Term Debt | D9: =Input!F15 -> 0.02584 | F9: =Input!F17 -> 0.01667 | G9: (1) | H9: =ROUND(F9*D9,4) -> 0.0004
B10: Common Equity | D10: =Input!F14 -> 0.50695 | F10: ='1.2 Summary of CE Models'!E25 -> 0.103 | G10: (2) | H10: =ROUND(F10*D10,4) -> 0.0522
B12: Total | D12: =SUM(D8:D10) -> 1 | H12: =SUM(H8:H10) -> 0.0706
A15: Notes:
A17: (1) | B17: Company-provided
A18: (2) | B18: From page 2 of this Schedule.

Sheet 1.2 Summary of CE Models
A1: =Input!G28 -> Duke Energy Kentucky, Inc.
A2: Brief Summary of Common Equity Cost Rate
A5: Line No. | C5: Principal Methods | E5: =Input!I31 -> Proxy Group of Thirteen Combination Electric and Gas Utilities
A7: 1. | C7: Discounted Cash Flow Model (DCF) (1) | E7: =AVERAGE('2.1 DCF Summary'!Y27)/100 -> 0.0889
A9: 2. | C9: Risk Premium Model (RPM) (2) | E9: =IFERROR('3.1 RP Summary'!D10,"NA")/100 -> 0.108
A11: 3. | C11: Capital Asset Pricing Model (CAPM) (3) | E11: =IFERROR('4.1 CAPM'!V27,"NA")/100 -> 0.1212
A13: 4. | C13: Market Models Applied to Comparable Risk, Non-Price Regulated Companies (4) | E13: =IFERROR('6.1 CEM Summary'!E19,"NA")/100 -> 0.1237
A15: 5. | C15: Range of Common Equity Model Results | E15: 8.89% - 12.37%
A17: 6. | C17: Size Risk Adjustment (5) | E17: 0.0025
A19: 7. | C19: Credit Risk Adjustment (6) | E19: =ROUND((1/3)*'3.4 Moody''s Bond Yields'!I24,2)/100 -> 0.0008
A21: 8. | C21: Flotation Cost Adjustment (7) | E21: ='8.1 Equity Contributions'!M27/100 -> 0.00107219525
A23: 9. | C23: Indicated Range of Common Equity Cost Rates after Adjustment | E23: 9.33% - 12.81%
A25: 10. | C25: Recommended Common Equity Cost Rate | E25: 0.103
A27: Notes: | B27: (1) | C27: From page 1 of Schedule DWD-2.
B28: (2) | C28: From page 1 of Schedule DWD-3.
B29: (3) | C29: From page 1 of Schedule DWD-4.
B30: (4) | C30: From page 1 of Schedule DWD-6.
B31: (5) | C31: Adjustment to reflect the Company's greater business risk due to its smaller size relative to the Utility Proxy Group as detailed in Mr. D'Ascendis' direct testimony.
B32: (6) | C32: Company-specific risk adjustment to reflect Duke Energy Kentucky' greater risk due to its Baa1 long-term issuer rating relative to the average A3 long-term issuer rating of the Utility Proxy Group as detailed in Mr. D'Ascendis' Direct Testimony.
B33: (7) | C33: From page 1 of Schedule DWD-8.

Sheet 2.1 DCF Summary
B1: =Input!G28 -> Duke Energy Kentucky, Inc.
B2: Indicated Common Equity Cost Rate Using the Discounted Cash Flow Model for the
B3: =Input!I31 -> Proxy Group of Thirteen Combination Electric and Gas Utilities
D5: [1] | G5: [2] | J5: [3] | M5: [4] | P5: [5] | S5: [6] | V5: [7] | Y5: [8]
B7: =B3 -> Proxy Group of Thirteen Combination Electric and Gas Utilities | D7: Average Dividend Yield (1) | G7: Value Line Projected Five Year Growth in EPS (2) | J7: Zack's Five Year Projected Growth Rate in EPS | M7: Bloomberg's Five Year Projected Growth Rate in EPS | P7: Yahoo! Finance Projected Five Year Growth in EPS | S7: Average Projected Five Year Growth in EPS (3) | V7: Adjusted Dividend Yield (4) | Y7: Indicated Common Equity Cost Rate (5)
A9: =Input!A2 -> AEE | B9: ='Proxy Data Lookup'!B3 -> Ameren Corporation | D9: =HLOOKUP(A9,'Proxy Prices'!$B$4:$N$71,68,FALSE)*100 -> 2.59 | E9: % | G9: ='Proxy Data Lookup'!F3*100 -> 6.5 | H9: % | J9: ='Proxy Data Lookup'!C3*100 -> 7.3 | K9: % | M9: ='Proxy Data Lookup'!E3*100 -> 7.595 | N9: % | P9: ='Proxy Data Lookup'!D3*100 -> 7.7 | Q9: % | S9: =IFERROR(ROUND(AVERAGE(G9,J9,M9,P9),2),"NA") -> 7.27 | T9: % | V9: =IFERROR(D9*(1+(0.5*(S9/100))),"NA") -> 2.6841465 | W9: % | Y9: =IFERROR(V9 + S9,"NA") -> 9.9541465 | Z9: %
A10: =Input!A3 -> AVA | B10: ='Proxy Data Lookup'!B4 -> Avista Corporation | D10: =HLOOKUP(A10,'Proxy Prices'!$B$4:$N$71,68,FALSE)*100 -> 3.93 | G10: ='Proxy Data Lookup'!F4*100 -> 3 | J10: ='Proxy Data Lookup'!C4*100 -> 5.1 | M10: ='Proxy Data Lookup'!E4*100 -> 5.615 | P10: ='Proxy Data Lookup'!D4*100 -> 6.2 | S10: 4.98 | V10: 4.027857 | Y10: 9.007857
A11: =Input!A4 -> BKH | B11: ='Proxy Data Lookup'!B5 -> Black Hills Corporation | D11: =HLOOKUP(A11,'Proxy Prices'!$B$4:$N$71,68,FALSE)*100 -> 3.28 | G11: ='Proxy Data Lookup'!F5*100 -> 5 | J11: ='Proxy Data Lookup'!C5*100 -> 5.1 | M11: ='Proxy Data Lookup'!E5*100 -> 5.585 | P11: ='Proxy Data Lookup'!D5*100 -> 4.67 | S11: 5.09 | V11: 3.363476 | Y11: 8.453476
A12: =Input!A5 -> CMS | B12: ='Proxy Data Lookup'!B6 -> CMS Energy Corporation | D12: =HLOOKUP(A12,'Proxy Prices'!$B$4:$N$71,68,FALSE)*100 -> 2.82 | G12: ='Proxy Data Lookup'!F6*100 -> 7.5 | J12: ='Proxy Data Lookup'!C6*100 -> 6.9 | M12: ='Proxy Data Lookup'!E6*100 -> 5.87 | P12: ='Proxy Data Lookup'!D6*100 -> 6.18 | S12: 6.61 | V12: 2.913201 | Y12: 9.523201
A13: =Input!A6 -> DUK | B13: ='Proxy Data Lookup'!B7 -> Duke Energy Corporation | D13: =HLOOKUP(A13,'Proxy Prices'!$B$4:$N$71,68,FALSE)*100 -> 3.81 | G13: ='Proxy Data Lookup'!F7*100 -> 7 | J13: ='Proxy Data Lookup'!C7*100 -> 5.3 | M13: ='Proxy Data Lookup'!E7*100 -> 4.16 | P13: ='Proxy Data Lookup'!D7*100 -> 5.45 | S13: 5.48 | V13: 3.914394 | Y13: 9.394394
A14: =Input!A7 -> ED | B14: ='Proxy Data Lookup'!B8 -> Consolidated Edison, Inc. | D14: =HLOOKUP(A14,'Proxy Prices'!$B$4:$N$71,68,FALSE)*100 -> 4.14 | G14: ='Proxy Data Lookup'!F8*100 -> 4 | J14: ='Proxy Data Lookup'!C8*100 -> 2 | M14: ='Proxy Data Lookup'!E8*100 -> 3.3 | P14: ='Proxy Data Lookup'!D8*100 -> 2 | S14: 2.83 | V14: 4.198581 | Y14: 7.028581
A15: =Input!A8 -> ES | B15: ='Proxy Data Lookup'!B9 -> Eversource Energy | D15: =HLOOKUP(A15,'Proxy Prices'!$B$4:$N$71,68,FALSE)*100 -> 2.82 | G15: ='Proxy Data Lookup'!F9*100 -> 6.5 | J15: ='Proxy Data Lookup'!C9*100 -> 6.4 | M15: ='Proxy Data Lookup'!E9*100 -> 7.77 | P15: ='Proxy Data Lookup'!D9*100 -> 6.68 | S15: 6.84 | V15: 2.916444 | Y15: 9.756444
A16: =Input!A9 -> MGEE | B16: ='Proxy Data Lookup'!B10 -> MGE Energy, Inc. | D16: =HLOOKUP(A16,'Proxy Prices'!$B$4:$N$71,68,FALSE)*100 -> 2 | G16: ='Proxy Data Lookup'!F10*100 -> 4.5 | J16: ='Proxy Data Lookup'!C10*100 -> 5.6 | M16: ='Proxy Data Lookup'!E10*100 -> 5.57 | P16: ='Proxy Data Lookup'!D10*100 -> 5.6 | S16: 5.32 | V16: 2.0532 | Y16: 7.3732
A17: =Input!A10 -> NWE | B17: ='Proxy Data Lookup'!B11 -> NorthWestern Corporation | D17: =HLOOKUP(A17,'Proxy Prices'!$B$4:$N$71,68,FALSE)*100 -> 3.97 | G17: ='Proxy Data Lookup'!F11*100 -> 3 | J17: ='Proxy Data Lookup'!C11*100 -> 4.8 | M17: ='Proxy Data Lookup'!E11*100 -> 5.16 | P17: ='Proxy Data Lookup'!D11*100 -> 4.5 | S17: 4.37 | V17: 4.0567445 | Y17: 8.4267445
A18: =Input!A11 -> PEG | B18: ='Proxy Data Lookup'!B12 -> Public Service Enterprise Group Incorporated | D18: =HLOOKUP(A18,'Proxy Prices'!$B$4:$N$71,68,FALSE)*100 -> 3.29 | G18: ='Proxy Data Lookup'!F12*100 -> 3.5 | J18: ='Proxy Data Lookup'!C12*100 -> 3.5 | M18: ='Proxy Data Lookup'!E12*100 -> 4.665 | P18: ='Proxy Data Lookup'!D12*100 -> 2.35 | S18: 3.5 | V18: 3.347575 | Y18: 6.847575
A19: =Input!A12 -> SO | B19: ='Proxy Data Lookup'!B13 -> Southern Company | D19: =HLOOKUP(A19,'Proxy Prices'!$B$4:$N$71,68,FALSE)*100 -> 4.15 | G19: ='Proxy Data Lookup'!F13*100 -> 6 | J19: ='Proxy Data Lookup'!C13*100 -> 4.9 | M19: ='Proxy Data Lookup'!E13*100 -> 4.6 | P19: ='Proxy Data Lookup'!D13*100 -> 6.5 | S19: 5.5 | V19: 4.264125 | Y19: 9.764125
A20: =Input!A13 -> WEC | B20: ='Proxy Data Lookup'!B14 -> WEC Energy Group, Inc. | D20: =HLOOKUP(A20,'Proxy Prices'!$B$4:$N$71,68,FALSE)*100 -> 2.9 | G20: ='Proxy Data Lookup'!F14*100 -> 6.5 | J20: ='Proxy Data Lookup'!C14*100 -> 6.3 | M20: ='Proxy Data Lookup'!E14*100 -> 6.777 | P20: ='Proxy Data Lookup'!D14*100 -> 6.5 | S20: 6.52 | V20: 2.99454 | Y20: 9.51454
A21: =Input!A14 -> XEL | B21: ='Proxy Data Lookup'!B15 -> Xcel Energy Inc. | D21: =HLOOKUP(A21,'Proxy Prices'!$B$4:$N$71,68,FALSE)*100 -> 2.68 | G21: ='Proxy Data Lookup'!F15*100 -> 6 | J21: ='Proxy Data Lookup'!C15*100 -> 6.1 | M21: ='Proxy Data Lookup'!E15*100 -> 6.587 | P21: ='Proxy Data Lookup'!D15*100 -> 6.3 | S21: 6.25 | V21: 2.76375 | Y21: 9.01375
V23: Average | Y23: =ROUND(AVERAGE(Y9:Y21),2) -> 8.77 | Z23: %
V25: Median | Y25: =ROUND(MEDIAN(Y9:Y21),2) -> 9.01 | Z25: %
V27: Average of Mean and Median | Y27: =ROUND(AVERAGE(Y23:Y25),2) -> 8.89 | Z27: %
E29: NA= Not Available
E30: NMF= Not Meaningful Figure
D32: Notes:
E33: (1) | F33: =CONCATENATE("Indicated dividend at ",TEXT(Input!E2,"mm/dd/yyyy")," divided by the average closing price of the last 60 trading days ending ",TEXT(Input!E2,"mm/dd/yyyy")," for each company.") -> Indicated dividend at 08/31/2021 divided by the average closing price of the last 60 trading days ending 08/31/2021 for each company.
E34: (2) | F34: From pages 2 through 14 of this Schedule.
E35: (3) | F35: Average of columns 2 through 5 excluding negative growth rates.
E36: (4) | F36: =CONCATENATE("This reflects a growth rate component equal to one-half the conclusion of growth rate (from column 6) x column 1 to reflect the periodic payment of dividends (Gordon Model) as opposed to the continuous payment. Thus, for ",B9,", ",TEXT(D9,"#0.00"),"% x (1+( 1/2 x ",TEXT(S9,"#0.00"),"%) ) = ",TEXT(V9,"#0.00"),"%.") -> This reflects a growth rate component equal to one-half the conclusion of growth rate (from column 6) x column 1 to reflect the periodic payment of dividends (Gordon Model) as opposed to the continuous payment. Thus, for Ameren Corporation, 2.59% x (1+( 1/2 x 7.27%) ) = 2.68%.
E37: (5) | F37: Column 6 + column 7.
B39: Source of Information: | E39: Value Line Investment Survey
E40: =CONCATENATE("www.zacks.com Downloaded on ",TEXT(Input!E2,"mm/dd/yyyy")) -> www.zacks.com Downloaded on 08/31/2021
E41: =CONCATENATE("www.yahoo.com Downloaded on ",TEXT(Input!E2,"mm/dd/yyyy")) -> www.yahoo.com Downloaded on 08/31/2021
E42: Bloomberg Professional Services

Sheet 3.1 RP Summary
A1: =Input!G28 -> Duke Energy Kentucky, Inc.
A2: Summary of Risk Premium Models for the
A3: =Input!I31 -> Proxy Group of Thirteen Combination Electric and Gas Utilities
D5: =A3 -> Proxy Group of Thirteen Combination Electric and Gas Utilities
A6: Predictive Risk Premium Model (PRPM) (1) | D6: =IFERROR('3.2 Ind. PRPM Results'!P28*100,"NA") -> 11.07 | E6: %
A8: Risk Premium Using an Adjusted Total Market Approach (2) | D8: =IFERROR('3.3 Risk Premium Summary'!G28,"NA") -> 10.52
C10: Average | D10: =IFERROR(ROUND(AVERAGE(D6:D8),2),"NA") -> 10.8 | E10: %
A12: Notes:
A13: (1) | B13: From page 2 of this Schedule.
A14: (2) | B14: From page 3 of this Schedule.

Sheet 3.2 Ind. PRPM Results
B1: =Input!G28 -> Duke Energy Kentucky, Inc.
B2: Indicated ROE
B3: Derived by the Predictive Risk Premium Model (1)
D6: [1] | F6: [2] | H6: [3] | J6: [4] | L6: [5] | N6: [6] | P6: [7]
B8: =Input!I31 -> Proxy Group of Thirteen Combination Electric and Gas Utilities | D8: LT Average Predicted Variance | F8: Spot Predicted Variance | H8: Recommended Variance (2) | J8: GARCH Coefficient | L8: Predicted Risk Premium (3) | N8: Risk-Free Rate (4) | P8: Indicated ROE (5)
A10: =Input!A2 -> AEE | B10: ='Proxy Data Lookup'!B3 -> Ameren Corporation | D10: ='PRPM WP1'!$B$1155 -> 0.002308356381 | F10: ='PRPM WP1'!$B$1157 -> 0.00322487059 | H10: =ROUND(AVERAGE(D10:F10),4) -> 0.0028 | J10: ='PRPM WP1'!$B$1159 -> 2.03832 | L10: =ROUND((1+(H10*J10))^12-1,4) -> 0.0707 | N10: ='MRP WP1'!F$37/100 -> 0.027 | P10: =N10+L10 -> 0.0977
A11: =Input!A3 -> AVA | B11: ='Proxy Data Lookup'!B4 -> Avista Corporation | D11: ='PRPM WP1'!$C$1155 -> 0.004747879633 | F11: ='PRPM WP1'!$C$1157 -> 0.006351193647 | H11: 0.0055 | J11: ='PRPM WP1'!$C$1159 -> 0.994391 | L11: 0.0676 | N11: ='MRP WP1'!F$37/100 -> 0.027 | P11: 0.0946
A12: =Input!A4 -> BKH | B12: ='Proxy Data Lookup'!B5 -> Black Hills Corporation | D12: ='PRPM WP1'!$D$1155 -> 0.004328971143 | F12: ='PRPM WP1'!$D$1157 -> 0.003379158185 | H12: 0.0039 | J12: ='PRPM WP1'!$D$1159 -> 1.566885 | L12: 0.0758 | N12: ='MRP WP1'!F$37/100 -> 0.027 | P12: 0.1028
A13: =Input!A5 -> CMS | B13: ='Proxy Data Lookup'!B6 -> CMS Energy Corporation | D13: ='PRPM WP1'!$E$1155 -> 0.005435269977 | F13: ='PRPM WP1'!$E$1157 -> 0.003760689541 | H13: 0.0046 | J13: ='PRPM WP1'!$E$1159 -> 1.632017 | L13: 0.0939 | N13: ='MRP WP1'!F$37/100 -> 0.027 | P13: 0.1209
A14: =Input!A6 -> DUK | B14: ='Proxy Data Lookup'!B7 -> Duke Energy Corporation | D14: ='PRPM WP1'!$F$1155 -> 0.003125405094 | F14: ='PRPM WP1'!$F$1157 -> 0.003093186152 | H14: 0.0031 | J14: ='PRPM WP1'!$F$1159 -> 1.866857 | L14: 0.0717 | N14: ='MRP WP1'!F$37/100 -> 0.027 | P14: 0.0987
A15: =Input!A7 -> ED | B15: ='Proxy Data Lookup'!B8 -> Consolidated Edison, Inc. | D15: ='PRPM WP1'!$G$1155 -> 0.004569194079 | F15: ='PRPM WP1'!$G$1157 -> 0.0039953482 | H15: 0.0043 | J15: ='PRPM WP1'!$G$1159 -> 1.546617 | L15: 0.0828 | N15: ='MRP WP1'!F$37/100 -> 0.027 | P15: 0.1098
A16: =Input!A8 -> ES | B16: ='Proxy Data Lookup'!B9 -> Eversource Energy | D16: ='PRPM WP1'!$H$1155 -> 0.003063026395 | F16: ='PRPM WP1'!$H$1157 -> 0.003024326533 | H16: 0.003 | J16: ='PRPM WP1'!$H$1159 -> 1.689958 | L16: 0.0626 | N16: ='MRP WP1'!F$37/100 -> 0.027 | P16: 0.0896
A17: =Input!A9 -> MGEE | B17: ='Proxy Data Lookup'!B10 -> MGE Energy, Inc. | D17: ='PRPM WP1'!$I$1155 -> 0.002417336914 | F17: ='PRPM WP1'!$I$1157 -> 0.002348811541 | H17: 0.0024 | J17: ='PRPM WP1'!$I$1159 -> 2.61707 | L17: 0.078 | N17: ='MRP WP1'!F$37/100 -> 0.027 | P17: 0.105
A18: =Input!A10 -> NWE | B18: ='Proxy Data Lookup'!B11 -> NorthWestern Corporation | D18: ='PRPM WP1'!$J$1155 -> 0.003430757183 | F18: ='PRPM WP1'!$J$1157 -> 0.00259383647 | H18: 0.003 | J18: ='PRPM WP1'!$J$1159 -> 2.374687 | L18: 0.0889 | N18: ='MRP WP1'!F$37/100 -> 0.027 | P18: 0.1159
A19: =Input!A11 -> PEG | B19: ='Proxy Data Lookup'!B12 -> Public Service Enterprise Group Incorporated | D19: ='PRPM WP1'!$K$1155 -> 0.003029547689 | F19: ='PRPM WP1'!$K$1157 -> 0.003506565878 | H19: 0.0033 | J19: ='PRPM WP1'!$K$1159 -> 2.407147 | L19: 0.0996 | N19: ='MRP WP1'!F$37/100 -> 0.027 | P19: 0.1266
A20: =Input!A12 -> SO | B20: ='Proxy Data Lookup'!B13 -> Southern Company | D20: ='PRPM WP1'!$L$1155 -> 0.01278377531 | F20: ='PRPM WP1'!$L$1157 -> 0.003420171263 | H20: 0.0081 | J20: ='PRPM WP1'!$L$1159 -> 0.978019 | L20: =ROUND((1+(H20*J20))^12-1,4) -> 0.0993 | N20: ='MRP WP1'!F$37/100 -> 0.027 | P20: 0.1263
A21: =Input!A13 -> WEC | B21: ='Proxy Data Lookup'!B14 -> WEC Energy Group, Inc. | D21: ='PRPM WP1'!$M$1155 -> 0.002272294703 | F21: ='PRPM WP1'!$M$1157 -> 0.002981857434 | H21: 0.0026 | J21: ='PRPM WP1'!$M$1159 -> 3.009788 | L21: 0.0981 | N21: ='MRP WP1'!F$37/100 -> 0.027 | P21: 0.1251
A22: =Input!A14 -> XEL | B22: ='Proxy Data Lookup'!B15 -> Xcel Energy Inc. | D22: ='PRPM WP1'!$N$1155 -> 0.002753026333 | F22: ='PRPM WP1'!$N$1157 -> 0.003382602651 | H22: 0.0031 | J22: ='PRPM WP1'!$N$1159 -> 2.825029 | L22: 0.1103 | N22: ='MRP WP1'!F$37/100 -> 0.027 | P22: =N22+L22 -> 0.1373
N24: Average | P24: =ROUND(AVERAGE(P10:P22),4) -> 0.1116
N26: Median | P26: =ROUND(MEDIAN(P10:P22),4) -> 0.1098
N28: Average of Mean and Median | P28: =ROUND(AVERAGE(P24:P26),4) -> 0.1107
B32: Notes:
B33: (1) | D33: The Predictive Risk Premium Model uses historical data to generate a predicted variance and a GARCH coefficient. The historical data used are the equity risk premiums for the first available trading month as reported by Bloomberg Professional Service.
B34: (2) | D34: Given current market conditions, I recommend using average of the the long-term average predicted variance and the spot variance.
B35: (3) | D35: (1+(Column [3] * Column [4])^12) - 1.
B36: (4) | D36: From note 2 on page 2 of Schedule DWD-4.
B37: (5) | D37: Column [5] + Column [6].

Sheet 3.3 Risk Premium Summary
A1: =Input!G28 -> Duke Energy Kentucky, Inc.
A2: Indicated Common Equity Cost Rate
A3: Through Use of a Risk Premium Model
A4: Using an Adjusted Total Market Approach
A6: Line No. | G6: =Input!I31 -> Proxy Group of Thirteen Combination Electric and Gas Utilities
A9: 1. | C9: Prospective Yield on Aaa Rated
C10: Corporate Bonds (1) | G10: ='MRP WP1'!$M$37 -> 3.41 | H10: %
A12: 2. | C12: Adjustment to Reflect Yield Spread
C13: Between Aaa Rated Corporate
C14: Bonds and A2 Rated Public
C15: Utility Bonds | G15: ='3.4 Moody''s Bond Yields'!I21 -> 0.38 | H15: (2)
A17: 3. | C17: Adjusted Prospective Yield on A2 Rated
C18: Public Utility Bonds | G18: =SUM(G10:G15) -> 3.79 | H18: %
A20: 4. | C20: Adjustment to Reflect Bond
C21: Rating Difference of Proxy Group | G21: =ROUND((1/3)*'3.4 Moody''s Bond Yields'!I24,2) -> 0.08 | H21: (3)
A23: 5. | C23: Adjusted Prospective Bond Yield | G23: =SUM(G18:G21) -> 3.87 | H23: %
A25: 6. | C25: Equity Risk Premium (4) | G25: ='3.7 ERP Determination'!E26 -> 6.65
A27: 7. | C27: Risk Premium Derived Common
C28: Equity Cost Rate | G28: =SUM(G23:G25) -> 10.52 | H28: %
A31: Notes: | B31: (1) | C31: Consensus forecast of Moody's Aaa Rated Corporate bonds from Blue Chip Financial Forecasts (see pages 10 and 11 of this Schedule).
B32: (2) | C32: =CONCATENATE("The average yield spread of A2 rated public utility bonds over Aaa rated corporate bonds of ",TEXT('3.4 Moody''s Bond Yields'!I21,"#0.00"),"% from page 4 of this Schedule.") -> The average yield spread of A2 rated public utility bonds over Aaa rated corporate bonds of 0.38% from page 4 of this Schedule.
B33: (3) | C33: =CONCATENATE("Adjustment to reflect the A3 Moody's LT issuer rating of the Utility Proxy Group as shown on page 5 of this Exhibit. The ",G21,"% upward adjustment is derived by taking 1/3 of the spread between A2 and Baa2 Public Utility Bonds (1/3 * ",'3.4 Moody''s Bond Yields'!I24,"% = ",TEXT('3.3 Risk Premium Summary'!G21,"#0.00"),"%) as derived from page 4 of this Schedule.") -> Adjustment to reflect the A3 Moody's LT issuer rating of the Utility Proxy Group as shown on page 5 of this Exhibit. The 0.08% upward adjustment is derived by taking 1/3 of the spread between A2 and Baa2 Public Utility Bonds (1/3 * 0.25% = 0.08%) as derived from page 4 of this Schedule.
B34: (4) | C34: From page 7 of this Schedule.

Sheet 3.4 Moody's Bond Yields
A1: =Input!G28 -> Duke Energy Kentucky, Inc.
A2: Interest Rates and Bond Spreads for
A3: Moody's Corporate and Public Utility Bonds
A6: Selected Bond Yields - Moody's
C8: [1] | F8: [2] | I8: [3]
C10: Aaa Rated Corporate Bond | F10: A2 Rated Public Utility Bond | I10: Baa2 Rated Public Utility Bond
A12: ='Market Data'!B1 -> 2021-08-31 | C12: ='Market Data'!B4 -> 2.55 | D12: % | F12: ='Market Data'!B2 -> 2.95 | G12: % | I12: ='Market Data'!B3 -> 3.19 | J12: %
A13: ='Market Data'!C1 -> 2021-07-31 | C13: ='Market Data'!C4 -> 2.57 | F13: ='Market Data'!C2 -> 2.95 | I13: ='Market Data'!C3 -> 3.2
A14: ='Market Data'!D1 -> 2021-06-30 | C14: ='Market Data'!D4 -> 2.79 | F14: ='Market Data'!D2 -> 3.16 | I14: ='Market Data'!D3 -> 3.41
A16: Average | C16: =ROUND(AVERAGE(C12:C14),2) -> 2.64 | D16: % | F16: =ROUND(AVERAGE(F12:F14),2) -> 3.02 | G16: % | I16: =ROUND(AVERAGE(I12:I14),2) -> 3.27 | J16: %
A18: Selected Bond Spreads
A20: A2 Rated Public Utility Bonds Over Aaa Rated Corporate Bonds:
I21: =F16-C16 -> 0.38 | J21: % (1)
A23: Baa2 Rated Public Utility Bonds Over A2 Rated Public Utility Bonds:
I24: =ROUND(I16-F16,2) -> 0.25 | J24: % (2)
A26: Notes:
A27: (1) | B27: Column [2] - Column [1].
A28: (2) | B28: Column [3] - Column [2].
A30: Source of Information:
A31: Bloomberg Professional Service

Sheet 3.5 Bond Ratings
B1: =Input!G28 -> Duke Energy Kentucky, Inc.
B2: Comparison of Long-Term Issuer Ratings for
B3: ='3.3 Risk Premium Summary'!G6 -> Proxy Group of Thirteen Combination Electric and Gas Utilities
E6: Moody's | I6: Standard & Poor's
E7: Long-Term Issuer Rating | I7: Long-Term Issuer Rating
E8: =TEXT(Input!E2,"mmmm yyyy") -> August 2021 | I8: =E8 -> August 2021
B11: =B3 -> Proxy Group of Thirteen Combination Electric and Gas Utilities | E11: Long-Term Issuer Rating (1) | G11: Numerical Weighting (2) | I11: =E11 -> Long-Term Issuer Rating (1) | K11: Numerical Weighting (2)
A13: =Input!A2 -> AEE | B13: ='Proxy Data Lookup'!B3 -> Ameren Corporation | E13: ='Proxy Data Lookup'!P3 -> A3 | G13: =IFERROR(INDEX('3.6 MOODY_S&P numbericl'!D$6:D$26,MATCH('3.5 Bond Ratings'!E13,'3.6 MOODY_S&P numbericl'!B$6:B$26,0)), " - -") -> 7 | I13: ='Proxy Data Lookup'!O3 -> BBB+ | K13: =IFERROR(INDEX('3.6 MOODY_S&P numbericl'!H$6:H$26,MATCH('3.5 Bond Ratings'!I13,'3.6 MOODY_S&P numbericl'!F$6:F$26,0)), " - -") -> 8
A14: =Input!A3 -> AVA | B14: ='Proxy Data Lookup'!B4 -> Avista Corporation | E14: ='Proxy Data Lookup'!P4 -> Baa3 | G14: =IFERROR(INDEX('3.6 MOODY_S&P numbericl'!D$6:D$26,MATCH('3.5 Bond Ratings'!E14,'3.6 MOODY_S&P numbericl'!B$6:B$26,0)), " - -") -> 10 | I14: ='Proxy Data Lookup'!O4 -> NR | K14: =IFERROR(INDEX('3.6 MOODY_S&P numbericl'!H$6:H$26,MATCH('3.5 Bond Ratings'!I14,'3.6 MOODY_S&P numbericl'!F$6:F$26,0)), " - -") -> - -
A15: =Input!A4 -> BKH | B15: ='Proxy Data Lookup'!B5 -> Black Hills Corporation | E15: ='Proxy Data Lookup'!P5 -> A3 | G15: =IFERROR(INDEX('3.6 MOODY_S&P numbericl'!D$6:D$26,MATCH('3.5 Bond Ratings'!E15,'3.6 MOODY_S&P numbericl'!B$6:B$26,0)), " - -") -> 7 | I15: ='Proxy Data Lookup'!O5 -> BBB+ | K15: =IFERROR(INDEX('3.6 MOODY_S&P numbericl'!H$6:H$26,MATCH('3.5 Bond Ratings'!I15,'3.6 MOODY_S&P numbericl'!F$6:F$26,0)), " - -") -> 8
A16: =Input!A5 -> CMS | B16: ='Proxy Data Lookup'!B6 -> CMS Energy Corporation | E16: ='Proxy Data Lookup'!P6 -> Baa1 | G16: =IFERROR(INDEX('3.6 MOODY_S&P numbericl'!D$6:D$26,MATCH('3.5 Bond Ratings'!E16,'3.6 MOODY_S&P numbericl'!B$6:B$26,0)), " - -") -> 8 | I16: ='Proxy Data Lookup'!O6 -> A- | K16: =IFERROR(INDEX('3.6 MOODY_S&P numbericl'!H$6:H$26,MATCH('3.5 Bond Ratings'!I16,'3.6 MOODY_S&P numbericl'!F$6:F$26,0)), " - -") -> 7
A17: =Input!A6 -> DUK | B17: ='Proxy Data Lookup'!B7 -> Duke Energy Corporation | E17: ='Proxy Data Lookup'!P7 -> A3 | G17: =IFERROR(INDEX('3.6 MOODY_S&P numbericl'!D$6:D$26,MATCH('3.5 Bond Ratings'!E17,'3.6 MOODY_S&P numbericl'!B$6:B$26,0)), " - -") -> 7 | I17: ='Proxy Data Lookup'!O7 -> BBB+ | K17: =IFERROR(INDEX('3.6 MOODY_S&P numbericl'!H$6:H$26,MATCH('3.5 Bond Ratings'!I17,'3.6 MOODY_S&P numbericl'!F$6:F$26,0)), " - -") -> 8
A18: =Input!A7 -> ED | B18: ='Proxy Data Lookup'!B8 -> Consolidated Edison, Inc. | E18: ='Proxy Data Lookup'!P8 -> Baa1/Baa2 | G18: 8.5 | I18: ='Proxy Data Lookup'!O8 -> A- | K18: =IFERROR(INDEX('3.6 MOODY_S&P numbericl'!H$6:H$26,MATCH('3.5 Bond Ratings'!I18,'3.6 MOODY_S&P numbericl'!F$6:F$26,0)), " - -") -> 7
A19: =Input!A8 -> ES | B19: ='Proxy Data Lookup'!B9 -> Eversource Energy | E19: ='Proxy Data Lookup'!P9 -> A3 | G19: =IFERROR(INDEX('3.6 MOODY_S&P numbericl'!D$6:D$26,MATCH('3.5 Bond Ratings'!E19,'3.6 MOODY_S&P numbericl'!B$6:B$26,0)), " - -") -> 7 | I19: ='Proxy Data Lookup'!O9 -> A- | K19: =IFERROR(INDEX('3.6 MOODY_S&P numbericl'!H$6:H$26,MATCH('3.5 Bond Ratings'!I19,'3.6 MOODY_S&P numbericl'!F$6:F$26,0)), " - -") -> 7
A20: =Input!A9 -> MGEE | B20: ='Proxy Data Lookup'!B10 -> MGE Energy, Inc. | E20: ='Proxy Data Lookup'!P10 -> A1 | G20: =IFERROR(INDEX('3.6 MOODY_S&P numbericl'!D$6:D$26,MATCH('3.5 Bond Ratings'!E20,'3.6 MOODY_S&P numbericl'!B$6:B$26,0)), " - -") -> 5 | I20: ='Proxy Data Lookup'!O10 -> AA- | K20: =IFERROR(INDEX('3.6 MOODY_S&P numbericl'!H$6:H$26,MATCH('3.5 Bond Ratings'!I20,'3.6 MOODY_S&P numbericl'!F$6:F$26,0)), " - -") -> 4
A21: =Input!A10 -> NWE | B21: ='Proxy Data Lookup'!B11 -> NorthWestern Corporation | E21: ='Proxy Data Lookup'!P11 -> Baa2 | G21: =IFERROR(INDEX('3.6 MOODY_S&P numbericl'!D$6:D$26,MATCH('3.5 Bond Ratings'!E21,'3.6 MOODY_S&P numbericl'!B$6:B$26,0)), " - -") -> 9 | I21: ='Proxy Data Lookup'!O11 -> BBB | K21: =IFERROR(INDEX('3.6 MOODY_S&P numbericl'!H$6:H$26,MATCH('3.5 Bond Ratings'!I21,'3.6 MOODY_S&P numbericl'!F$6:F$26,0)), " - -") -> 9
A22: =Input!A11 -> PEG | B22: ='Proxy Data Lookup'!B12 -> Public Service Enterprise Group Incorporated | E22: ='Proxy Data Lookup'!P12 -> A2 | G22: =IFERROR(INDEX('3.6 MOODY_S&P numbericl'!D$6:D$26,MATCH('3.5 Bond Ratings'!E22,'3.6 MOODY_S&P numbericl'!B$6:B$26,0)), " - -") -> 6 | I22: ='Proxy Data Lookup'!O12 -> A- | K22: =IFERROR(INDEX('3.6 MOODY_S&P numbericl'!H$6:H$26,MATCH('3.5 Bond Ratings'!I22,'3.6 MOODY_S&P numbericl'!F$6:F$26,0)), " - -") -> 7
A23: =Input!A12 -> SO | B23: ='Proxy Data Lookup'!B13 -> Southern Company | E23: ='Proxy Data Lookup'!P13 -> A3 | G23: =IFERROR(INDEX('3.6 MOODY_S&P numbericl'!D$6:D$26,MATCH('3.5 Bond Ratings'!E23,'3.6 MOODY_S&P numbericl'!B$6:B$26,0)), " - -") -> 7 | I23: ='Proxy Data Lookup'!O13 -> A- | K23: =IFERROR(INDEX('3.6 MOODY_S&P numbericl'!H$6:H$26,MATCH('3.5 Bond Ratings'!I23,'3.6 MOODY_S&P numbericl'!F$6:F$26,0)), " - -") -> 7
A24: =Input!A13 -> WEC | B24: ='Proxy Data Lookup'!B14 -> WEC Energy Group, Inc. | E24: ='Proxy Data Lookup'!P14 -> A2 | G24: =IFERROR(INDEX('3.6 MOODY_S&P numbericl'!D$6:D$26,MATCH('3.5 Bond Ratings'!E24,'3.6 MOODY_S&P numbericl'!B$6:B$26,0)), " - -") -> 6 | I24: ='Proxy Data Lookup'!O14 -> A- | K24: =IFERROR(INDEX('3.6 MOODY_S&P numbericl'!H$6:H$26,MATCH('3.5 Bond Ratings'!I24,'3.6 MOODY_S&P numbericl'!F$6:F$26,0)), " - -") -> 7
A25: =Input!A14 -> XEL | B25: ='Proxy Data Lookup'!B15 -> Xcel Energy Inc. | E25: ='Proxy Data Lookup'!P15 -> A3 | G25: =IFERROR(INDEX('3.6 MOODY_S&P numbericl'!D$6:D$26,MATCH('3.5 Bond Ratings'!E25,'3.6 MOODY_S&P numbericl'!B$6:B$26,0)), " - -") -> 7 | I25: ='Proxy Data Lookup'!O15 -> A- | K25: =IFERROR(INDEX('3.6 MOODY_S&P numbericl'!H$6:H$26,MATCH('3.5 Bond Ratings'!I25,'3.6 MOODY_S&P numbericl'!F$6:F$26,0)), " - -") -> 7
C27: Average | E27: A3 | G27: =ROUND(AVERAGE(G12:G25),1) -> 7.3 | I27: A- | K27: =ROUND(AVERAGE(K12:K25),1) -> 7.2
B30: Notes:
B32: (1) | C32: Ratings are that of the average of each company's utility operating subsidiaries.
B33: (2) | C33: From page 6 of this Schedule.
C35: Source Information: | E35: Moody's Investors Service
E36: Standard & Poor's Global Utilities Rating Service

Sheet 3.6 MOODY_S&P numbericl
B1: Numerical Assignment for
B2: Moody's and Standard & Poor's Bond Ratings
B4: Moody's Bond Rating | D4: Numerical Bond Weighting | F4: Standard & Poor's Bond Rating | H4: =D4 -> Numerical Bond Weighting
B6: Aaa | D6: 1 | F6: AAA | H6: =IF(D6="","",D6) -> 1
H7: =IF(D7="","",D7) -> 
B8: Aa1 | D8: 2 | F8: AA+ | H8: 2
B9: Aa2 | D9: 3 | F9: AA | H9: 3
B10: Aa3 | D10: 4 | F10: AA- | H10: 4
B12: A1 | D12: 5 | F12: A+ | H12: 5
B13: A2 | D13: 6 | F13: A | H13: 6
B14: A3 | D14: 7 | F14: A- | H14: 7
B16: Baa1 | D16: 8 | F16: BBB+ | H16: 8
B17: Baa2 | D17: 9 | F17: BBB | H17: 9
B18: Baa3 | D18: 10 | F18: BBB- | H18: 10
B20: Ba1 | D20: 11 | F20: BB+ | H20: 11
B21: Ba2 | D21: 12 | F21: BB | H21: 12
B22: Ba3 | D22: 13 | F22: BB- | H22: 13
B24: B1 | D24: 14 | F24: B+ | H24: 14
B25: B2 | D25: 15 | F25: B | H25: 15
B26: B3 | D26: 16 | F26: B- | H26: 16

Sheet 3.7 ERP Determination
A1: =Input!G28 -> Duke Energy Kentucky, Inc.
A2: Judgment of Equity Risk Premium for
A3: =E6 -> Proxy Group of Thirteen Combination Electric and Gas Utilities
A6: Line No. | E6: ='3.5 Bond Ratings'!B3 -> Proxy Group of Thirteen Combination Electric and Gas Utilities
A9: 1. | C9: Calculated equity risk
C10: premium based on the
C11: total market using
C12: the beta approach (1) | E12: ='3.8-3.9 Beta Adjusted ERP'!F27 -> 8.55 | F12: %
A14: 2. | C14: Mean equity risk premium
C15: based on a study
C16: using the holding period
C17: returns of public utilities
C18: with A rated bonds (2) | E18: ='3.12 S&P RPM Study Returns'!E19 -> 5.62
A20: 3. | C20: Predicted Equity Risk Premium
C21: Based on Regression Analysis
C22: of 1986 Fully-Litigated Natural
C23: Gas and Electric Distribution
C24: Utility Rate Cases (3) | E24: ='3.13 Past Rate Cases Comb'!AF25 -> 5.775705586
A26: 4. | C26: Average equity risk premium | E26: =ROUND(AVERAGE(E12:E24),2) -> 6.65 | F26: %
A29: Notes: | B29: (1) | C29: From page 8 of this Schedule.
B30: (2) | C30: From page 12 of this Schedule.
B31: (3) | C31: From page 13 of this Schedule.

Sheet 3.8-3.9 Beta Adjusted ERP
A1: =Input!G28 -> Duke Energy Kentucky, Inc.
A2: Derivation of Equity Risk Premium Based on the Total Market Approach
A3: Using the Beta for the
A4: ='3.7 ERP Determination'!E6 -> Proxy Group of Thirteen Combination Electric and Gas Utilities
A7: Line No. | C7: ='6.5 CEM Beta Adjusted RP'!C7 -> Equity Risk Premium Measure | F7: =A4 -> Proxy Group of Thirteen Combination Electric and Gas Utilities
B9: Ibbotson-Based Equity Risk Premiums:
A11: 1. | C11: Ibbotson Equity Risk Premium (1) | F11: =('Market Data'!B10-'Market Data'!B11)*100 -> 5.92 | G11: %
A13: 2. | C13: Regression on Ibbotson Risk Premium Data (2) | F13: ='MRP ERP WP'!$AK$42*100 -> 8.870009432
A15: 3. | C15: Ibbotson Equity Risk Premium based on PRPM (3) | F15: ='PRPM WP1'!Q1165*100 -> 7.8772628
A17: 4. | C17: Equity Risk Premium Based on Value Line Summary and Index (4) | F17: ='MRP WP1'!$M$22*100-'MRP WP1'!$M$37 -> 5.54
A19: 5. | C19: Equity Risk Premium Based on Value Line S&P 500 Companies (5) | F19: =('MRP WP3'!H504*100)-'MRP WP1'!M37 -> 11.64366987
A21: 6. | C21: Equity Risk Premium Based on Bloomberg S&P 500 Companies (6) | F21: ='MRP WP2'!Q504*100-'MRP WP1'!M37 -> 14.76498602
A23: 7. | C23: Conclusion of Equity Risk Premium | F23: =ROUND(AVERAGE(F11:F21),2) -> 9.1 | G23: %
A25: 8. | C25: Adjusted Beta (7) | F25: ='4.1 CAPM'!H27 -> 0.94
A27: 9. | C27: Forecasted Equity Risk Premium | F27: =ROUND(F23*F25,2) -> 8.55 | G27: %
A29: Notes provided on page 9 of this Schedule.
B31: Notes:
B32: (1) | C32: =CONCATENATE("Based on the arithmetic mean historical monthly returns on large company common stocks from Ibbotson® SBBI® ",YEAR(Input!E2)," Market Report minus the arithmetic mean monthly yield of Moody's average Aaa and Aa corporate bonds from 1928-2020.") -> Based on the arithmetic mean historical monthly returns on large company common stocks from Ibbotson® SBBI® 2021 Market Report minus the arithmetic mean monthly yield of Moody's average Aaa and Aa corporate bonds from 1928-2020.
B34: (2) | C34: This equity risk premium is based on a regression of the monthly equity risk premiums of large company common stocks relative to Moody's average Aaa and Aa rated corporate bond yields from 1928-2020 referenced in Note 1 above.
B35: (3) | C35: The Predictive Risk Premium Model (PRPM) is discussed in the accompanying direct testimony. The Ibbotson equity risk premium based on the PRPM is derived by applying the PRPM to the monthly risk premiums between Ibbotson large company common stock monthly returns and average Aaa and Aa corporate monthly bond yields, from January 1928 through August 2021.
B36: (4) | C36: =CONCATENATE("The equity risk premium based on the Value Line Summary and Index is derived by subtracting the average consensus forecast of Aaa corporate bonds of ",TEXT('MRP WP1'!M37,"#0.00"),"% (from page 3 of this Exhibit) from the projected 3-5 year total annual market return of ",TEXT('MRP WP1'!M22*100,"#0.00"),"% (described fully in note 1 on page 2 of Schedule DWD-4).") -> The equity risk premium based on the Value Line Summary and Index is derived by subtracting the average consensus forecast of Aaa corporate bonds of 3.41% (from page 3 of this Exhibit) from the projected 3-5 year total annual market return of 8.95% (described fully in note 1 on page 2 of Schedule DWD-4).
B37: (5) | C37: Using data from Value Line for the S&P 500, an expected total return of 15.05% was derived based upon expected dividend yields and long-term earnings growth estimates as a proxy for capital appreciation. Subtracting the average consensus forecast of Aaa corporate bonds of 3.41% results in an expected equity risk premium of 11.64%.
B38: (6) | C38: Using data from the Bloomberg Professional Service for the S&P 500, an expected total return of 18.17% was derived based upon expected dividend yields and long-term earnings growth estimates as a proxy for capital appreciation. Subtracting the average consensus forecast of Aaa corporate bonds of 3.41% results in an expected equity risk premium of 14.76%.
B39: (7) | C39: Average of mean and median beta from Schedule DWD-4.
B41: Sources of Information:
C42: Stocks, Bonds, Bills, and Inflation - 2021 SBBI Yearbook, John Wiley & Sons, Inc.
C43: Industrial Manual and Mergent Bond Record Monthly Update.
C44: Value Line Summary and Index
C45: =CONCATENATE("Blue Chip Financial Forecasts, ",Input!I25) -> Blue Chip Financial Forecasts, September 1, 2021 and June 1, 2021
C46: Bloomberg Professional Service

Sheet 3.12 S&P RPM Study Returns
A1: =Input!G28 -> Duke Energy Kentucky, Inc.
A2: Derivation of Mean Equity Risk Premium Based Studies
A3: Using Holding Period Returns and
A4: Projected Market Appreciation of the S&P Utility Index
A5: Line No. | E5: Implied Equity Risk Premium
B7: Equity Risk Premium based on S&P Utility Index Holding Period Returns (1):
A9: 1. | C9: Historical Equity Risk Premium | E9: =('Market Data'!B12-'Market Data'!B13)*100 -> 4.16 | F9: %
A11: 2. | C11: Regression of Historical Equity Risk Premium (2) | E11: ='MRP ERP WP'!AU42*100 -> 6.505591065
A13: 3. | C13: Forecasted Equity Risk Premium Based on PRPM (3) | E13: =ROUND('PRPM WP1'!P1165*100,2) -> 4.94
A15: 4. | C15: Forecasted Equity Risk Premium based on Projected Total Return on the S&P Utilities Index (Value Line Data) (4) | E15: =ROUND(('ERP WP 2'!H32*100)-'3.3 Risk Premium Summary'!G18,2) -> 7.15
A17: 5. | C17: Forecasted Equity Risk Premium based on Projected Total Return on the S&P Utilities Index (Bloomberg Data) (5) | E17: =ROUND('ERP WP1'!O31*100-'3.3 Risk Premium Summary'!G18,2) -> 5.32
A19: 6. | C19: Average Equity Risk Premium (6) | E19: =ROUND(AVERAGE(E9:E17),2) -> 5.62 | F19: %
A22: Notes: | B22: (1) | C22: Based on S&P Public Utility Index monthly total returns and Moody's Public Utility Bond average monthly yields from 1928-2020. Holding period returns are calculated based upon income received (dividends and interest) plus the relative change in the market value of a security over a one-year holding period.
B23: (2) | C23: This equity risk premium is based on a regression of the monthly equity risk premiums of the S&P Utility Index relative to Moody's A2 rated public utility bond yields from 1928 - 2020 referenced in note 1 above.
B24: (3) | C24: =CONCATENATE("The Predictive Risk Premium Model (PRPM) is applied to the risk premium of the monthly total returns of the S&P Utility Index and the monthly yields on Moody's A2 rated public utility bonds from January 1928 - ",Input!G25,".") -> The Predictive Risk Premium Model (PRPM) is applied to the risk premium of the monthly total returns of the S&P Utility Index and the monthly yields on Moody's A2 rated public utility bonds from January 1928 - August 2021.
B25: (4) | C25: Using data from Value Line for the S&P Utilities Index, an expected return of 10.94% was derived based on expected dividend yields and long-term growth estimates as a proxy for market appreciation. Subtracting the expected A2 rated public utility bond yield of 3.79%, calculated on line 3 of page 3 of this Schedule results in an equity risk premium of 7.15%. (10.94% - 3.79% = 7.15%).
B26: (5) | C26: Using data from Bloomberg Professional Service for the S&P Utilities Index, an expected return of 9.11% was derived based on expected dividend yields and long-term growth estimates as a proxy for market appreciation. Subtracting the expected A2 rated public utility bond yield of 3.79%, calculated on line 3 of page 3 of this Schedule results in an equity risk premium of 5.32%. (9.11% - 3.79% = 5.32%)
B27: (6) | C27: Average of lines 1 through 5.

Sheet 3.13 Past Rate Cases Comb
A1: Rate Case History | O1: SUMMARY OUTPUT | Z1: =Input!G28 -> Duke Energy Kentucky, Inc.
Z2: Prediction of Equity Risk Premiums Relative to
A3: Past Rate Cases | O3: Regression Statistics | Z3: Moody's A2 Rated Utility Bond Yields
F4: Increase Authorized | O4: Multiple R | P4: 0.9211860439
A5: State | B5: Company | C5: Case Identification | D5: Service | E5: Case Type | F5: Date | G5: Decision Type | H5: Return on Equity (%) | I5: Common Equity /Total Cap (%) | J5: A Rated Utility Bond (%) | K5: Equity Risk Premium (%) | O5: R Square | P5: 0.8485837274
A6: Vermont | B6: Central Vermont Public Service | C6: D-NA | D6: Electric | E6: Vertically Integrated | F6: 1980-01-01 | G6: Fully Litigated | H6: 14.5 | I6: 39.3 | J6: 11.89 | K6: 2.61 | O6: Adjusted R Square | P6: 0.8485074087
A7: Illinois | B7: Northern Illinois Gas Co. | C7: D-79-0133 | D7: Natural Gas | E7: Distribution | F7: 1980-01-03 | G7: Fully Litigated | H7: 12.55 | I7: 51.81 | J7: 11.89 | K7: 0.66 | O7: Standard Error | P7: 0.8563088315
A8: Pennsylvania | B8: PECO Energy Co. | C8: C-R-79030781 | D8: Natural Gas | E8: Distribution | F8: 1980-01-04 | G8: Fully Litigated | H8: 13.75 | I8: 35.1 | J8: 11.89 | K8: 1.86 | O8: Observations | P8: 1986
A9: Ohio | B9: Duke Energy Ohio Inc. | C9: C-79-11-EL-AIR | D9: Electric | E9: Vertically Integrated | F9: 1980-01-07 | G9: Fully Litigated | H9: 14.39 | I9: 35.8 | J9: 11.89 | K9: 2.5
A10: Texas | B10: CenterPoint Energy Houston | C10: D-2676 | D10: Electric | E10: Vertically Integrated | F10: 1980-01-09 | G10: Fully Litigated | H10: 15 | I10: 38.01 | J10: 11.89 | K10: 3.11 | O10: ANOVA
A11: Maryland | B11: Washington Gas Light Co. | C11: C-7394 0-64174 | D11: Natural Gas | E11: Distribution | F11: 1980-01-14 | G11: Fully Litigated | H11: 13.2 | I11: 36.6 | J11: 11.89 | K11: 1.31 | P11: df | Q11: SS | R11: MS | S11: F | T11: Significance F
A12: Oregon | B12: Portland General Electric Co. | C12: C-UF-3518 | D12: Electric | E12: Vertically Integrated | F12: 1980-01-14 | G12: Fully Litigated | H12: 15.17 | I12: 36.65 | J12: 11.89 | K12: 3.28 | O12: Regression | P12: 1 | Q12: 8153.135546 | R12: 8153.135546 | S12: 11118.951 | T12: 0
A13: Virginia | B13: Appalachian Power Co. | C13: C-PUE-790015 | D13: Electric | E13: Vertically Integrated | F13: 1980-01-17 | G13: Fully Litigated | H13: 13.93 | I13: NA | J13: 12.15 | K13: 1.78 | O13: Residual | P13: 1984 | Q13: 1454.797393 | R13: 0.733264815
A14: Georgia | B14: Atlanta Gas Light Co. | C14: D-3167-U | D14: Natural Gas | E14: Distribution | F14: 1980-01-18 | G14: Fully Litigated | H14: 14 | I14: 35.09 | J14: 12.15 | K14: 1.85 | O14: Total | P14: 1985 | Q14: 9607.932939
A15: Texas | B15: AEP Texas Central Co. | C15: D-2840 | D15: Electric | E15: Vertically Integrated | F15: 1980-01-23 | G15: Fully Litigated | H15: 15.5 | I15: 37.68 | J15: 12.15 | K15: 3.35
A16: Ohio | B16: Ohio Edison Co. | C16: C-78-1567&68-EL-AIR | D16: Electric | E16: Vertically Integrated | F16: 1980-01-30 | G16: Fully Litigated | H16: 13.86 | I16: 34.54 | J16: 12.15 | K16: 1.71 | P16: Coefficients | Q16: Standard Error | R16: t Stat | S16: P-value | T16: Lower 95% | U16: Upper 95% | V16: Lower 95.0% | W16: Upper 95.0%
A17: Massachusetts | B17: NSTAR Gas Co. | C17: DPU-20132-G | D17: Natural Gas | E17: Distribution | F17: 1980-01-31 | G17: Fully Litigated | H17: 12.61 | I17: 52 | J17: 12.15 | K17: 0.46 | O17: Intercept | P17: 7.614682733 | Q17: 0.05049325605 | R17: 150.8059359 | S17: 0 | T17: 7.515657359 | U17: 7.713708107 | V17: 7.515657359 | W17: 7.713708107
A18: Massachusetts | B18: Commonwealth Electric Co. | C18: DPU-20132-E | D18: Electric | E18: Vertically Integrated | F18: 1980-01-31 | G18: Fully Litigated | H18: 12.61 | I18: 52 | J18: 12.15 | K18: 0.46 | O18: X Variable 1 | P18: -0.4852182445 | Q18: 0.004601561324 | R18: -105.4464366 | S18: 0 | T18: -0.4942426444 | U18: -0.4761938447 | V18: -0.4942426444 | W18: -0.4761938447
A19: Illinois | B19: Commonwealth Edison Co. | C19: D-79-0214 | D19: Electric | E19: Vertically Integrated | F19: 1980-02-06 | G19: Fully Litigated | H19: 13.71 | I19: 33 | J19: 12.15 | K19: 1.56
A20: Oklahoma | B20: Oklahoma Natural Gas Co | C20: Ca-26652 | D20: Natural Gas | E20: Distribution | F20: 1980-02-08 | G20: Fully Litigated | H20: 14.5 | I20: 49.31 | J20: 12.15 | K20: 2.35
A21: South Dakota | B21: Black Hills Power Inc. | C21: D-F-3325 | D21: Electric | E21: Vertically Integrated | F21: 1980-02-13 | G21: Fully Litigated | H21: 12.8 | I21: 44.37 | J21: 12.15 | K21: 0.65
A22: Wisconsin | B22: Madison Gas and Electric Co. | C22: D-3270-UR-9-G | D22: Natural Gas | E22: Distribution | F22: 1980-02-14 | G22: Fully Litigated | H22: 13 | I22: 40 | J22: 12.15 | K22: 0.85
A23: Wisconsin | B23: Madison Gas and Electric Co. | C23: D-3270-UR-9-E | D23: Electric | E23: Vertically Integrated | F23: 1980-02-14 | G23: Fully Litigated | H23: 13 | I23: 40 | J23: 12.15 | K23: 0.85
A24: Wisconsin | B24: Wisconsin Gas LLC | C24: D-6650-GR-6 | D24: Natural Gas | E24: Distribution | F24: 1980-02-15 | G24: Fully Litigated | H24: 13 | I24: 41.2 | J24: 12.21 | K24: 0.79 | Z24: Constant | AB24: Slope | AD24: Prospective A2 Rated Utility Bond (1) | AF24: Prospective Equity Risk Premium
A25: Wisconsin | B25: Wisconsin Power and Light Co | C25: D-6680-UR-5 | D25: Electric | E25: Vertically Integrated | F25: 1980-02-19 | G25: Fully Litigated | H25: 13.5 | I25: 36.9 | J25: 12.21 | K25: 1.29 | Z25: =P17 -> 7.614682733 | AA25: % | AB25: =P18 -> -0.4852182445 | AD25: ='3.3 Risk Premium Summary'!G18 -> 3.79 | AE25: % | AF25: =AB25*AD25+Z25 -> 5.775705586 | AG25: %
A26: Maryland | B26: Delmarva Power & Light Co. | C26: C-7363 0-64218 | D26: Electric | E26: Vertically Integrated | F26: 1980-02-27 | G26: Fully Litigated | H26: 13.75 | I26: 34.65 | J26: 12.21 | K26: 1.54
A27: New York | B27: Niagara Mohawk Power Corp. | C27: C-27540 | D27: Natural Gas | E27: Distribution | F27: 1980-02-29 | G27: Fully Litigated | H27: 14 | I27: 38.5 | J27: 12.21 | K27: 1.79
A28: New York | B28: Niagara Mohawk Power Corp. | C28: C-27538,39 | D28: Electric | E28: Vertically Integrated | F28: 1980-02-29 | G28: Fully Litigated | H28: 14 | I28: 38.5 | J28: 12.21 | K28: 1.79 | Z28: Notes:
A29: Ohio | B29: Toledo Edison Co. | C29: C-79-143-EL-AIR | D29: Electric | E29: Vertically Integrated | F29: 1980-02-29 | G29: Fully Litigated | H29: 14.77 | I29: 35.13 | J29: 12.21 | K29: 2.56 | Z29: (1) | AA29: From line 3 of page 3 of this Schedule.
A30: Arkansas | B30: Entergy Arkansas Inc. | C30: D-U-2972 | D30: Electric | E30: Vertically Integrated | F30: 1980-02-29 | G30: Fully Litigated | H30: 13.75 | I30: 33 | J30: 12.21 | K30: 1.54
A31: Kansas | B31: Kansas Gas Service Co. | C31: D-119,314-U | D31: Natural Gas | E31: Distribution | F31: 1980-03-05 | G31: Fully Litigated | H31: 14 | I31: 33.65 | J31: 12.21 | K31: 1.79 | Z31: Source of Information:
A32: New York | B32: Consolidated Edison Co. of NY | C32: C-27544 | D32: Natural Gas | E32: Distribution | F32: 1980-03-07 | G32: Fully Litigated | H32: 13.5 | I32: 44.69 | J32: 12.21 | K32: 1.29 | AB32: Regulatory Research Associates
A33: Mississippi | B33: Mississippi Power Co. | C33: C-U-3739 | D33: Electric | E33: Vertically Integrated | F33: 1980-03-07 | G33: Fully Litigated | H33: 12.7 | I33: 33.81 | J33: 12.21 | K33: 0.49 | AB33: Bloomberg Professional Services
A34: New York | B34: Natl Fuel Gas Distribution Cor | C34: C-27503 | D34: Natural Gas | E34: Distribution | F34: 1980-03-14 | G34: Fully Litigated | H34: 14 | I34: 42.1 | J34: 12.21 | K34: 1.79
A35: Michigan | B35: DTE Electric Co. | C35: C-U-6006 | D35: Electric | E35: Vertically Integrated | F35: 1980-03-14 | G35: Fully Litigated | H35: 13.5 | I35: 30.3 | J35: 12.21 | K35: 1.29
A36: Idaho | B36: PacifiCorp | C36: C-U-1009-107 | D36: Electric | E36: Vertically Integrated | F36: 1980-03-26 | G36: Fully Litigated | H36: 14.16 | I36: 37.5 | J36: 13.23 | K36: 0.93
A37: New York | B37: Orange & Rockland Utlts Inc. | C37: C-27554 | D37: Natural Gas | E37: Distribution | F37: 1980-03-27 | G37: Fully Litigated | H37: 12.69 | I37: 39.25 | J37: 13.23 | K37: -0.54
A38: New York | B38: Orange & Rockland Utlts Inc. | C38: C-27553 | D38: Electric | E38: Vertically Integrated | F38: 1980-03-27 | G38: Fully Litigated | H38: 14.24 | I38: 39.25 | J38: 13.23 | K38: 1.01
A39: Idaho | B39: Idaho Power Co. | C39: C-U-1006-159 | D39: Electric | E39: Vertically Integrated | F39: 1980-03-28 | G39: Fully Litigated | H39: 14.5 | I39: 33.83 | J39: 13.23 | K39: 1.27
A40: Kentucky | B40: Kentucky Power Co. | C40: C-7489 | D40: Electric | E40: Vertically Integrated | F40: 1980-04-11 | G40: Fully Litigated | H40: 12.75 | I40: 41.69 | J40: 13.23 | K40: -0.48
A41: Maryland | B41: Potomac Electric Power Co. | C41: C-7384 0-64268 | D41: Electric | E41: Vertically Integrated | F41: 1980-04-14 | G41: Fully Litigated | H41: 13.85 | I41: 37.9 | J41: 13.23 | K41: 0.62
A42: New Mexico | B42: Public Service Co. of NM | C42: C-1536 | D42: Electric | E42: Vertically Integrated | F42: 1980-04-16 | G42: Fully Litigated | H42: 15.5 | I42: 34.6 | J42: 14.59 | K42: 0.91
A43: North Dakota | B43: Otter Tail Power Co. | C43: C-9996 | D43: Electric | E43: Vertically Integrated | F43: 1980-04-22 | G43: Fully Litigated | H43: 13.25 | I43: 32.93 | J43: 14.59 | K43: -1.34
A44: North Carolina | B44: Duke Energy Progress LLC | C44: D-E-2, SUB 366 | D44: Electric | E44: Vertically Integrated | F44: 1980-04-22 | G44: Fully Litigated | H44: 13.9 | I44: 38 | J44: 14.59 | K44: -0.69
A45: Utah | B45: PacifiCorp | C45: C-79-035-12 | D45: Electric | E45: Vertically Integrated | F45: 1980-04-24 | G45: Fully Litigated | H45: 16.8 | I45: 36.93 | J45: 14.59 | K45: 2.21
A46: Iowa | B46: MidAmerican Energy Co. | C46: D-RPU-78-11 | D46: Natural Gas | E46: Distribution | F46: 1980-04-29 | G46: Fully Litigated | H46: 12.5 | I46: 36.5 | J46: 14.59 | K46: -2.09
A47: Texas | B47: Oncor Electric Delivery Co. | C47: D-3006 | D47: Electric | E47: Vertically Integrated | F47: 1980-04-29 | G47: Fully Litigated | H47: 15.5 | I47: 38.61 | J47: 14.59 | K47: 0.91
A48: New York | B48: Long Island Lighting Co | C48: C-27622 | D48: Electric | E48: Vertically Integrated | F48: 1980-05-06 | G48: Fully Litigated | H48: 13.7 | I48: NA | J48: 14.59 | K48: -0.89
A49: Ohio | B49: AES Ohio | C49: C-79-372-GA-AIR | D49: Natural Gas | E49: Distribution | F49: 1980-05-07 | G49: Fully Litigated | H49: 14.27 | I49: 34.24 | J49: 14.59 | K49: -0.32
A50: Oklahoma | B50: Public Service Co. of OK | C50: Ca-26669 | D50: Electric | E50: Vertically Integrated | F50: 1980-05-07 | G50: Fully Litigated | H50: 15 | I50: 42.85 | J50: 14.59 | K50: 0.41
A51: New Jersey | B51: Public Service Electric Gas | C51: D-794-310-G | D51: Natural Gas | E51: Distribution | F51: 1980-05-08 | G51: Fully Litigated | H51: 13.75 | I51: 35.91 | J51: 14.59 | K51: -0.84
A52: New Jersey | B52: Public Service Electric Gas | C52: D-794-310-E | D52: Electric | E52: Vertically Integrated | F52: 1980-05-08 | G52: Fully Litigated | H52: 13.75 | I52: 35.91 | J52: 14.59 | K52: -0.84
A53: Pennsylvania | B53: PECO Energy Co. | C53: C-R-79060865 | D53: Electric | E53: Vertically Integrated | F53: 1980-05-09 | G53: Fully Litigated | H53: 14.35 | I53: 35 | J53: 14.59 | K53: -0.24
A54: Rhode Island | B54: Blackstone Valley Electric | C54: D-1439-U-1010-8 | D54: Electric | E54: Vertically Integrated | F54: 1980-05-13 | G54: Fully Litigated | H54: 13.6 | I54: 30.64 | J54: 14.59 | K54: -0.99
A55: District of Columbia | B55: Potomac Electric Power Co. | C55: C-715 0-7135 | D55: Electric | E55: Vertically Integrated | F55: 1980-05-15 | G55: Fully Litigated | H55: 13.25 | I55: 36 | J55: 14.29 | K55: -1.04
A56: Utah | B56: Questar Gas Co. | C56: C-80-057-01 | D56: Natural Gas | E56: Distribution | F56: 1980-05-19 | G56: Fully Litigated | H56: 15.5 | I56: 44.87 | J56: 14.59 | K56: 0.91
A57: Louisiana | B57: Southwestern Electric Power Co | C57: D-U-14250 | D57: Electric | E57: Vertically Integrated | F57: 1980-05-19 | G57: Fully Litigated | H57: 13.75 | I57: 36 | J57: 14.29 | K57: -0.54
A58: Colorado | B58: Public Service Co. of CO | C58: D-1420-De-C80-1039 (Gas) | D58: Natural Gas | E58: Distribution | F58: 1980-05-27 | G58: Fully Litigated | H58: 14.6 | I58: 35.8 | J58: 14.29 | K58: 0.31
A59: West Virginia | B59: Appalachian Power Co. | C59: C-79-140-E-42T | D59: Electric | E59: Vertically Integrated | F59: 1980-05-27 | G59: Fully Litigated | H59: 13.62 | I59: 33 | J59: 14.29 | K59: -0.67
A60: Colorado | B60: Public Service Co. of CO | C60: D-1420-De-C80-1039 (Elec.) | D60: Electric | E60: Vertically Integrated | F60: 1980-05-27 | G60: Fully Litigated | H60: 14.6 | I60: 35.8 | J60: 14.29 | K60: 0.31
A61: Arizona | B61: Arizona Public Service Co. | C61: D-U-1345 De-51009-G | D61: Natural Gas | E61: Distribution | F61: 1980-05-29 | G61: Fully Litigated | H61: 16 | I61: 37.21 | J61: 14.29 | K61: 1.71
A62: Arizona | B62: Arizona Public Service Co. | C62: D-U-1345 De-51009-E | D62: Electric | E62: Vertically Integrated | F62: 1980-05-29 | G62: Fully Litigated | H62: 16 | I62: 37.21 | J62: 14.29 | K62: 1.71
A63: Massachusetts | B63: Western Massachusetts Electric | C63: DPU-20279 | D63: Electric | E63: Vertically Integrated | F63: 1980-05-30 | G63: Fully Litigated | H63: 13.8 | I63: 35.45 | J63: 14.29 | K63: -0.49
A64: New Hampshire | B64: Public Service Co. of NH | C64: D-R79-187 | D64: Electric | E64: Vertically Integrated | F64: 1980-06-09 | G64: Fully Litigated | H64: 15.9 | I64: 34.24 | J64: 14.29 | K64: 1.61
A65: Maryland | B65: Baltimore Gas and Electric Co. | C65: C-7397 0-64331-G | D65: Natural Gas | E65: Distribution | F65: 1980-06-10 | G65: Fully Litigated | H65: 13.78 | I65: 38.5 | J65: 14.29 | K65: -0.51
A66: Maryland | B66: Baltimore Gas and Electric Co. | C66: C-7397 0-64331-E | D66: Electric | E66: Vertically Integrated | F66: 1980-06-10 | G66: Fully Litigated | H66: 13.78 | I66: 38.5 | J66: 14.29 | K66: -0.51
A67: Missouri | B67: Kansas City Power & Light | C67: C-ER-80-48 | D67: Electric | E67: Vertically Integrated | F67: 1980-06-19 | G67: Fully Litigated | H67: 13.4 | I67: 34.28 | J67: 12.74 | K67: 0.66
A68: Connecticut | B68: CT Natural Gas Corp. | C68: D-79-12-02 | D68: Natural Gas | E68: Distribution | F68: 1980-06-25 | G68: Fully Litigated | H68: 14.25 | I68: 41.76 | J68: 12.74 | K68: 1.51
A69: West Virginia | B69: Potomac Edison Co. | C69: C-79-230-E-42T | D69: Electric | E69: Vertically Integrated | F69: 1980-06-30 | G69: Fully Litigated | H69: 13.4 | I69: 34 | J69: 12.74 | K69: 0.66
A70: South Carolina | B70: South Carolina Electric & Gas | C70: D-79-196-E O-80-375 | D70: Electric | E70: Vertically Integrated | F70: 1980-06-30 | G70: Fully Litigated | H70: 13 | I70: 33.32 | J70: 12.74 | K70: 0.26
A71: Ohio | B71: The East Ohio Gas Co. | C71: C-79-535-GA-AIR | D71: Natural Gas | E71: Distribution | F71: 1980-07-09 | G71: Fully Litigated | H71: 14.51 | I71: 53.69 | J71: 12.74 | K71: 1.77
A72: Hawaii | B72: Hawaiian Electric Co. | C72: D-3705 | D72: Electric | E72: Vertically Integrated | F72: 1980-07-09 | G72: Fully Litigated | H72: 14.75 | I72: 35.9 | J72: 12.74 | K72: 2.01
A73: Ohio | B73: Cleveland Elec Illuminating Co | C73: C-79-537-EL-AIR | D73: Electric | E73: Vertically Integrated | F73: 1980-07-10 | G73: Fully Litigated | H73: 15 | I73: 38.41 | J73: 12.74 | K73: 2.26
A74: West Virginia | B74: Mountaineer Gas Co. | C74: C-79-088-G-42T | D74: Natural Gas | E74: Distribution | F74: 1980-07-17 | G74: Fully Litigated | H74: 12.9 | I74: 42 | J74: 12.4 | K74: 0.5
A75: New York | B75: Rochester Gas & Electric Co | C75: C-27608 | D75: Natural Gas | E75: Distribution | F75: 1980-07-18 | G75: Fully Litigated | H75: 13.8 | I75: 39.9 | J75: 12.4 | K75: 1.4
A76: New York | B76: Rochester Gas & Electric Corp. | C76: C-27606,07 | D76: Electric | E76: Vertically Integrated | F76: 1980-07-18 | G76: Fully Litigated | H76: 13.8 | I76: 39.9 | J76: 12.4 | K76: 1.4
A77: New York | B77: NY State Electric & Gas Corp. | C77: C-27610 | D77: Natural Gas | E77: Distribution | F77: 1980-07-22 | G77: Fully Litigated | H77: 14.1 | I77: 39.9 | J77: 12.4 | K77: 1.7
A78: New York | B78: NY State Electric & Gas Corp. | C78: C-27609 | D78: Electric | E78: Vertically Integrated | F78: 1980-07-22 | G78: Fully Litigated | H78: 14.1 | I78: 39.9 | J78: 12.4 | K78: 1.7
A79: Kansas | B79: Kansas Gas Service Co. | C79: D-120,950-U | D79: Natural Gas | E79: Distribution | F79: 1980-07-23 | G79: Fully Litigated | H79: 14.19 | I79: 32.51 | J79: 12.4 | K79: 1.79
A80: New Mexico | B80: El Paso Electric Co. | C80: C-1539 | D80: Electric | E80: Vertically Integrated | F80: 1980-07-24 | G80: Fully Litigated | H80: 15 | I80: 36.55 | J80: 12.4 | K80: 2.6
A81: Virginia | B81: Potomac Edison Co. | C81: C-800060 | D81: Electric | E81: Vertically Integrated | F81: 1980-07-25 | G81: Fully Litigated | H81: 13.48 | I81: 30.5 | J81: 12.4 | K81: 1.08
A82: Ohio | B82: Dayton Power and Light Co. | C82: C-79-510-EL-AIR | D82: Electric | E82: Vertically Integrated | F82: 1980-07-31 | G82: Fully Litigated | H82: 14.58 | I82: 34.6 | J82: 12.4 | K82: 2.18
A83: Iowa | B83: MidAmerican Energy Co. | C83: D-RPU-78-25 | D83: Natural Gas | E83: Distribution | F83: 1980-08-01 | G83: Fully Litigated | H83: 12.5 | I83: 36.44 | J83: 12.4 | K83: 0.1
A84: New Mexico | B84: Southwestern Public Service Co | C84: C-1567 | D84: Electric | E84: Vertically Integrated | F84: 1980-08-08 | G84: Fully Litigated | H84: 15.45 | I84: 34.92 | J84: 12.4 | K84: 3.05
A85: Michigan | B85: Consumers Energy Co. | C85: C-U-5979 | D85: Electric | E85: Vertically Integrated | F85: 1980-08-08 | G85: Fully Litigated | H85: 13.5 | I85: 30.54 | J85: 12.4 | K85: 1.1
A86: Maine | B86: Emera Maine | C86: D-80-38 | D86: Electric | E86: Vertically Integrated | F86: 1980-08-08 | G86: Fully Litigated | H86: 14 | I86: 32.2 | J86: 12.4 | K86: 1.6
A87: Idaho | B87: Avista Corp. | C87: C-U-1008-145 | D87: Natural Gas | E87: Distribution | F87: 1980-08-11 | G87: Fully Litigated | H87: 14.85 | I87: 36.62 | J87: 12.4 | K87: 2.45
A88: Idaho | B88: Avista Corp. | C88: C-U-1008-144 | D88: Electric | E88: Vertically Integrated | F88: 1980-08-11 | G88: Fully Litigated | H88: 14.85 | I88: 36.62 | J88: 12.4 | K88: 2.45
A89: Missouri | B89: KCP&L Greater Missouri Op Co | C89: C-ER-80-118 | D89: Electric | E89: Vertically Integrated | F89: 1980-08-25 | G89: Fully Litigated | H89: 13.75 | I89: 27.4 | J89: 12.15 | K89: 1.6
A90: Indiana | B90: Northern IN Public Svc Co. | C90: Ca-36007 | D90: Electric | E90: Vertically Integrated | F90: 1980-08-27 | G90: Fully Litigated | H90: 13.8 | I90: 36.4 | J90: 12.15 | K90: 1.65
A91: Pennsylvania | B91: Natl Fuel Gas Distribution Cor | C91: C-R-79090956 | D91: Natural Gas | E91: Distribution | F91: 1980-08-28 | G91: Fully Litigated | H91: 14 | I91: 44.5 | J91: 12.15 | K91: 1.85
A92: South Carolina | B92: Duke Energy Carolinas LLC | C92: D-79-300-E O-80-474 | D92: Electric | E92: Vertically Integrated | F92: 1980-08-29 | G92: Fully Litigated | H92: 12.5 | I92: 35.37 | J92: 12.15 | K92: 0.35
A93: New York | B93: Brooklyn Union Gas Co. | C93: C-27631 | D93: Natural Gas | E93: Distribution | F93: 1980-09-04 | G93: Fully Litigated | H93: 14 | I93: 41.14 | J93: 12.15 | K93: 1.85
A94: Virginia | B94: Virginia Electric & Power Co. | C94: C-PUE 800056 | D94: Electric | E94: Vertically Integrated | F94: 1980-09-15 | G94: Fully Litigated | H94: 13.5 | I94: 31.01 | J94: 12.66 | K94: 0.84
A95: Virginia | B95: Appalachian Power Co. | C95: C-PUE 800089 | D95: Electric | E95: Vertically Integrated | F95: 1980-09-15 | G95: Fully Litigated | H95: 13.93 | I95: 32.3 | J95: 12.66 | K95: 1.27
A96: Kentucky | B96: Louisville Gas & Electric Co. | C96: C-7799 (gas) | D96: Natural Gas | E96: Distribution | F96: 1980-09-24 | G96: Fully Litigated | H96: 15 | I96: 36.43 | J96: 12.66 | K96: 2.34
A97: Kentucky | B97: Louisville Gas & Electric Co. | C97: C-7799 (elec.) | D97: Electric | E97: Vertically Integrated | F97: 1980-09-24 | G97: Fully Litigated | H97: 15 | I97: 36.43 | J97: 12.66 | K97: 2.34
A98: Iowa | B98: MidAmerican Energy Co. | C98: D-RPU-78-12 | D98: Electric | E98: Vertically Integrated | F98: 1980-09-24 | G98: Fully Litigated | H98: 12.5 | I98: 37.8 | J98: 12.66 | K98: -0.16
A99: New Jersey | B99: Atlantic City Electric Co. | C99: D-7911-951 | D99: Electric | E99: Vertically Integrated | F99: 1980-09-26 | G99: Fully Litigated | H99: 13.75 | I99: 39.1 | J99: 12.66 | K99: 1.09
A100: North Carolina | B100: Duke Energy Carolinas LLC | C100: D-E-7, SUB 289 | D100: Electric | E100: Vertically Integrated | F100: 1980-09-30 | G100: Fully Litigated | H100: 14.1 | I100: 38 | J100: 12.66 | K100: 1.44
A101: Massachusetts | B101: NSTAR Electric Co. | C101: DPU-160 | D101: Electric | E101: Vertically Integrated | F101: 1980-09-30 | G101: Fully Litigated | H101: 14.2 | I101: 32.93 | J101: 12.66 | K101: 1.54
A102: Kentucky | B102: Kentucky Utilities Co. | C102: C-7804 | D102: Electric | E102: Vertically Integrated | F102: 1980-10-01 | G102: Fully Litigated | H102: 13.9 | I102: 34.4 | J102: 12.66 | K102: 1.24
A103: Texas | B103: Oncor Electric Delivery Co. | C103: D-3250 | D103: Electric | E103: Vertically Integrated | F103: 1980-10-03 | G103: Fully Litigated | H103: 15.5 | I103: 39.58 | J103: 12.66 | K103: 2.84
A104: Iowa | B104: MidAmerican Energy Co. | C104: D-RPU-78-49 | D104: Electric | E104: Vertically Integrated | F104: 1980-10-07 | G104: Fully Litigated | H104: 12.5 | I104: 37.16 | J104: 12.66 | K104: -0.16
A105: Connecticut | B105: The CT Light & Power Co | C105: D-80-04-03-G | D105: Natural Gas | E105: Distribution | F105: 1980-10-09 | G105: Fully Litigated | H105: 14.5 | I105: 35.12 | J105: 12.66 | K105: 1.84
A106: Connecticut | B106: The CT Light & Power Co | C106: D-80-04-04-G | D106: Natural Gas | E106: Distribution | F106: 1980-10-09 | G106: Fully Litigated | H106: 14.5 | I106: 37.1 | J106: 12.66 | K106: 1.84
A107: Wisconsin | B107: Wisconsin Electric Power Co. | C107: D-6630-ER-10 | D107: Electric | E107: Vertically Integrated | F107: 1980-10-09 | G107: Fully Litigated | H107: 13.25 | I107: 38.43 | J107: 12.66 | K107: 0.59
A108: Connecticut | B108: Connecticut Light & Power Co. | C108: D-80-04-03-E | D108: Electric | E108: Vertically Integrated | F108: 1980-10-09 | G108: Fully Litigated | H108: 14.5 | I108: 35.12 | J108: 12.66 | K108: 1.84
A109: Connecticut | B109: Connecticut Light & Power Co. | C109: D-80-04-04-E | D109: Electric | E109: Vertically Integrated | F109: 1980-10-09 | G109: Fully Litigated | H109: 14.5 | I109: 37.1 | J109: 12.66 | K109: 1.84
A110: Florida | B110: Tampa Electric Co. | C110: D-800011-EU | D110: Electric | E110: Vertically Integrated | F110: 1980-10-17 | G110: Fully Litigated | H110: 14.5 | I110: 32.04 | J110: 13.29 | K110: 1.21
A111: Nevada | B111: Southwest Gas Corp. | C111: D-2868 (Southern) | D111: Natural Gas | E111: Distribution | F111: 1980-10-27 | G111: Fully Litigated | H111: 15.2 | I111: 34.68 | J111: 13.29 | K111: 1.91
A112: Nevada | B112: Southwest Gas Corp. | C112: D-2867 (Northern) | D112: Natural Gas | E112: Distribution | F112: 1980-10-27 | G112: Fully Litigated | H112: 15.2 | I112: 34.68 | J112: 13.29 | K112: 1.91
A113: Louisiana | B113: Atmos Energy Corp. | C113: D-U-14665 (LGS) | D113: Natural Gas | E113: Distribution | F113: 1980-10-28 | G113: Fully Litigated | H113: 12 | I113: 50.96 | J113: 13.29 | K113: -1.29
A114: West Virginia | B114: Hope Gas Inc. | C114: C-80-003-G-42T | D114: Natural Gas | E114: Distribution | F114: 1980-10-28 | G114: Fully Litigated | H114: 13 | I114: 52 | J114: 13.29 | K114: -0.29
A115: Idaho | B115: Intermountain Gas Co. | C115: C-U-1034-88 | D115: Natural Gas | E115: Distribution | F115: 1980-10-31 | G115: Fully Litigated | H115: 14.5 | I115: 31.7 | J115: 13.29 | K115: 1.21
A116: Maine | B116: Central Maine Power Co. | C116: D-80-25, 66 | D116: Electric | E116: Vertically Integrated | F116: 1980-10-31 | G116: Fully Litigated | H116: 13.75 | I116: 35.7 | J116: 13.29 | K116: 0.46
A117: Massachusetts | B117: Massachusetts Electric Co. | C117: DPU-200 | D117: Electric | E117: Vertically Integrated | F117: 1980-10-31 | G117: Fully Litigated | H117: 14.25 | I117: 35.12 | J117: 13.29 | K117: 0.96
A118: Nevada | B118: Sierra Pacific Power Co. | C118: D-2857 | D118: Natural Gas | E118: Distribution | F118: 1980-11-04 | G118: Fully Litigated | H118: 15 | I118: 37.35 | J118: 13.29 | K118: 1.71
A119: Nevada | B119: Sierra Pacific Power Co. | C119: D-2856 | D119: Electric | E119: Vertically Integrated | F119: 1980-11-04 | G119: Fully Litigated | H119: 15 | I119: 37.35 | J119: 13.29 | K119: 1.71
A120: Maryland | B120: Delmarva Power & Light Co. | C120: C-7427 0-64497 | D120: Electric | E120: Vertically Integrated | F120: 1980-11-05 | G120: Fully Litigated | H120: 14 | I120: 33.8 | J120: 13.29 | K120: 0.71
A121: Washington | B121: PacifiCorp | C121: Ca-U-80-36, 68 | D121: Electric | E121: Vertically Integrated | F121: 1980-11-05 | G121: Fully Litigated | H121: 13.75 | I121: 31.9 | J121: 13.29 | K121: 0.46
A122: Connecticut | B122: The Sthrn CT Gas Co | C122: D-80-04-17 | D122: Natural Gas | E122: Distribution | F122: 1980-11-06 | G122: Fully Litigated | H122: 14.35 | I122: 42.2 | J122: 13.29 | K122: 1.06
A123: Rhode Island | B123: Narragansett Electric Co. | C123: D-1499 | D123: Electric | E123: Vertically Integrated | F123: 1980-11-08 | G123: Fully Litigated | H123: 13.75 | I123: 34.1 | J123: 13.29 | K123: 0.46
A124: District of Columbia | B124: Washington Gas Light Co. | C124: C-722 0-7209 | D124: Natural Gas | E124: Distribution | F124: 1980-11-10 | G124: Fully Litigated | H124: 13.25 | I124: 40.1 | J124: 13.29 | K124: -0.04
A125: Florida | B125: Gulf Power Co. | C125: D-800001-EU | D125: Electric | E125: Vertically Integrated | F125: 1980-11-10 | G125: Fully Litigated | H125: 14.85 | I125: 28.96 | J125: 13.29 | K125: 1.56
A126: Louisiana | B126: Entergy Gulf States LA LLC | C126: D-U-14444 | D126: Natural Gas | E126: Distribution | F126: 1980-11-17 | G126: Fully Litigated | H126: 15.5 | I126: 38.66 | J126: 13.54 | K126: 1.96
A127: Louisiana | B127: Entergy Gulf States LA LLC | C127: D-U-14495 | D127: Electric | E127: Vertically Integrated | F127: 1980-11-17 | G127: Fully Litigated | H127: 14 | I127: 35.7 | J127: 13.54 | K127: 0.46
A128: California | B128: PacifiCorp | C128: AP-58605 De-92411 | D128: Electric | E128: Vertically Integrated | F128: 1980-11-18 | G128: Fully Litigated | H128: 14 | I128: 34.94 | J128: 13.54 | K128: 0.46
A129: Washington | B129: Puget Sound Energy Inc. | C129: Ca-U-80-25 | D129: Natural Gas | E129: Distribution | F129: 1980-11-19 | G129: Fully Litigated | H129: 13.5 | I129: 34.27 | J129: 13.54 | K129: -0.04
A130: South Dakota | B130: Black Hills Power Inc. | C130: D-F-3354 | D130: Electric | E130: Vertically Integrated | F130: 1980-11-19 | G130: Fully Litigated | H130: 13 | I130: 45.23 | J130: 13.54 | K130: -0.54
A131: Mississippi | B131: Entergy Mississippi Inc. | C131: C-U-3850 | D131: Electric | E131: Vertically Integrated | F131: 1980-11-24 | G131: Fully Litigated | H131: 14 | I131: 34.8 | J131: 13.54 | K131: 0.46
A132: Massachusetts | B132: Eastern Edison Company | C132: DPU-243 | D132: Electric | E132: Vertically Integrated | F132: 1980-11-26 | G132: Fully Litigated | H132: 14 | I132: 41.3 | J132: 13.54 | K132: 0.46
A133: California | B133: Southern California Gas Co. | C133: AP-59316 De-92497 | D133: Natural Gas | E133: Distribution | F133: 1980-12-05 | G133: Fully Litigated | H133: 14.6 | I133: 39.65 | J133: 13.54 | K133: 1.06
A134: Indiana | B134: Indiana Gas Co. | C134: Ca-36117 | D134: Natural Gas | E134: Distribution | F134: 1980-12-08 | G134: Fully Litigated | H134: 16.4 | I134: 49.1 | J134: 13.54 | K134: 2.86
A135: Connecticut | B135: United Illuminating Co. | C135: D-80-06-01 | D135: Electric | E135: Vertically Integrated | F135: 1980-12-08 | G135: Fully Litigated | H135: 15.1 | I135: 40 | J135: 13.54 | K135: 1.56
A136: North Carolina | B136: Duke Energy Progress LLC | C136: D-E-2, SUB 391 | D136: Electric | E136: Vertically Integrated | F136: 1980-12-08 | G136: Fully Litigated | H136: 14.15 | I136: 36 | J136: 13.54 | K136: 0.61
A137: Colorado | B137: Public Service Co. of CO | C137: D-1425-De-C80-2346 (Gas) | D137: Natural Gas | E137: Distribution | F137: 1980-12-12 | G137: Fully Litigated | H137: 15.45 | I137: 34.62 | J137: 13.54 | K137: 1.91
A138: Colorado | B138: Public Service Co. of CO | C138: D-1425-De-C80-2346 (Elec.) | D138: Electric | E138: Vertically Integrated | F138: 1980-12-12 | G138: Fully Litigated | H138: 15.45 | I138: 34.62 | J138: 13.54 | K138: 1.91
A139: Illinois | B139: North Shore Gas Co. | C139: D-80-0089 | D139: Natural Gas | E139: Distribution | F139: 1980-12-17 | G139: Fully Litigated | H139: 14.4 | I139: 39.5 | J139: 14.01 | K139: 0.39
A140: Illinois | B140: The Peoples Gas Light & Coke C | C140: D-80-0090 | D140: Natural Gas | E140: Distribution | F140: 1980-12-17 | G140: Fully Litigated | H140: 14.2 | I140: 40.02 | J140: 14.01 | K140: 0.19
A141: Kentucky | B141: Kentucky Power Co. | C141: C-7900 | D141: Electric | E141: Vertically Integrated | F141: 1980-12-17 | G141: Fully Litigated | H141: 13.25 | I141: 42.72 | J141: 14.01 | K141: -0.76
A142: Wisconsin | B142: Wisconsin Gas LLC | C142: D-6650-GR-13 | D142: Natural Gas | E142: Distribution | F142: 1980-12-18 | G142: Fully Litigated | H142: 14 | I142: 42.2 | J142: 14.01 | K142: -0.01
A143: West Virginia | B143: Monongahela Power Co. | C143: C-80-058-E-42T | D143: Electric | E143: Vertically Integrated | F143: 1980-12-19 | G143: Fully Litigated | H143: 14.5 | I143: 34.9 | J143: 14.01 | K143: 0.49
A144: Wyoming | B144: PacifiCorp | C144: D-9454, SUB 11 | D144: Electric | E144: Vertically Integrated | F144: 1980-12-19 | G144: Fully Litigated | H144: 14.64 | I144: 34.9 | J144: 14.01 | K144: 0.63
A145: Montana | B145: NorthWestern Corp. | C145: D-80.4.2.4714A (gas) | D145: Natural Gas | E145: Distribution | F145: 1980-12-22 | G145: Fully Litigated | H145: 13.45 | I145: 39.46 | J145: 14.01 | K145: -0.56
A146: Nevada | B146: Nevada Power Co. | C146: D-2955 | D146: Electric | E146: Vertically Integrated | F146: 1980-12-22 | G146: Fully Litigated | H146: 15 | I146: 38.11 | J146: 14.01 | K146: 0.99
A147: Montana | B147: NorthWestern Corp. | C147: D-80.4.2.4714A (elec) | D147: Electric | E147: Vertically Integrated | F147: 1980-12-22 | G147: Fully Litigated | H147: 13.45 | I147: 38.71 | J147: 14.01 | K147: -0.56
A148: New York | B148: Natl Fuel Gas Distribution Cor | C148: C-27776 | D148: Natural Gas | E148: Distribution | F148: 1980-12-26 | G148: Fully Litigated | H148: 14 | I148: 42.6 | J148: 14.01 | K148: -0.01
A149: California | B149: San Diego Gas & Electric Co. | C149: AP-59788 De-92557-G | D149: Natural Gas | E149: Distribution | F149: 1980-12-30 | G149: Fully Litigated | H149: 14.5 | I149: 36.25 | J149: 14.01 | K149: 0.49
A150: California | B150: Southern California Edison Co. | C150: AP-59351 De-92549 | D150: Electric | E150: Vertically Integrated | F150: 1980-12-30 | G150: Fully Litigated | H150: 14.95 | I150: 40 | J150: 14.01 | K150: 0.94
A151: California | B151: San Diego Gas & Electric Co. | C151: AP-59788 De-92557-E | D151: Electric | E151: Vertically Integrated | F151: 1980-12-30 | G151: Fully Litigated | H151: 14.5 | I151: 36.25 | J151: 14.01 | K151: 0.49
A152: North Dakota | B152: Northern States Power Co. - MN | C152: C-10, 097 | D152: Electric | E152: Vertically Integrated | F152: 1980-12-31 | G152: Fully Litigated | H152: 13.39 | I152: 43.68 | J152: 14.01 | K152: -0.62
A153: Washington | B153: Puget Sound Energy Inc. | C153: Ca-U-80-10 | D153: Electric | E153: Vertically Integrated | F153: 1981-01-02 | G153: Fully Litigated | H153: 15.25 | I153: 36.5 | J153: 14.01 | K153: 1.24
A154: Illinois | B154: Ameren Illinois | C154: D-80-0157 (CILCO-G) | D154: Natural Gas | E154: Distribution | F154: 1981-01-07 | G154: Fully Litigated | H154: 14.3 | I154: 35.56 | J154: 14.01 | K154: 0.29
A155: Illinois | B155: Ameren Illinois | C155: D-80-0157 (CILCO-E) | D155: Electric | E155: Vertically Integrated | F155: 1981-01-07 | G155: Fully Litigated | H155: 14.3 | I155: 35.56 | J155: 14.01 | K155: 0.29
A156: North Carolina | B156: Public Service Co. of NC | C156: D-G-5, SUB 157 | D156: Natural Gas | E156: Distribution | F156: 1981-01-12 | G156: Fully Litigated | H156: 14.95 | I156: 37.59 | J156: 14.01 | K156: 0.94
A157: Oklahoma | B157: Oklahoma Gas and Electric Co. | C157: Ca-26782 | D157: Electric | E157: Vertically Integrated | F157: 1981-01-19 | G157: Fully Litigated | H157: 15.25 | I157: 36.31 | J157: 14.66 | K157: 0.59
A158: Georgia | B158: Savannah Electric & Power Co. | C158: D-3220-U | D158: Electric | E158: Vertically Integrated | F158: 1981-01-23 | G158: Fully Litigated | H158: 14.4 | I158: 28.32 | J158: 14.66 | K158: -0.26
A159: South Dakota | B159: NorthWestern Corp. | C159: D-F-3359 | D159: Electric | E159: Vertically Integrated | F159: 1981-01-23 | G159: Fully Litigated | H159: 13.1 | I159: 32.76 | J159: 14.66 | K159: -1.56
A160: Washington | B160: Avista Corp. | C160: Ca-U-80-14 | D160: Natural Gas | E160: Distribution | F160: 1981-01-26 | G160: Fully Litigated | H160: 15.25 | I160: 36.02 | J160: 14.66 | K160: 0.59
A161: Washington | B161: Avista Corp. | C161: Ca-U-80-13 | D161: Electric | E161: Vertically Integrated | F161: 1981-01-26 | G161: Fully Litigated | H161: 15.25 | I161: 36.02 | J161: 14.66 | K161: 0.59
A162: Delaware | B162: Delmarva Power & Light Co. | C162: D-809 0-2179 | D162: Electric | E162: Vertically Integrated | F162: 1981-01-27 | G162: Fully Litigated | H162: 15 | I162: 35.69 | J162: 14.66 | K162: 0.34
A163: Michigan | B163: DTE Gas Co. | C163: C-U-6372 | D163: Natural Gas | E163: Distribution | F163: 1981-01-30 | G163: Fully Litigated | H163: 13.25 | I163: 34.4 | J163: 14.66 | K163: -1.41
A164: Minnesota | B164: ALLETE (Minnesota Power) | C164: D-E-015-GR-80-76 | D164: Electric | E164: Vertically Integrated | F164: 1981-01-31 | G164: Fully Litigated | H164: 13.47 | I164: 33.76 | J164: 14.66 | K164: -1.19
A165: Pennsylvania | B165: West Penn Power Co. | C165: C-R-80021082 | D165: Electric | E165: Vertically Integrated | F165: 1981-02-03 | G165: Fully Litigated | H165: 15.25 | I165: 36.6 | J165: 14.66 | K165: 0.59
A166: Pennsylvania | B166: PPL Electric Utilities Corp. | C166: C-R-80031114 | D166: Electric | E166: Vertically Integrated | F166: 1981-02-05 | G166: Fully Litigated | H166: 15.75 | I166: 32.7 | J166: 14.66 | K166: 1.09
A167: Oklahoma | B167: Oklahoma Natural Gas Co | C167: Ca-26981 | D167: Natural Gas | E167: Distribution | F167: 1981-02-11 | G167: Fully Litigated | H167: 14.5 | I167: 48.94 | J167: 14.66 | K167: -0.16
A168: Ohio | B168: Ohio Edison Co. | C168: C-80-141-EL-AIR | D168: Electric | E168: Vertically Integrated | F168: 1981-02-11 | G168: Fully Litigated | H168: 15.6 | I168: 32.21 | J168: 14.66 | K168: 0.94
A169: Oklahoma | B169: CenterPoint Energy Resources | C169: Ca-26975 | D169: Natural Gas | E169: Distribution | F169: 1981-02-20 | G169: Fully Litigated | H169: 14.5 | I169: 55.03 | J169: 14.27 | K169: 0.23
A170: Pennsylvania | B170: Duquesne Light Co. | C170: C-R-80011069 | D170: Electric | E170: Vertically Integrated | F170: 1981-02-20 | G170: Fully Litigated | H170: 15.25 | I170: 33.8 | J170: 14.27 | K170: 0.98
A171: Florida | B171: Duke Energy Florida LLC | C171: D-800119-EU | D171: Electric | E171: Vertically Integrated | F171: 1981-03-11 | G171: Fully Litigated | H171: 15.4 | I171: 28.69 | J171: 14.27 | K171: 1.13
A172: New York | B172: Niagara Mohawk Power Corp. | C172: C-27743 | D172: Natural Gas | E172: Distribution | F172: 1981-03-12 | G172: Fully Litigated | H172: 15.65 | I172: 39.5 | J172: 14.27 | K172: 1.38
A173: New York | B173: Niagara Mohawk Power Corp. | C173: C-27741,42 | D173: Electric | E173: Vertically Integrated | F173: 1981-03-12 | G173: Fully Litigated | H173: 16 | I173: 39.5 | J173: 14.27 | K173: 1.73
A174: New York | B174: Consolidated Edison Co. of NY | C174: C-27744 | D174: Electric | E174: Vertically Integrated | F174: 1981-03-12 | G174: Fully Litigated | H174: 14.51 | I174: 46.56 | J174: 14.27 | K174: 0.24
A175: Missouri | B175: Union Electric Co. | C175: C-ER-80-286 | D175: Electric | E175: Vertically Integrated | F175: 1981-03-13 | G175: Fully Litigated | H175: 13.02 | I175: 36.7 | J175: 14.27 | K175: -1.25
A176: Ohio | B176: Duke Energy Ohio Inc. | C176: C-80-260-EL-AIR | D176: Electric | E176: Vertically Integrated | F176: 1981-03-18 | G176: Fully Litigated | H176: 16.19 | I176: 34.44 | J176: 14.68 | K176: 1.51
A177: Maryland | B177: Potomac Edison Co. | C177: C-7503 0-65176 | D177: Electric | E177: Vertically Integrated | F177: 1981-03-19 | G177: Fully Litigated | H177: 13.75 | I177: 36.3 | J177: 14.68 | K177: -0.93
A178: Louisiana | B178: Cleco Power LLC | C178: D-U-14648 | D178: Electric | E178: Vertically Integrated | F178: 1981-03-23 | G178: Fully Litigated | H178: 14.3 | I178: 36 | J178: 14.68 | K178: -0.38
A179: Illinois | B179: Ameren Illinois | C179: D-80-0318 (CIPS-G) | D179: Natural Gas | E179: Distribution | F179: 1981-03-25 | G179: Fully Litigated | H179: 15.3 | I179: 37.6 | J179: 14.68 | K179: 0.62
A180: Illinois | B180: Ameren Illinois | C180: D-80-0318 (CIPS-E) | D180: Electric | E180: Vertically Integrated | F180: 1981-03-25 | G180: Fully Litigated | H180: 15.3 | I180: 37.6 | J180: 14.68 | K180: 0.62
A181: Ohio | B181: Ohio Power Co. | C181: C-80-367-EL-AIR | D181: Electric | E181: Vertically Integrated | F181: 1981-04-01 | G181: Fully Litigated | H181: 14.53 | I181: 34.62 | J181: 14.68 | K181: -0.15
A182: Indiana | B182: Indiana Michigan Power Co. | C182: Ca-36150 | D182: Electric | E182: Vertically Integrated | F182: 1981-04-03 | G182: Fully Litigated | H182: 19.1 | I182: 30.3 | J182: 14.68 | K182: 4.42
A183: Louisiana | B183: Entergy New Orleans LLC | C183: C-R-81-73 (gas) | D183: Natural Gas | E183: Distribution | F183: 1981-04-09 | G183: Fully Litigated | H183: 15 | I183: 30.16 | J183: 14.68 | K183: 0.32
A184: Ohio | B184: Toledo Edison Co. | C184: C-80-377-EL-AIR | D184: Electric | E184: Vertically Integrated | F184: 1981-04-09 | G184: Fully Litigated | H184: 15.3 | I184: 33.41 | J184: 14.68 | K184: 0.62
A185: Pennsylvania | B185: Metropolitan Edison Co. | C185: C-R-80051196 | D185: Electric | E185: Vertically Integrated | F185: 1981-04-09 | G185: Fully Litigated | H185: 17 | I185: 36.8 | J185: 14.68 | K185: 2.32
A186: Pennsylvania | B186: Pennsylvania Electric Co. | C186: C-R-80051197 | D186: Electric | E186: Vertically Integrated | F186: 1981-04-09 | G186: Fully Litigated | H186: 16.5 | I186: 33.06 | J186: 14.68 | K186: 1.82
A187: Louisiana | B187: Entergy New Orleans LLC | C187: C-R-81-73 (elec.) | D187: Electric | E187: Vertically Integrated | F187: 1981-04-09 | G187: Fully Litigated | H187: 15 | I187: 30.16 | J187: 14.68 | K187: 0.32
A188: South Carolina | B188: Duke Energy Progress LLC | C188: D-80-69-E O-81-232 | D188: Electric | E188: Vertically Integrated | F188: 1981-04-10 | G188: Fully Litigated | H188: 13.75 | I188: 33.8 | J188: 14.68 | K188: -0.93
A189: Minnesota | B189: Otter Tail Power Co. | C189: D-E-017-GR-80-277 | D189: Electric | E189: Vertically Integrated | F189: 1981-04-13 | G189: Fully Litigated | H189: 13.57 | I189: 32.66 | J189: 14.68 | K189: -1.11
A190: Illinois | B190: Ameren Illinois | C190: D-80-0370 (CIPS) | D190: Electric | E190: Vertically Integrated | F190: 1981-04-15 | G190: Fully Litigated | H190: 15.3 | I190: 37.25 | J190: 15.13 | K190: 0.17
A191: Mississippi | B191: Mississippi Power Co. | C191: C-U-3929 | D191: Electric | E191: Vertically Integrated | F191: 1981-04-16 | G191: Fully Litigated | H191: 13.5 | I191: 31.96 | J191: 15.13 | K191: -1.63
A192: South Dakota | B192: NorthWestern Corp. | C192: D-F-3367 | D192: Electric | E192: Vertically Integrated | F192: 1981-04-17 | G192: Fully Litigated | H192: 14.1 | I192: 31.13 | J192: 15.13 | K192: -1.03
A193: Utah | B193: PacifiCorp | C193: C-80-035-17 | D193: Electric | E193: Vertically Integrated | F193: 1981-04-21 | G193: Fully Litigated | H193: 16.8 | I193: 39.02 | J193: 15.13 | K193: 1.67
A194: Wisconsin | B194: Northern States Power Co - WI | C194: D-4220-ER-14 | D194: Electric | E194: Vertically Integrated | F194: 1981-04-21 | G194: Fully Litigated | H194: 14 | I194: 41.9 | J194: 15.13 | K194: -1.13
A195: Pennsylvania | B195: PECO Energy Co. | C195: C-R-80061225 | D195: Electric | E195: Vertically Integrated | F195: 1981-04-24 | G195: Fully Litigated | H195: 16 | I195: 34.3 | J195: 15.13 | K195: 0.87
A196: Iowa | B196: Interstate Power & Light Co. | C196: D-RPU-79-10 | D196: Electric | E196: Vertically Integrated | F196: 1981-04-27 | G196: Fully Litigated | H196: 12.5 | I196: 34.35 | J196: 15.13 | K196: -2.63
A197: Iowa | B197: Interstate Power & Light Co. | C197: D-RPU-80-4 | D197: Electric | E197: Vertically Integrated | F197: 1981-04-27 | G197: Fully Litigated | H197: 13.61 | I197: 35.2 | J197: 15.13 | K197: -1.52
A198: Montana | B198: MDU Resources Group | C198: D-80.7.52 | D198: Natural Gas | E198: Distribution | F198: 1981-04-29 | G198: Fully Litigated | H198: 13.5 | I198: 46.11 | J198: 15.13 | K198: -1.63
A199: Washington | B199: Cascade Natural Gas Corp. | C199: Ca-U-80-101 | D199: Natural Gas | E199: Distribution | F199: 1981-04-29 | G199: Fully Litigated | H199: 14.25 | I199: 37.17 | J199: 15.13 | K199: -0.88
A200: Maryland | B200: Potomac Electric Power Co. | C200: C-7511 0-65252 | D200: Electric | E200: Vertically Integrated | F200: 1981-04-29 | G200: Fully Litigated | H200: 13.65 | I200: 37.9 | J200: 15.13 | K200: -1.48
... 1791 more rows

Sheet 4.1 CAPM
B1: =Input!G28 -> Duke Energy Kentucky, Inc.
B2: Indicated Common Equity Cost Rate Through Use
B3: of the Traditional Capital Asset Pricing Model (CAPM) and Empirical Capital Asset Pricing Model (ECAPM)
D5: [1] | F5: [2] | H5: [3] | J5: [4] | M5: [5] | P5: [6] | S5: [7] | V5: [8]
B7: ='3.8-3.9 Beta Adjusted ERP'!F7 -> Proxy Group of Thirteen Combination Electric and Gas Utilities | D7: Value Line Adjusted Beta | F7: Bloomberg Adjusted Beta | H7: Average Beta | J7: Market Risk Premium (1) | M7: Risk-Free Rate (2) | P7: Traditional CAPM Cost Rate | S7: ECAPM Cost Rate | V7: Indicated Common Equity Cost Rate (3)
A9: =IFERROR(Input!A2, "NA") -> AEE | B9: ='Proxy Data Lookup'!B3 -> Ameren Corporation | D9: ='MRP WP1'!C71 -> 0.8 | F9: ='Proxy Data Lookup'!H3 -> 0.9519151449 | H9: =IFERROR(ROUND(AVERAGE(D9:F9),2),"NA") -> 0.88 | J9: ='MRP WP1'!$H$64 -> 9.928548612 | K9: % | M9: ='MRP WP1'!$F$37 -> 2.7 | N9: % | P9: =IFERROR((H9*J9) + M9,"NA") -> 11.43712278 | Q9: % | S9: =IFERROR((0.75*(H9*J9))+(0.25*J9)+M9,"NA") -> 11.73497924 | T9: % | V9: =IFERROR(ROUND(AVERAGE(P9:S9),2),"NA") -> 11.59 | W9: %
A10: =IFERROR(Input!A3, "NA") -> AVA | B10: ='Proxy Data Lookup'!B4 -> Avista Corporation | D10: ='MRP WP1'!C72 -> 0.95 | F10: ='Proxy Data Lookup'!H4 -> 0.986463666 | H10: =IFERROR(ROUND(AVERAGE(D10:F10),2),"NA") -> 0.97 | J10: ='MRP WP1'!$H$64 -> 9.928548612 | M10: ='MRP WP1'!$F$37 -> 2.7 | P10: 12.33069215 | S10: 12.40515627 | V10: =IFERROR(ROUND(AVERAGE(P10:S10),2),"NA") -> 12.37
A11: =IFERROR(Input!A4, "NA") -> BKH | B11: ='Proxy Data Lookup'!B5 -> Black Hills Corporation | D11: ='MRP WP1'!C73 -> 1 | F11: ='Proxy Data Lookup'!H5 -> 1.225513697 | H11: 1.11 | J11: ='MRP WP1'!$H$64 -> 9.928548612 | M11: ='MRP WP1'!$F$37 -> 2.7 | P11: 13.72068896 | S11: 13.44765387 | V11: 13.58
A12: =IFERROR(Input!A5, "NA") -> CMS | B12: ='Proxy Data Lookup'!B6 -> CMS Energy Corporation | D12: ='MRP WP1'!C74 -> 0.8 | F12: ='Proxy Data Lookup'!H6 -> 0.9829005003 | H12: 0.89 | J12: ='MRP WP1'!$H$64 -> 9.928548612 | M12: ='MRP WP1'!$F$37 -> 2.7 | P12: 11.53640826 | S12: 11.80944335 | V12: 11.67
A13: =IFERROR(Input!A6, "NA") -> DUK | B13: ='Proxy Data Lookup'!B7 -> Duke Energy Corporation | D13: ='MRP WP1'!C75 -> 0.9 | F13: ='Proxy Data Lookup'!H7 -> 0.9814394116 | H13: 0.94 | J13: ='MRP WP1'!$H$64 -> 9.928548612 | M13: ='MRP WP1'!$F$37 -> 2.7 | P13: 12.0328357 | S13: 12.18176392 | V13: 12.11
A14: =IFERROR(Input!A7, "NA") -> ED | B14: ='Proxy Data Lookup'!B8 -> Consolidated Edison, Inc. | D14: ='MRP WP1'!C76 -> 0.75 | F14: ='Proxy Data Lookup'!H8 -> 0.7889624834 | H14: 0.77 | J14: ='MRP WP1'!$H$64 -> 9.928548612 | M14: ='MRP WP1'!$F$37 -> 2.7 | P14: 10.34498243 | S14: 10.91587398 | V14: =IFERROR(ROUND(AVERAGE(P14:S14),2),"NA") -> 10.63
A15: =IFERROR(Input!A8, "NA") -> ES | B15: ='Proxy Data Lookup'!B9 -> Eversource Energy | D15: ='MRP WP1'!C77 -> 0.9 | F15: ='Proxy Data Lookup'!H9 -> 1.06246686 | H15: 0.98 | J15: ='MRP WP1'!$H$64 -> 9.928548612 | M15: ='MRP WP1'!$F$37 -> 2.7 | P15: 12.42997764 | S15: 12.47962038 | V15: 12.45
A16: =IFERROR(Input!A9, "NA") -> MGEE | B16: ='Proxy Data Lookup'!B10 -> MGE Energy, Inc. | D16: ='MRP WP1'!C78 -> 0.75 | F16: ='Proxy Data Lookup'!H10 -> 0.7775999904 | H16: 0.76 | J16: ='MRP WP1'!$H$64 -> 9.928548612 | M16: ='MRP WP1'!$F$37 -> 2.7 | P16: 10.24569695 | S16: 10.84140986 | V16: 10.54
A17: =IFERROR(Input!A10, "NA") -> NWE | B17: ='Proxy Data Lookup'!B11 -> NorthWestern Corporation | D17: ='MRP WP1'!C79 -> 0.95 | F17: ='Proxy Data Lookup'!H11 -> 1.271976709 | H17: 1.11 | J17: ='MRP WP1'!$H$64 -> 9.928548612 | M17: ='MRP WP1'!$F$37 -> 2.7 | P17: 13.72068896 | S17: =IFERROR((0.75*(H17*J17))+(0.25*J17)+M17,"NA") -> 13.44765387 | V17: =IFERROR(ROUND(AVERAGE(P17:S17),2),"NA") -> 13.58
A18: =IFERROR(Input!A11, "NA") -> PEG | B18: ='Proxy Data Lookup'!B12 -> Public Service Enterprise Group Incorporated | D18: ='MRP WP1'!C80 -> 0.95 | F18: ='Proxy Data Lookup'!H12 -> 1.093170643 | H18: 1.02 | J18: ='MRP WP1'!$H$64 -> 9.928548612 | M18: ='MRP WP1'!$F$37 -> 2.7 | P18: 12.82711958 | S18: 12.77747684 | V18: 12.8
A19: =IFERROR(Input!A12, "NA") -> SO | B19: ='Proxy Data Lookup'!B13 -> Southern Company | D19: ='MRP WP1'!C81 -> 0.95 | F19: ='Proxy Data Lookup'!H13 -> 1.108855963 | H19: 1.03 | J19: ='MRP WP1'!$H$64 -> 9.928548612 | M19: ='MRP WP1'!$F$37 -> 2.7 | P19: 12.92640507 | S19: 12.85194096 | V19: 12.89
A20: =IFERROR(Input!A13, "NA") -> WEC | B20: ='Proxy Data Lookup'!B14 -> WEC Energy Group, Inc. | D20: ='MRP WP1'!C82 -> 0.8 | F20: ='Proxy Data Lookup'!H14 -> 0.9801491499 | H20: 0.89 | J20: ='MRP WP1'!$H$64 -> 9.928548612 | M20: ='MRP WP1'!$F$37 -> 2.7 | P20: 11.53640826 | S20: 11.80944335 | V20: 11.67
A21: =IFERROR(Input!A14, "NA") -> XEL | B21: ='Proxy Data Lookup'!B15 -> Xcel Energy Inc. | D21: ='MRP WP1'!C83 -> 0.8 | F21: ='Proxy Data Lookup'!H15 -> 0.9885541797 | H21: 0.89 | J21: ='MRP WP1'!$H$64 -> 9.928548612 | M21: ='MRP WP1'!$F$37 -> 2.7 | P21: 11.53640826 | S21: 11.80944335 | V21: =IFERROR(ROUND(AVERAGE(P21:S21),2),"NA") -> 11.67
B23: Mean | H23: =IFERROR(ROUND(AVERAGE(H8:H22),2),"NA") -> 0.94 | P23: =IFERROR(ROUND(AVERAGE(P8:P22),2),"NA") -> 12.05 | Q23: % | S23: =IFERROR(ROUND(AVERAGE(S8:S22),2),"NA") -> 12.19 | T23: % | V23: =IFERROR(ROUND(AVERAGE(V8:V22),2),"NA") -> 12.12 | W23: %
B25: Median | H25: =IFERROR(ROUND(MEDIAN(H8:H22),2),"NA") -> 0.94 | P25: =IFERROR(ROUND(MEDIAN(P8:P22),2),"NA") -> 12.03 | Q25: % | S25: =IFERROR(ROUND(MEDIAN(S8:S22),2),"NA") -> 12.18 | T25: % | V25: =IFERROR(ROUND(MEDIAN(V8:V22),2),"NA") -> 12.11 | W25: %
B27: Average of Mean and Median | H27: =IFERROR(ROUND(AVERAGE(H23:H25),2),"NA") -> 0.94 | P27: =IFERROR(ROUND(AVERAGE(P23:P25),2),"NA") -> 12.04 | Q27: % | S27: =IFERROR(ROUND(AVERAGE(S23:S25),2),"NA") -> 12.19 | T27: % | V27: =IFERROR(ROUND(AVERAGE(V23:V25),2),"NA") -> 12.12 | W27: %
B30: Notes on page 2 of this Schedule.

Sheet 4.2 CAPM Notes
A1: =Input!G28 -> Duke Energy Kentucky, Inc.
A2: Notes to Accompany the Application of the CAPM and ECAPM
A4: Notes:
A5: (1) | B5: The market risk premium (MRP) is derived by using six different measures from three sources: Ibbotson, Value Line, and Bloomberg as illustrated below:
B7: Historical Data MRP Estimates:
B9: =CONCATENATE("Measure 1: Ibbotson Arithmetic Mean MRP ",MID(Input!E20,FIND("(",Input!E20),11)) -> Measure 1: Ibbotson Arithmetic Mean MRP (1926-2020)
B11: =CONCATENATE("Arithmetic Mean Monthly Returns for Large Stocks ",MID(Input!E20,FIND("1",Input!E20),9),":") -> Arithmetic Mean Monthly Returns for Large Stocks 1926-2020: | N11: ='MRP WP1'!H49 -> 12.2 | O11: %
B12: Arithmetic Mean Income Returns on Long-Term Government Bonds: | N12: ='MRP WP1'!H51 -> 5.05
B13: MRP based on Ibbotson Historical Data: | N13: =N11-N12 -> 7.15 | O13: %
B15: Measure 2: Application of a Regression Analysis to Ibbotson Historical Data
B16: (1926-2020) | N16: ='MRP ERP WP'!AA42*100 -> 9.571637763 | O16: %
B18: Measure 3: Application of the PRPM to Ibbotson Historical Data:
B19: =CONCATENATE("(January 1926 - ",Input!G25,")") -> (January 1926 - August 2021) | N19: ='MRP WP1'!H46 -> 8.77099802 | O19: %
B21: Value Line MRP Estimates:
B23: =CONCATENATE("Measure 4: Value Line Projected MRP (Thirteen weeks ending ",TEXT('MRP WP1'!B7,"mmmm dd, yyyy)")) -> Measure 4: Value Line Projected MRP (Thirteen weeks ending September 03, 2021)
B25: Total projected return on the market 3-5 years hence*: | N25: ='MRP WP1'!M22*100 -> 8.95 | O25: %
B26: Projected Risk-Free Rate (see note 2): | N26: ='MRP WP1'!F37 -> 2.7
B27: MRP based on Value Line Summary & Index: | N27: =N25-N26 -> 6.25 | O27: %
C28: *Forcasted 3-5 year capital appreciation plus expected dividend yield
B30: Measure 5: Value Line Projected Return on the Market based on the S&P 500
B32: Total return on the Market based on the S&P 500: | N32: ='MRP WP3'!H504*100 -> 15.05366987 | O32: %
B33: Projected Risk-Free Rate (see note 2): | N33: =N54 -> 2.7
B34: MRP based on Value Line data | N34: =IFERROR(N32-N33,"NA") -> 12.35366987 | O34: %
B36: Measure 6: Bloomberg Projected MRP
B38: Total return on the Market based on the S&P 500: | N38: ='MRP WP2'!Q504*100 -> 18.17498602 | O38: %
B39: Projected Risk-Free Rate (see note 2): | N39: ='MRP WP1'!F37 -> 2.7
N40: =IFERROR(N38-N39,"NA") -> 15.47498602 | O40: %
L42: Average of Value Line, Ibbotson, and Bloomberg MRP: | N42: =AVERAGE(N13,N16,N19,N27,N34,N40) -> 9.928548612 | O42: %
A44: (2) | B44: For reasons explained in the direct testimony, the appropriate risk-free rate for cost of capital purposes is the average forecast of 30 year Treasury Bonds per the consensus of nearly 50 economists reported in Blue Chip Financial Forecasts. (See pages 10 and 11 of Schedule DWD-3.) The projection of the risk-free rate is illustrated below:
J46: ='MRP WP1'!B28 -> Third Quarter 2021 | N46: ='MRP WP1'!F28 -> 2.1 | O46: %
J47: ='MRP WP1'!B29 -> Fourth Quarter 2021 | N47: ='MRP WP1'!F29 -> 2.2
J48: ='MRP WP1'!B30 -> First Quarter 2022 | N48: ='MRP WP1'!F30 -> 2.3
J49: ='MRP WP1'!B31 -> Second Quarter 2022 | N49: ='MRP WP1'!F31 -> 2.5
J50: ='MRP WP1'!B32 -> Third Quarter 2022 | N50: ='MRP WP1'!F32 -> 2.5
J51: ='MRP WP1'!B33 -> Fourth Quarter 2022 | N51: ='MRP WP1'!F33 -> 2.6
J52: ='MRP WP1'!B34 -> 2023-2027 | N52: ='MRP WP1'!F34 -> 3.5
J53: ='MRP WP1'!B35 -> 2028-2032 | N53: ='MRP WP1'!F35 -> 3.9
N54: =ROUND(AVERAGE(N46:N53),2) -> 2.7 | O54: %
A55: (3) | B55: Average of Column 6 and Column 7.
A57: Sources of Information:
B58: Value Line Summary and Index
B59: ='3.8-3.9 Beta Adjusted ERP'!C45 -> Blue Chip Financial Forecasts, September 1, 2021 and June 1, 2021
B60: ='3.8-3.9 Beta Adjusted ERP'!C42 -> Stocks, Bonds, Bills, and Inflation - 2021 SBBI Yearbook, John Wiley & Sons, Inc.
B61: Bloomberg Professional Services

Sheet 5.2 Comp Earnings Criteria
C1: =Input!G28 -> Duke Energy Kentucky, Inc.
C2: Basis of Selection of Comparable Risk
C3: Domestic Non-Price Regulated Companies
A4: TICKER
E5: [1] | G5: [2] | I5: [3] | K5: [4]
A6: SYMBOL
C7: ='4.1 CAPM'!B7 -> Proxy Group of Thirteen Combination Electric and Gas Utilities | E7: Value Line Adjusted Beta | G7: Unadjusted Beta | I7: Residual Standard Error of the Regression | K7: Standard Deviation of Beta
A9: =Input!A2 -> AEE | C9: ='Proxy Data Lookup'!B3 -> Ameren Corporation | E9: ='Proxy Data Lookup'!G3 -> 0.8 | G9: ='Proxy Data Lookup'!I3 -> 0.69 | I9: ='Proxy Data Lookup'!L3 -> 2.6359 | K9: ='Proxy Data Lookup'!N3 -> 0.0658
A10: =Input!A3 -> AVA | C10: ='Proxy Data Lookup'!B4 -> Avista Corporation | E10: ='Proxy Data Lookup'!G4 -> 0.95 | G10: ='Proxy Data Lookup'!I4 -> 0.9 | I10: ='Proxy Data Lookup'!L4 -> 3.7652 | K10: ='Proxy Data Lookup'!N4 -> 0.0939
A11: =Input!A4 -> BKH | C11: ='Proxy Data Lookup'!B5 -> Black Hills Corporation | E11: ='Proxy Data Lookup'!G5 -> 1 | G11: ='Proxy Data Lookup'!I5 -> 0.95 | I11: ='Proxy Data Lookup'!L5 -> 2.8708 | K11: ='Proxy Data Lookup'!N5 -> 0.0716
A12: =Input!A5 -> CMS | C12: ='Proxy Data Lookup'!B6 -> CMS Energy Corporation | E12: ='Proxy Data Lookup'!G6 -> 0.8 | G12: ='Proxy Data Lookup'!I6 -> 0.64 | I12: ='Proxy Data Lookup'!L6 -> 2.8457 | K12: ='Proxy Data Lookup'!N6 -> 0.071
A13: =Input!A6 -> DUK | C13: ='Proxy Data Lookup'!B7 -> Duke Energy Corporation | E13: ='Proxy Data Lookup'!G7 -> 0.85 | G13: ='Proxy Data Lookup'!I7 -> 0.77 | I13: ='Proxy Data Lookup'!L7 -> 2.7562 | K13: ='Proxy Data Lookup'!N7 -> 0.0688
A14: =Input!A7 -> ED | C14: ='Proxy Data Lookup'!B8 -> Consolidated Edison, Inc. | E14: ='Proxy Data Lookup'!G8 -> 0.75 | G14: ='Proxy Data Lookup'!I8 -> 0.6 | I14: ='Proxy Data Lookup'!L8 -> 3.2682 | K14: ='Proxy Data Lookup'!N8 -> 0.0815
A15: =Input!A8 -> ES | C15: ='Proxy Data Lookup'!B9 -> Eversource Energy | E15: ='Proxy Data Lookup'!G9 -> 0.9 | G15: ='Proxy Data Lookup'!I9 -> 0.84 | I15: ='Proxy Data Lookup'!L9 -> 3.0312 | K15: ='Proxy Data Lookup'!N9 -> 0.0756
A16: =Input!A9 -> MGEE | C16: ='Proxy Data Lookup'!B10 -> MGE Energy, Inc. | E16: ='Proxy Data Lookup'!G10 -> 0.75 | G16: ='Proxy Data Lookup'!I10 -> 0.57 | I16: ='Proxy Data Lookup'!L10 -> 2.8206 | K16: ='Proxy Data Lookup'!N10 -> 0.0704
A17: =Input!A10 -> NWE | C17: ='Proxy Data Lookup'!B11 -> NorthWestern Corporation | E17: ='Proxy Data Lookup'!G11 -> 0.95 | G17: ='Proxy Data Lookup'!I11 -> 0.89 | I17: ='Proxy Data Lookup'!L11 -> 2.8009 | K17: ='Proxy Data Lookup'!N11 -> 0.0699
A18: =Input!A11 -> PEG | C18: ='Proxy Data Lookup'!B12 -> Public Service Enterprise Group Incorporated | E18: ='Proxy Data Lookup'!G12 -> 0.9 | G18: ='Proxy Data Lookup'!I12 -> 0.84 | I18: ='Proxy Data Lookup'!L12 -> 2.3742 | K18: ='Proxy Data Lookup'!N12 -> 0.0592
A19: =Input!A12 -> SO | C19: ='Proxy Data Lookup'!B13 -> Southern Company | E19: ='Proxy Data Lookup'!G13 -> 0.95 | G19: ='Proxy Data Lookup'!I13 -> 0.89 | I19: ='Proxy Data Lookup'!L13 -> 2.7077 | K19: ='Proxy Data Lookup'!N13 -> 0.0676
A20: =Input!A13 -> WEC | C20: ='Proxy Data Lookup'!B14 -> WEC Energy Group, Inc. | E20: ='Proxy Data Lookup'!G14 -> 0.8 | G20: ='Proxy Data Lookup'!I14 -> 0.65 | I20: ='Proxy Data Lookup'!L14 -> 3.2683 | K20: ='Proxy Data Lookup'!N14 -> 0.0815
A21: =Input!A14 -> XEL | C21: ='Proxy Data Lookup'!B15 -> Xcel Energy Inc. | E21: ='Proxy Data Lookup'!G15 -> 0.8 | G21: ='Proxy Data Lookup'!I15 -> 0.66 | I21: ='Proxy Data Lookup'!L15 -> 2.728 | K21: ='Proxy Data Lookup'!N15 -> 0.0681
C23: Average | E23: =AVERAGE(E8:E22) -> 0.8615384615 | G23: =AVERAGE(G8:G22) -> 0.7607692308 | I23: =AVERAGE(I8:I22) -> 2.9133 | K23: =AVERAGE(K8:K22) -> 0.07268461538
C26: Beta Range (+/- 2 std. Devs. of Beta) | E26: =G23-E27 -> 0.6107692308 | G26: =G23+E27 -> 0.9107692308
C27: 2 std. Devs. of Beta | E27: =ROUND((K23*2),2) -> 0.15
C29: Residual Std. Err. Range (+/- 2 std.
C30: Devs. of the Residual Std. Err.) | E30: =I23-E34 -> 2.6573 | G30: =I23+E34 -> 3.1693
C32: Std. dev. of the Res. Std. Err. | E32: =ROUND((I23/22.7596),4) -> 0.128
C34: 2 std. devs. of the Res. Std. Err. | E34: =ROUND((2*E32),4) -> 0.256
C36: Source of Information: | E36: Valueline Proprietary Database, June 2021

Sheet 5.3 Proxy Group Equivalent
C1: =Input!G28 -> Duke Energy Kentucky, Inc.
C2: Proxy Group of Non-Price Regulated Companies
C3: Comparable in Total Risk to the
C4: ='5.2 Comp Earnings Criteria'!C7 -> Proxy Group of Thirteen Combination Electric and Gas Utilities
E6: [1] | G6: [2] | I6: [3] | K6: [4]
A8: Ticker | C8: =Input!I32 -> Proxy Group of Forty-Three Non-Price Regulated Companies | E8: VL Adjusted Beta | G8: Unadjusted Beta | I8: Residual Standard Error of the Regression | K8: Standard Deviation of Beta
A10: =Input!C2 -> ABT | C10: =VLOOKUP($A10,'CEM Data Lookup'!$A:$Q,2,FALSE) -> Abbott Labs. | E10: =VLOOKUP($A10,'CEM Data Lookup'!$A:$Q,6,FALSE) -> 0.115 | G10: =VLOOKUP($A10,'CEM Data Lookup'!$A:$Q,8,FALSE) -> 0.8410950303 | I10: =VLOOKUP($A10,'CEM Data Lookup'!$A:$Q,13,FALSE) -> 0.6078 | K10: =VLOOKUP($A10,'CEM Data Lookup'!$A:$Q,15,FALSE) -> 3.4583
A11: =Input!C3 -> ADI | C11: =VLOOKUP($A11,'CEM Data Lookup'!$A:$Q,2,FALSE) -> Analog Devices | E11: =VLOOKUP($A11,'CEM Data Lookup'!$A:$Q,6,FALSE) -> 0.085 | G11: =VLOOKUP($A11,'CEM Data Lookup'!$A:$Q,8,FALSE) -> 1.018524528 | I11: =VLOOKUP($A11,'CEM Data Lookup'!$A:$Q,13,FALSE) -> 0.6219 | K11: =VLOOKUP($A11,'CEM Data Lookup'!$A:$Q,15,FALSE) -> 3.4727
A12: =Input!C4 -> AIZ | C12: =VLOOKUP($A12,'CEM Data Lookup'!$A:$Q,2,FALSE) -> Assurant Inc. | E12: =VLOOKUP($A12,'CEM Data Lookup'!$A:$Q,6,FALSE) -> 0.115 | G12: =VLOOKUP($A12,'CEM Data Lookup'!$A:$Q,8,FALSE) -> 1.009007573 | I12: =VLOOKUP($A12,'CEM Data Lookup'!$A:$Q,13,FALSE) -> 0.5966 | K12: =VLOOKUP($A12,'CEM Data Lookup'!$A:$Q,15,FALSE) -> 3.5125
A13: =Input!C5 -> AOS | C13: =VLOOKUP($A13,'CEM Data Lookup'!$A:$Q,2,FALSE) -> Smith (A.O.) | E13: =VLOOKUP($A13,'CEM Data Lookup'!$A:$Q,6,FALSE) -> 0.095 | G13: =VLOOKUP($A13,'CEM Data Lookup'!$A:$Q,8,FALSE) -> 1.00094986 | I13: =VLOOKUP($A13,'CEM Data Lookup'!$A:$Q,13,FALSE) -> 0.5685 | K13: =VLOOKUP($A13,'CEM Data Lookup'!$A:$Q,15,FALSE) -> 3.2989
A14: =Input!C6 -> BDX | C14: =VLOOKUP($A14,'CEM Data Lookup'!$A:$Q,2,FALSE) -> Becton, Dickinson | E14: =VLOOKUP($A14,'CEM Data Lookup'!$A:$Q,6,FALSE) -> 0.075 | G14: =VLOOKUP($A14,'CEM Data Lookup'!$A:$Q,8,FALSE) -> 0.567345202 | I14: =VLOOKUP($A14,'CEM Data Lookup'!$A:$Q,13,FALSE) -> 0.4746 | K14: =VLOOKUP($A14,'CEM Data Lookup'!$A:$Q,15,FALSE) -> 3.2851
A15: =Input!C7 -> BFB | C15: =VLOOKUP($A15,'CEM Data Lookup'!$A:$Q,2,FALSE) -> Brown-Forman 'B' | E15: =VLOOKUP($A15,'CEM Data Lookup'!$A:$Q,6,FALSE) -> 0.13 | G15: =VLOOKUP($A15,'CEM Data Lookup'!$A:$Q,8,FALSE) -> 0.9664310217 | I15: =VLOOKUP($A15,'CEM Data Lookup'!$A:$Q,13,FALSE) -> 0.5985 | K15: =VLOOKUP($A15,'CEM Data Lookup'!$A:$Q,15,FALSE) -> 3.3705
A16: =Input!C8 -> BR | C16: =VLOOKUP($A16,'CEM Data Lookup'!$A:$Q,2,FALSE) -> Broadridge Fin'l | E16: =VLOOKUP($A16,'CEM Data Lookup'!$A:$Q,6,FALSE) -> 0.085 | G16: =VLOOKUP($A16,'CEM Data Lookup'!$A:$Q,8,FALSE) -> 0.8321838975 | I16: =VLOOKUP($A16,'CEM Data Lookup'!$A:$Q,13,FALSE) -> 0.5298 | K16: =VLOOKUP($A16,'CEM Data Lookup'!$A:$Q,15,FALSE) -> 3.2593
A17: =Input!C9 -> CACI | C17: =VLOOKUP($A17,'CEM Data Lookup'!$A:$Q,2,FALSE) -> CACI Int'l | E17: =VLOOKUP($A17,'CEM Data Lookup'!$A:$Q,6,FALSE) -> 0.135 | G17: =VLOOKUP($A17,'CEM Data Lookup'!$A:$Q,8,FALSE) -> 1.000490069 | I17: =VLOOKUP($A17,'CEM Data Lookup'!$A:$Q,13,FALSE) -> 0.5966 | K17: =VLOOKUP($A17,'CEM Data Lookup'!$A:$Q,15,FALSE) -> 3.7223
A18: =Input!C10 -> CERN | C18: =VLOOKUP($A18,'CEM Data Lookup'!$A:$Q,2,FALSE) -> Cerner Corp. | E18: =VLOOKUP($A18,'CEM Data Lookup'!$A:$Q,6,FALSE) -> 0.09 | G18: =VLOOKUP($A18,'CEM Data Lookup'!$A:$Q,8,FALSE) -> 0.8886209726 | I18: =VLOOKUP($A18,'CEM Data Lookup'!$A:$Q,13,FALSE) -> 0.61 | K18: =VLOOKUP($A18,'CEM Data Lookup'!$A:$Q,15,FALSE) -> 3.3666
A19: =Input!C11 -> CHE | C19: =VLOOKUP($A19,'CEM Data Lookup'!$A:$Q,2,FALSE) -> Chemed Corp. | E19: =VLOOKUP($A19,'CEM Data Lookup'!$A:$Q,6,FALSE) -> 0.09 | G19: =VLOOKUP($A19,'CEM Data Lookup'!$A:$Q,8,FALSE) -> 0.9201996922 | I19: =VLOOKUP($A19,'CEM Data Lookup'!$A:$Q,13,FALSE) -> 0.5507 | K19: =VLOOKUP($A19,'CEM Data Lookup'!$A:$Q,15,FALSE) -> 3.1865
A20: =Input!C12 -> COO | C20: =VLOOKUP($A20,'CEM Data Lookup'!$A:$Q,2,FALSE) -> Cooper Cos. | E20: =VLOOKUP($A20,'CEM Data Lookup'!$A:$Q,6,FALSE) -> 0.145 | G20: =VLOOKUP($A20,'CEM Data Lookup'!$A:$Q,8,FALSE) -> 0.9429140091 | I20: =VLOOKUP($A20,'CEM Data Lookup'!$A:$Q,13,FALSE) -> 0.6403 | K20: =VLOOKUP($A20,'CEM Data Lookup'!$A:$Q,15,FALSE) -> 3.4996
A21: =Input!C13 -> CSWI | C21: =VLOOKUP($A21,'CEM Data Lookup'!$A:$Q,2,FALSE) -> CSW Industrials | E21: =VLOOKUP($A21,'CEM Data Lookup'!$A:$Q,6,FALSE) -> 0.115 | G21: =VLOOKUP($A21,'CEM Data Lookup'!$A:$Q,8,FALSE) -> 1.05188787 | I21: =VLOOKUP($A21,'CEM Data Lookup'!$A:$Q,13,FALSE) -> 0.5893 | K21: =VLOOKUP($A21,'CEM Data Lookup'!$A:$Q,15,FALSE) -> 3.4707
A22: =Input!C14 -> DGX | C22: =VLOOKUP($A22,'CEM Data Lookup'!$A:$Q,2,FALSE) -> Quest Diagnostics | E22: =VLOOKUP($A22,'CEM Data Lookup'!$A:$Q,6,FALSE) -> 0.07 | G22: =VLOOKUP($A22,'CEM Data Lookup'!$A:$Q,8,FALSE) -> 0.9653949142 | I22: =VLOOKUP($A22,'CEM Data Lookup'!$A:$Q,13,FALSE) -> 0.509 | K22: =VLOOKUP($A22,'CEM Data Lookup'!$A:$Q,15,FALSE) -> 3.396
A23: =Input!C15 -> EL | C23: =VLOOKUP($A23,'CEM Data Lookup'!$A:$Q,2,FALSE) -> Lauder (Estee) | E23: =VLOOKUP($A23,'CEM Data Lookup'!$A:$Q,6,FALSE) -> 0.11 | G23: =VLOOKUP($A23,'CEM Data Lookup'!$A:$Q,8,FALSE) -> 1.008448243 | I23: =VLOOKUP($A23,'CEM Data Lookup'!$A:$Q,13,FALSE) -> 0.6233 | K23: =VLOOKUP($A23,'CEM Data Lookup'!$A:$Q,15,FALSE) -> 3.6454
A24: =Input!C16 -> EXPO | C24: =VLOOKUP($A24,'CEM Data Lookup'!$A:$Q,2,FALSE) -> Exponent, Inc. | E24: =VLOOKUP($A24,'CEM Data Lookup'!$A:$Q,6,FALSE) -> 0.12 | G24: =VLOOKUP($A24,'CEM Data Lookup'!$A:$Q,8,FALSE) -> 0.9618644118 | I24: =VLOOKUP($A24,'CEM Data Lookup'!$A:$Q,13,FALSE) -> 0.5662 | K24: =VLOOKUP($A24,'CEM Data Lookup'!$A:$Q,15,FALSE) -> 3.5846
A25: =Input!C17 -> HSY | C25: =VLOOKUP($A25,'CEM Data Lookup'!$A:$Q,2,FALSE) -> Hershey Co. | E25: =VLOOKUP($A25,'CEM Data Lookup'!$A:$Q,6,FALSE) -> 0.055 | G25: =VLOOKUP($A25,'CEM Data Lookup'!$A:$Q,8,FALSE) -> 0.8450450897 | I25: =VLOOKUP($A25,'CEM Data Lookup'!$A:$Q,13,FALSE) -> 0.5666 | K25: =VLOOKUP($A25,'CEM Data Lookup'!$A:$Q,15,FALSE) -> 3.238
A26: =Input!C18 -> INGR | C26: =VLOOKUP($A26,'CEM Data Lookup'!$A:$Q,2,FALSE) -> Ingredion Inc. | E26: =VLOOKUP($A26,'CEM Data Lookup'!$A:$Q,6,FALSE) -> 0.075 | G26: =VLOOKUP($A26,'CEM Data Lookup'!$A:$Q,8,FALSE) -> 0.9282200933 | I26: =VLOOKUP($A26,'CEM Data Lookup'!$A:$Q,13,FALSE) -> 0.591 | K26: =VLOOKUP($A26,'CEM Data Lookup'!$A:$Q,15,FALSE) -> 3.5598
A27: =Input!C19 -> JBHT | C27: =VLOOKUP($A27,'CEM Data Lookup'!$A:$Q,2,FALSE) -> Hunt (J.B.) | E27: =VLOOKUP($A27,'CEM Data Lookup'!$A:$Q,6,FALSE) -> 0.08 | G27: =VLOOKUP($A27,'CEM Data Lookup'!$A:$Q,8,FALSE) -> 0.9370615482 | I27: =VLOOKUP($A27,'CEM Data Lookup'!$A:$Q,13,FALSE) -> 0.6043 | K27: =VLOOKUP($A27,'CEM Data Lookup'!$A:$Q,15,FALSE) -> 3.5954
A28: =Input!C20 -> JJSF | C28: =VLOOKUP($A28,'CEM Data Lookup'!$A:$Q,2,FALSE) -> J&J Snack Foods | E28: =VLOOKUP($A28,'CEM Data Lookup'!$A:$Q,6,FALSE) -> 0.1 | G28: =VLOOKUP($A28,'CEM Data Lookup'!$A:$Q,8,FALSE) -> 0.8071634173 | I28: =VLOOKUP($A28,'CEM Data Lookup'!$A:$Q,13,FALSE) -> 0.5891 | K28: =VLOOKUP($A28,'CEM Data Lookup'!$A:$Q,15,FALSE) -> 3.6511
A29: =Input!C21 -> JKHY | C29: =VLOOKUP($A29,'CEM Data Lookup'!$A:$Q,2,FALSE) -> Henry (Jack) & Assoc | E29: =VLOOKUP($A29,'CEM Data Lookup'!$A:$Q,6,FALSE) -> 0.095 | G29: =VLOOKUP($A29,'CEM Data Lookup'!$A:$Q,8,FALSE) -> 0.8818188906 | I29: =VLOOKUP($A29,'CEM Data Lookup'!$A:$Q,13,FALSE) -> 0.5307 | K29: =VLOOKUP($A29,'CEM Data Lookup'!$A:$Q,15,FALSE) -> 3.3357
A30: =Input!C22 -> MANT | C30: =VLOOKUP($A30,'CEM Data Lookup'!$A:$Q,2,FALSE) -> ManTech Int'l 'A' | E30: =VLOOKUP($A30,'CEM Data Lookup'!$A:$Q,6,FALSE) -> 0.09 | G30: =VLOOKUP($A30,'CEM Data Lookup'!$A:$Q,8,FALSE) -> 1.12703836 | I30: =VLOOKUP($A30,'CEM Data Lookup'!$A:$Q,13,FALSE) -> 0.5271 | K30: =VLOOKUP($A30,'CEM Data Lookup'!$A:$Q,15,FALSE) -> 3.6422
A31: =Input!C23 -> MKC | C31: =VLOOKUP($A31,'CEM Data Lookup'!$A:$Q,2,FALSE) -> McCormick & Co. | E31: =VLOOKUP($A31,'CEM Data Lookup'!$A:$Q,6,FALSE) -> 0.06 | G31: =VLOOKUP($A31,'CEM Data Lookup'!$A:$Q,8,FALSE) -> 0.6966209412 | I31: =VLOOKUP($A31,'CEM Data Lookup'!$A:$Q,13,FALSE) -> 0.5218 | K31: =VLOOKUP($A31,'CEM Data Lookup'!$A:$Q,15,FALSE) -> 3.2606
A32: =Input!C24 -> MNST | C32: =VLOOKUP($A32,'CEM Data Lookup'!$A:$Q,2,FALSE) -> Monster Beverage | E32: =VLOOKUP($A32,'CEM Data Lookup'!$A:$Q,6,FALSE) -> 0.115 | G32: =VLOOKUP($A32,'CEM Data Lookup'!$A:$Q,8,FALSE) -> 0.969692111 | I32: =VLOOKUP($A32,'CEM Data Lookup'!$A:$Q,13,FALSE) -> 0.531 | K32: =VLOOKUP($A32,'CEM Data Lookup'!$A:$Q,15,FALSE) -> 3.5565
A33: =Input!C25 -> MO | C33: =VLOOKUP($A33,'CEM Data Lookup'!$A:$Q,2,FALSE) -> Altria Group | E33: =VLOOKUP($A33,'CEM Data Lookup'!$A:$Q,6,FALSE) -> 0.06 | G33: =VLOOKUP($A33,'CEM Data Lookup'!$A:$Q,8,FALSE) -> 0.9050288796 | I33: =VLOOKUP($A33,'CEM Data Lookup'!$A:$Q,13,FALSE) -> 0.5877 | K33: =VLOOKUP($A33,'CEM Data Lookup'!$A:$Q,15,FALSE) -> 3.6422
A34: =Input!C26 -> MSCI | C34: =VLOOKUP($A34,'CEM Data Lookup'!$A:$Q,2,FALSE) -> MSCI Inc. | E34: =VLOOKUP($A34,'CEM Data Lookup'!$A:$Q,6,FALSE) -> 0.16 | G34: =VLOOKUP($A34,'CEM Data Lookup'!$A:$Q,8,FALSE) -> 0.9251448512 | I34: =VLOOKUP($A34,'CEM Data Lookup'!$A:$Q,13,FALSE) -> 0.5895 | K34: =VLOOKUP($A34,'CEM Data Lookup'!$A:$Q,15,FALSE) -> 3.6748
A35: =Input!C27 -> MSI | C35: =VLOOKUP($A35,'CEM Data Lookup'!$A:$Q,2,FALSE) -> Motorola Solutions | E35: =VLOOKUP($A35,'CEM Data Lookup'!$A:$Q,6,FALSE) -> 0.07 | G35: =VLOOKUP($A35,'CEM Data Lookup'!$A:$Q,8,FALSE) -> 0.9618915915 | I35: =VLOOKUP($A35,'CEM Data Lookup'!$A:$Q,13,FALSE) -> 0.5881 | K35: =VLOOKUP($A35,'CEM Data Lookup'!$A:$Q,15,FALSE) -> 3.3703
A36: =Input!C28 -> NOC | C36: =VLOOKUP($A36,'CEM Data Lookup'!$A:$Q,2,FALSE) -> Northrop Grumman | E36: =VLOOKUP($A36,'CEM Data Lookup'!$A:$Q,6,FALSE) -> 0.07 | G36: =VLOOKUP($A36,'CEM Data Lookup'!$A:$Q,8,FALSE) -> 0.7880980372 | I36: =VLOOKUP($A36,'CEM Data Lookup'!$A:$Q,13,FALSE) -> 0.5285 | K36: =VLOOKUP($A36,'CEM Data Lookup'!$A:$Q,15,FALSE) -> 3.3936
A37: =Input!C29 -> ODFL | C37: =VLOOKUP($A37,'CEM Data Lookup'!$A:$Q,2,FALSE) -> Old Dominion Freight | E37: =VLOOKUP($A37,'CEM Data Lookup'!$A:$Q,6,FALSE) -> 0.095 | G37: =VLOOKUP($A37,'CEM Data Lookup'!$A:$Q,8,FALSE) -> 0.9841076732 | I37: =VLOOKUP($A37,'CEM Data Lookup'!$A:$Q,13,FALSE) -> 0.5826 | K37: =VLOOKUP($A37,'CEM Data Lookup'!$A:$Q,15,FALSE) -> 3.6733
A38: =Input!C30 -> PKI | C38: =VLOOKUP($A38,'CEM Data Lookup'!$A:$Q,2,FALSE) -> PerkinElmer Inc. | E38: =VLOOKUP($A38,'CEM Data Lookup'!$A:$Q,6,FALSE) -> 0.11 | G38: =VLOOKUP($A38,'CEM Data Lookup'!$A:$Q,8,FALSE) -> 0.7970013022 | I38: =VLOOKUP($A38,'CEM Data Lookup'!$A:$Q,13,FALSE) -> 0.5601 | K38: =VLOOKUP($A38,'CEM Data Lookup'!$A:$Q,15,FALSE) -> 3.6651
A39: =Input!C31 -> POST | C39: =VLOOKUP($A39,'CEM Data Lookup'!$A:$Q,2,FALSE) -> Post Holdings | E39: =VLOOKUP($A39,'CEM Data Lookup'!$A:$Q,6,FALSE) -> 0.095 | G39: =VLOOKUP($A39,'CEM Data Lookup'!$A:$Q,8,FALSE) -> 0.8971431255 | I39: =VLOOKUP($A39,'CEM Data Lookup'!$A:$Q,13,FALSE) -> 0.5952 | K39: =VLOOKUP($A39,'CEM Data Lookup'!$A:$Q,15,FALSE) -> 3.6615
A40: =Input!C32 -> RLI | C40: =VLOOKUP($A40,'CEM Data Lookup'!$A:$Q,2,FALSE) -> RLI Corp. | E40: =VLOOKUP($A40,'CEM Data Lookup'!$A:$Q,6,FALSE) -> 0.12 | G40: =VLOOKUP($A40,'CEM Data Lookup'!$A:$Q,8,FALSE) -> 0.907401979 | I40: =VLOOKUP($A40,'CEM Data Lookup'!$A:$Q,13,FALSE) -> 0.484 | K40: =VLOOKUP($A40,'CEM Data Lookup'!$A:$Q,15,FALSE) -> 3.4699
A41: =Input!C33 -> ROL | C41: =VLOOKUP($A41,'CEM Data Lookup'!$A:$Q,2,FALSE) -> Rollins, Inc. | E41: =VLOOKUP($A41,'CEM Data Lookup'!$A:$Q,6,FALSE) -> 0.115 | G41: =VLOOKUP($A41,'CEM Data Lookup'!$A:$Q,8,FALSE) -> 0.6859084368 | I41: =VLOOKUP($A41,'CEM Data Lookup'!$A:$Q,13,FALSE) -> 0.5234 | K41: =VLOOKUP($A41,'CEM Data Lookup'!$A:$Q,15,FALSE) -> 3.4648
A42: =Input!C34 -> SHW | C42: =VLOOKUP($A42,'CEM Data Lookup'!$A:$Q,2,FALSE) -> Sherwin-Williams | E42: =VLOOKUP($A42,'CEM Data Lookup'!$A:$Q,6,FALSE) -> 0.105 | G42: =VLOOKUP($A42,'CEM Data Lookup'!$A:$Q,8,FALSE) -> 0.9921346903 | I42: =VLOOKUP($A42,'CEM Data Lookup'!$A:$Q,13,FALSE) -> 0.623 | K42: =VLOOKUP($A42,'CEM Data Lookup'!$A:$Q,15,FALSE) -> 3.3939
A43: =Input!C35 -> SIGI | C43: =VLOOKUP($A43,'CEM Data Lookup'!$A:$Q,2,FALSE) -> Selective Ins. Group | E43: =VLOOKUP($A43,'CEM Data Lookup'!$A:$Q,6,FALSE) -> 0.095 | G43: =VLOOKUP($A43,'CEM Data Lookup'!$A:$Q,8,FALSE) -> 0.9898458123 | I43: =VLOOKUP($A43,'CEM Data Lookup'!$A:$Q,13,FALSE) -> 0.5556 | K43: =VLOOKUP($A43,'CEM Data Lookup'!$A:$Q,15,FALSE) -> 3.5914
A44: =Input!C36 -> SIRI | C44: =VLOOKUP($A44,'CEM Data Lookup'!$A:$Q,2,FALSE) -> Sirius XM Holdings | E44: =VLOOKUP($A44,'CEM Data Lookup'!$A:$Q,6,FALSE) -> 0.315 | G44: =VLOOKUP($A44,'CEM Data Lookup'!$A:$Q,8,FALSE) -> 1.124804974 | I44: =VLOOKUP($A44,'CEM Data Lookup'!$A:$Q,13,FALSE) -> 0.6107 | K44: =VLOOKUP($A44,'CEM Data Lookup'!$A:$Q,15,FALSE) -> 3.5984
A45: =Input!C37 -> SNPS | C45: =VLOOKUP($A45,'CEM Data Lookup'!$A:$Q,2,FALSE) -> Synopsys, Inc. | E45: =VLOOKUP($A45,'CEM Data Lookup'!$A:$Q,6,FALSE) -> 0.13 | G45: =VLOOKUP($A45,'CEM Data Lookup'!$A:$Q,8,FALSE) -> 1.016545415 | I45: =VLOOKUP($A45,'CEM Data Lookup'!$A:$Q,13,FALSE) -> 0.6187 | K45: =VLOOKUP($A45,'CEM Data Lookup'!$A:$Q,15,FALSE) -> 3.6759
A46: =Input!C38 -> TXN | C46: =VLOOKUP($A46,'CEM Data Lookup'!$A:$Q,2,FALSE) -> Texas Instruments | E46: =VLOOKUP($A46,'CEM Data Lookup'!$A:$Q,6,FALSE) -> 0.085 | G46: =VLOOKUP($A46,'CEM Data Lookup'!$A:$Q,8,FALSE) -> 0.8931639194 | I46: =VLOOKUP($A46,'CEM Data Lookup'!$A:$Q,13,FALSE) -> 0.579 | K46: =VLOOKUP($A46,'CEM Data Lookup'!$A:$Q,15,FALSE) -> 3.2727
A47: =Input!C39 -> UHAL | C47: =VLOOKUP($A47,'CEM Data Lookup'!$A:$Q,2,FALSE) -> AMERCO | E47: =VLOOKUP($A47,'CEM Data Lookup'!$A:$Q,6,FALSE) -> 0.135 | G47: =VLOOKUP($A47,'CEM Data Lookup'!$A:$Q,8,FALSE) -> 1.076723456 | I47: =VLOOKUP($A47,'CEM Data Lookup'!$A:$Q,13,FALSE) -> 0.6391 | K47: =VLOOKUP($A47,'CEM Data Lookup'!$A:$Q,15,FALSE) -> 3.4618
A48: =Input!C40 -> UPS | C48: =VLOOKUP($A48,'CEM Data Lookup'!$A:$Q,2,FALSE) -> United Parcel Serv. | E48: =VLOOKUP($A48,'CEM Data Lookup'!$A:$Q,6,FALSE) -> 0.105 | G48: =VLOOKUP($A48,'CEM Data Lookup'!$A:$Q,8,FALSE) -> 0.8297113776 | I48: =VLOOKUP($A48,'CEM Data Lookup'!$A:$Q,13,FALSE) -> 0.4686 | K48: =VLOOKUP($A48,'CEM Data Lookup'!$A:$Q,15,FALSE) -> 3.4044
A49: =Input!C41 -> VRSN | C49: =VLOOKUP($A49,'CEM Data Lookup'!$A:$Q,2,FALSE) -> VeriSign Inc. | E49: =VLOOKUP($A49,'CEM Data Lookup'!$A:$Q,6,FALSE) -> 0.085 | G49: =VLOOKUP($A49,'CEM Data Lookup'!$A:$Q,8,FALSE) -> 0.7701163888 | I49: =VLOOKUP($A49,'CEM Data Lookup'!$A:$Q,13,FALSE) -> 0.594 | K49: =VLOOKUP($A49,'CEM Data Lookup'!$A:$Q,15,FALSE) -> 3.3146
A50: =Input!C42 -> WAT | C50: =VLOOKUP($A50,'CEM Data Lookup'!$A:$Q,2,FALSE) -> Waters Corp. | E50: =VLOOKUP($A50,'CEM Data Lookup'!$A:$Q,6,FALSE) -> 0.06 | G50: =VLOOKUP($A50,'CEM Data Lookup'!$A:$Q,8,FALSE) -> 0.8468253613 | I50: =VLOOKUP($A50,'CEM Data Lookup'!$A:$Q,13,FALSE) -> 0.6126 | K50: =VLOOKUP($A50,'CEM Data Lookup'!$A:$Q,15,FALSE) -> 3.5251
A51: =Input!C43 -> WSO | C51: =VLOOKUP($A51,'CEM Data Lookup'!$A:$Q,2,FALSE) -> Watsco, Inc. | E51: =VLOOKUP($A51,'CEM Data Lookup'!$A:$Q,6,FALSE) -> 0.08 | G51: =VLOOKUP($A51,'CEM Data Lookup'!$A:$Q,8,FALSE) -> 0.8023084998 | I51: =VLOOKUP($A51,'CEM Data Lookup'!$A:$Q,13,FALSE) -> 0.5551 | K51: =VLOOKUP($A51,'CEM Data Lookup'!$A:$Q,15,FALSE) -> 3.2888
A52: =Input!C44 -> WU | C52: =VLOOKUP($A52,'CEM Data Lookup'!$A:$Q,2,FALSE) -> Western Union | E52: =VLOOKUP($A52,'CEM Data Lookup'!$A:$Q,6,FALSE) -> 0.06 | G52: =VLOOKUP($A52,'CEM Data Lookup'!$A:$Q,8,FALSE) -> 1.068183184 | I52: =VLOOKUP($A52,'CEM Data Lookup'!$A:$Q,13,FALSE) -> 0.52 | K52: =VLOOKUP($A52,'CEM Data Lookup'!$A:$Q,15,FALSE) -> 3.1795
A54: =COUNTA(A9:A53) -> 43 | C54: Average | E54: =ROUND(AVERAGE(E9:E53),2) -> 0.1 | G54: =ROUND(AVERAGE(G9:G53),2) -> 0.92 | I54: =ROUND(AVERAGE(I9:I53),2) -> 0.57 | K54: =ROUND(AVERAGE(K9:K53),2) -> 3.47
C56: =C4 -> Proxy Group of Thirteen Combination Electric and Gas Utilities | E56: ='5.2 Comp Earnings Criteria'!E23 -> 0.8615384615 | G56: ='5.2 Comp Earnings Criteria'!G23 -> 0.7607692308 | I56: ='5.2 Comp Earnings Criteria'!I23 -> 2.9133 | K56: ='5.2 Comp Earnings Criteria'!K23 -> 0.07268461538
C60: ='5.2 Comp Earnings Criteria'!C36 -> Source of Information: | E60: ='5.2 Comp Earnings Criteria'!E36 -> Valueline Proprietary Database, June 2021

Sheet 6.1 CEM Summary
A1: =Input!G28 -> Duke Energy Kentucky, Inc.
A2: Summary of Cost of Equity Models Applied to
A3: ='5.3 Proxy Group Equivalent'!C8 -> Proxy Group of Forty-Three Non-Price Regulated Companies
A4: Comparable in Total Risk to the
A5: ='5.3 Proxy Group Equivalent'!C4 -> Proxy Group of Thirteen Combination Electric and Gas Utilities
B7: Principal Methods | E7: =A3 -> Proxy Group of Forty-Three Non-Price Regulated Companies
B9: Discounted Cash Flow Model (DCF) (1) | E9: ='6.2 CEM DCF'!Y57 -> 12.48 | F9: %
B11: Risk Premium Model (RPM) (2) | E11: ='6.3 CEM RPM Summary'!H20 -> 12.46333333
B13: Capital Asset Pricing Model (CAPM) (3) | E13: ='6.6 CEM CAPM Backup'!V57 -> 11.86
D15: Mean | E15: =ROUND(AVERAGE(E9:E13),2) -> 12.27 | F15: %
D17: Median | E17: =ROUND(MEDIAN(E9:E13),2) -> 12.46 | F17: %
D19: Average of Mean and Median | E19: =ROUND(AVERAGE(E15:E17),2) -> 12.37 | F19: %
A22: Notes:
A23: (1) | B23: From page 2 of this Schedule.
A24: (2) | B24: From page 3 of this Schedule.
A25: (3) | B25: From page 6 of this Schedule.

Sheet 6.2 CEM DCF
B1: =Input!G28 -> Duke Energy Kentucky, Inc.
B2: DCF Results for the Proxy Group of Non-Price-Regulated Companies Comparable in Total Risk to the
B3: ='6.1 CEM Summary'!A5 -> Proxy Group of Thirteen Combination Electric and Gas Utilities
D5: [1] | G5: [2] | J5: [3] | M5: [4] | P5: [5] | S5: [6] | V5: [7] | Y5: [8]
B7: ='6.1 CEM Summary'!A3 -> Proxy Group of Forty-Three Non-Price Regulated Companies | D7: Average Dividend Yield | G7: Value Line Projected Five Year Growth in EPS | J7: Zack's Five Year Projected Growth Rate in EPS | M7: Bloomberg's Five Year Projected Growth Rate in EPS | P7: Yahoo! Finance Projected Five Year Growth in EPS | S7: Average Projected Five Year Growth Rate in EPS | V7: Adjusted Dividend Yield | Y7: Indicated Common Equity Cost Rate (1)
A9: =Input!C2 -> ABT | B9: =VLOOKUP($A9,'CEM Data Lookup'!$A$4:$Q$47,2,FALSE) -> Abbott Labs. | D9: =HLOOKUP(A9&" US Equity",'CEM PricesDivs'!$B$3:$AR$69,67,FALSE) -> 1.52 | E9: % | G9: ='CEM Data Lookup'!F4*100 -> 11.5 | H9: % | J9: =IFERROR('CEM Data Lookup'!C4*100, "NA") -> 11.9 | K9: % | M9: =IFERROR('CEM Data Lookup'!E4*100, "NA") -> 11.468 | N9: % | P9: ='CEM Data Lookup'!D4*100 -> 12.53 | Q9: % | S9: =IFERROR(ROUND(AVERAGE(G9,J9,M9,P9),2),"NA") -> 11.85 | T9: % | V9: =IFERROR(ROUND((D9*(1+(0.5*(S9/100)))),2),"NA") -> 1.61 | W9: % | Y9: =IFERROR(IF(OR(VALUE(V9)=0,VALUE(S9)=0),"NA",V9+S9),"NA") -> 13.46 | Z9: %
A10: =Input!C3 -> ADI | B10: =VLOOKUP($A10,'CEM Data Lookup'!$A$4:$Q$47,2,FALSE) -> Analog Devices | D10: =HLOOKUP(A10&" US Equity",'CEM PricesDivs'!$B$3:$AR$69,67,FALSE) -> 1.66 | G10: ='CEM Data Lookup'!F5*100 -> 8.5 | J10: =IFERROR('CEM Data Lookup'!C5*100, "NA") -> 12.3 | M10: =IFERROR('CEM Data Lookup'!E5*100, "NA") -> 12.8 | P10: ='CEM Data Lookup'!D5*100 -> 13.52 | S10: 11.78 | V10: =IFERROR(ROUND((D10*(1+(0.5*(S10/100)))),2),"NA") -> 1.76 | Y10: =IFERROR(IF(OR(VALUE(V10)=0,VALUE(S10)=0),"NA",V10+S10),"NA") -> 13.54
A11: =Input!C4 -> AIZ | B11: =VLOOKUP($A11,'CEM Data Lookup'!$A$4:$Q$47,2,FALSE) -> Assurant Inc. | D11: =HLOOKUP(A11&" US Equity",'CEM PricesDivs'!$B$3:$AR$69,67,FALSE) -> 1.66 | G11: ='CEM Data Lookup'!F6*100 -> 11.5 | J11: =IFERROR('CEM Data Lookup'!C6*100, "NA") -> 17.9 | M11: =IFERROR('CEM Data Lookup'!E6*100, "NA") -> 17.92 | P11: ='CEM Data Lookup'!D6*100 -> 17.9 | S11: 16.31 | V11: 1.8 | Y11: 18.11
A12: =Input!C5 -> AOS | B12: =VLOOKUP($A12,'CEM Data Lookup'!$A$4:$Q$47,2,FALSE) -> Smith (A.O.) | D12: =HLOOKUP(A12&" US Equity",'CEM PricesDivs'!$B$3:$AR$69,67,FALSE) -> 1.48 | G12: ='CEM Data Lookup'!F7*100 -> 9.5 | J12: =IFERROR('CEM Data Lookup'!C7*100, "NA") -> 9 | M12: =IFERROR('CEM Data Lookup'!E7*100, "NA") -> 10 | P12: ='CEM Data Lookup'!D7*100 -> 8 | S12: 9.13 | V12: 1.55 | Y12: 10.68
A13: =Input!C6 -> BDX | B13: =VLOOKUP($A13,'CEM Data Lookup'!$A$4:$Q$47,2,FALSE) -> Becton, Dickinson | D13: =HLOOKUP(A13&" US Equity",'CEM PricesDivs'!$B$3:$AR$69,67,FALSE) -> 1.34 | G13: ='CEM Data Lookup'!F8*100 -> 7.5 | J13: =IFERROR('CEM Data Lookup'!C8*100, "NA") -> 8.3 | M13: =IFERROR('CEM Data Lookup'!E8*100, "NA") -> 7.74 | P13: ='CEM Data Lookup'!D8*100 -> 10.1 | S13: 8.41 | V13: 1.4 | Y13: 9.81
A14: =Input!C7 -> BFB | B14: =VLOOKUP($A14,'CEM Data Lookup'!$A$4:$Q$47,2,FALSE) -> Brown-Forman 'B' | D14: =HLOOKUP(A14&" US Equity",'CEM PricesDivs'!$B$3:$AR$69,67,FALSE) -> 0.99 | G14: ='CEM Data Lookup'!F9*100 -> 13 | J14: =IFERROR('CEM Data Lookup'!C9*100, "NA") -> NA | M14: =IFERROR('CEM Data Lookup'!E9*100, "NA") -> NA | P14: ='CEM Data Lookup'!D9*100 -> 8.44 | S14: 10.72 | V14: 1.04 | Y14: 11.76
A15: =Input!C8 -> BR | B15: =VLOOKUP($A15,'CEM Data Lookup'!$A$4:$Q$47,2,FALSE) -> Broadridge Fin'l | D15: =HLOOKUP(A15&" US Equity",'CEM PricesDivs'!$B$3:$AR$69,67,FALSE) -> 1.52 | G15: ='CEM Data Lookup'!F10*100 -> 8.5 | J15: =IFERROR('CEM Data Lookup'!C10*100, "NA") -> NA | M15: =IFERROR('CEM Data Lookup'!E10*100, "NA") -> 11.9 | P15: ='CEM Data Lookup'!D10*100 -> 11.8 | S15: 10.73 | V15: 1.6 | Y15: 12.33
A16: =Input!C9 -> CACI | B16: =VLOOKUP($A16,'CEM Data Lookup'!$A$4:$Q$47,2,FALSE) -> CACI Int'l | D16: =HLOOKUP(A16&" US Equity",'CEM PricesDivs'!$B$3:$AR$69,67,FALSE) -> 0 | G16: ='CEM Data Lookup'!F11*100 -> 13.5 | J16: =IFERROR('CEM Data Lookup'!C11*100, "NA") -> 5.4 | M16: =IFERROR('CEM Data Lookup'!E11*100, "NA") -> 3.225 | P16: ='CEM Data Lookup'!D11*100 -> 1.44 | S16: 5.89 | V16: 0 | Y16: NA
A17: =Input!C10 -> CERN | B17: =VLOOKUP($A17,'CEM Data Lookup'!$A$4:$Q$47,2,FALSE) -> Cerner Corp. | D17: =HLOOKUP(A17&" US Equity",'CEM PricesDivs'!$B$3:$AR$69,67,FALSE) -> 1.11 | G17: ='CEM Data Lookup'!F12*100 -> 9 | J17: =IFERROR('CEM Data Lookup'!C12*100, "NA") -> 12.3 | M17: =IFERROR('CEM Data Lookup'!E12*100, "NA") -> 7.89 | P17: ='CEM Data Lookup'!D12*100 -> 11.81 | S17: 10.25 | V17: 1.17 | Y17: 11.42
A18: =Input!C11 -> CHE | B18: =VLOOKUP($A18,'CEM Data Lookup'!$A$4:$Q$47,2,FALSE) -> Chemed Corp. | D18: =HLOOKUP(A18&" US Equity",'CEM PricesDivs'!$B$3:$AR$69,67,FALSE) -> 0.3 | G18: ='CEM Data Lookup'!F13*100 -> 9 | J18: =IFERROR('CEM Data Lookup'!C13*100, "NA") -> 7.5 | M18: =IFERROR('CEM Data Lookup'!E13*100, "NA") -> 7.54 | P18: ='CEM Data Lookup'!D13*100 -> 7.55 | S18: 7.9 | V18: 0.31 | Y18: 8.21
A19: =Input!C12 -> COO | B19: =VLOOKUP($A19,'CEM Data Lookup'!$A$4:$Q$47,2,FALSE) -> Cooper Cos. | D19: =HLOOKUP(A19&" US Equity",'CEM PricesDivs'!$B$3:$AR$69,67,FALSE) -> 0.01 | G19: ='CEM Data Lookup'!F14*100 -> 14.5 | J19: =IFERROR('CEM Data Lookup'!C14*100, "NA") -> 10 | M19: =IFERROR('CEM Data Lookup'!E14*100, "NA") -> 11.067 | P19: ='CEM Data Lookup'!D14*100 -> 10 | S19: 11.39 | V19: 0.01 | Y19: 11.4
A20: =Input!C13 -> CSWI | B20: =VLOOKUP($A20,'CEM Data Lookup'!$A$4:$Q$47,2,FALSE) -> CSW Industrials | D20: =HLOOKUP(A20&" US Equity",'CEM PricesDivs'!$B$3:$AR$69,67,FALSE) -> 0.49 | G20: ='CEM Data Lookup'!F15*100 -> 11.5 | J20: =IFERROR('CEM Data Lookup'!C15*100, "NA") -> NA | M20: =IFERROR('CEM Data Lookup'!E15*100, "NA") -> 15 | P20: ='CEM Data Lookup'!D15*100 -> 12 | S20: 12.83 | V20: 0.52 | Y20: 13.35
A21: =Input!C14 -> DGX | B21: =VLOOKUP($A21,'CEM Data Lookup'!$A$4:$Q$47,2,FALSE) -> Quest Diagnostics | D21: =HLOOKUP(A21&" US Equity",'CEM PricesDivs'!$B$3:$AR$69,67,FALSE) -> 1.78 | G21: ='CEM Data Lookup'!F16*100 -> 7 | J21: =IFERROR('CEM Data Lookup'!C16*100, "NA") -> 26.5 | M21: =IFERROR('CEM Data Lookup'!E16*100, "NA") -> -4.79 | P21: ='CEM Data Lookup'!D16*100 -> -8.6 | S21: =IFERROR(ROUND(AVERAGE(G21,J21),2),"NA") -> 16.75 | V21: 1.93 | Y21: 18.68
A22: =Input!C15 -> EL | B22: =VLOOKUP($A22,'CEM Data Lookup'!$A$4:$Q$47,2,FALSE) -> Lauder (Estee) | D22: =HLOOKUP(A22&" US Equity",'CEM PricesDivs'!$B$3:$AR$69,67,FALSE) -> 0.66 | G22: ='CEM Data Lookup'!F17*100 -> 11 | J22: =IFERROR('CEM Data Lookup'!C17*100, "NA") -> 11.3 | M22: =IFERROR('CEM Data Lookup'!E17*100, "NA") -> 15 | P22: ='CEM Data Lookup'!D17*100 -> 18.71 | S22: =IFERROR(ROUND(AVERAGE(G22,J22,M22,P22),2),"NA") -> 14 | V22: 0.71 | Y22: 14.71
A23: =Input!C16 -> EXPO | B23: =VLOOKUP($A23,'CEM Data Lookup'!$A$4:$Q$47,2,FALSE) -> Exponent, Inc. | D23: =HLOOKUP(A23&" US Equity",'CEM PricesDivs'!$B$3:$AR$69,67,FALSE) -> 0.8 | G23: ='CEM Data Lookup'!F18*100 -> 12 | J23: =IFERROR('CEM Data Lookup'!C18*100, "NA") -> NA | M23: =IFERROR('CEM Data Lookup'!E18*100, "NA") -> NA | P23: ='CEM Data Lookup'!D18*100 -> 15 | S23: =IFERROR(ROUND(AVERAGE(G23,J23,M23,P23),2),"NA") -> 13.5 | V23: 0.85 | Y23: 14.35
A24: =Input!C17 -> HSY | B24: =VLOOKUP($A24,'CEM Data Lookup'!$A$4:$Q$47,2,FALSE) -> Hershey Co. | D24: =HLOOKUP(A24&" US Equity",'CEM PricesDivs'!$B$3:$AR$69,67,FALSE) -> 2.04 | G24: ='CEM Data Lookup'!F19*100 -> 5.5 | J24: =IFERROR('CEM Data Lookup'!C19*100, "NA") -> 7.7 | M24: =IFERROR('CEM Data Lookup'!E19*100, "NA") -> 7.6 | P24: ='CEM Data Lookup'!D19*100 -> 8.82 | S24: 7.41 | V24: 2.12 | Y24: 9.53
A25: =Input!C18 -> INGR | B25: =VLOOKUP($A25,'CEM Data Lookup'!$A$4:$Q$47,2,FALSE) -> Ingredion Inc. | D25: =HLOOKUP(A25&" US Equity",'CEM PricesDivs'!$B$3:$AR$69,67,FALSE) -> 2.87 | G25: ='CEM Data Lookup'!F20*100 -> 7.5 | J25: =IFERROR('CEM Data Lookup'!C20*100, "NA") -> NA | M25: =IFERROR('CEM Data Lookup'!E20*100, "NA") -> 10.7 | P25: ='CEM Data Lookup'!D20*100 -> 1.9 | S25: 6.7 | V25: 2.97 | Y25: 9.67
A26: =Input!C19 -> JBHT | B26: =VLOOKUP($A26,'CEM Data Lookup'!$A$4:$Q$47,2,FALSE) -> Hunt (J.B.) | D26: =HLOOKUP(A26&" US Equity",'CEM PricesDivs'!$B$3:$AR$69,67,FALSE) -> 0.72 | G26: ='CEM Data Lookup'!F21*100 -> 8 | J26: =IFERROR('CEM Data Lookup'!C21*100, "NA") -> 15 | M26: =IFERROR('CEM Data Lookup'!E21*100, "NA") -> 14.65 | P26: ='CEM Data Lookup'!D21*100 -> 20.5 | S26: 14.54 | V26: 0.77 | Y26: 15.31
A27: =Input!C20 -> JJSF | B27: =VLOOKUP($A27,'CEM Data Lookup'!$A$4:$Q$47,2,FALSE) -> J&J Snack Foods | D27: =HLOOKUP(A27&" US Equity",'CEM PricesDivs'!$B$3:$AR$69,67,FALSE) -> 1.5 | G27: ='CEM Data Lookup'!F22*100 -> 10 | J27: =IFERROR('CEM Data Lookup'!C22*100, "NA") -> NA | M27: =IFERROR('CEM Data Lookup'!E22*100, "NA") -> NA | P27: ='CEM Data Lookup'!D22*100 -> 6 | S27: 8 | V27: 1.56 | Y27: 9.56
A28: =Input!C21 -> JKHY | B28: =VLOOKUP($A28,'CEM Data Lookup'!$A$4:$Q$47,2,FALSE) -> Henry (Jack) & Assoc | D28: =HLOOKUP(A28&" US Equity",'CEM PricesDivs'!$B$3:$AR$69,67,FALSE) -> 1.08 | G28: ='CEM Data Lookup'!F23*100 -> 9.5 | J28: =IFERROR('CEM Data Lookup'!C23*100, "NA") -> 11 | M28: =IFERROR('CEM Data Lookup'!E23*100, "NA") -> 12.467 | P28: ='CEM Data Lookup'!D23*100 -> 9.64 | S28: 10.65 | V28: 1.14 | Y28: 11.79
A29: =Input!C22 -> MANT | B29: =VLOOKUP($A29,'CEM Data Lookup'!$A$4:$Q$47,2,FALSE) -> ManTech Int'l 'A' | D29: =HLOOKUP(A29&" US Equity",'CEM PricesDivs'!$B$3:$AR$69,67,FALSE) -> 1.78 | G29: ='CEM Data Lookup'!F24*100 -> 9 | J29: =IFERROR('CEM Data Lookup'!C24*100, "NA") -> 5.1 | M29: =IFERROR('CEM Data Lookup'!E24*100, "NA") -> 5.53 | P29: ='CEM Data Lookup'!D24*100 -> 5.38 | S29: 6.25 | V29: 1.84 | Y29: 8.09
A30: =Input!C23 -> MKC | B30: =VLOOKUP($A30,'CEM Data Lookup'!$A$4:$Q$47,2,FALSE) -> McCormick & Co. | D30: =HLOOKUP(A30&" US Equity",'CEM PricesDivs'!$B$3:$AR$69,67,FALSE) -> 1.57 | G30: ='CEM Data Lookup'!F25*100 -> 6 | J30: =IFERROR('CEM Data Lookup'!C25*100, "NA") -> 6.8 | M30: =IFERROR('CEM Data Lookup'!E25*100, "NA") -> 6.353 | P30: ='CEM Data Lookup'!D25*100 -> 6.5 | S30: 6.41 | V30: 1.62 | Y30: 8.03
A31: =Input!C24 -> MNST | B31: =VLOOKUP($A31,'CEM Data Lookup'!$A$4:$Q$47,2,FALSE) -> Monster Beverage | D31: =HLOOKUP(A31&" US Equity",'CEM PricesDivs'!$B$3:$AR$69,67,FALSE) -> 0 | G31: ='CEM Data Lookup'!F26*100 -> 11.5 | J31: =IFERROR('CEM Data Lookup'!C26*100, "NA") -> 14.7 | M31: =IFERROR('CEM Data Lookup'!E26*100, "NA") -> 12.17 | P31: ='CEM Data Lookup'!D26*100 -> 14.85 | S31: 13.31 | V31: 0 | Y31: NA
A32: =Input!C25 -> MO | B32: =VLOOKUP($A32,'CEM Data Lookup'!$A$4:$Q$47,2,FALSE) -> Altria Group | D32: =HLOOKUP(A32&" US Equity",'CEM PricesDivs'!$B$3:$AR$69,67,FALSE) -> 7.52 | G32: ='CEM Data Lookup'!F27*100 -> 6 | J32: =IFERROR('CEM Data Lookup'!C27*100, "NA") -> 4 | M32: =IFERROR('CEM Data Lookup'!E27*100, "NA") -> 4.25 | P32: ='CEM Data Lookup'!D27*100 -> 4.67 | S32: 4.73 | V32: 7.7 | Y32: =IFERROR(IF(OR(VALUE(V32)=0,VALUE(S32)=0),"NA",V32+S32),"NA") -> 12.43
A33: =Input!C26 -> MSCI | B33: =VLOOKUP($A33,'CEM Data Lookup'!$A$4:$Q$47,2,FALSE) -> MSCI Inc. | D33: =HLOOKUP(A33&" US Equity",'CEM PricesDivs'!$B$3:$AR$69,67,FALSE) -> 0.73 | G33: ='CEM Data Lookup'!F28*100 -> 16 | J33: =IFERROR('CEM Data Lookup'!C28*100, "NA") -> NA | M33: =IFERROR('CEM Data Lookup'!E28*100, "NA") -> 13.3 | P33: ='CEM Data Lookup'!D28*100 -> 17.79 | S33: 15.7 | V33: 0.79 | Y33: 16.49
A34: =Input!C27 -> MSI | B34: =VLOOKUP($A34,'CEM Data Lookup'!$A$4:$Q$47,2,FALSE) -> Motorola Solutions | D34: =HLOOKUP(A34&" US Equity",'CEM PricesDivs'!$B$3:$AR$69,67,FALSE) -> 1.27 | G34: ='CEM Data Lookup'!F29*100 -> 7 | J34: =IFERROR('CEM Data Lookup'!C29*100, "NA") -> 9 | M34: =IFERROR('CEM Data Lookup'!E29*100, "NA") -> 12.4 | P34: ='CEM Data Lookup'!D29*100 -> 13.73 | S34: 10.53 | V34: 1.34 | Y34: 11.87
A35: =Input!C28 -> NOC | B35: =VLOOKUP($A35,'CEM Data Lookup'!$A$4:$Q$47,2,FALSE) -> Northrop Grumman | D35: =HLOOKUP(A35&" US Equity",'CEM PricesDivs'!$B$3:$AR$69,67,FALSE) -> 1.72 | G35: ='CEM Data Lookup'!F30*100 -> 7 | J35: =IFERROR('CEM Data Lookup'!C30*100, "NA") -> 9 | M35: =IFERROR('CEM Data Lookup'!E30*100, "NA") -> 5.29 | P35: ='CEM Data Lookup'!D30*100 -> 6.66 | S35: 6.99 | V35: 1.78 | Y35: 8.77
A36: =Input!C29 -> ODFL | B36: =VLOOKUP($A36,'CEM Data Lookup'!$A$4:$Q$47,2,FALSE) -> Old Dominion Freight | D36: =HLOOKUP(A36&" US Equity",'CEM PricesDivs'!$B$3:$AR$69,67,FALSE) -> 0.3 | G36: ='CEM Data Lookup'!F31*100 -> 9.5 | J36: =IFERROR('CEM Data Lookup'!C31*100, "NA") -> 22.7 | M36: =IFERROR('CEM Data Lookup'!E31*100, "NA") -> 20.877 | P36: ='CEM Data Lookup'!D31*100 -> 22.7 | S36: 18.94 | V36: 0.33 | Y36: 19.27
A37: =Input!C30 -> PKI | B37: =VLOOKUP($A37,'CEM Data Lookup'!$A$4:$Q$47,2,FALSE) -> PerkinElmer Inc. | D37: =HLOOKUP(A37&" US Equity",'CEM PricesDivs'!$B$3:$AR$69,67,FALSE) -> 0.17 | G37: ='CEM Data Lookup'!F32*100 -> 11 | J37: =IFERROR('CEM Data Lookup'!C32*100, "NA") -> 37.9 | M37: =IFERROR('CEM Data Lookup'!E32*100, "NA") -> -3.565 | P37: ='CEM Data Lookup'!D32*100 -> 37.9 | S37: =IFERROR(ROUND(AVERAGE(G37,J37,P37),2),"NA") -> 28.93 | V37: 0.19 | Y37: 29.12
A38: =Input!C31 -> POST | B38: =VLOOKUP($A38,'CEM Data Lookup'!$A$4:$Q$47,2,FALSE) -> Post Holdings | D38: =HLOOKUP(A38&" US Equity",'CEM PricesDivs'!$B$3:$AR$69,67,FALSE) -> 0 | G38: ='CEM Data Lookup'!F33*100 -> 9.5 | J38: =IFERROR('CEM Data Lookup'!C33*100, "NA") -> NA | M38: =IFERROR('CEM Data Lookup'!E33*100, "NA") -> 21.7 | P38: ='CEM Data Lookup'!D33*100 -> 28.2 | S38: 19.8 | V38: 0 | Y38: NA
A39: =Input!C32 -> RLI | B39: =VLOOKUP($A39,'CEM Data Lookup'!$A$4:$Q$47,2,FALSE) -> RLI Corp. | D39: =HLOOKUP(A39&" US Equity",'CEM PricesDivs'!$B$3:$AR$69,67,FALSE) -> 0.94 | G39: ='CEM Data Lookup'!F34*100 -> 12 | J39: =IFERROR('CEM Data Lookup'!C34*100, "NA") -> NA | M39: =IFERROR('CEM Data Lookup'!E34*100, "NA") -> NA | P39: ='CEM Data Lookup'!D34*100 -> 9.8 | S39: 10.9 | V39: 0.99 | Y39: 11.89
A40: =Input!C33 -> ROL | B40: =VLOOKUP($A40,'CEM Data Lookup'!$A$4:$Q$47,2,FALSE) -> Rollins, Inc. | D40: =HLOOKUP(A40&" US Equity",'CEM PricesDivs'!$B$3:$AR$69,67,FALSE) -> 0.88 | G40: ='CEM Data Lookup'!F35*100 -> 11.5 | J40: =IFERROR('CEM Data Lookup'!C35*100, "NA") -> NA | M40: =IFERROR('CEM Data Lookup'!E35*100, "NA") -> NA | P40: ='CEM Data Lookup'!D35*100 -> 8.2 | S40: 9.85 | V40: 0.92 | Y40: 10.77
A41: =Input!C34 -> SHW | B41: =VLOOKUP($A41,'CEM Data Lookup'!$A$4:$Q$47,2,FALSE) -> Sherwin-Williams | D41: =HLOOKUP(A41&" US Equity",'CEM PricesDivs'!$B$3:$AR$69,67,FALSE) -> 0.77 | G41: ='CEM Data Lookup'!F36*100 -> 10.5 | J41: =IFERROR('CEM Data Lookup'!C36*100, "NA") -> 12.6 | M41: =IFERROR('CEM Data Lookup'!E36*100, "NA") -> 1.8 | P41: ='CEM Data Lookup'!D36*100 -> 11.87 | S41: 9.19 | V41: 0.81 | Y41: 10
A42: =Input!C35 -> SIGI | B42: =VLOOKUP($A42,'CEM Data Lookup'!$A$4:$Q$47,2,FALSE) -> Selective Ins. Group | D42: =HLOOKUP(A42&" US Equity",'CEM PricesDivs'!$B$3:$AR$69,67,FALSE) -> 1.25 | G42: ='CEM Data Lookup'!F37*100 -> 9.5 | J42: =IFERROR('CEM Data Lookup'!C37*100, "NA") -> 12.4 | M42: =IFERROR('CEM Data Lookup'!E37*100, "NA") -> 12.44 | P42: ='CEM Data Lookup'!D37*100 -> 10 | S42: 11.09 | V42: 1.32 | Y42: 12.41
A43: =Input!C36 -> SIRI | B43: =VLOOKUP($A43,'CEM Data Lookup'!$A$4:$Q$47,2,FALSE) -> Sirius XM Holdings | D43: =HLOOKUP(A43&" US Equity",'CEM PricesDivs'!$B$3:$AR$69,67,FALSE) -> 0.91 | G43: ='CEM Data Lookup'!F38*100 -> 31.5 | J43: =IFERROR('CEM Data Lookup'!C38*100, "NA") -> 12.2 | M43: =IFERROR('CEM Data Lookup'!E38*100, "NA") -> 28.977 | P43: ='CEM Data Lookup'!D38*100 -> 10.05 | S43: 20.68 | V43: 1 | Y43: 21.68
A44: =Input!C37 -> SNPS | B44: =VLOOKUP($A44,'CEM Data Lookup'!$A$4:$Q$47,2,FALSE) -> Synopsys, Inc. | D44: =HLOOKUP(A44&" US Equity",'CEM PricesDivs'!$B$3:$AR$69,67,FALSE) -> 0 | G44: ='CEM Data Lookup'!F39*100 -> 13 | J44: =IFERROR('CEM Data Lookup'!C39*100, "NA") -> 16 | M44: =IFERROR('CEM Data Lookup'!E39*100, "NA") -> 15.887 | P44: ='CEM Data Lookup'!D39*100 -> 16 | S44: 15.22 | V44: 0 | Y44: NA
A45: =Input!C38 -> TXN | B45: =VLOOKUP($A45,'CEM Data Lookup'!$A$4:$Q$47,2,FALSE) -> Texas Instruments | D45: =HLOOKUP(A45&" US Equity",'CEM PricesDivs'!$B$3:$AR$69,67,FALSE) -> 2.16 | G45: ='CEM Data Lookup'!F40*100 -> 8.5 | J45: =IFERROR('CEM Data Lookup'!C40*100, "NA") -> 9.3 | M45: =IFERROR('CEM Data Lookup'!E40*100, "NA") -> 10.6 | P45: ='CEM Data Lookup'!D40*100 -> 10 | S45: 9.6 | V45: 2.26 | Y45: 11.86
A46: =Input!C39 -> UHAL | B46: =VLOOKUP($A46,'CEM Data Lookup'!$A$4:$Q$47,2,FALSE) -> AMERCO | D46: =HLOOKUP(A46&" US Equity",'CEM PricesDivs'!$B$3:$AR$69,67,FALSE) -> 0 | G46: ='CEM Data Lookup'!F41*100 -> 13.5 | J46: =IFERROR('CEM Data Lookup'!C41*100, "NA") -> NA | M46: =IFERROR('CEM Data Lookup'!E41*100, "NA") -> NA | P46: ='CEM Data Lookup'!D41*100 -> 15 | S46: 14.25 | V46: 0 | Y46: NA
A47: =Input!C40 -> UPS | B47: =VLOOKUP($A47,'CEM Data Lookup'!$A$4:$Q$47,2,FALSE) -> United Parcel Serv. | D47: =HLOOKUP(A47&" US Equity",'CEM PricesDivs'!$B$3:$AR$69,67,FALSE) -> 2.02 | G47: ='CEM Data Lookup'!F42*100 -> 10.5 | J47: =IFERROR('CEM Data Lookup'!C42*100, "NA") -> 11.7 | M47: =IFERROR('CEM Data Lookup'!E42*100, "NA") -> 14.388 | P47: ='CEM Data Lookup'!D42*100 -> 15.89 | S47: 13.12 | V47: 2.15 | Y47: 15.27
A48: =Input!C41 -> VRSN | B48: =VLOOKUP($A48,'CEM Data Lookup'!$A$4:$Q$47,2,FALSE) -> VeriSign Inc. | D48: =HLOOKUP(A48&" US Equity",'CEM PricesDivs'!$B$3:$AR$69,67,FALSE) -> 0 | G48: ='CEM Data Lookup'!F43*100 -> 8.5 | J48: =IFERROR('CEM Data Lookup'!C43*100, "NA") -> NA | M48: =IFERROR('CEM Data Lookup'!E43*100, "NA") -> NA | P48: ='CEM Data Lookup'!D43*100 -> 8 | S48: 8.25 | V48: 0 | Y48: NA
A49: =Input!C42 -> WAT | B49: =VLOOKUP($A49,'CEM Data Lookup'!$A$4:$Q$47,2,FALSE) -> Waters Corp. | D49: =HLOOKUP(A49&" US Equity",'CEM PricesDivs'!$B$3:$AR$69,67,FALSE) -> 0 | G49: ='CEM Data Lookup'!F44*100 -> 6 | J49: =IFERROR('CEM Data Lookup'!C44*100, "NA") -> 9.4 | M49: =IFERROR('CEM Data Lookup'!E44*100, "NA") -> 10.757 | P49: ='CEM Data Lookup'!D44*100 -> 9.3 | S49: 8.86 | V49: 0 | Y49: NA
A50: =Input!C43 -> WSO | B50: =VLOOKUP($A50,'CEM Data Lookup'!$A$4:$Q$47,2,FALSE) -> Watsco, Inc. | D50: =HLOOKUP(A50&" US Equity",'CEM PricesDivs'!$B$3:$AR$69,67,FALSE) -> 2.76 | G50: ='CEM Data Lookup'!F45*100 -> 8 | J50: =IFERROR('CEM Data Lookup'!C45*100, "NA") -> NA | M50: =IFERROR('CEM Data Lookup'!E45*100, "NA") -> NA | P50: ='CEM Data Lookup'!D45*100 -> 15 | S50: 11.5 | V50: 2.92 | Y50: 14.42
A51: =Input!C44 -> WU | B51: =VLOOKUP($A51,'CEM Data Lookup'!$A$4:$Q$47,2,FALSE) -> Western Union | D51: =HLOOKUP(A51&" US Equity",'CEM PricesDivs'!$B$3:$AR$69,67,FALSE) -> 4.09 | G51: ='CEM Data Lookup'!F46*100 -> 6 | J51: =IFERROR('CEM Data Lookup'!C46*100, "NA") -> NA | M51: =IFERROR('CEM Data Lookup'!E46*100, "NA") -> 3.35 | P51: ='CEM Data Lookup'!D46*100 -> 9.19 | S51: 6.18 | V51: 4.22 | Y51: =IFERROR(IF(OR(VALUE(V51)=0,VALUE(S51)=0),"NA",V51+S51),"NA") -> 10.4
V53: Mean | Y53: =ROUND(AVERAGE(Y8:Y51),2) -> 13.07 | Z53: %
V55: Median | Y55: =ROUND(MEDIAN(Y8:Y51),2) -> 11.88 | Z55: %
V57: Average of Mean and Median | Y57: =ROUND(AVERAGE(Y53:Y55),2) -> 12.48 | Z57: %
C59: NA= Not Available
C60: NMF= Not Meaningful Figure
C62: (1) | D62: The application of the DCF model to the domestic, non-price regulated comparable risk companies is identical to the application of the DCF to the Utility Proxy Group. The dividend yield is derived by using the 60 day average price and the spot indicated dividend as of August 31, 2021. The dividend yield is then adjusted by 1/2 the average projected growth rate in EPS, which is calculated by averaging the 5 year projected growth in EPS provided by Value Line, www.zacks.com, Bloomberg Professional Services, and www.yahoo.com (excluding any negative growth rates) and then adding that growth rate to the adjusted dividend yield.
B64: Source of Information: | C64: Value Line Investment Survey
C65: =CONCATENATE("www.zacks.com Downloaded on ",TEXT(Input!E2,"mm/dd/yyyy")) -> www.zacks.com Downloaded on 08/31/2021
C66: =CONCATENATE("www.yahoo.com Downloaded on ",TEXT(Input!E2,"mm/dd/yyyy")) -> www.yahoo.com Downloaded on 08/31/2021
C67: Bloomberg Professional Services

Sheet 6.3 CEM RPM Summary
A1: =Input!G28 -> Duke Energy Kentucky, Inc.
A2: Indicated Common Equity Cost Rate
A3: Through Use of a Risk Premium Model
A4: Using an Adjusted Total Market Approach
A6: Line No. | H6: ='6.2 CEM DCF'!B7 -> Proxy Group of Forty-Three Non-Price Regulated Companies
A9: 1. | C9: Prospective Yield on Baa2 Rated
C10: Corporate Bonds (1) | H10: =$H$34 -> 4.3 | I10: %
A12: 2. | C12: Adjustment to Reflect Proxy Group
C13: Bond Rating (2) | H13: =-H45 -> -0.1166666667
A15: 3. | C15: Prospective Bond Rating | H15: =H10+H13 -> 4.183333333
A17: 4. | C17: Equity Risk Premium (3) | H17: ='6.5 CEM Beta Adjusted RP'!F28 -> 8.28
A19: 5. | C19: Risk Premium Derived Common
C20: Equity Cost Rate | H20: =SUM(H15:H17) -> 12.46333333 | I20: %
A23: Notes: | B23: (1) | C23: =CONCATENATE("Average forecast of Baa2 corporate bonds based upon the consensus of nearly 50 economists reported in Blue Chip Financial Forecasts dated ",TEXT(Input!I25,"[$-409]mmmm d, yyyy;@")," (see pages 10 and 11 of Schedule DWD-3). The estimates are detailed below.") -> Average forecast of Baa2 corporate bonds based upon the consensus of nearly 50 economists reported in Blue Chip Financial Forecasts dated September 1, 2021 and June 1, 2021 (see pages 10 and 11 of Schedule DWD-3). The estimates are detailed below.
D25: ='MRP WP1'!B28 -> Third Quarter 2021 | H25: ='MRP WP1'!O28 -> 3.4 | I25: %
D26: ='MRP WP1'!B29 -> Fourth Quarter 2021 | H26: ='MRP WP1'!O29 -> 3.7
D27: ='MRP WP1'!B30 -> First Quarter 2022 | H27: ='MRP WP1'!O30 -> 3.9
D28: ='MRP WP1'!B31 -> Second Quarter 2022 | H28: ='MRP WP1'!O31 -> 4
D29: ='MRP WP1'!B32 -> Third Quarter 2022 | H29: ='MRP WP1'!O32 -> 4.1
D30: ='MRP WP1'!B33 -> Fourth Quarter 2022 | H30: ='MRP WP1'!O33 -> 4.2
D31: ='MRP WP1'!B34 -> 2023-2027 | H31: ='MRP WP1'!O34 -> 5.3
D32: ='MRP WP1'!B35 -> 2028-2032 | H32: ='MRP WP1'!O35 -> 5.8
D34: Average | H34: =ROUND(AVERAGE(H25:H32),2) -> 4.3 | I34: %
B36: (2) | C36: =CONCATENATE("To reflect the ", IFERROR('6.4 CEM RPM Bond Ratings'!D$58,"NA"), " average rating of the non-utility proxy group, the prosepctive yield on Baa corporate bonds must be adjusted downward by 1/3 of the spread between A2 and Baa2 corporate bond yields as shown below:") -> To reflect the Baa1 average rating of the non-utility proxy group, the prosepctive yield on Baa corporate bonds must be adjusted downward by 1/3 of the spread between A2 and Baa2 corporate bond yields as shown below:
D38: A2 Corp. Bond Yield | F38: Baa2 Corp. Bond Yield
H39: Spread
C40: ='Market Data'!B1 -> 2021-08-31 | D40: ='Market Data'!B6 -> 2.89 | E40: % | F40: ='Market Data'!B7 -> 3.24 | G40: % | H40: =F40-D40 -> 0.35 | I40: %
C41: ='Market Data'!C1 -> 2021-07-31 | D41: ='Market Data'!C6 -> 2.89 | F41: ='Market Data'!C7 -> 3.24 | H41: =F41-D41 -> 0.35
C42: ='Market Data'!D1 -> 2021-06-30 | D42: ='Market Data'!D6 -> 3.1 | F42: ='Market Data'!D7 -> 3.45 | H42: 0.35
F43: Average yield spread | H43: =AVERAGE(H40:H42) -> 0.35 | I43: %
F45: 1/3 of spread | H45: =H43*(1/3) -> 0.1166666667 | I45: %
B47: (3) | C47: From page 5 of this Schedule.

Sheet 6.4 CEM RPM Bond Ratings
B1: =Input!G28 -> Duke Energy Kentucky, Inc.
B2: Comparison of Long-Term Issuer Ratings for the
B3: =CONCATENATE('6.3 CEM RPM Summary'!H6," of Comparable risk to the") -> Proxy Group of Forty-Three Non-Price Regulated Companies of Comparable risk to the
B4: ='6.2 CEM DCF'!B3 -> Proxy Group of Thirteen Combination Electric and Gas Utilities
D7: Moody's | H7: Standard & Poor's
D8: Long-Term Issuer Rating | H8: =D8 -> Long-Term Issuer Rating
D9: =TEXT(Input!E2, "mmmm yyyy") -> August 2021 | H9: =D9 -> August 2021
B12: ='6.3 CEM RPM Summary'!H6 -> Proxy Group of Forty-Three Non-Price Regulated Companies | D12: Long-Term Issuer Rating | F12: Numerical Weighting (1) | H12: =D12 -> Long-Term Issuer Rating | J12: Numerical Weighting (1)
A14: =Input!C2 -> ABT | B14: =VLOOKUP($A14,'CEM Data Lookup'!$A:$Q,2,FALSE) -> Abbott Labs. | D14: ='CEM Data Lookup'!K4 -> A2 | F14: =IFERROR(VLOOKUP('6.4 CEM RPM Bond Ratings'!D14,'3.6 MOODY_S&P numbericl'!B:D,3,FALSE),"--") -> 6 | H14: ='CEM Data Lookup'!L4 -> A+ | J14: =IFERROR(VLOOKUP(H14,'3.6 MOODY_S&P numbericl'!F:H,3,FALSE),"--") -> 5
A15: =Input!C3 -> ADI | B15: =VLOOKUP($A15,'CEM Data Lookup'!$A:$Q,2,FALSE) -> Analog Devices | D15: ='CEM Data Lookup'!K5 -> Baa1 | F15: =IFERROR(VLOOKUP('6.4 CEM RPM Bond Ratings'!D15,'3.6 MOODY_S&P numbericl'!B:D,3,FALSE),"--") -> 8 | H15: ='CEM Data Lookup'!L5 -> BBB | J15: =IFERROR(VLOOKUP(H15,'3.6 MOODY_S&P numbericl'!F:H,3,FALSE),"--") -> 9
A16: =Input!C4 -> AIZ | B16: =VLOOKUP($A16,'CEM Data Lookup'!$A:$Q,2,FALSE) -> Assurant Inc. | D16: ='CEM Data Lookup'!K6 -> Baa3 | F16: =IFERROR(VLOOKUP('6.4 CEM RPM Bond Ratings'!D16,'3.6 MOODY_S&P numbericl'!B:D,3,FALSE),"--") -> 10 | H16: ='CEM Data Lookup'!L6 -> BBB | J16: =IFERROR(VLOOKUP(H16,'3.6 MOODY_S&P numbericl'!F:H,3,FALSE),"--") -> 9
A17: =Input!C5 -> AOS | B17: =VLOOKUP($A17,'CEM Data Lookup'!$A:$Q,2,FALSE) -> Smith (A.O.) | D17: ='CEM Data Lookup'!K7 -> NA | F17: =IFERROR(VLOOKUP('6.4 CEM RPM Bond Ratings'!D17,'3.6 MOODY_S&P numbericl'!B:D,3,FALSE),"--") -> -- | H17: ='CEM Data Lookup'!L7 -> NA | J17: =IFERROR(VLOOKUP(H17,'3.6 MOODY_S&P numbericl'!F:H,3,FALSE),"--") -> --
A18: =Input!C6 -> BDX | B18: =VLOOKUP($A18,'CEM Data Lookup'!$A:$Q,2,FALSE) -> Becton, Dickinson | D18: ='CEM Data Lookup'!K8 -> Baa3 | F18: =IFERROR(VLOOKUP('6.4 CEM RPM Bond Ratings'!D18,'3.6 MOODY_S&P numbericl'!B:D,3,FALSE),"--") -> 10 | H18: ='CEM Data Lookup'!L8 -> BBB | J18: =IFERROR(VLOOKUP(H18,'3.6 MOODY_S&P numbericl'!F:H,3,FALSE),"--") -> 9
A19: =Input!C7 -> BFB | B19: =VLOOKUP($A19,'CEM Data Lookup'!$A:$Q,2,FALSE) -> Brown-Forman 'B' | D19: ='CEM Data Lookup'!K9 -> A1 | F19: =IFERROR(VLOOKUP('6.4 CEM RPM Bond Ratings'!D19,'3.6 MOODY_S&P numbericl'!B:D,3,FALSE),"--") -> 5 | H19: ='CEM Data Lookup'!L9 -> A- | J19: =IFERROR(VLOOKUP(H19,'3.6 MOODY_S&P numbericl'!F:H,3,FALSE),"--") -> 7
A20: =Input!C8 -> BR | B20: =VLOOKUP($A20,'CEM Data Lookup'!$A:$Q,2,FALSE) -> Broadridge Fin'l | D20: ='CEM Data Lookup'!K10 -> Baa1 | F20: =IFERROR(VLOOKUP('6.4 CEM RPM Bond Ratings'!D20,'3.6 MOODY_S&P numbericl'!B:D,3,FALSE),"--") -> 8 | H20: ='CEM Data Lookup'!L10 -> BBB+ | J20: =IFERROR(VLOOKUP(H20,'3.6 MOODY_S&P numbericl'!F:H,3,FALSE),"--") -> 8
A21: =Input!C9 -> CACI | B21: =VLOOKUP($A21,'CEM Data Lookup'!$A:$Q,2,FALSE) -> CACI Int'l | D21: ='CEM Data Lookup'!K11 -> NA | F21: =IFERROR(VLOOKUP('6.4 CEM RPM Bond Ratings'!D21,'3.6 MOODY_S&P numbericl'!B:D,3,FALSE),"--") -> -- | H21: ='CEM Data Lookup'!L11 -> BB+ | J21: =IFERROR(VLOOKUP(H21,'3.6 MOODY_S&P numbericl'!F:H,3,FALSE),"--") -> 11
A22: =Input!C10 -> CERN | B22: =VLOOKUP($A22,'CEM Data Lookup'!$A:$Q,2,FALSE) -> Cerner Corp. | D22: ='CEM Data Lookup'!K12 -> NA | F22: =IFERROR(VLOOKUP('6.4 CEM RPM Bond Ratings'!D22,'3.6 MOODY_S&P numbericl'!B:D,3,FALSE),"--") -> -- | H22: ='CEM Data Lookup'!L12 -> NA | J22: =IFERROR(VLOOKUP(H22,'3.6 MOODY_S&P numbericl'!F:H,3,FALSE),"--") -> --
A23: =Input!C11 -> CHE | B23: =VLOOKUP($A23,'CEM Data Lookup'!$A:$Q,2,FALSE) -> Chemed Corp. | D23: ='CEM Data Lookup'!K13 -> WR | F23: =IFERROR(VLOOKUP('6.4 CEM RPM Bond Ratings'!D23,'3.6 MOODY_S&P numbericl'!B:D,3,FALSE),"--") -> -- | H23: ='CEM Data Lookup'!L13 -> NR | J23: =IFERROR(VLOOKUP(H23,'3.6 MOODY_S&P numbericl'!F:H,3,FALSE),"--") -> --
A24: =Input!C12 -> COO | B24: =VLOOKUP($A24,'CEM Data Lookup'!$A:$Q,2,FALSE) -> Cooper Cos. | D24: ='CEM Data Lookup'!K14 -> WR | F24: =IFERROR(VLOOKUP('6.4 CEM RPM Bond Ratings'!D24,'3.6 MOODY_S&P numbericl'!B:D,3,FALSE),"--") -> -- | H24: ='CEM Data Lookup'!L14 -> NR | J24: =IFERROR(VLOOKUP(H24,'3.6 MOODY_S&P numbericl'!F:H,3,FALSE),"--") -> --
A25: =Input!C13 -> CSWI | B25: =VLOOKUP($A25,'CEM Data Lookup'!$A:$Q,2,FALSE) -> CSW Industrials | D25: ='CEM Data Lookup'!K15 -> NA | F25: =IFERROR(VLOOKUP('6.4 CEM RPM Bond Ratings'!D25,'3.6 MOODY_S&P numbericl'!B:D,3,FALSE),"--") -> -- | H25: ='CEM Data Lookup'!L15 -> NA | J25: =IFERROR(VLOOKUP(H25,'3.6 MOODY_S&P numbericl'!F:H,3,FALSE),"--") -> --
A26: =Input!C14 -> DGX | B26: =VLOOKUP($A26,'CEM Data Lookup'!$A:$Q,2,FALSE) -> Quest Diagnostics | D26: ='CEM Data Lookup'!K16 -> Baa2 | F26: =IFERROR(VLOOKUP('6.4 CEM RPM Bond Ratings'!D26,'3.6 MOODY_S&P numbericl'!B:D,3,FALSE),"--") -> 9 | H26: ='CEM Data Lookup'!L16 -> BBB+ | J26: =IFERROR(VLOOKUP(H26,'3.6 MOODY_S&P numbericl'!F:H,3,FALSE),"--") -> 8
A27: =Input!C15 -> EL | B27: =VLOOKUP($A27,'CEM Data Lookup'!$A:$Q,2,FALSE) -> Lauder (Estee) | D27: ='CEM Data Lookup'!K17 -> A1 | F27: =IFERROR(VLOOKUP('6.4 CEM RPM Bond Ratings'!D27,'3.6 MOODY_S&P numbericl'!B:D,3,FALSE),"--") -> 5 | H27: ='CEM Data Lookup'!L17 -> A+ | J27: =IFERROR(VLOOKUP(H27,'3.6 MOODY_S&P numbericl'!F:H,3,FALSE),"--") -> 5
A28: =Input!C16 -> EXPO | B28: =VLOOKUP($A28,'CEM Data Lookup'!$A:$Q,2,FALSE) -> Exponent, Inc. | D28: ='CEM Data Lookup'!K18 -> NA | F28: =IFERROR(VLOOKUP('6.4 CEM RPM Bond Ratings'!D28,'3.6 MOODY_S&P numbericl'!B:D,3,FALSE),"--") -> -- | H28: ='CEM Data Lookup'!L18 -> NA | J28: =IFERROR(VLOOKUP(H28,'3.6 MOODY_S&P numbericl'!F:H,3,FALSE),"--") -> --
A29: =Input!C17 -> HSY | B29: =VLOOKUP($A29,'CEM Data Lookup'!$A:$Q,2,FALSE) -> Hershey Co. | D29: ='CEM Data Lookup'!K19 -> A1 | F29: =IFERROR(VLOOKUP('6.4 CEM RPM Bond Ratings'!D29,'3.6 MOODY_S&P numbericl'!B:D,3,FALSE),"--") -> 5 | H29: ='CEM Data Lookup'!L19 -> A | J29: =IFERROR(VLOOKUP(H29,'3.6 MOODY_S&P numbericl'!F:H,3,FALSE),"--") -> 6
A30: =Input!C18 -> INGR | B30: =VLOOKUP($A30,'CEM Data Lookup'!$A:$Q,2,FALSE) -> Ingredion Inc. | D30: ='CEM Data Lookup'!K20 -> Baa1 | F30: =IFERROR(VLOOKUP('6.4 CEM RPM Bond Ratings'!D30,'3.6 MOODY_S&P numbericl'!B:D,3,FALSE),"--") -> 8 | H30: ='CEM Data Lookup'!L20 -> BBB | J30: =IFERROR(VLOOKUP(H30,'3.6 MOODY_S&P numbericl'!F:H,3,FALSE),"--") -> 9
A31: =Input!C19 -> JBHT | B31: =VLOOKUP($A31,'CEM Data Lookup'!$A:$Q,2,FALSE) -> Hunt (J.B.) | D31: ='CEM Data Lookup'!K21 -> Baa1 | F31: =IFERROR(VLOOKUP('6.4 CEM RPM Bond Ratings'!D31,'3.6 MOODY_S&P numbericl'!B:D,3,FALSE),"--") -> 8 | H31: ='CEM Data Lookup'!L21 -> BBB+ | J31: =IFERROR(VLOOKUP(H31,'3.6 MOODY_S&P numbericl'!F:H,3,FALSE),"--") -> 8
A32: =Input!C20 -> JJSF | B32: =VLOOKUP($A32,'CEM Data Lookup'!$A:$Q,2,FALSE) -> J&J Snack Foods | D32: ='CEM Data Lookup'!K22 -> NA | F32: =IFERROR(VLOOKUP('6.4 CEM RPM Bond Ratings'!D32,'3.6 MOODY_S&P numbericl'!B:D,3,FALSE),"--") -> -- | H32: ='CEM Data Lookup'!L22 -> NA | J32: =IFERROR(VLOOKUP(H32,'3.6 MOODY_S&P numbericl'!F:H,3,FALSE),"--") -> --
A33: =Input!C21 -> JKHY | B33: =VLOOKUP($A33,'CEM Data Lookup'!$A:$Q,2,FALSE) -> Henry (Jack) & Assoc | D33: ='CEM Data Lookup'!K23 -> NA | F33: =IFERROR(VLOOKUP('6.4 CEM RPM Bond Ratings'!D33,'3.6 MOODY_S&P numbericl'!B:D,3,FALSE),"--") -> -- | H33: ='CEM Data Lookup'!L23 -> NA | J33: =IFERROR(VLOOKUP(H33,'3.6 MOODY_S&P numbericl'!F:H,3,FALSE),"--") -> --
A34: =Input!C22 -> MANT | B34: =VLOOKUP($A34,'CEM Data Lookup'!$A:$Q,2,FALSE) -> ManTech Int'l 'A' | D34: ='CEM Data Lookup'!K24 -> WR | F34: =IFERROR(VLOOKUP('6.4 CEM RPM Bond Ratings'!D34,'3.6 MOODY_S&P numbericl'!B:D,3,FALSE),"--") -> -- | H34: ='CEM Data Lookup'!L24 -> BB+ | J34: =IFERROR(VLOOKUP(H34,'3.6 MOODY_S&P numbericl'!F:H,3,FALSE),"--") -> 11
A35: =Input!C23 -> MKC | B35: =VLOOKUP($A35,'CEM Data Lookup'!$A:$Q,2,FALSE) -> McCormick & Co. | D35: ='CEM Data Lookup'!K25 -> Baa2 | F35: =IFERROR(VLOOKUP('6.4 CEM RPM Bond Ratings'!D35,'3.6 MOODY_S&P numbericl'!B:D,3,FALSE),"--") -> 9 | H35: ='CEM Data Lookup'!L25 -> BBB | J35: =IFERROR(VLOOKUP(H35,'3.6 MOODY_S&P numbericl'!F:H,3,FALSE),"--") -> 9
A36: =Input!C24 -> MNST | B36: =VLOOKUP($A36,'CEM Data Lookup'!$A:$Q,2,FALSE) -> Monster Beverage | D36: ='CEM Data Lookup'!K26 -> NA | F36: =IFERROR(VLOOKUP('6.4 CEM RPM Bond Ratings'!D36,'3.6 MOODY_S&P numbericl'!B:D,3,FALSE),"--") -> -- | H36: ='CEM Data Lookup'!L26 -> NA | J36: =IFERROR(VLOOKUP(H36,'3.6 MOODY_S&P numbericl'!F:H,3,FALSE),"--") -> --
A37: =Input!C25 -> MO | B37: =VLOOKUP($A37,'CEM Data Lookup'!$A:$Q,2,FALSE) -> Altria Group | D37: ='CEM Data Lookup'!K27 -> A3 | F37: =IFERROR(VLOOKUP('6.4 CEM RPM Bond Ratings'!D37,'3.6 MOODY_S&P numbericl'!B:D,3,FALSE),"--") -> 7 | H37: ='CEM Data Lookup'!L27 -> BBB | J37: =IFERROR(VLOOKUP(H37,'3.6 MOODY_S&P numbericl'!F:H,3,FALSE),"--") -> 9
A38: =Input!C26 -> MSCI | B38: =VLOOKUP($A38,'CEM Data Lookup'!$A:$Q,2,FALSE) -> MSCI Inc. | D38: ='CEM Data Lookup'!K28 -> Ba1 | F38: =IFERROR(VLOOKUP('6.4 CEM RPM Bond Ratings'!D38,'3.6 MOODY_S&P numbericl'!B:D,3,FALSE),"--") -> 11 | H38: ='CEM Data Lookup'!L28 -> BB+ | J38: =IFERROR(VLOOKUP(H38,'3.6 MOODY_S&P numbericl'!F:H,3,FALSE),"--") -> 11
A39: =Input!C27 -> MSI | B39: =VLOOKUP($A39,'CEM Data Lookup'!$A:$Q,2,FALSE) -> Motorola Solutions | D39: ='CEM Data Lookup'!K29 -> Baa3 | F39: =IFERROR(VLOOKUP('6.4 CEM RPM Bond Ratings'!D39,'3.6 MOODY_S&P numbericl'!B:D,3,FALSE),"--") -> 10 | H39: ='CEM Data Lookup'!L29 -> BBB- | J39: =IFERROR(VLOOKUP(H39,'3.6 MOODY_S&P numbericl'!F:H,3,FALSE),"--") -> 10
A40: =Input!C28 -> NOC | B40: =VLOOKUP($A40,'CEM Data Lookup'!$A:$Q,2,FALSE) -> Northrop Grumman | D40: ='CEM Data Lookup'!K30 -> Baa1 | F40: =IFERROR(VLOOKUP('6.4 CEM RPM Bond Ratings'!D40,'3.6 MOODY_S&P numbericl'!B:D,3,FALSE),"--") -> 8 | H40: ='CEM Data Lookup'!L30 -> BBB+ | J40: =IFERROR(VLOOKUP(H40,'3.6 MOODY_S&P numbericl'!F:H,3,FALSE),"--") -> 8
A41: =Input!C29 -> ODFL | B41: =VLOOKUP($A41,'CEM Data Lookup'!$A:$Q,2,FALSE) -> Old Dominion Freight | D41: ='CEM Data Lookup'!K31 -> NA | F41: =IFERROR(VLOOKUP('6.4 CEM RPM Bond Ratings'!D41,'3.6 MOODY_S&P numbericl'!B:D,3,FALSE),"--") -> -- | H41: ='CEM Data Lookup'!L31 -> NA | J41: =IFERROR(VLOOKUP(H41,'3.6 MOODY_S&P numbericl'!F:H,3,FALSE),"--") -> --
A42: =Input!C30 -> PKI | B42: =VLOOKUP($A42,'CEM Data Lookup'!$A:$Q,2,FALSE) -> PerkinElmer Inc. | D42: ='CEM Data Lookup'!K32 -> Baa3 | F42: =IFERROR(VLOOKUP('6.4 CEM RPM Bond Ratings'!D42,'3.6 MOODY_S&P numbericl'!B:D,3,FALSE),"--") -> 10 | H42: ='CEM Data Lookup'!L32 -> BBB | J42: =IFERROR(VLOOKUP(H42,'3.6 MOODY_S&P numbericl'!F:H,3,FALSE),"--") -> 9
A43: =Input!C31 -> POST | B43: =VLOOKUP($A43,'CEM Data Lookup'!$A:$Q,2,FALSE) -> Post Holdings | D43: ='CEM Data Lookup'!K33 -> B2 | F43: =IFERROR(VLOOKUP('6.4 CEM RPM Bond Ratings'!D43,'3.6 MOODY_S&P numbericl'!B:D,3,FALSE),"--") -> 15 | H43: ='CEM Data Lookup'!L33 -> B+ | J43: =IFERROR(VLOOKUP(H43,'3.6 MOODY_S&P numbericl'!F:H,3,FALSE),"--") -> 14
A44: =Input!C32 -> RLI | B44: =VLOOKUP($A44,'CEM Data Lookup'!$A:$Q,2,FALSE) -> RLI Corp. | D44: ='CEM Data Lookup'!K34 -> Baa2 | F44: =IFERROR(VLOOKUP('6.4 CEM RPM Bond Ratings'!D44,'3.6 MOODY_S&P numbericl'!B:D,3,FALSE),"--") -> 9 | H44: ='CEM Data Lookup'!L34 -> BBB | J44: =IFERROR(VLOOKUP(H44,'3.6 MOODY_S&P numbericl'!F:H,3,FALSE),"--") -> 9
A45: =Input!C33 -> ROL | B45: =VLOOKUP($A45,'CEM Data Lookup'!$A:$Q,2,FALSE) -> Rollins, Inc. | D45: ='CEM Data Lookup'!K35 -> NA | F45: =IFERROR(VLOOKUP('6.4 CEM RPM Bond Ratings'!D45,'3.6 MOODY_S&P numbericl'!B:D,3,FALSE),"--") -> -- | H45: ='CEM Data Lookup'!L35 -> NA | J45: =IFERROR(VLOOKUP(H45,'3.6 MOODY_S&P numbericl'!F:H,3,FALSE),"--") -> --
A46: =Input!C34 -> SHW | B46: =VLOOKUP($A46,'CEM Data Lookup'!$A:$Q,2,FALSE) -> Sherwin-Williams | D46: ='CEM Data Lookup'!K36 -> Baa2 | F46: =IFERROR(VLOOKUP('6.4 CEM RPM Bond Ratings'!D46,'3.6 MOODY_S&P numbericl'!B:D,3,FALSE),"--") -> 9 | H46: ='CEM Data Lookup'!L36 -> BBB | J46: =IFERROR(VLOOKUP(H46,'3.6 MOODY_S&P numbericl'!F:H,3,FALSE),"--") -> 9
A47: =Input!C35 -> SIGI | B47: =VLOOKUP($A47,'CEM Data Lookup'!$A:$Q,2,FALSE) -> Selective Ins. Group | D47: ='CEM Data Lookup'!K37 -> Baa2 | F47: =IFERROR(VLOOKUP('6.4 CEM RPM Bond Ratings'!D47,'3.6 MOODY_S&P numbericl'!B:D,3,FALSE),"--") -> 9 | H47: ='CEM Data Lookup'!L37 -> BBB | J47: =IFERROR(VLOOKUP(H47,'3.6 MOODY_S&P numbericl'!F:H,3,FALSE),"--") -> 9
A48: =Input!C36 -> SIRI | B48: =VLOOKUP($A48,'CEM Data Lookup'!$A:$Q,2,FALSE) -> Sirius XM Holdings | D48: ='CEM Data Lookup'!K38 -> NA | F48: =IFERROR(VLOOKUP('6.4 CEM RPM Bond Ratings'!D48,'3.6 MOODY_S&P numbericl'!B:D,3,FALSE),"--") -> -- | H48: ='CEM Data Lookup'!L38 -> BB | J48: =IFERROR(VLOOKUP(H48,'3.6 MOODY_S&P numbericl'!F:H,3,FALSE),"--") -> 12
A49: =Input!C37 -> SNPS | B49: =VLOOKUP($A49,'CEM Data Lookup'!$A:$Q,2,FALSE) -> Synopsys, Inc. | D49: ='CEM Data Lookup'!K39 -> NA | F49: =IFERROR(VLOOKUP('6.4 CEM RPM Bond Ratings'!D49,'3.6 MOODY_S&P numbericl'!B:D,3,FALSE),"--") -> -- | H49: ='CEM Data Lookup'!L39 -> NA | J49: =IFERROR(VLOOKUP(H49,'3.6 MOODY_S&P numbericl'!F:H,3,FALSE),"--") -> --
A50: =Input!C38 -> TXN | B50: =VLOOKUP($A50,'CEM Data Lookup'!$A:$Q,2,FALSE) -> Texas Instruments | D50: ='CEM Data Lookup'!K40 -> A1 | F50: =IFERROR(VLOOKUP('6.4 CEM RPM Bond Ratings'!D50,'3.6 MOODY_S&P numbericl'!B:D,3,FALSE),"--") -> 5 | H50: ='CEM Data Lookup'!L40 -> A+ | J50: =IFERROR(VLOOKUP(H50,'3.6 MOODY_S&P numbericl'!F:H,3,FALSE),"--") -> 5
A51: =Input!C39 -> UHAL | B51: =VLOOKUP($A51,'CEM Data Lookup'!$A:$Q,2,FALSE) -> AMERCO | D51: ='CEM Data Lookup'!K41 -> WR | F51: =IFERROR(VLOOKUP('6.4 CEM RPM Bond Ratings'!D51,'3.6 MOODY_S&P numbericl'!B:D,3,FALSE),"--") -> -- | H51: ='CEM Data Lookup'!L41 -> NR | J51: =IFERROR(VLOOKUP(H51,'3.6 MOODY_S&P numbericl'!F:H,3,FALSE),"--") -> --
A52: =Input!C40 -> UPS | B52: =VLOOKUP($A52,'CEM Data Lookup'!$A:$Q,2,FALSE) -> United Parcel Serv. | D52: ='CEM Data Lookup'!K42 -> A2 | F52: =IFERROR(VLOOKUP('6.4 CEM RPM Bond Ratings'!D52,'3.6 MOODY_S&P numbericl'!B:D,3,FALSE),"--") -> 6 | H52: ='CEM Data Lookup'!L42 -> A- | J52: =IFERROR(VLOOKUP(H52,'3.6 MOODY_S&P numbericl'!F:H,3,FALSE),"--") -> 7
A53: =Input!C41 -> VRSN | B53: =VLOOKUP($A53,'CEM Data Lookup'!$A:$Q,2,FALSE) -> VeriSign Inc. | D53: ='CEM Data Lookup'!K43 -> Baa3 | F53: =IFERROR(VLOOKUP('6.4 CEM RPM Bond Ratings'!D53,'3.6 MOODY_S&P numbericl'!B:D,3,FALSE),"--") -> 10 | H53: ='CEM Data Lookup'!L43 -> BBB | J53: =IFERROR(VLOOKUP(H53,'3.6 MOODY_S&P numbericl'!F:H,3,FALSE),"--") -> 9
A54: =Input!C42 -> WAT | B54: =VLOOKUP($A54,'CEM Data Lookup'!$A:$Q,2,FALSE) -> Waters Corp. | D54: ='CEM Data Lookup'!K44 -> NA | F54: =IFERROR(VLOOKUP('6.4 CEM RPM Bond Ratings'!D54,'3.6 MOODY_S&P numbericl'!B:D,3,FALSE),"--") -> -- | H54: ='CEM Data Lookup'!L44 -> NA | J54: =IFERROR(VLOOKUP(H54,'3.6 MOODY_S&P numbericl'!F:H,3,FALSE),"--") -> --
A55: =Input!C43 -> WSO | B55: =VLOOKUP($A55,'CEM Data Lookup'!$A:$Q,2,FALSE) -> Watsco, Inc. | D55: ='CEM Data Lookup'!K45 -> NA | F55: =IFERROR(VLOOKUP('6.4 CEM RPM Bond Ratings'!D55,'3.6 MOODY_S&P numbericl'!B:D,3,FALSE),"--") -> -- | H55: ='CEM Data Lookup'!L45 -> NA | J55: =IFERROR(VLOOKUP(H55,'3.6 MOODY_S&P numbericl'!F:H,3,FALSE),"--") -> --
A56: =Input!C44 -> WU | B56: =VLOOKUP($A56,'CEM Data Lookup'!$A:$Q,2,FALSE) -> Western Union | D56: ='CEM Data Lookup'!K46 -> Baa2 | F56: =IFERROR(VLOOKUP('6.4 CEM RPM Bond Ratings'!D56,'3.6 MOODY_S&P numbericl'!B:D,3,FALSE),"--") -> 9 | H56: ='CEM Data Lookup'!L46 -> BBB | J56: =IFERROR(VLOOKUP(H56,'3.6 MOODY_S&P numbericl'!F:H,3,FALSE),"--") -> 9
B58: Average | D58: Baa1 | F58: =ROUND(AVERAGE(F13:F57),1) -> 8.4 | H58: BBB | J58: =ROUND(AVERAGE(J13:J57),1) -> 8.7
B60: Notes:
B61: (1) | C61: From page 6 of Schedule DWD-3.
B63: Source of Information:
B64: Bloomberg Professional Services

Sheet 6.5 CEM Beta Adjusted RP
A1: =Input!G28 -> Duke Energy Kentucky, Inc.
A2: Derivation of Equity Risk Premium Based on the Total Market Approach
A3: Using the Beta for
A4: ='6.4 CEM RPM Bond Ratings'!B3 -> Proxy Group of Forty-Three Non-Price Regulated Companies of Comparable risk to the
A5: ='6.4 CEM RPM Bond Ratings'!B4 -> Proxy Group of Thirteen Combination Electric and Gas Utilities
A7: Line No. | C7: Equity Risk Premium Measure | F7: ='6.4 CEM RPM Bond Ratings'!B12 -> Proxy Group of Forty-Three Non-Price Regulated Companies
B10: Ibbotson-Based Equity Risk Premiums:
A12: 1. | C12: Ibbotson Equity Risk Premium (1) | F12: ='3.8-3.9 Beta Adjusted ERP'!F11 -> 5.92 | G12: %
A14: 2. | C14: Regression on Ibbotson Risk Premium Data (2) | F14: ='MRP ERP WP'!$AK$42*100 -> 8.870009432
A16: 3. | C16: Ibbotson Equity Risk Premium based on PRPM (3) | F16: ='PRPM WP1'!Q1165*100 -> 7.8772628
A18: 4. | C18: Equity Risk Premium Based on Value Line Summary and Index (4) | F18: ='MRP WP1'!$M$22*100-'MRP WP1'!$M$37 -> 5.54
A20: 5 | C20: Equity Risk Premium Based on Value Line S&P 500 Companies (5) | F20: ='3.8-3.9 Beta Adjusted ERP'!F19 -> 11.64366987
A22: 6. | C22: Equity Risk Premium Based on Bloomberg S&P 500 Companies (6) | F22: ='3.8-3.9 Beta Adjusted ERP'!F21 -> 14.76498602
A24: 7. | C24: Conclusion of Equity Risk Premium | F24: =ROUND(AVERAGE(F12,F14,F16,F18,F20,F22),2) -> 9.1 | G24: %
A26: 8. | C26: Adjusted Beta (7) | F26: ='6.6 CEM CAPM Backup'!H57 -> 0.91
A28: 9. | C28: Forecasted Equity Risk Premium | F28: =ROUND(F24*F26,2) -> 8.28 | G28: %
A30: Notes:
B31: (1) | C31: From note 1 of page 9 of Schedule DWD-3.
B32: (2) | C32: From note 2 of page 9 of Schedule DWD-3.
B33: (3) | C33: From note 3 of page 9 of Schedule DWD-3.
B34: (4) | C34: From note 4 of page 9 of Schedule DWD-3.
B35: (5) | C35: From note 5 of page 9 of Schedule DWD-3.
B36: (6) | C36: From note 6 of page 9 of Schedule DWD-3.
B37: (7) | C37: Average of mean and median beta from page 6 of this Schedule.
B39: Sources of Information:
C40: ='4.2 CAPM Notes'!B60 -> Stocks, Bonds, Bills, and Inflation - 2021 SBBI Yearbook, John Wiley & Sons, Inc.
C41: Value Line Summary and Index
C42: ='4.2 CAPM Notes'!B59 -> Blue Chip Financial Forecasts, September 1, 2021 and June 1, 2021
C43: Bloomberg Professional Services

Sheet 6.6 CEM CAPM Backup
B1: =Input!G28 -> Duke Energy Kentucky, Inc.
B2: Traditional CAPM and ECAPM Results for the Proxy Group of Non-Price-Regulated Companies Comparable in Total Risk to the
B3: ='6.5 CEM Beta Adjusted RP'!A5 -> Proxy Group of Thirteen Combination Electric and Gas Utilities
D5: [1] | F5: [2] | H5: [3] | J5: [4] | M5: [5] | P5: [6] | S5: [7] | V5: [8]
B7: ='6.5 CEM Beta Adjusted RP'!F7 -> Proxy Group of Forty-Three Non-Price Regulated Companies | D7: Value Line Adjusted Beta | F7: Bloomberg Beta | H7: Average Beta | J7: Market Risk Premium (1) | M7: Risk-Free Rate (2) | P7: Traditional CAPM Cost Rate | S7: ECAPM Cost Rate | V7: Indicated Common Equity Cost Rate (3)
A9: =Input!C2 -> ABT | B9: =VLOOKUP($A9,'CEM Data Lookup'!$A:$Q,2,FALSE) -> Abbott Labs. | D9: ='MRP WP1'!E71 -> 0.9 | F9: =VLOOKUP($A9,'CEM Data Lookup'!$A:$Q,8,FALSE) -> 0.8410950303 | H9: =ROUND(AVERAGE(D9:F9),2) -> 0.87 | J9: ='MRP WP1'!H$64 -> 9.928548612 | K9: % | M9: ='MRP WP1'!F$37 -> 2.7 | N9: % | P9: =H9*(J9)+M9 -> 11.33783729 | Q9: % | S9: =ROUND(0.75*(H9*J9)+(0.25*J9)+M9,4) -> 11.6605 | T9: % | V9: =ROUND(AVERAGE(P9,S9),2) -> 11.5 | W9: %
A10: =Input!C3 -> ADI | B10: =VLOOKUP($A10,'CEM Data Lookup'!$A:$Q,2,FALSE) -> Analog Devices | D10: ='MRP WP1'!E72 -> 0.95 | F10: =VLOOKUP($A10,'CEM Data Lookup'!$A:$Q,8,FALSE) -> 1.018524528 | H10: =ROUND(AVERAGE(D10:F10),2) -> 0.98 | J10: ='MRP WP1'!H$64 -> 9.928548612 | M10: ='MRP WP1'!F$37 -> 2.7 | P10: =H10*(J10)+M10 -> 12.42997764 | S10: =ROUND(0.75*(H10*J10)+(0.25*J10)+M10,4) -> 12.4796 | V10: =ROUND(AVERAGE(P10,S10),2) -> 12.45
A11: =Input!C4 -> AIZ | B11: =VLOOKUP($A11,'CEM Data Lookup'!$A:$Q,2,FALSE) -> Assurant Inc. | D11: ='MRP WP1'!E73 -> 0.9 | F11: =VLOOKUP($A11,'CEM Data Lookup'!$A:$Q,8,FALSE) -> 1.009007573 | H11: 0.95 | J11: ='MRP WP1'!H$64 -> 9.928548612 | M11: ='MRP WP1'!F$37 -> 2.7 | P11: 12.13212118 | S11: 12.2562 | V11: 12.19
A12: =Input!C5 -> AOS | B12: =VLOOKUP($A12,'CEM Data Lookup'!$A:$Q,2,FALSE) -> Smith (A.O.) | D12: ='MRP WP1'!E74 -> 0.85 | F12: =VLOOKUP($A12,'CEM Data Lookup'!$A:$Q,8,FALSE) -> 1.00094986 | H12: 0.93 | J12: ='MRP WP1'!H$64 -> 9.928548612 | M12: ='MRP WP1'!F$37 -> 2.7 | P12: 11.93355021 | S12: 12.1073 | V12: 12.02
A13: =Input!C6 -> BDX | B13: =VLOOKUP($A13,'CEM Data Lookup'!$A:$Q,2,FALSE) -> Becton, Dickinson | D13: ='MRP WP1'!E75 -> 0.75 | F13: =VLOOKUP($A13,'CEM Data Lookup'!$A:$Q,8,FALSE) -> 0.567345202 | H13: 0.66 | J13: ='MRP WP1'!H$64 -> 9.928548612 | M13: ='MRP WP1'!F$37 -> 2.7 | P13: 9.252842084 | S13: 10.0968 | V13: 9.67
A14: =Input!C7 -> BFB | B14: =VLOOKUP($A14,'CEM Data Lookup'!$A:$Q,2,FALSE) -> Brown-Forman 'B' | D14: ='MRP WP1'!E76 -> 0.9 | F14: =VLOOKUP($A14,'CEM Data Lookup'!$A:$Q,8,FALSE) -> 0.9664310217 | H14: 0.93 | J14: ='MRP WP1'!H$64 -> 9.928548612 | M14: ='MRP WP1'!F$37 -> 2.7 | P14: 11.93355021 | S14: 12.1073 | V14: 12.02
A15: =Input!C8 -> BR | B15: =VLOOKUP($A15,'CEM Data Lookup'!$A:$Q,2,FALSE) -> Broadridge Fin'l | D15: ='MRP WP1'!E77 -> 0.85 | F15: =VLOOKUP($A15,'CEM Data Lookup'!$A:$Q,8,FALSE) -> 0.8321838975 | H15: 0.84 | J15: ='MRP WP1'!H$64 -> 9.928548612 | M15: ='MRP WP1'!F$37 -> 2.7 | P15: 11.03998083 | S15: 11.4371 | V15: 11.24
A16: =Input!C9 -> CACI | B16: =VLOOKUP($A16,'CEM Data Lookup'!$A:$Q,2,FALSE) -> CACI Int'l | D16: ='MRP WP1'!E78 -> 0.95 | F16: =VLOOKUP($A16,'CEM Data Lookup'!$A:$Q,8,FALSE) -> 1.000490069 | H16: 0.98 | J16: ='MRP WP1'!H$64 -> 9.928548612 | M16: ='MRP WP1'!F$37 -> 2.7 | P16: 12.42997764 | S16: 12.4796 | V16: 12.45
A17: =Input!C10 -> CERN | B17: =VLOOKUP($A17,'CEM Data Lookup'!$A:$Q,2,FALSE) -> Cerner Corp. | D17: ='MRP WP1'!E79 -> 0.9 | F17: =VLOOKUP($A17,'CEM Data Lookup'!$A:$Q,8,FALSE) -> 0.8886209726 | H17: 0.89 | J17: ='MRP WP1'!H$64 -> 9.928548612 | M17: ='MRP WP1'!F$37 -> 2.7 | P17: 11.53640826 | S17: 11.8094 | V17: 11.67
A18: =Input!C11 -> CHE | B18: =VLOOKUP($A18,'CEM Data Lookup'!$A:$Q,2,FALSE) -> Chemed Corp. | D18: ='MRP WP1'!E80 -> 0.85 | F18: =VLOOKUP($A18,'CEM Data Lookup'!$A:$Q,8,FALSE) -> 0.9201996922 | H18: 0.89 | J18: ='MRP WP1'!H$64 -> 9.928548612 | M18: ='MRP WP1'!F$37 -> 2.7 | P18: 11.53640826 | S18: 11.8094 | V18: 11.67
A19: =Input!C12 -> COO | B19: =VLOOKUP($A19,'CEM Data Lookup'!$A:$Q,2,FALSE) -> Cooper Cos. | D19: ='MRP WP1'!E81 -> 0.95 | F19: =VLOOKUP($A19,'CEM Data Lookup'!$A:$Q,8,FALSE) -> 0.9429140091 | H19: 0.95 | J19: ='MRP WP1'!H$64 -> 9.928548612 | M19: ='MRP WP1'!F$37 -> 2.7 | P19: 12.13212118 | S19: 12.2562 | V19: 12.19
A20: =Input!C13 -> CSWI | B20: =VLOOKUP($A20,'CEM Data Lookup'!$A:$Q,2,FALSE) -> CSW Industrials | D20: ='MRP WP1'!E82 -> 0.9 | F20: =VLOOKUP($A20,'CEM Data Lookup'!$A:$Q,8,FALSE) -> 1.05188787 | H20: 0.98 | J20: ='MRP WP1'!H$64 -> 9.928548612 | M20: ='MRP WP1'!F$37 -> 2.7 | P20: 12.42997764 | S20: 12.4796 | V20: 12.45
A21: =Input!C14 -> DGX | B21: =VLOOKUP($A21,'CEM Data Lookup'!$A:$Q,2,FALSE) -> Quest Diagnostics | D21: ='MRP WP1'!E83 -> 0.8 | F21: =VLOOKUP($A21,'CEM Data Lookup'!$A:$Q,8,FALSE) -> 0.9653949142 | H21: 0.88 | J21: ='MRP WP1'!H$64 -> 9.928548612 | M21: ='MRP WP1'!F$37 -> 2.7 | P21: 11.43712278 | S21: 11.735 | V21: 11.59
A22: =Input!C15 -> EL | B22: =VLOOKUP($A22,'CEM Data Lookup'!$A:$Q,2,FALSE) -> Lauder (Estee) | D22: ='MRP WP1'!E84 -> 0.95 | F22: =VLOOKUP($A22,'CEM Data Lookup'!$A:$Q,8,FALSE) -> 1.008448243 | H22: 0.98 | J22: ='MRP WP1'!H$64 -> 9.928548612 | M22: ='MRP WP1'!F$37 -> 2.7 | P22: 12.42997764 | S22: 12.4796 | V22: 12.45
A23: =Input!C16 -> EXPO | B23: =VLOOKUP($A23,'CEM Data Lookup'!$A:$Q,2,FALSE) -> Exponent, Inc. | D23: ='MRP WP1'!E85 -> 0.9 | F23: =VLOOKUP($A23,'CEM Data Lookup'!$A:$Q,8,FALSE) -> 0.9618644118 | H23: 0.93 | J23: ='MRP WP1'!H$64 -> 9.928548612 | M23: ='MRP WP1'!F$37 -> 2.7 | P23: 11.93355021 | S23: 12.1073 | V23: 12.02
A24: =Input!C17 -> HSY | B24: =VLOOKUP($A24,'CEM Data Lookup'!$A:$Q,2,FALSE) -> Hershey Co. | D24: ='MRP WP1'!E86 -> 0.85 | F24: =VLOOKUP($A24,'CEM Data Lookup'!$A:$Q,8,FALSE) -> 0.8450450897 | H24: 0.85 | J24: ='MRP WP1'!H$64 -> 9.928548612 | M24: ='MRP WP1'!F$37 -> 2.7 | P24: 11.13926632 | S24: 11.5116 | V24: 11.33
A25: =Input!C18 -> INGR | B25: =VLOOKUP($A25,'CEM Data Lookup'!$A:$Q,2,FALSE) -> Ingredion Inc. | D25: ='MRP WP1'!E87 -> 0.9 | F25: =VLOOKUP($A25,'CEM Data Lookup'!$A:$Q,8,FALSE) -> 0.9282200933 | H25: 0.91 | J25: ='MRP WP1'!H$64 -> 9.928548612 | M25: ='MRP WP1'!F$37 -> 2.7 | P25: 11.73497924 | S25: 11.9584 | V25: 11.85
A26: =Input!C19 -> JBHT | B26: =VLOOKUP($A26,'CEM Data Lookup'!$A:$Q,2,FALSE) -> Hunt (J.B.) | D26: ='MRP WP1'!E88 -> 0.95 | F26: =VLOOKUP($A26,'CEM Data Lookup'!$A:$Q,8,FALSE) -> 0.9370615482 | H26: 0.94 | J26: ='MRP WP1'!H$64 -> 9.928548612 | M26: ='MRP WP1'!F$37 -> 2.7 | P26: 12.0328357 | S26: 12.1818 | V26: 12.11
A27: =Input!C20 -> JJSF | B27: =VLOOKUP($A27,'CEM Data Lookup'!$A:$Q,2,FALSE) -> J&J Snack Foods | D27: ='MRP WP1'!E89 -> 0.95 | F27: =VLOOKUP($A27,'CEM Data Lookup'!$A:$Q,8,FALSE) -> 0.8071634173 | H27: 0.88 | J27: ='MRP WP1'!H$64 -> 9.928548612 | M27: ='MRP WP1'!F$37 -> 2.7 | P27: 11.43712278 | S27: 11.735 | V27: 11.59
A28: =Input!C21 -> JKHY | B28: =VLOOKUP($A28,'CEM Data Lookup'!$A:$Q,2,FALSE) -> Henry (Jack) & Assoc | D28: ='MRP WP1'!E90 -> 0.85 | F28: =VLOOKUP($A28,'CEM Data Lookup'!$A:$Q,8,FALSE) -> 0.8818188906 | H28: 0.87 | J28: ='MRP WP1'!H$64 -> 9.928548612 | M28: ='MRP WP1'!F$37 -> 2.7 | P28: 11.33783729 | S28: 11.6605 | V28: 11.5
A29: =Input!C22 -> MANT | B29: =VLOOKUP($A29,'CEM Data Lookup'!$A:$Q,2,FALSE) -> ManTech Int'l 'A' | D29: ='MRP WP1'!E91 -> 0.85 | F29: =VLOOKUP($A29,'CEM Data Lookup'!$A:$Q,8,FALSE) -> 1.12703836 | H29: 0.99 | J29: ='MRP WP1'!H$64 -> 9.928548612 | M29: ='MRP WP1'!F$37 -> 2.7 | P29: 12.52926313 | S29: 12.5541 | V29: 12.54
A30: =Input!C23 -> MKC | B30: =VLOOKUP($A30,'CEM Data Lookup'!$A:$Q,2,FALSE) -> McCormick & Co. | D30: ='MRP WP1'!E92 -> 0.8 | F30: =VLOOKUP($A30,'CEM Data Lookup'!$A:$Q,8,FALSE) -> 0.6966209412 | H30: 0.75 | J30: ='MRP WP1'!H$64 -> 9.928548612 | M30: ='MRP WP1'!F$37 -> 2.7 | P30: 10.14641146 | S30: 10.7669 | V30: 10.46
A31: =Input!C24 -> MNST | B31: =VLOOKUP($A31,'CEM Data Lookup'!$A:$Q,2,FALSE) -> Monster Beverage | D31: ='MRP WP1'!E93 -> 0.85 | F31: =VLOOKUP($A31,'CEM Data Lookup'!$A:$Q,8,FALSE) -> 0.969692111 | H31: 0.91 | J31: ='MRP WP1'!H$64 -> 9.928548612 | M31: ='MRP WP1'!F$37 -> 2.7 | P31: 11.73497924 | S31: 11.9584 | V31: 11.85
A32: =Input!C25 -> MO | B32: =VLOOKUP($A32,'CEM Data Lookup'!$A:$Q,2,FALSE) -> Altria Group | D32: ='MRP WP1'!E94 -> 0.95 | F32: =VLOOKUP($A32,'CEM Data Lookup'!$A:$Q,8,FALSE) -> 0.9050288796 | H32: 0.93 | J32: ='MRP WP1'!H$64 -> 9.928548612 | M32: ='MRP WP1'!F$37 -> 2.7 | P32: 11.93355021 | S32: 12.1073 | V32: 12.02
A33: =Input!C26 -> MSCI | B33: =VLOOKUP($A33,'CEM Data Lookup'!$A:$Q,2,FALSE) -> MSCI Inc. | D33: ='MRP WP1'!E95 -> 0.95 | F33: =VLOOKUP($A33,'CEM Data Lookup'!$A:$Q,8,FALSE) -> 0.9251448512 | H33: 0.94 | J33: ='MRP WP1'!H$64 -> 9.928548612 | M33: ='MRP WP1'!F$37 -> 2.7 | P33: 12.0328357 | S33: 12.1818 | V33: 12.11
A34: =Input!C27 -> MSI | B34: =VLOOKUP($A34,'CEM Data Lookup'!$A:$Q,2,FALSE) -> Motorola Solutions | D34: ='MRP WP1'!E96 -> 0.9 | F34: =VLOOKUP($A34,'CEM Data Lookup'!$A:$Q,8,FALSE) -> 0.9618915915 | H34: 0.93 | J34: ='MRP WP1'!H$64 -> 9.928548612 | M34: ='MRP WP1'!F$37 -> 2.7 | P34: 11.93355021 | S34: 12.1073 | V34: 12.02
A35: =Input!C28 -> NOC | B35: =VLOOKUP($A35,'CEM Data Lookup'!$A:$Q,2,FALSE) -> Northrop Grumman | D35: ='MRP WP1'!E97 -> 0.85 | F35: =VLOOKUP($A35,'CEM Data Lookup'!$A:$Q,8,FALSE) -> 0.7880980372 | H35: 0.82 | J35: ='MRP WP1'!H$64 -> 9.928548612 | M35: ='MRP WP1'!F$37 -> 2.7 | P35: 10.84140986 | S35: 11.2882 | V35: 11.06
A36: =Input!C29 -> ODFL | B36: =VLOOKUP($A36,'CEM Data Lookup'!$A:$Q,2,FALSE) -> Old Dominion Freight | D36: ='MRP WP1'!E98 -> 0.9 | F36: =VLOOKUP($A36,'CEM Data Lookup'!$A:$Q,8,FALSE) -> 0.9841076732 | H36: 0.94 | J36: ='MRP WP1'!H$64 -> 9.928548612 | M36: ='MRP WP1'!F$37 -> 2.7 | P36: 12.0328357 | S36: 12.1818 | V36: 12.11
A37: =Input!C30 -> PKI | B37: =VLOOKUP($A37,'CEM Data Lookup'!$A:$Q,2,FALSE) -> PerkinElmer Inc. | D37: ='MRP WP1'!E99 -> 0.9 | F37: =VLOOKUP($A37,'CEM Data Lookup'!$A:$Q,8,FALSE) -> 0.7970013022 | H37: 0.85 | J37: ='MRP WP1'!H$64 -> 9.928548612 | M37: ='MRP WP1'!F$37 -> 2.7 | P37: 11.13926632 | S37: 11.5116 | V37: 11.33
A38: =Input!C31 -> POST | B38: =VLOOKUP($A38,'CEM Data Lookup'!$A:$Q,2,FALSE) -> Post Holdings | D38: ='MRP WP1'!E100 -> 0.95 | F38: =VLOOKUP($A38,'CEM Data Lookup'!$A:$Q,8,FALSE) -> 0.8971431255 | H38: 0.92 | J38: ='MRP WP1'!H$64 -> 9.928548612 | M38: ='MRP WP1'!F$37 -> 2.7 | P38: 11.83426472 | S38: 12.0328 | V38: 11.93
A39: =Input!C32 -> RLI | B39: =VLOOKUP($A39,'CEM Data Lookup'!$A:$Q,2,FALSE) -> RLI Corp. | D39: ='MRP WP1'!E101 -> 0.8 | F39: =VLOOKUP($A39,'CEM Data Lookup'!$A:$Q,8,FALSE) -> 0.907401979 | H39: 0.85 | J39: ='MRP WP1'!H$64 -> 9.928548612 | M39: ='MRP WP1'!F$37 -> 2.7 | P39: 11.13926632 | S39: 11.5116 | V39: 11.33
A40: =Input!C33 -> ROL | B40: =VLOOKUP($A40,'CEM Data Lookup'!$A:$Q,2,FALSE) -> Rollins, Inc. | D40: ='MRP WP1'!E102 -> 0.85 | F40: =VLOOKUP($A40,'CEM Data Lookup'!$A:$Q,8,FALSE) -> 0.6859084368 | H40: 0.77 | J40: ='MRP WP1'!H$64 -> 9.928548612 | M40: ='MRP WP1'!F$37 -> 2.7 | P40: 10.34498243 | S40: 10.9159 | V40: 10.63
A41: =Input!C34 -> SHW | B41: =VLOOKUP($A41,'CEM Data Lookup'!$A:$Q,2,FALSE) -> Sherwin-Williams | D41: ='MRP WP1'!E103 -> 0.95 | F41: =VLOOKUP($A41,'CEM Data Lookup'!$A:$Q,8,FALSE) -> 0.9921346903 | H41: 0.97 | J41: ='MRP WP1'!H$64 -> 9.928548612 | M41: ='MRP WP1'!F$37 -> 2.7 | P41: 12.33069215 | S41: 12.4052 | V41: 12.37
A42: =Input!C35 -> SIGI | B42: =VLOOKUP($A42,'CEM Data Lookup'!$A:$Q,2,FALSE) -> Selective Ins. Group | D42: ='MRP WP1'!E104 -> 0.9 | F42: =VLOOKUP($A42,'CEM Data Lookup'!$A:$Q,8,FALSE) -> 0.9898458123 | H42: 0.94 | J42: ='MRP WP1'!H$64 -> 9.928548612 | M42: ='MRP WP1'!F$37 -> 2.7 | P42: 12.0328357 | S42: 12.1818 | V42: 12.11
A43: =Input!C36 -> SIRI | B43: =VLOOKUP($A43,'CEM Data Lookup'!$A:$Q,2,FALSE) -> Sirius XM Holdings | D43: ='MRP WP1'!E105 -> 0.95 | F43: =VLOOKUP($A43,'CEM Data Lookup'!$A:$Q,8,FALSE) -> 1.124804974 | H43: 1.04 | J43: ='MRP WP1'!H$64 -> 9.928548612 | M43: ='MRP WP1'!F$37 -> 2.7 | P43: 13.02569056 | S43: 12.9264 | V43: 12.98
A44: =Input!C37 -> SNPS | B44: =VLOOKUP($A44,'CEM Data Lookup'!$A:$Q,2,FALSE) -> Synopsys, Inc. | D44: ='MRP WP1'!E106 -> 0.95 | F44: =VLOOKUP($A44,'CEM Data Lookup'!$A:$Q,8,FALSE) -> 1.016545415 | H44: 0.98 | J44: ='MRP WP1'!H$64 -> 9.928548612 | M44: ='MRP WP1'!F$37 -> 2.7 | P44: 12.42997764 | S44: 12.4796 | V44: 12.45
A45: =Input!C38 -> TXN | B45: =VLOOKUP($A45,'CEM Data Lookup'!$A:$Q,2,FALSE) -> Texas Instruments | D45: ='MRP WP1'!E107 -> 0.85 | F45: =VLOOKUP($A45,'CEM Data Lookup'!$A:$Q,8,FALSE) -> 0.8931639194 | H45: 0.87 | J45: ='MRP WP1'!H$64 -> 9.928548612 | M45: ='MRP WP1'!F$37 -> 2.7 | P45: 11.33783729 | S45: 11.6605 | V45: 11.5
A46: =Input!C39 -> UHAL | B46: =VLOOKUP($A46,'CEM Data Lookup'!$A:$Q,2,FALSE) -> AMERCO | D46: ='MRP WP1'!E108 -> 0.95 | F46: =VLOOKUP($A46,'CEM Data Lookup'!$A:$Q,8,FALSE) -> 1.076723456 | H46: 1.01 | J46: ='MRP WP1'!H$64 -> 9.928548612 | M46: ='MRP WP1'!F$37 -> 2.7 | P46: 12.7278341 | S46: 12.703 | V46: =ROUND(AVERAGE(P46,S46),2) -> 12.72
A47: =Input!C40 -> UPS | B47: =VLOOKUP($A47,'CEM Data Lookup'!$A:$Q,2,FALSE) -> United Parcel Serv. | D47: ='MRP WP1'!E109 -> 0.8 | F47: =VLOOKUP($A47,'CEM Data Lookup'!$A:$Q,8,FALSE) -> 0.8297113776 | H47: 0.81 | J47: ='MRP WP1'!H$64 -> 9.928548612 | M47: ='MRP WP1'!F$37 -> 2.7 | P47: 10.74212438 | S47: 11.2137 | V47: 10.98
A48: =Input!C41 -> VRSN | B48: =VLOOKUP($A48,'CEM Data Lookup'!$A:$Q,2,FALSE) -> VeriSign Inc. | D48: ='MRP WP1'!E110 -> 0.9 | F48: =VLOOKUP($A48,'CEM Data Lookup'!$A:$Q,8,FALSE) -> 0.7701163888 | H48: 0.84 | J48: ='MRP WP1'!H$64 -> 9.928548612 | M48: ='MRP WP1'!F$37 -> 2.7 | P48: 11.03998083 | S48: 11.4371 | V48: 11.24
A49: =Input!C42 -> WAT | B49: =VLOOKUP($A49,'CEM Data Lookup'!$A:$Q,2,FALSE) -> Waters Corp. | D49: ='MRP WP1'!E111 -> 0.95 | F49: =VLOOKUP($A49,'CEM Data Lookup'!$A:$Q,8,FALSE) -> 0.8468253613 | H49: 0.9 | J49: ='MRP WP1'!H$64 -> 9.928548612 | M49: ='MRP WP1'!F$37 -> 2.7 | P49: 11.63569375 | S49: 11.8839 | V49: 11.76
A50: =Input!C43 -> WSO | B50: =VLOOKUP($A50,'CEM Data Lookup'!$A:$Q,2,FALSE) -> Watsco, Inc. | D50: ='MRP WP1'!E112 -> 0.85 | F50: =VLOOKUP($A50,'CEM Data Lookup'!$A:$Q,8,FALSE) -> 0.8023084998 | H50: 0.83 | J50: ='MRP WP1'!H$64 -> 9.928548612 | M50: ='MRP WP1'!F$37 -> 2.7 | P50: 10.94069535 | S50: 11.3627 | V50: 11.15
A51: =Input!C44 -> WU | B51: =VLOOKUP($A51,'CEM Data Lookup'!$A:$Q,2,FALSE) -> Western Union | D51: ='MRP WP1'!E113 -> 0.8 | F51: =VLOOKUP($A51,'CEM Data Lookup'!$A:$Q,8,FALSE) -> 1.068183184 | H51: 0.93 | J51: ='MRP WP1'!H$64 -> 9.928548612 | M51: ='MRP WP1'!F$37 -> 2.7 | P51: =H51*(J51)+M51 -> 11.93355021 | S51: 12.1073 | V51: =ROUND(AVERAGE(P51,S51),2) -> 12.02
F53: Mean | H53: =ROUND(AVERAGE(H9:H51),2) -> 0.9 | P53: =ROUND(AVERAGE(P9:P51),2) -> 11.66 | Q53: % | S53: =ROUND(AVERAGE(S9:S51),2) -> 11.9 | T53: % | V53: =ROUND(AVERAGE(V9:V51),2) -> 11.78 | W53: %
F55: Median | H55: =ROUND(MEDIAN(H9:H51),2) -> 0.92 | P55: =ROUND(MEDIAN(P9:P51),2) -> 11.83 | Q55: % | S55: =ROUND(MEDIAN(S9:S51),2) -> 12.03 | T55: % | V55: =ROUND(MEDIAN(V9:V51),2) -> 11.93 | W55: %
F57: Average of Mean and Median | H57: =ROUND(AVERAGE(H53:H55),2) -> 0.91 | P57: =ROUND(AVERAGE(P53:P55),2) -> 11.75 | Q57: % | S57: =ROUND(AVERAGE(S53:S55),2) -> 11.97 | T57: % | V57: =ROUND(AVERAGE(V53:V55),2) -> 11.86 | W57: %
C59: Notes:
C60: (1) | D60: From note 1 of page 2 of Schedule DWD-4.
C61: (2) | D61: From note 2 of page 2 of Schedule DWD-4.
C62: (3) | D62: Average of CAPM and ECAPM cost rates.

Sheet 7.1 Risk Adjustment
C1: =Input!G28 -> Duke Energy Kentucky, Inc.
C2: Derivation of Investment Risk Adjustment Based upon
C3: Ibbotson Associates' Size Premia for the Decile Portfolios of the NYSE/AMEX/NASDAQ
E6: [1] | I6: [2] | K6: [3] | M6: [4]
M7: Spread from Applicable Size Premium (4)
E8: Market Capitalization on August 31, 2021 (1) | I8: Applicable Decile of the NYSE/AMEX/ NASDAQ (2)
K9: Applicable Size Premium (3)
A11: Line No.
E12: ( millions ) | G12: (times larger)
A14: 1. | C14: ='7.2 Market Cap'!B11 -> Duke Energy Kentucky, Inc. | E14: ='7.2 Market Cap'!L13 -> 1564.533479 | I14: 7 | K14: =M29 -> 0.0154
A16: 2. | C16: =Input!I31 -> Proxy Group of Thirteen Combination Electric and Gas Utilities | E16: ='7.2 Market Cap'!L30 -> 26662.656 | G16: =ROUND(E16/E14,1) -> 17 | H16: x | I16: 2 | K16: =M24 -> 0.0049 | M16: =K14-K16 -> 0.0105
G18: [A] | I18: [B] | K18: [C] | M18: [D]
G20: Decile | I20: Market Capitalization of Smallest Company | K20: Market Capitalization of Largest Company | M20: Size Premium (Return in Excess of CAPM)*
I21: ( millions ) | K21: ( millions )
E23: Largest | G23: 1 | I23: 29025.803 | K23: 1966078.882 | M23: -0.0022
G24: 2 | I24: 13178.743 | K24: 28808.073 | M24: 0.0049
G25: 3 | I25: 6743.361 | K25: 13177.828 | M25: 0.0071
G26: 4 | I26: 3861.858 | K26: 6710.676 | M26: 0.0075
G27: 5 | I27: 2445.693 | K27: 3836.536 | M27: 0.0109
G28: 6 | I28: 1591.865 | K28: 2444.745 | M28: 0.0137
G29: 7 | I29: 911.586 | K29: 1591.765 | M29: 0.0154
G30: 8 | I30: 451.955 | K30: 911.103 | M30: 0.0146
G31: 9 | I31: 190.019 | K31: 451.8 | M31: 0.0229
E32: Smallest | G32: 10 | I32: 2.194 | K32: 189.831 | M32: 0.0501
H33: *From 2021 Duff & Phelps Cost of Capital Navigator
C34: Notes:
D35: (1) | E35: From page 2 of this Schedule.
D36: (2) | E36: Gleaned from Columns [B] and [C] on the bottom of this page. The appropriate decile (Column [A]) corresponds to the market capitalization of the proxy group, which is found in Column [1].
D37: (3) | E37: Corresponding risk premium to the decile is provided in Column [D] on the bottom of this page.
D38: (4) | E38: =CONCATENATE("Line No. 1 Column [3] – Line No. 2 Column [3]. For example, the ",TEXT((M16*100),"#0.00"),"% in Column [4], Line No. 2 is derived as follows ",TEXT((M16*100),"#0.00"),"% = ",K14*100,"% - ",TEXT((K16*100),"#0.00"),"%.") -> Line No. 1 Column [3] – Line No. 2 Column [3]. For example, the 1.05% in Column [4], Line No. 2 is derived as follows 1.05% = 1.54% - 0.49%.

Sheet 7.2 Market Cap
B1: =Input!G28 -> Duke Energy Kentucky, Inc.
B2: =CONCATENATE("Market Capitalization of ",B1," and the") -> Market Capitalization of Duke Energy Kentucky, Inc. and the
B3: =Input!I31 -> Proxy Group of Thirteen Combination Electric and Gas Utilities
F6: [1] | H6: [2] | J6: [3] | L6: [4]
B8: Company | D8: Exchange | F8: =CONCATENATE("Total Common Equity at Fiscal Year End ",YEAR(Input!G49)) -> Total Common Equity at Fiscal Year End 2020 | H8: =CONCATENATE("Closing Stock Market Price on ",TEXT(Input!E2,"mmmm dd, yyyy")) -> Closing Stock Market Price on August 31, 2021 | J8: =CONCATENATE("Market-to-Book Ratio on ",TEXT(Input!E2,"mmmm dd, yyyy")," (1)") -> Market-to-Book Ratio on August 31, 2021 (1) | L8: =CONCATENATE("Market Capitalization on ",TEXT(Input!E2,"mmmm dd, yyyy")," (2)") -> Market Capitalization on August 31, 2021 (2)
F9: ( millions ) | L9: ( millions )
B11: =Input!G28 -> Duke Energy Kentucky, Inc. | F11: =(Input!G43)/1000000 -> 718.236 | G11: (3) | H11: NA
B13: =CONCATENATE("Based upon ",B15) -> Based upon Proxy Group of Thirteen Combination Electric and Gas Utilities | J13: =J30 -> 217.83 | K13: (4) | L13: =IFERROR(J13*F11/100,"NA") -> 1564.533479 | M13: (5)
B15: =Input!I31 -> Proxy Group of Thirteen Combination Electric and Gas Utilities
A16: =IFERROR(Input!A2,"NA") -> AEE | B16: ='Proxy Data Lookup'!B3 -> Ameren Corporation | D16: =Input!B2 -> NYSE | J16: 241.13 | K16: % | L16: 22404.5652
A17: =IFERROR(Input!A3,"NA") -> AVA | B17: ='Proxy Data Lookup'!B4 -> Avista Corporation | D17: =Input!B3 -> NYSE | J17: 140.85 | L17: 2915.5969
A18: =IFERROR(Input!A4,"NA") -> BKH | B18: ='Proxy Data Lookup'!B5 -> Black Hills Corporation | D18: =Input!B4 -> NYSE | J18: 167.9 | L18: 4464.5675
A19: =IFERROR(Input!A5,"NA") -> CMS | B19: ='Proxy Data Lookup'!B6 -> CMS Energy Corporation | D19: =Input!B5 -> NYSE | J19: 320.48 | L19: 18575.5255
A20: =IFERROR(Input!A6,"NA") -> DUK | B20: ='Proxy Data Lookup'!B7 -> Duke Energy Corporation | D20: =Input!B6 -> NYSE | J20: 174.32 | L20: 80483.5428
A21: =IFERROR(Input!A7,"NA") -> ED | B21: ='Proxy Data Lookup'!B8 -> Consolidated Edison, Inc. | D21: =Input!B7 -> NYSE | J21: 134.9 | L21: 26662.6563
A22: =IFERROR(Input!A8,"NA") -> ES | B22: ='Proxy Data Lookup'!B9 -> Eversource Energy | D22: =Input!B8 -> NYSE | J22: 217.83 | L22: 31178.7537
A23: =IFERROR(Input!A9,"NA") -> MGEE | B23: ='Proxy Data Lookup'!B10 -> MGE Energy, Inc. | D23: =Input!B9 -> NASDAQ | J23: 289.15 | L23: 2912.5979
A24: =IFERROR(Input!A10,"NA") -> NWE | B24: ='Proxy Data Lookup'!B11 -> NorthWestern Corporation | D24: =Input!B10 -> NASDAQ | J24: 150.61 | L24: 3279.294
A25: =IFERROR(Input!A11,"NA") -> PEG | B25: ='Proxy Data Lookup'!B12 -> Public Service Enterprise Group Incorporated | D25: =Input!B11 -> NYSE | J25: 202.96 | L25: 32326.5973
A26: =IFERROR(Input!A12,"NA") -> SO | B26: ='Proxy Data Lookup'!B13 -> Southern Company | D26: =Input!B12 -> NYSE | J26: 246.85 | L26: 69651.5403
A27: =IFERROR(Input!A13,"NA") -> WEC | B27: ='Proxy Data Lookup'!B14 -> WEC Energy Group, Inc. | D27: =Input!B13 -> NYSE | J27: 275.16 | L27: 29802.2555
A28: =IFERROR(Input!A14,"NA") -> XEL | B28: ='Proxy Data Lookup'!B15 -> Xcel Energy Inc. | D28: =Input!B14 -> NASDAQ | J28: 250.19 | L28: 37017.5198
B30: Median | J30: =ROUND(MEDIAN(J15:J29),3) -> 217.83 | K30: % | L30: =ROUND(MEDIAN(L15:L29),3) -> 26662.656
C32: NA= Not Available
D34: Notes: | E34: (1) | F34: Source: Bloomberg Professional Services
E35: (2) | F35: Source: Bloomberg Professional Services
E36: (3) | F36: Requested rate base multiplied by the requested common equity ratio.
E37: (4) | F37: =CONCATENATE("The market-to-book ratio of ",Input!G28," on ",TEXT(Input!E2,"mmmm dd, yyyy")," is assumed to be equal to the market-to-book ratio of ",B3," on ",TEXT(Input!E2,"mmmm dd, yyyy")," as appropriate.") -> The market-to-book ratio of Duke Energy Kentucky, Inc. on August 31, 2021 is assumed to be equal to the market-to-book ratio of Proxy Group of Thirteen Combination Electric and Gas Utilities on August 31, 2021 as appropriate.
E38: (5) | F38: Column [1] multiplied by Column [3].
B40: Source of Information: | C40: Bloomberg Professional
C41: yahoo.finance.com

Sheet 8.1 Equity Contributions
A1: =Input!G28 -> Duke Energy Kentucky, Inc.
A2: Derivation of the Flotation Cost Adjustment to the Cost of Common Equity
A5: Equity Issuances since 2010
E8: [Column 1] | G8: [Column 2] | I8: [Column 3] | K8: [Column 4] | M8: [Column 5] | O8: [Column 6] | Q8: [Column 7] | S8: [Column 8] | U8: [Column 9] | W8: [Column 10]
A10: Date of Offering | C10: Transaction (1) | E10: Shares Issued | G10: Market Price per Share | I10: Average Offering Price per Share | K10: Market Pressure (2) | M10: Total Offering Expense per Share | O10: Net Proceeds per Share (3) | Q10: Gross Equity Issue before Costs (4) | S10: Total Net Proceeds (5) | U10: Total Flotation Costs (6) | W10: Flotation Cost Percentage (7)
A12: 2019-11-18 | C12: Equity Offering | E12: 28750000 | G12: 88.65 | I12: 85.99 | K12: =G12-I12 -> 2.66 | M12: =592000/E12 -> 0.02059130435 | O12: =G12-M12-K12 -> 85.9694087 | Q12: =E12*G12 -> 2548687500 | S12: =O12*E12 -> 2471620500 | U12: =E12*(SUM(K12:M12)) -> 77067000 | W12: =(Q12-S12)/Q12 -> 0.03023791657
A13: 2018-03-06 | C13: Equity Offering | E13: 21275000 | G13: 75.86 | I13: 74.072 | K13: =G13-I13 -> 1.788 | M13: =450000/E13 -> 0.02115158637 | O13: =G13-M13-K13 -> 74.05084841 | Q13: =E13*G13 -> 1613921500 | S13: =O13*E13 -> 1575431800 | U13: =E13*(SUM(K13:M13)) -> 38489700 | W13: =(Q13-S13)/Q13 -> 0.02384855769
A14: 2016-03-01 | C14: Equity Offering | E14: 10637500 | G14: 73.35 | I14: 69.84 | K14: =G14-I14 -> 3.51 | M14: =400000/E14 -> 0.03760282021 | O14: =G14-M14-K14 -> 69.80239718 | Q14: =E14*G14 -> 780260625 | S14: =O14*E14 -> 742523000 | U14: =E14*(SUM(K14:M14)) -> 37737625 | W14: =(Q14-S14)/Q14 -> 0.04836540996
Q16: =SUM(Q12:Q14) -> 4942869625 | S16: =SUM(S12:S14) -> 4789575300 | U16: =SUM(U12:U14) -> 153294325 | W16: =(Q16-S16)/Q16 -> 0.03101322443
A22: Flotation Cost Adjustment
C26: Average Dividend Yield | E26: Average Projected EPS Growth Rate | G26: Adjusted Dividend Yield | I26: Average DCF Cost Rate Unadjusted for Flotation (8) | K26: DCF Cost Rate Adjusted for Flotation (9) | M26: Flotation Cost Adjustment (10)
A27: =Input!I31 -> Proxy Group of Thirteen Combination Electric and Gas Utilities | C27: =ROUND(AVERAGE('2.1 DCF Summary'!D9:D21),2) -> 3.26 | D27: % | E27: =ROUND(AVERAGE('2.1 DCF Summary'!S9:S21),2) -> 5.43 | F27: % | G27: =ROUND(C27*(1+(0.5*(E27/100))),2) -> 3.35 | H27: % | I27: =G27+E27 -> 8.78 | J27: % | K27: =(G27/(1-$W$16))+E27 -> 8.887219525 | L27: % | M27: =K27-I27 -> 0.107219525 | N27: %
A31: See page 2 of this Schedule for notes.
A33: Source of Information: Company SEC filings

Sheet Input
A1: Utility Proxy Group | B1: Proxy Company - Exchange | C1: CEM Proxy Group | E1: Growth Rate Input Date
A2: AEE | B2: NYSE | C2: ABT | E2: 2021-08-31
A3: AVA | B3: NYSE | C3: ADI
A4: BKH | B4: NYSE | C4: AIZ | E4: User Computer Title
A5: CMS | B5: NYSE | C5: AOS
A6: DUK | B6: NYSE | C6: BDX
A7: ED | B7: NYSE | C7: BFB | E7: Recommended Common Equity Cost Rate
A8: ES | B8: NYSE | C8: BR
A9: MGEE | B9: NASDAQ | C9: CACI
A10: NWE | B10: NASDAQ | C10: CERN | E10: DATA INPUTS
A11: PEG | B11: NYSE | C11: CHE
A12: SO | B12: NYSE | C12: COO | E12: Capital Structure | G12: Source:
A13: WEC | B13: NYSE | C13: CSWI | E13: Debt % | F13: 0.46721 | G13: Company
A14: XEL | B14: NASDAQ | C14: DGX | E14: Equity % | F14: 0.50695 | G14: Company
C15: EL | E15: Short-Term Debt % | F15: 0.02584 | G15: Company
C16: EXPO | E16: Debt Cost (%) | F16: 0.03843 | G16: Company
C17: HSY | E17: Short-Term Debt Cost (%) | F17: 0.01667 | G17: Company
C18: INGR
C19: JBHT
C20: JJSF | E20: SBBI (1926-2020) | G20: Notes:
C21: JKHY | E21: SBBI Common Stocks Total Return (%) | F21: 12.2 | G21: Update annually from Stocks, Bonds, Bills, and Inflation - Ibbotson® SBBI® Market Report
C22: MANT | E22: SBBI Long-Term Gov't Bonds Income (%) | F22: 5.05 | G22: Update annually from Stocks, Bonds, Bills, and Inflation - Ibbotson® SBBI® Market Report
C23: MKC
C24: MNST | E24: VL Appr Potential Week Ending: | G24: PRPM Date ("Month Year") | I24: Blue Chip Update Date ("Month Day, Year")
C25: MO | E25: 9/3/20201 | G25: August 2021 | I25: September 1, 2021 and June 1, 2021
C26: MSCI
C27: MSI | E27: S&P Utilties Index Companies | G27: Company Name | I27: Abbreviated
C28: NOC | E28: AEE | G28: Duke Energy Kentucky, Inc. | I28: DUK KY
C29: ODFL | E29: AEP
C30: PKI | E30: AES | G30: Regulatory Jurisdiction
C31: POST | E31: ATO | G31: Kentucky Public Service Commission | I31: Proxy Group of Thirteen Combination Electric and Gas Utilities
C32: RLI | E32: AWK | I32: Proxy Group of Forty-Three Non-Price Regulated Companies
C33: ROL | E33: CMS | G33: Industry ("Natural Gas", "Water", "Electric")
C34: SHW | E34: CNP | G34: Natural Gas
C35: SIGI | E35: D
C36: SIRI | E36: DTE | G36: Common Stock Shares Outstanding at Fiscal Year End
C37: SNPS | E37: DUK | G37: NA
C38: TXN | E38: ED
C39: UHAL | E39: EIX | G39: Book Value per Share at Fiscal Year End
C40: UPS | E40: ES | G40: NA
C41: VRSN | E41: ETR
C42: WAT | E42: EVRG | G42: Book Equity
C43: WSO | E43: EXC | G43: 718236000 | H43: Company Provided - Q4 2020 Financial Statement, at p. 8
C44: WU | E44: FE
E45: LNT | G45: Closing Stock Market Price
E46: NEE | G46: NA
E47: NI
E48: NRG | G48: Date of Annual Report Filing ("'Month Day, Year")
E49: PEG | G49: December 31, 2020
E50: PNW
E51: PPL | G51: Business Risk Adjustment
E52: SO | G52: NA
E53: SRE
E54: WEC
E55: XEL
A57: =COUNTA(A2:A24) -> 13 | C57: =COUNTA(C2:C53) -> 43

Sheet Market Data
A1: Bond Index - Date | B1: 2021-08-31 | C1: 2021-07-31 | D1: 2021-06-30
A2: MOODUA Index | B2: 2.95 | C2: 2.95 | D2: 3.16
A3: MOODUBAA Index | B3: 3.19 | C3: 3.2 | D3: 3.41
A4: MOODCAAA Index | B4: 2.55 | C4: 2.57 | D4: 2.79
A5: MOODCAA Index | B5: 2.73 | C5: 2.71 | D5: 2.91
A6: MOODCA Index | B6: 2.89 | C6: 2.89 | D6: 3.1
A7: MOODCBAA Index | B7: 3.24 | C7: 3.24 | D7: 3.45
A9: Historical Risk Premium Data
A10: Arithmetic Mean of Monthly Returns on Large Company Common Stocks (1928 - 2020) | B10: 0.1194
A11: Arithmetic Mean of Moody's Aaa and Aa Corporate Bond Yields (1928 - 2020) | B11: 0.0602
A12: Arithmetic Mean Holding Period Returns on the S&P Utility Index (1928 - 2020) | B12: 0.1065
A13: Arithmetic Mean on Moody's A Rated Public Utility Bond Yields (1928 - 2020) | B13: 0.0649

Sheet Proxy Data Lookup
C1: EPS Growth Rates | G1: Beta | J1: Annual Div. | K1: Value Line Beta Calculation | O1: Bond Ratings
A2: Ticker | B2: Company Name | C2: Zacks | D2: Yahoo | E2: Bloomberg | F2: Value Line | G2: Value Line | H2: Bloomberg | I2: Unadjusted | K2: R Factor | L2: Std. Error | M2: Std. Dev Y | N2: Std. Dev Beta | O2: S&P | P2: Moody's | R2: S&P | S2: Moody's | V2: S&P | W2: Moody's
A3: AEE | B3: Ameren Corporation | C3: 0.073 | D3: 0.077 | E3: 0.07595 | F3: 0.065 | G3: 0.8 | H3: 0.9519151449 | I3: 0.69 | J3: 2.2 | K3: 0.5477 | L3: 2.6359 | M3: 3.1443 | N3: 0.0658 | O3: BBB+ | P3: A3
A4: AVA | B4: Avista Corporation | C4: 0.051 | D4: 0.062 | E4: 0.05615 | F4: 0.03 | G4: 0.95 | H4: 0.986463666 | I4: 0.9 | J4: 1.69 | K4: 0.5117 | L4: 3.7652 | M4: 4.3737 | N4: 0.0939 | O4: NR | P4: Baa3 | R4: BBB+ | S4: A3 | T4: Ameren Illinois Company | U4: AEE | V4: =IFERROR(VLOOKUP(R4,'3.6 MOODY_S&P numbericl'!$F$6:$H$26,3,FALSE),"NR") -> 8 | W4: =IFERROR(VLOOKUP(S4,'3.6 MOODY_S&P numbericl'!$B$6:$D$26,3,FALSE),"NR") -> 7
A5: BKH | B5: Black Hills Corporation | C5: 0.051 | D5: 0.0467 | E5: 0.05585 | F5: 0.05 | G5: 1 | H5: 1.225513697 | I5: 0.95 | J5: 2.26 | K5: 0.6381 | L5: 2.8708 | M5: 3.7212 | N5: 0.0716 | O5: BBB+ | P5: A3 | R5: NR | S5: Baa2 | T5: Illinois Power Company | U5: AEE | V5: =IFERROR(VLOOKUP(R5,'3.6 MOODY_S&P numbericl'!$F$6:$H$26,3,FALSE),"NR") -> NR | W5: =IFERROR(VLOOKUP(S5,'3.6 MOODY_S&P numbericl'!$B$6:$D$26,3,FALSE),"NR") -> 9
A6: CMS | B6: CMS Energy Corporation | C6: 0.069 | D6: 0.0618 | E6: 0.0587 | F6: 0.075 | G6: 0.8 | H6: 0.9829005003 | I6: 0.64 | J6: 1.74 | K6: 0.4875 | L6: 2.8457 | M6: 3.2529 | N6: 0.071 | O6: A- | P6: Baa1 | R6: BBB+ | S6: Baa1 | T6: Union Electric Company | U6: AEE | V6: =IFERROR(VLOOKUP(R6,'3.6 MOODY_S&P numbericl'!$F$6:$H$26,3,FALSE),"NR") -> 8 | W6: =IFERROR(VLOOKUP(S6,'3.6 MOODY_S&P numbericl'!$B$6:$D$26,3,FALSE),"NR") -> 8
A7: DUK | B7: Duke Energy Corporation | C7: 0.053 | D7: 0.0545 | E7: 0.0416 | F7: 0.07 | G7: 0.85 | H7: 0.9814394116 | I7: 0.77 | J7: 3.94 | K7: 0.5701 | L7: 2.7562 | M7: 3.3483 | N7: 0.0688 | O7: BBB+ | P7: A3 | R7: NR | S7: A1 | T7: Central Illinois Light Co | U7: AEE | V7: =IFERROR(VLOOKUP(R7,'3.6 MOODY_S&P numbericl'!$F$6:$H$26,3,FALSE),"NR") -> NR | W7: =IFERROR(VLOOKUP(S7,'3.6 MOODY_S&P numbericl'!$B$6:$D$26,3,FALSE),"NR") -> 5
A8: ED | B8: Consolidated Edison, Inc. | C8: 0.02 | D8: 0.02 | E8: 0.033 | F8: 0.04 | G8: 0.75 | H8: 0.7889624834 | I8: 0.6 | J8: 3.1 | K8: 0.4169 | L8: 3.2682 | M8: 3.5886 | N8: 0.0815 | O8: A- | P8: Baa1/Baa2 | U8: AEE | V8: =AVERAGE(V4:V7) -> 8 | W8: =AVERAGE(W4:W7) -> 7.25
A9: ES | B9: Eversource Energy | C9: 0.064 | D9: 0.0668 | E9: 0.0777 | F9: 0.065 | G9: 0.9 | H9: 1.06246686 | I9: 0.84 | J9: 2.41 | K9: 0.5687 | L9: 3.0312 | M9: 3.6781 | N9: 0.0756 | O9: A- | P9: A3
A10: MGEE | B10: MGE Energy, Inc. | C10: 0.056 | D10: 0.056 | E10: 0.0557 | F10: 0.045 | G10: 0.75 | H10: 0.7775999904 | I10: 0.57 | J10: 1.55 | K10: 0.4525 | L10: 2.8206 | M10: 3.1569 | N10: 0.0704 | O10: AA- | P10: A1 | R10: NR | S10: Baa3 | T10: Alaska Electric Light and Power Company | U10: AVA | V10: =IFERROR(VLOOKUP(R10,'3.6 MOODY_S&P numbericl'!$F$6:$H$26,3,FALSE),"NR") -> NR | W10: =IFERROR(VLOOKUP(S10,'3.6 MOODY_S&P numbericl'!$B$6:$D$26,3,FALSE),"NR") -> 10
A11: NWE | B11: NorthWestern Corporation | C11: 0.048 | D11: 0.045 | E11: 0.0516 | F11: 0.03 | G11: 0.95 | H11: 1.271976709 | I11: 0.89 | J11: 2.48 | K11: 0.623 | L11: 2.8009 | M11: 3.5738 | N11: 0.0699 | O11: BBB | P11: Baa2
A12: PEG | B12: Public Service Enterprise Group Incorporated | C12: 0.035 | D12: 0.0235 | E12: 0.04665 | F12: 0.035 | G12: 0.9 | H12: 1.093170643 | I12: 0.84 | J12: 2.04 | K12: 0.6617 | L12: 2.3742 | M12: 3.1604 | N12: 0.0592 | O12: A- | P12: A2 | R12: BBB+ | S12: A3 | T12: Black Hills Power Inc. | U12: BKH | V12: =IFERROR(VLOOKUP(R12,'3.6 MOODY_S&P numbericl'!$F$6:$H$26,3,FALSE),"NR") -> 8 | W12: =IFERROR(VLOOKUP(S12,'3.6 MOODY_S&P numbericl'!$B$6:$D$26,3,FALSE),"NR") -> 7
A13: SO | B13: Southern Company | C13: 0.049 | D13: 0.065 | E13: 0.046 | F13: 0.06 | G13: 0.95 | H13: 1.108855963 | I13: 0.89 | J13: 2.64 | K13: 0.6331 | L13: 2.7077 | M13: 3.4911 | N13: 0.0676 | O13: A- | P13: A3
A14: WEC | B14: WEC Energy Group, Inc. | C14: 0.063 | D14: 0.065 | E14: 0.06777 | F14: 0.065 | G14: 0.8 | H14: 0.9801491499 | I14: 0.65 | J14: 2.71 | K14: 0.4471 | L14: 3.2683 | M14: 3.6468 | N14: 0.0815 | O14: A- | P14: A2 | R14: A- | S14: Baa1 | T14: Consumers Energy Co. | U14: CMS | V14: =IFERROR(VLOOKUP(R14,'3.6 MOODY_S&P numbericl'!$F$6:$H$26,3,FALSE),"NR") -> 7 | W14: =IFERROR(VLOOKUP(S14,'3.6 MOODY_S&P numbericl'!$B$6:$D$26,3,FALSE),"NR") -> 8
A15: XEL | B15: Xcel Energy Inc. | C15: 0.061 | D15: 0.063 | E15: 0.06587 | F15: 0.06 | G15: 0.8 | H15: 0.9885541797 | I15: 0.66 | J15: 1.83 | K15: 0.5169 | L15: 2.728 | M15: 3.1805 | N15: 0.0681 | O15: A- | P15: A3
R16: BBB+ | S16: A2 | T16: Duke Energy Carolinas | U16: DUK | V16: =IFERROR(VLOOKUP(R16,'3.6 MOODY_S&P numbericl'!$F$6:$H$26,3,FALSE),"NR") -> 8 | W16: =IFERROR(VLOOKUP(S16,'3.6 MOODY_S&P numbericl'!$B$6:$D$26,3,FALSE),"NR") -> 6
R17: BBB+ | S17: A3 | T17: Duke Energy FL | U17: DUK | V17: =IFERROR(VLOOKUP(R17,'3.6 MOODY_S&P numbericl'!$F$6:$H$26,3,FALSE),"NR") -> 8 | W17: =IFERROR(VLOOKUP(S17,'3.6 MOODY_S&P numbericl'!$B$6:$D$26,3,FALSE),"NR") -> 7
R18: BBB+ | S18: A2 | T18: Duke Energy IN | U18: DUK | V18: =IFERROR(VLOOKUP(R18,'3.6 MOODY_S&P numbericl'!$F$6:$H$26,3,FALSE),"NR") -> 8 | W18: =IFERROR(VLOOKUP(S18,'3.6 MOODY_S&P numbericl'!$B$6:$D$26,3,FALSE),"NR") -> 6
R19: BBB+ | S19: Baa1 | T19: Duke Energy KY | U19: DUK | V19: =IFERROR(VLOOKUP(R19,'3.6 MOODY_S&P numbericl'!$F$6:$H$26,3,FALSE),"NR") -> 8 | W19: =IFERROR(VLOOKUP(S19,'3.6 MOODY_S&P numbericl'!$B$6:$D$26,3,FALSE),"NR") -> 8
R20: BBB+ | S20: Baa1 | T20: Duke Energy OH | U20: DUK | V20: =IFERROR(VLOOKUP(R20,'3.6 MOODY_S&P numbericl'!$F$6:$H$26,3,FALSE),"NR") -> 8 | W20: =IFERROR(VLOOKUP(S20,'3.6 MOODY_S&P numbericl'!$B$6:$D$26,3,FALSE),"NR") -> 8
R21: BBB+ | S21: A2 | T21: Duke Energy Progress | U21: DUK | V21: =IFERROR(VLOOKUP(R21,'3.6 MOODY_S&P numbericl'!$F$6:$H$26,3,FALSE),"NR") -> 8 | W21: =IFERROR(VLOOKUP(S21,'3.6 MOODY_S&P numbericl'!$B$6:$D$26,3,FALSE),"NR") -> 6
R22: BBB+ | S22: NR | T22: FL Progress Corp. | U22: DUK | V22: =IFERROR(VLOOKUP(R22,'3.6 MOODY_S&P numbericl'!$F$6:$H$26,3,FALSE),"NR") -> 8 | W22: =IFERROR(VLOOKUP(S22,'3.6 MOODY_S&P numbericl'!$B$6:$D$26,3,FALSE),"NR") -> NR
R23: BBB+ | S23: A3 | T23: Piedmont Gas | U23: DUK | V23: =IFERROR(VLOOKUP(R23,'3.6 MOODY_S&P numbericl'!$F$6:$H$26,3,FALSE),"NR") -> 8 | W23: =IFERROR(VLOOKUP(S23,'3.6 MOODY_S&P numbericl'!$B$6:$D$26,3,FALSE),"NR") -> 7
R24: BBB+ | S24: Baa1 | T24: Progress Energy, Inc. | U24: DUK | V24: =IFERROR(VLOOKUP(R24,'3.6 MOODY_S&P numbericl'!$F$6:$H$26,3,FALSE),"NR") -> 8 | W24: =IFERROR(VLOOKUP(S24,'3.6 MOODY_S&P numbericl'!$B$6:$D$26,3,FALSE),"NR") -> 8
U25: DUK | V25: =AVERAGE(V16:V24) -> 8 | W25: =AVERAGE(W16:W24) -> 7
R27: A- | S27: Baa1 | T27: Consolidated Edison Co. of New York Inc. | U27: ED | V27: =IFERROR(VLOOKUP(R27,'3.6 MOODY_S&P numbericl'!$F$6:$H$26,3,FALSE),"NR") -> 7 | W27: =IFERROR(VLOOKUP(S27,'3.6 MOODY_S&P numbericl'!$B$6:$D$26,3,FALSE),"NR") -> 8
R28: A- | S28: Baa2 | T28: Orange and Rockland Utilities Inc. | U28: ED | V28: =IFERROR(VLOOKUP(R28,'3.6 MOODY_S&P numbericl'!$F$6:$H$26,3,FALSE),"NR") -> 7 | W28: =IFERROR(VLOOKUP(S28,'3.6 MOODY_S&P numbericl'!$B$6:$D$26,3,FALSE),"NR") -> 9
R29: A- | S29: NR | T29: Rockland Electric Co. | U29: ED | V29: =IFERROR(VLOOKUP(R29,'3.6 MOODY_S&P numbericl'!$F$6:$H$26,3,FALSE),"NR") -> 7 | W29: =IFERROR(VLOOKUP(S29,'3.6 MOODY_S&P numbericl'!$B$6:$D$26,3,FALSE),"NR") -> NR
U30: ED | V30: =AVERAGE(V27:V29) -> 7 | W30: =AVERAGE(W27:W29) -> 8.5
R32: NR | S32: A3 | T32: Aquarion Water Company of Connecticut | U32: ES | V32: =IFERROR(VLOOKUP(R32,'3.6 MOODY_S&P numbericl'!$F$6:$H$26,3,FALSE),"NR") -> NR | W32: =IFERROR(VLOOKUP(S32,'3.6 MOODY_S&P numbericl'!$B$6:$D$26,3,FALSE),"NR") -> 7
R33: A- | S33: Baa2 | T33: Aquarion Co. | U33: ES | V33: =IFERROR(VLOOKUP(R33,'3.6 MOODY_S&P numbericl'!$F$6:$H$26,3,FALSE),"NR") -> 7 | W33: =IFERROR(VLOOKUP(S33,'3.6 MOODY_S&P numbericl'!$B$6:$D$26,3,FALSE),"NR") -> 9
R34: A | S34: A3 | T34: Connecticut Light and Power | U34: ES | V34: =IFERROR(VLOOKUP(R34,'3.6 MOODY_S&P numbericl'!$F$6:$H$26,3,FALSE),"NR") -> 6 | W34: =IFERROR(VLOOKUP(S34,'3.6 MOODY_S&P numbericl'!$B$6:$D$26,3,FALSE),"NR") -> 7
R35: A- | S35: NR | T35: Eversource Gas Company of Massachusetts (Columbia) | U35: ES | V35: =IFERROR(VLOOKUP(R35,'3.6 MOODY_S&P numbericl'!$F$6:$H$26,3,FALSE),"NR") -> 7 | W35: =IFERROR(VLOOKUP(S35,'3.6 MOODY_S&P numbericl'!$B$6:$D$26,3,FALSE),"NR") -> NR
R36: BBB+ | S36: Baa2 | T36: Eversource Gas Company of MA (Bay State) | U36: ES | V36: =IFERROR(VLOOKUP(R36,'3.6 MOODY_S&P numbericl'!$F$6:$H$26,3,FALSE),"NR") -> 8 | W36: =IFERROR(VLOOKUP(S36,'3.6 MOODY_S&P numbericl'!$B$6:$D$26,3,FALSE),"NR") -> 9
R37: A | S37: A1 | T37: NSTAR Electric | U37: ES | V37: =IFERROR(VLOOKUP(R37,'3.6 MOODY_S&P numbericl'!$F$6:$H$26,3,FALSE),"NR") -> 6 | W37: =IFERROR(VLOOKUP(S37,'3.6 MOODY_S&P numbericl'!$B$6:$D$26,3,FALSE),"NR") -> 5
R38: A- | S38: NR | T38: NSTAR Gas | U38: ES | V38: =IFERROR(VLOOKUP(R38,'3.6 MOODY_S&P numbericl'!$F$6:$H$26,3,FALSE),"NR") -> 7 | W38: =IFERROR(VLOOKUP(S38,'3.6 MOODY_S&P numbericl'!$B$6:$D$26,3,FALSE),"NR") -> NR
R39: A | S39: A3 | T39: PSC of New Hampshire | U39: ES | V39: =IFERROR(VLOOKUP(R39,'3.6 MOODY_S&P numbericl'!$F$6:$H$26,3,FALSE),"NR") -> 6 | W39: =IFERROR(VLOOKUP(S39,'3.6 MOODY_S&P numbericl'!$B$6:$D$26,3,FALSE),"NR") -> 7
R40: A- | S40: Baa1 | T40: Yankee Gas Services Company | U40: ES | V40: =IFERROR(VLOOKUP(R40,'3.6 MOODY_S&P numbericl'!$F$6:$H$26,3,FALSE),"NR") -> 7 | W40: =IFERROR(VLOOKUP(S40,'3.6 MOODY_S&P numbericl'!$B$6:$D$26,3,FALSE),"NR") -> 8
V41: =AVERAGE(V32:V40) -> 6.75 | W41: =AVERAGE(W32:W40) -> 7.428571429
R43: AA- | S43: A1 | T43: Madison Gas and Electricity Company | U43: MGEE | V43: =IFERROR(VLOOKUP(R43,'3.6 MOODY_S&P numbericl'!$F$6:$H$26,3,FALSE),"NR") -> 4 | W43: =IFERROR(VLOOKUP(S43,'3.6 MOODY_S&P numbericl'!$B$6:$D$26,3,FALSE),"NR") -> 5
R45: BBB | S45: Baa2 | T45: Northwestern Corporation | U45: NWE | V45: =IFERROR(VLOOKUP(R45,'3.6 MOODY_S&P numbericl'!$F$6:$H$26,3,FALSE),"NR") -> 9 | W45: =IFERROR(VLOOKUP(S45,'3.6 MOODY_S&P numbericl'!$B$6:$D$26,3,FALSE),"NR") -> 9
R47: A- | S47: A2 | T47: Public Service Electric and Gas Co. | U47: PEG | V47: =IFERROR(VLOOKUP(R47,'3.6 MOODY_S&P numbericl'!$F$6:$H$26,3,FALSE),"NR") -> 7 | W47: =IFERROR(VLOOKUP(S47,'3.6 MOODY_S&P numbericl'!$B$6:$D$26,3,FALSE),"NR") -> 6
R49: A | S49: A1 | T49: Alabama Power Co. | U49: SO | V49: =IFERROR(VLOOKUP(R49,'3.6 MOODY_S&P numbericl'!$F$6:$H$26,3,FALSE),"NR") -> 6 | W49: =IFERROR(VLOOKUP(S49,'3.6 MOODY_S&P numbericl'!$B$6:$D$26,3,FALSE),"NR") -> 5
R50: A- | S50: NR | T50: Atlanta Gas Light Company | U50: SO | V50: =IFERROR(VLOOKUP(R50,'3.6 MOODY_S&P numbericl'!$F$6:$H$26,3,FALSE),"NR") -> 7 | W50: =IFERROR(VLOOKUP(S50,'3.6 MOODY_S&P numbericl'!$B$6:$D$26,3,FALSE),"NR") -> NR
R51: A- | S51: Baa1 | T51: Georgia Power Company | U51: SO | V51: =IFERROR(VLOOKUP(R51,'3.6 MOODY_S&P numbericl'!$F$6:$H$26,3,FALSE),"NR") -> 7 | W51: =IFERROR(VLOOKUP(S51,'3.6 MOODY_S&P numbericl'!$B$6:$D$26,3,FALSE),"NR") -> 8
R52: A- | S52: Baa1 | T52: Mississippi Power Company | U52: SO | V52: =IFERROR(VLOOKUP(R52,'3.6 MOODY_S&P numbericl'!$F$6:$H$26,3,FALSE),"NR") -> 7 | W52: =IFERROR(VLOOKUP(S52,'3.6 MOODY_S&P numbericl'!$B$6:$D$26,3,FALSE),"NR") -> 8
R53: A- | S53: WR | T53: Southern Co Services | U53: SO | V53: =IFERROR(VLOOKUP(R53,'3.6 MOODY_S&P numbericl'!$F$6:$H$26,3,FALSE),"NR") -> 7 | W53: =IFERROR(VLOOKUP(S53,'3.6 MOODY_S&P numbericl'!$B$6:$D$26,3,FALSE),"NR") -> NR
R54: A- | S54: NR | T54: Southern Company Gas | U54: SO | V54: =IFERROR(VLOOKUP(R54,'3.6 MOODY_S&P numbericl'!$F$6:$H$26,3,FALSE),"NR") -> 7 | W54: =IFERROR(VLOOKUP(S54,'3.6 MOODY_S&P numbericl'!$B$6:$D$26,3,FALSE),"NR") -> NR
U55: SO | V55: =AVERAGE(V49:V54) -> 6.833333333 | W55: =AVERAGE(W49:W54) -> 7
R57: A- | S57: A2 | T57: The Peoples Gas Light and Coke Company | U57: WEC | V57: =IFERROR(VLOOKUP(R57,'3.6 MOODY_S&P numbericl'!$F$6:$H$26,3,FALSE),"NR") -> 7 | W57: =IFERROR(VLOOKUP(S57,'3.6 MOODY_S&P numbericl'!$B$6:$D$26,3,FALSE),"NR") -> 6
R58: A- | S58: A2 | T58: Wisconsin Electric Power Company | U58: WEC | V58: =IFERROR(VLOOKUP(R58,'3.6 MOODY_S&P numbericl'!$F$6:$H$26,3,FALSE),"NR") -> 7 | W58: =IFERROR(VLOOKUP(S58,'3.6 MOODY_S&P numbericl'!$B$6:$D$26,3,FALSE),"NR") -> 6
R59: A- | S59: A3 | T59: Wisconsin Gas LLC | U59: WEC | V59: =IFERROR(VLOOKUP(R59,'3.6 MOODY_S&P numbericl'!$F$6:$H$26,3,FALSE),"NR") -> 7 | W59: =IFERROR(VLOOKUP(S59,'3.6 MOODY_S&P numbericl'!$B$6:$D$26,3,FALSE),"NR") -> 7
R60: A- | S60: A2 | T60: Wisconsin Public Service Corporation | U60: WEC | V60: =IFERROR(VLOOKUP(R60,'3.6 MOODY_S&P numbericl'!$F$6:$H$26,3,FALSE),"NR") -> 7 | W60: =IFERROR(VLOOKUP(S60,'3.6 MOODY_S&P numbericl'!$B$6:$D$26,3,FALSE),"NR") -> 6
U61: WEC | V61: =AVERAGE(V57:V60) -> 7 | W61: =AVERAGE(W57:W60) -> 6.25
R63: A- | S63: A2 | T63: NSP - MN | U63: XEL | V63: =IFERROR(VLOOKUP(R63,'3.6 MOODY_S&P numbericl'!$F$6:$H$26,3,FALSE),"NR") -> 7 | W63: =IFERROR(VLOOKUP(S63,'3.6 MOODY_S&P numbericl'!$B$6:$D$26,3,FALSE),"NR") -> 6
R64: A- | S64: A2 | T64: NSP - WI | U64: XEL | V64: =IFERROR(VLOOKUP(R64,'3.6 MOODY_S&P numbericl'!$F$6:$H$26,3,FALSE),"NR") -> 7 | W64: =IFERROR(VLOOKUP(S64,'3.6 MOODY_S&P numbericl'!$B$6:$D$26,3,FALSE),"NR") -> 6
R65: A- | S65: A3 | T65: PSC - CO | U65: XEL | V65: =IFERROR(VLOOKUP(R65,'3.6 MOODY_S&P numbericl'!$F$6:$H$26,3,FALSE),"NR") -> 7 | W65: =IFERROR(VLOOKUP(S65,'3.6 MOODY_S&P numbericl'!$B$6:$D$26,3,FALSE),"NR") -> 7
R66: A- | S66: Baa2 | T66: SPS | U66: XEL | V66: =IFERROR(VLOOKUP(R66,'3.6 MOODY_S&P numbericl'!$F$6:$H$26,3,FALSE),"NR") -> 7 | W66: =IFERROR(VLOOKUP(S66,'3.6 MOODY_S&P numbericl'!$B$6:$D$26,3,FALSE),"NR") -> 9
V67: =AVERAGE(V63:V66) -> 7 | W67: =AVERAGE(W63:W66) -> 7

Sheet Proxy Price Data
A1: Lookup Reference | C1: Tickers | D1: AEE | E1: AVA | F1: BKH | G1: CMS | H1: DUK | I1: ED | J1: ES | K1: MGEE | L1: NWE | M1: PEG | N1: SO | O1: WEC | P1: XEL
C2: PX_LAST | D2: AEE US Equity | E2: AVA US Equity | F2: BKH US Equity | G2: CMS US Equity | H2: DUK US Equity | I2: ED US Equity | J2: ES US Equity | K2: MGEE US Equity | L2: NWE US Equity | M2: PEG US Equity | N2: SO US Equity | O2: WEC US Equity | P2: XEL US Equity
A3: 2 | B3: 1 | C3: 2021-08-31 | D3: 87.72 | E3: 41.85 | F3: 70.33 | G3: 64.13 | H3: 104.66 | I3: 75.45 | J3: 90.73 | K3: 80.54 | L3: 63.6 | M3: 63.94 | N3: 65.73 | O3: 94.48 | P3: 68.75
A4: =A3+1 -> 3 | B4: =B3+1 -> 2 | C4: 2021-08-30 | D4: 88.49 | E4: 41.6 | F4: 70.66 | G4: 64.48 | H4: 104.79 | I4: 75.7 | J4: 91.05 | K4: 80.81 | L4: 63.64 | M4: 64.24 | N4: 65.75 | O4: 95.02 | P4: 69.03
A5: =A4+1 -> 4 | B5: 3 | C5: 2021-08-27 | D5: 88.02 | E5: 41.43 | F5: 70.71 | G5: 64.16 | H5: 104.67 | I5: 75.64 | J5: 90.18 | K5: 80.67 | L5: 63.98 | M5: 64.17 | N5: 65.99 | O5: 94.41 | P5: 68.7
A6: 5 | B6: 4 | C6: 2021-08-26 | D6: 87.62 | E6: 41.17 | F6: 70.21 | G6: 63.84 | H6: 104.85 | I6: 75.22 | J6: 90.29 | K6: 79.78 | L6: 62.95 | M6: 63.79 | N6: 66.14 | O6: 94.38 | P6: 68.3
A7: 6 | B7: 5 | C7: 2021-08-25 | D7: 87.34 | E7: 41.65 | F7: 70.93 | G7: 63.64 | H7: 105.38 | I7: 75.27 | J7: 90.35 | K7: 80.42 | L7: 63.52 | M7: 64.11 | N7: 65.87 | O7: 94.66 | P7: 68.31
A8: 7 | B8: 6 | C8: 2021-08-24 | D8: 87.14 | E8: 41.87 | F8: 70.84 | G8: 63.54 | H8: 105.15 | I8: 75.02 | J8: 90.88 | K8: 80.94 | L8: 63.41 | M8: 63.81 | N8: 65.73 | O8: 94.45 | P8: 68.29
A9: 8 | B9: 7 | C9: 2021-08-23 | D9: 87.55 | E9: 42.05 | F9: 71.58 | G9: 64.07 | H9: 105.83 | I9: 75.79 | J9: 91.12 | K9: 81.97 | L9: 64.01 | M9: 64.34 | N9: 66.67 | O9: 95.79 | P9: 68.99
A10: 9 | B10: 8 | C10: 2021-08-20 | D10: 89.59 | E10: 42.56 | F10: 72.59 | G10: 64.81 | H10: 107.21 | I10: 76.95 | J10: 92.11 | K10: 82.46 | L10: 64.57 | M10: 64.95 | N10: 67.32 | O10: 97.59 | P10: 70.61
A11: 10 | B11: 9 | C11: 2021-08-19 | D11: 89.57 | E11: 41.84 | F11: 71.76 | G11: 64.01 | H11: 106.88 | I11: 76.69 | J11: 91.18 | K11: 81.19 | L11: 63.8 | M11: 64.26 | N11: 66.38 | O11: 96.97 | P11: 70.12
A12: 11 | B12: 10 | C12: 2021-08-18 | D12: 89.28 | E12: 41.96 | F12: 71.84 | G12: 63.82 | H12: 107.05 | I12: 76.6 | J12: 90.22 | K12: 80.78 | L12: 63.64 | M12: 64 | N12: 66.01 | O12: 96.46 | P12: 69.33
A13: 12 | B13: 11 | C13: 2021-08-17 | D13: 89.98 | E13: 42.99 | F13: 72.35 | G13: 64.27 | H13: 107.71 | I13: 77.24 | J13: 90.84 | K13: 81.04 | L13: 64.94 | M13: 64.73 | N13: 66.45 | O13: 97.36 | P13: 69.95
A14: 13 | B14: 12 | C14: 2021-08-16 | D14: 89.61 | E14: 42.26 | F14: 72.39 | G14: 63.87 | H14: 107.81 | I14: 78.25 | J14: 90.81 | K14: 81.22 | L14: 63.79 | M14: 64.82 | N14: 66.38 | O14: 97.18 | P14: 69.77
A15: 14 | B15: 13 | C15: 2021-08-13 | D15: 88.84 | E15: 41.75 | F15: 72.05 | G15: 63.46 | H15: 106 | I15: 77.74 | J15: 90.44 | K15: 81.09 | L15: 63.15 | M15: 64.72 | N15: 65.53 | O15: 96.21 | P15: 69.04
A16: 15 | B16: 14 | C16: 2021-08-12 | D16: 87.92 | E16: 41.9 | F16: 71.21 | G16: 63 | H16: 105.69 | I16: 77.25 | J16: 89.6 | K16: 80.57 | L16: 62.51 | M16: 63.85 | N16: 65.72 | O16: 95.6 | P16: 68.79
A17: 16 | B17: 15 | C17: 2021-08-11 | D17: 88.16 | E17: 42.19 | F17: 71.39 | G17: 63.19 | H17: 107.14 | I17: 77.12 | J17: 89.92 | K17: 80.67 | L17: 62.73 | M17: 63.53 | N17: 65.63 | O17: 96.41 | P17: 69.07
A18: 17 | B18: 16 | C18: 2021-08-10 | D18: 87.68 | E18: 42.14 | F18: 70.24 | G18: 62.94 | H18: 106.9 | I18: 76.4 | J18: 88.92 | K18: 80.06 | L18: 62.24 | M18: 62.9 | N18: 65.21 | O18: 96.1 | P18: 68.71
A19: 18 | B19: 17 | C19: 2021-08-09 | D19: 87.71 | E19: 42.4 | F19: 69.91 | G19: 63.26 | H19: 106.15 | I19: 76.07 | J19: 88.95 | K19: 79.81 | L19: 62.35 | M19: 63.83 | N19: 64.85 | O19: 96.33 | P19: 69.12
A20: 19 | B20: 18 | C20: 2021-08-06 | D20: 86.86 | E20: 42.67 | F20: 70.25 | G20: 63.27 | H20: 106.96 | I20: 75.52 | J20: 88.96 | K20: 80.52 | L20: 62.59 | M20: 63.86 | N20: 64.7 | O20: 96.31 | P20: 69.08
A21: 20 | B21: 19 | C21: 2021-08-05 | D21: 86.13 | E21: 43.13 | F21: 70.59 | G21: 63.21 | H21: 107.93 | I21: 75.32 | J21: 89.03 | K21: 79.73 | L21: 62.91 | M21: 63.9 | N21: 64.78 | O21: 96.48 | P21: 69.24
A22: 21 | B22: 20 | C22: 2021-08-04 | D22: 85.25 | E22: 42.77 | F22: 69.96 | G22: 63.26 | H22: 106.73 | I22: 74.87 | J22: 88.17 | K22: 79.48 | L22: 61.94 | M22: 63.27 | N22: 64.03 | O22: 95.83 | P22: 68.95
A23: 22 | B23: 21 | C23: 2021-08-03 | D23: 85.61 | E23: 44.24 | F23: 69.93 | G23: 63.24 | H23: 106.61 | I23: 74.85 | J23: 87.8 | K23: 79.44 | L23: 62.47 | M23: 63.51 | N23: 64.13 | O23: 95.61 | P23: 68.7
A24: 23 | B24: 22 | C24: 2021-08-02 | D24: 84.81 | E24: 42.96 | F24: 68.03 | G24: 62.66 | H24: 106.19 | I24: 74.5 | J24: 87.3 | K24: 78.49 | L24: 61.92 | M24: 62.86 | N24: 64.08 | O24: 94.7 | P24: 68.56
A25: 24 | B25: 23 | C25: 2021-07-30 | D25: 83.92 | E25: 42.83 | F25: 67.65 | G25: 61.79 | H25: 105.11 | I25: 73.77 | J25: 86.27 | K25: 78.12 | L25: 61.99 | M25: 62.23 | N25: 63.87 | O25: 94.14 | P25: 68.25
A26: 25 | B26: 24 | C26: 2021-07-29 | D26: 84.27 | E26: 43.35 | F26: 68.24 | G26: 62.35 | H26: 105.68 | I26: 74.52 | J26: 86.39 | K26: 78.31 | L26: 62.46 | M26: 63.07 | N26: 64.46 | O26: 94.58 | P26: 68.79
A27: 26 | B27: 25 | C27: 2021-07-28 | D27: 84.19 | E27: 43.65 | F27: 68.37 | G27: 62.26 | H27: 105.65 | I27: 74.59 | J27: 86.38 | K27: 78.17 | L27: 63.54 | M27: 62.5 | N27: 63.99 | O27: 94.44 | P27: 68.7
A28: 27 | B28: 26 | C28: 2021-07-27 | D28: 84.99 | E28: 43.31 | F28: 68.06 | G28: 63.22 | H28: 106.36 | I28: 75.53 | J28: 87.6 | K28: 78.07 | L28: 62.72 | M28: 62.85 | N28: 64.54 | O28: 96.5 | P28: 69.46
A29: 28 | B29: 27 | C29: 2021-07-26 | D29: 83.25 | E29: 43.33 | F29: 67.49 | G29: 61.98 | H29: 104.58 | I29: 73.96 | J29: 85.82 | K29: 76.77 | L29: 62.64 | M29: 61.55 | N29: 63.73 | O29: 94.16 | P29: 68.31
A30: 29 | B30: 28 | C30: 2021-07-23 | D30: 83.39 | E30: 43.18 | F30: 67.66 | G30: 62.08 | H30: 104.47 | I30: 74.18 | J30: 86.22 | K30: 77 | L30: 62.99 | M30: 61.22 | N30: 63.86 | O30: 94.03 | P30: 68.27
A31: 30 | B31: 29 | C31: 2021-07-22 | D31: 82.49 | E31: 42.66 | F31: 66.33 | G31: 61.23 | H31: 102.92 | I31: 73.04 | J31: 84.81 | K31: 75.85 | L31: 61.48 | M31: 60.21 | N31: 62.98 | O31: 92.47 | P31: 67.24
A32: 31 | B32: 30 | C32: 2021-07-21 | D32: 82.3 | E32: 42.9 | F32: 67.12 | G32: 61.04 | H32: 103.16 | I32: 72.78 | J32: 83.78 | K32: 76.34 | L32: 61.94 | M32: 60.05 | N32: 62.82 | O32: 92.1 | P32: 67.06
A33: 32 | B33: 31 | C33: 2021-07-20 | D33: 83.98 | E33: 43.54 | F33: 67.92 | G33: 61.94 | H33: 103.74 | I33: 73.57 | J33: 85.94 | K33: 77.01 | L33: 62.27 | M33: 60.67 | N33: 62.95 | O33: 93.82 | P33: 68.16
A34: 33 | B34: 32 | C34: 2021-07-19 | D34: 83.98 | E34: 42.9 | F34: 66.37 | G34: 61.45 | H34: 103.89 | I34: 73.77 | J34: 86.23 | K34: 76.29 | L34: 61.17 | M34: 60.19 | N34: 62.79 | O34: 94.23 | P34: 68.27
A35: 34 | B35: 33 | C35: 2021-07-16 | D35: 85.06 | E35: 43 | F35: 68.48 | G35: 62.01 | H35: 104.76 | I35: 74.93 | J35: 87.36 | K35: 78.03 | L35: 62.83 | M35: 61.74 | N35: 63.11 | O35: 95.44 | P35: 69.13
A36: 35 | B36: 34 | C36: 2021-07-15 | D36: 84.07 | E36: 42.74 | F36: 67.87 | G36: 61.51 | H36: 103.94 | I36: 74.36 | J36: 86.11 | K36: 77.16 | L36: 62.81 | M36: 61.19 | N36: 62.67 | O36: 94.75 | P36: 68.72
A37: 36 | B37: 35 | C37: 2021-07-14 | D37: 83.22 | E37: 41.97 | F37: 66.46 | G37: 60.48 | H37: 102.7 | I37: 73.19 | J37: 84.04 | K37: 75.75 | L37: 61.56 | M37: 60.39 | N37: 61.89 | O37: 93.15 | P37: 68.09
A38: 37 | B38: 36 | C38: 2021-07-13 | D38: 82.63 | E38: 41.79 | F38: 66.09 | G38: 60 | H38: 101.53 | I38: 72.63 | J38: 82.93 | K38: 75.08 | L38: 61.13 | M38: 59.83 | N38: 61.34 | O38: 91.89 | P38: 67.58
A39: 38 | B39: 37 | C39: 2021-07-12 | D39: 82.88 | E39: 42.56 | F39: 66.81 | G39: 60.36 | H39: 101.53 | I39: 73.36 | J39: 82.5 | K39: 76 | L39: 61.42 | M39: 60.7 | N39: 61.8 | O39: 92.37 | P39: 67.84
A40: 39 | B40: 38 | C40: 2021-07-09 | D40: 81.92 | E40: 42.53 | F40: 66.66 | G40: 60.31 | H40: 100.66 | I40: 73.3 | J40: 82.63 | K40: 76.22 | L40: 60.83 | M40: 60.49 | N40: 61.47 | O40: 91.84 | P40: 67.67
A41: 40 | B41: 39 | C41: 2021-07-08 | D41: 82.06 | E41: 42.19 | F41: 65.61 | G41: 60.27 | H41: 100.56 | I41: 73.36 | J41: 82.61 | K41: 75.38 | L41: 60.28 | M41: 60.54 | N41: 61.55 | O41: 92.21 | P41: 67.5
A42: 41 | B42: 40 | C42: 2021-07-07 | D42: 82.32 | E42: 42.69 | F42: 66 | G42: 60.15 | H42: 100.37 | I42: 73.34 | J42: 82.7 | K42: 75.24 | L42: 61.09 | M42: 60.85 | N42: 61.69 | O42: 91.79 | P42: 67.69
A43: 42 | B43: 41 | C43: 2021-07-06 | D43: 81.4 | E43: 42.59 | F43: 65.49 | G43: 59.81 | H43: 99.83 | I43: 72.94 | J43: 81.04 | K43: 74.25 | L43: 60.19 | M43: 60.3 | N43: 61.64 | O43: 90.7 | P43: 67.07
A44: 43 | B44: 42 | C44: 2021-07-02 | D44: 80.7 | E44: 42.56 | F44: 65.77 | G44: 59.91 | H44: 99.51 | I44: 72.47 | J44: 80.7 | K44: 74.53 | L44: 60.42 | M44: 60.1 | N44: 61.53 | O44: 90.02 | P44: 66.82
A45: 44 | B45: 43 | C45: 2021-07-01 | D45: 80.7 | E45: 42.97 | F45: 66.21 | G45: 60.07 | H45: 99.55 | I45: 72.54 | J45: 79.86 | K45: 75.18 | L45: 60.96 | M45: 60.24 | N45: 61.48 | O45: 90.19 | P45: 67.03
A46: 45 | B46: 44 | C46: 2021-06-30 | D46: 80.04 | E46: 42.67 | F46: 65.63 | G46: 59.08 | H46: 98.72 | I46: 71.72 | J46: 80.24 | K46: 74.44 | L46: 60.22 | M46: 59.74 | N46: 60.51 | O46: 88.95 | P46: 65.88
A47: 46 | B47: 45 | C47: 2021-06-29 | D47: 79.91 | E47: 42.88 | F47: 65.63 | G47: 58.85 | H47: 98.12 | I47: 72.05 | J47: 80.13 | K47: 74.11 | L47: 59.7 | M47: 59.49 | N47: 60.46 | O47: 89.02 | P47: 65.71
A48: 47 | B48: 46 | C48: 2021-06-28 | D48: 81.92 | E48: 43.48 | F48: 67.46 | G48: 60.01 | H48: 100.01 | I48: 73.82 | J48: 81.46 | K48: 75.42 | L48: 60.95 | M48: 60.24 | N48: 61.49 | O48: 90.96 | P48: 67.06
A49: 48 | B49: 47 | C49: 2021-06-25 | D49: 81.74 | E49: 43.57 | F49: 67.98 | G49: 60.13 | H49: 99.72 | I49: 73.87 | J49: 80.29 | K49: 76 | L49: 61.1 | M49: 59.86 | N49: 61.53 | O49: 90.1 | P49: 67.1
A50: 49 | B50: 48 | C50: 2021-06-24 | D50: 81.25 | E50: 43.34 | F50: 67.59 | G50: 59.1 | H50: 99.07 | I50: 73.43 | J50: 79.28 | K50: 75.16 | L50: 60.92 | M50: 59.37 | N50: 60.98 | O50: 89.08 | P50: 66.26
A51: 50 | B51: 49 | C51: 2021-06-23 | D51: 81.69 | E51: 43.32 | F51: 67.13 | G51: 58.54 | H51: 99.23 | I51: 73.47 | J51: 78.74 | K51: 74.54 | L51: 60.98 | M51: 59.19 | N51: 61.47 | O51: 88.97 | P51: 66.23
A52: 51 | B52: 50 | C52: 2021-06-22 | D52: 82.52 | E52: 44.4 | F52: 68.58 | G52: 58.61 | H52: 100.4 | I52: 74.46 | J52: 80.22 | K52: 75.21 | L52: 61.63 | M52: 59.62 | N52: 62.08 | O52: 90.17 | P52: 66.75
A53: 52 | B53: 51 | C53: 2021-06-21 | D53: 83.39 | E53: 44.4 | F53: 69.55 | G53: 58.53 | H53: 101.31 | I53: 75.19 | J53: 80.69 | K53: 75.71 | L53: 62.29 | M53: 60.06 | N53: 62.5 | O53: 90.67 | P53: 67.14
A54: 53 | B54: 52 | C54: 2021-06-18 | D54: 82.11 | E54: 43.33 | F54: 67.59 | G54: 58.12 | H54: 99.61 | I54: 74.49 | J54: 79.92 | K54: 73.87 | L54: 61.29 | M54: 59.34 | N54: 61.45 | O54: 89.43 | P54: 66.6
A55: 54 | B55: 53 | C55: 2021-06-17 | D55: 84.49 | E55: 44.78 | F55: 69.93 | G55: 59.51 | H55: 102.42 | I55: 76.28 | J55: 82.69 | K55: 76.51 | L55: 63.84 | M55: 61.2 | N55: 63.35 | O55: 92.38 | P55: 68.35
A56: 55 | B56: 54 | C56: 2021-06-16 | D56: 83.91 | E56: 45.17 | F56: 69.95 | G56: 59.67 | H56: 101.81 | I56: 76.22 | J56: 81.97 | K56: 76.65 | L56: 63.9 | M56: 61.23 | N56: 62.98 | O56: 91.93 | P56: 67.76
A57: 56 | B57: 55 | C57: 2021-06-15 | D57: 86.14 | E57: 45.44 | F57: 69.82 | G57: 60.5 | H57: 103.22 | I57: 77.75 | J57: 83.77 | K57: 76.99 | L57: 64.72 | M57: 62.35 | N57: 64.32 | O57: 93.1 | P57: 69.19
A58: 57 | B58: 56 | C58: 2021-06-14 | D58: 85.84 | E58: 44.94 | F58: 69.44 | G58: 60.3 | H58: 102.53 | I58: 77.75 | J58: 82.55 | K58: 76.1 | L58: 64.25 | M58: 61.84 | N58: 63.79 | O58: 92.69 | P58: 69.08
A59: 58 | B59: 57 | C59: 2021-06-11 | D59: 85.79 | E59: 44.95 | F59: 69.67 | G59: 60.67 | H59: 101.93 | I59: 77.23 | J59: 82.81 | K59: 76.73 | L59: 65.11 | M59: 61.8 | N59: 63.85 | O59: 92.9 | P59: 69.54
A60: 59 | B60: 58 | C60: 2021-06-10 | D60: 85.85 | E60: 45.21 | F60: 69.15 | G60: 60.24 | H60: 101.71 | I60: 77.04 | J60: 83.12 | K60: 75.5 | L60: 64.85 | M60: 61.63 | N60: 63.88 | O60: 93.13 | P60: 69.63
A61: 60 | B61: 59 | C61: 2021-06-09 | D61: 85.36 | E61: 44.85 | F61: 69.05 | G61: 59.93 | H61: 101.39 | I61: 76.88 | J61: 82.56 | K61: 75.5 | L61: 64.66 | M61: 61.13 | N61: 63.63 | O61: 92.91 | P61: 69.35
A62: 61 | B62: 60 | C62: 2021-06-08 | D62: 84.75 | E62: 44.8 | F62: 68.77 | G62: 60.33 | H62: 100.59 | I62: 76.29 | J62: 81.15 | K62: 75.53 | L62: 63.71 | M62: 61.01 | N62: 63.44 | O62: 91.93 | P62: 68.8
A63: 62
A64: 63
A65: 64
A66: 65
A67: 66
A68: 67
A69: =A68+1 -> 68
A70: 69
A71: 70
A72: 71
A73: 72
A74: 73
A75: 74
A76: 75
A77: 76
A78: 77
A79: 78
A80: 79
A81: 80
A82: 81
A83: 82
A84: 83
A85: 84
A86: 85
A87: 86
A88: 87
A89: 88
A90: 89
A91: 90
A92: =A91+1 -> 91

Sheet Proxy Prices
B4: AEE | C4: AVA | D4: BKH | E4: CMS | F4: DUK | G4: ED | H4: ES | I4: MGEE | J4: NWE | K4: PEG | L4: SO | M4: WEC | N4: XEL
A5: =IF('Proxy Price Data'!C2="","",'Proxy Price Data'!C2) -> PX_LAST | B5: =IF('Proxy Price Data'!D2="","",'Proxy Price Data'!D2) -> AEE US Equity | C5: =IF('Proxy Price Data'!E2="","",'Proxy Price Data'!E2) -> AVA US Equity | D5: =IF('Proxy Price Data'!F2="","",'Proxy Price Data'!F2) -> BKH US Equity | E5: =IF('Proxy Price Data'!G2="","",'Proxy Price Data'!G2) -> CMS US Equity | F5: =IF('Proxy Price Data'!H2="","",'Proxy Price Data'!H2) -> DUK US Equity | G5: =IF('Proxy Price Data'!I2="","",'Proxy Price Data'!I2) -> ED US Equity | H5: =IF('Proxy Price Data'!J2="","",'Proxy Price Data'!J2) -> ES US Equity | I5: =IF('Proxy Price Data'!K2="","",'Proxy Price Data'!K2) -> MGEE US Equity | J5: =IF('Proxy Price Data'!L2="","",'Proxy Price Data'!L2) -> NWE US Equity | K5: =IF('Proxy Price Data'!M2="","",'Proxy Price Data'!M2) -> PEG US Equity | L5: =IF('Proxy Price Data'!N2="","",'Proxy Price Data'!N2) -> SO US Equity | M5: =IF('Proxy Price Data'!O2="","",'Proxy Price Data'!O2) -> WEC US Equity | N5: =IF('Proxy Price Data'!P2="","",'Proxy Price Data'!P2) -> XEL US Equity | O5: =IF('Proxy Price Data'!Q2="","",'Proxy Price Data'!Q2) -> 
A6: =IF('Proxy Price Data'!C3="","",'Proxy Price Data'!C3) -> 2021-08-31 | B6: =IF('Proxy Price Data'!D3="","",'Proxy Price Data'!D3) -> 87.72 | C6: =IF('Proxy Price Data'!E3="","",'Proxy Price Data'!E3) -> 41.85 | D6: =IF('Proxy Price Data'!F3="","",'Proxy Price Data'!F3) -> 70.33 | E6: =IF('Proxy Price Data'!G3="","",'Proxy Price Data'!G3) -> 64.13 | F6: =IF('Proxy Price Data'!H3="","",'Proxy Price Data'!H3) -> 104.66 | G6: =IF('Proxy Price Data'!I3="","",'Proxy Price Data'!I3) -> 75.45 | H6: =IF('Proxy Price Data'!J3="","",'Proxy Price Data'!J3) -> 90.73 | I6: =IF('Proxy Price Data'!K3="","",'Proxy Price Data'!K3) -> 80.54 | J6: =IF('Proxy Price Data'!L3="","",'Proxy Price Data'!L3) -> 63.6 | K6: =IF('Proxy Price Data'!M3="","",'Proxy Price Data'!M3) -> 63.94 | L6: =IF('Proxy Price Data'!N3="","",'Proxy Price Data'!N3) -> 65.73 | M6: =IF('Proxy Price Data'!O3="","",'Proxy Price Data'!O3) -> 94.48 | N6: =IF('Proxy Price Data'!P3="","",'Proxy Price Data'!P3) -> 68.75 | O6: =IF('Proxy Price Data'!Q3="","",'Proxy Price Data'!Q3) -> 
A7: =IF('Proxy Price Data'!C4="","",'Proxy Price Data'!C4) -> 2021-08-30 | B7: =IF('Proxy Price Data'!D4="","",'Proxy Price Data'!D4) -> 88.49 | C7: =IF('Proxy Price Data'!E4="","",'Proxy Price Data'!E4) -> 41.6 | D7: =IF('Proxy Price Data'!F4="","",'Proxy Price Data'!F4) -> 70.66 | E7: =IF('Proxy Price Data'!G4="","",'Proxy Price Data'!G4) -> 64.48 | F7: =IF('Proxy Price Data'!H4="","",'Proxy Price Data'!H4) -> 104.79 | G7: =IF('Proxy Price Data'!I4="","",'Proxy Price Data'!I4) -> 75.7 | H7: =IF('Proxy Price Data'!J4="","",'Proxy Price Data'!J4) -> 91.05 | I7: =IF('Proxy Price Data'!K4="","",'Proxy Price Data'!K4) -> 80.81 | J7: =IF('Proxy Price Data'!L4="","",'Proxy Price Data'!L4) -> 63.64 | K7: =IF('Proxy Price Data'!M4="","",'Proxy Price Data'!M4) -> 64.24 | L7: =IF('Proxy Price Data'!N4="","",'Proxy Price Data'!N4) -> 65.75 | M7: =IF('Proxy Price Data'!O4="","",'Proxy Price Data'!O4) -> 95.02 | N7: =IF('Proxy Price Data'!P4="","",'Proxy Price Data'!P4) -> 69.03 | O7: =IF('Proxy Price Data'!Q4="","",'Proxy Price Data'!Q4) -> 
A8: =IF('Proxy Price Data'!C5="","",'Proxy Price Data'!C5) -> 2021-08-27 | B8: =IF('Proxy Price Data'!D5="","",'Proxy Price Data'!D5) -> 88.02 | C8: =IF('Proxy Price Data'!E5="","",'Proxy Price Data'!E5) -> 41.43 | D8: =IF('Proxy Price Data'!F5="","",'Proxy Price Data'!F5) -> 70.71 | E8: =IF('Proxy Price Data'!G5="","",'Proxy Price Data'!G5) -> 64.16 | F8: =IF('Proxy Price Data'!H5="","",'Proxy Price Data'!H5) -> 104.67 | G8: =IF('Proxy Price Data'!I5="","",'Proxy Price Data'!I5) -> 75.64 | H8: =IF('Proxy Price Data'!J5="","",'Proxy Price Data'!J5) -> 90.18 | I8: =IF('Proxy Price Data'!K5="","",'Proxy Price Data'!K5) -> 80.67 | J8: =IF('Proxy Price Data'!L5="","",'Proxy Price Data'!L5) -> 63.98 | K8: =IF('Proxy Price Data'!M5="","",'Proxy Price Data'!M5) -> 64.17 | L8: =IF('Proxy Price Data'!N5="","",'Proxy Price Data'!N5) -> 65.99 | M8: =IF('Proxy Price Data'!O5="","",'Proxy Price Data'!O5) -> 94.41 | N8: =IF('Proxy Price Data'!P5="","",'Proxy Price Data'!P5) -> 68.7 | O8: =IF('Proxy Price Data'!Q5="","",'Proxy Price Data'!Q5) -> 
A9: =IF('Proxy Price Data'!C6="","",'Proxy Price Data'!C6) -> 2021-08-26 | B9: =IF('Proxy Price Data'!D6="","",'Proxy Price Data'!D6) -> 87.62 | C9: =IF('Proxy Price Data'!E6="","",'Proxy Price Data'!E6) -> 41.17 | D9: =IF('Proxy Price Data'!F6="","",'Proxy Price Data'!F6) -> 70.21 | E9: =IF('Proxy Price Data'!G6="","",'Proxy Price Data'!G6) -> 63.84 | F9: =IF('Proxy Price Data'!H6="","",'Proxy Price Data'!H6) -> 104.85 | G9: =IF('Proxy Price Data'!I6="","",'Proxy Price Data'!I6) -> 75.22 | H9: =IF('Proxy Price Data'!J6="","",'Proxy Price Data'!J6) -> 90.29 | I9: =IF('Proxy Price Data'!K6="","",'Proxy Price Data'!K6) -> 79.78 | J9: =IF('Proxy Price Data'!L6="","",'Proxy Price Data'!L6) -> 62.95 | K9: =IF('Proxy Price Data'!M6="","",'Proxy Price Data'!M6) -> 63.79 | L9: =IF('Proxy Price Data'!N6="","",'Proxy Price Data'!N6) -> 66.14 | M9: =IF('Proxy Price Data'!O6="","",'Proxy Price Data'!O6) -> 94.38 | N9: =IF('Proxy Price Data'!P6="","",'Proxy Price Data'!P6) -> 68.3 | O9: =IF('Proxy Price Data'!Q6="","",'Proxy Price Data'!Q6) -> 
A10: =IF('Proxy Price Data'!C7="","",'Proxy Price Data'!C7) -> 2021-08-25 | B10: =IF('Proxy Price Data'!D7="","",'Proxy Price Data'!D7) -> 87.34 | C10: =IF('Proxy Price Data'!E7="","",'Proxy Price Data'!E7) -> 41.65 | D10: =IF('Proxy Price Data'!F7="","",'Proxy Price Data'!F7) -> 70.93 | E10: =IF('Proxy Price Data'!G7="","",'Proxy Price Data'!G7) -> 63.64 | F10: =IF('Proxy Price Data'!H7="","",'Proxy Price Data'!H7) -> 105.38 | G10: =IF('Proxy Price Data'!I7="","",'Proxy Price Data'!I7) -> 75.27 | H10: =IF('Proxy Price Data'!J7="","",'Proxy Price Data'!J7) -> 90.35 | I10: =IF('Proxy Price Data'!K7="","",'Proxy Price Data'!K7) -> 80.42 | J10: =IF('Proxy Price Data'!L7="","",'Proxy Price Data'!L7) -> 63.52 | K10: =IF('Proxy Price Data'!M7="","",'Proxy Price Data'!M7) -> 64.11 | L10: =IF('Proxy Price Data'!N7="","",'Proxy Price Data'!N7) -> 65.87 | M10: =IF('Proxy Price Data'!O7="","",'Proxy Price Data'!O7) -> 94.66 | N10: =IF('Proxy Price Data'!P7="","",'Proxy Price Data'!P7) -> 68.31 | O10: =IF('Proxy Price Data'!Q7="","",'Proxy Price Data'!Q7) -> 
A11: =IF('Proxy Price Data'!C8="","",'Proxy Price Data'!C8) -> 2021-08-24 | B11: =IF('Proxy Price Data'!D8="","",'Proxy Price Data'!D8) -> 87.14 | C11: =IF('Proxy Price Data'!E8="","",'Proxy Price Data'!E8) -> 41.87 | D11: =IF('Proxy Price Data'!F8="","",'Proxy Price Data'!F8) -> 70.84 | E11: =IF('Proxy Price Data'!G8="","",'Proxy Price Data'!G8) -> 63.54 | F11: =IF('Proxy Price Data'!H8="","",'Proxy Price Data'!H8) -> 105.15 | G11: =IF('Proxy Price Data'!I8="","",'Proxy Price Data'!I8) -> 75.02 | H11: =IF('Proxy Price Data'!J8="","",'Proxy Price Data'!J8) -> 90.88 | I11: =IF('Proxy Price Data'!K8="","",'Proxy Price Data'!K8) -> 80.94 | J11: =IF('Proxy Price Data'!L8="","",'Proxy Price Data'!L8) -> 63.41 | K11: =IF('Proxy Price Data'!M8="","",'Proxy Price Data'!M8) -> 63.81 | L11: =IF('Proxy Price Data'!N8="","",'Proxy Price Data'!N8) -> 65.73 | M11: =IF('Proxy Price Data'!O8="","",'Proxy Price Data'!O8) -> 94.45 | N11: =IF('Proxy Price Data'!P8="","",'Proxy Price Data'!P8) -> 68.29 | O11: =IF('Proxy Price Data'!Q8="","",'Proxy Price Data'!Q8) -> 
A12: =IF('Proxy Price Data'!C9="","",'Proxy Price Data'!C9) -> 2021-08-23 | B12: =IF('Proxy Price Data'!D9="","",'Proxy Price Data'!D9) -> 87.55 | C12: =IF('Proxy Price Data'!E9="","",'Proxy Price Data'!E9) -> 42.05 | D12: =IF('Proxy Price Data'!F9="","",'Proxy Price Data'!F9) -> 71.58 | E12: =IF('Proxy Price Data'!G9="","",'Proxy Price Data'!G9) -> 64.07 | F12: =IF('Proxy Price Data'!H9="","",'Proxy Price Data'!H9) -> 105.83 | G12: =IF('Proxy Price Data'!I9="","",'Proxy Price Data'!I9) -> 75.79 | H12: =IF('Proxy Price Data'!J9="","",'Proxy Price Data'!J9) -> 91.12 | I12: =IF('Proxy Price Data'!K9="","",'Proxy Price Data'!K9) -> 81.97 | J12: =IF('Proxy Price Data'!L9="","",'Proxy Price Data'!L9) -> 64.01 | K12: =IF('Proxy Price Data'!M9="","",'Proxy Price Data'!M9) -> 64.34 | L12: =IF('Proxy Price Data'!N9="","",'Proxy Price Data'!N9) -> 66.67 | M12: =IF('Proxy Price Data'!O9="","",'Proxy Price Data'!O9) -> 95.79 | N12: =IF('Proxy Price Data'!P9="","",'Proxy Price Data'!P9) -> 68.99 | O12: =IF('Proxy Price Data'!Q9="","",'Proxy Price Data'!Q9) -> 
A13: =IF('Proxy Price Data'!C10="","",'Proxy Price Data'!C10) -> 2021-08-20 | B13: =IF('Proxy Price Data'!D10="","",'Proxy Price Data'!D10) -> 89.59 | C13: =IF('Proxy Price Data'!E10="","",'Proxy Price Data'!E10) -> 42.56 | D13: =IF('Proxy Price Data'!F10="","",'Proxy Price Data'!F10) -> 72.59 | E13: =IF('Proxy Price Data'!G10="","",'Proxy Price Data'!G10) -> 64.81 | F13: =IF('Proxy Price Data'!H10="","",'Proxy Price Data'!H10) -> 107.21 | G13: =IF('Proxy Price Data'!I10="","",'Proxy Price Data'!I10) -> 76.95 | H13: =IF('Proxy Price Data'!J10="","",'Proxy Price Data'!J10) -> 92.11 | I13: =IF('Proxy Price Data'!K10="","",'Proxy Price Data'!K10) -> 82.46 | J13: =IF('Proxy Price Data'!L10="","",'Proxy Price Data'!L10) -> 64.57 | K13: =IF('Proxy Price Data'!M10="","",'Proxy Price Data'!M10) -> 64.95 | L13: =IF('Proxy Price Data'!N10="","",'Proxy Price Data'!N10) -> 67.32 | M13: =IF('Proxy Price Data'!O10="","",'Proxy Price Data'!O10) -> 97.59 | N13: =IF('Proxy Price Data'!P10="","",'Proxy Price Data'!P10) -> 70.61 | O13: =IF('Proxy Price Data'!Q10="","",'Proxy Price Data'!Q10) -> 
A14: =IF('Proxy Price Data'!C11="","",'Proxy Price Data'!C11) -> 2021-08-19 | B14: =IF('Proxy Price Data'!D11="","",'Proxy Price Data'!D11) -> 89.57 | C14: =IF('Proxy Price Data'!E11="","",'Proxy Price Data'!E11) -> 41.84 | D14: =IF('Proxy Price Data'!F11="","",'Proxy Price Data'!F11) -> 71.76 | E14: =IF('Proxy Price Data'!G11="","",'Proxy Price Data'!G11) -> 64.01 | F14: =IF('Proxy Price Data'!H11="","",'Proxy Price Data'!H11) -> 106.88 | G14: =IF('Proxy Price Data'!I11="","",'Proxy Price Data'!I11) -> 76.69 | H14: =IF('Proxy Price Data'!J11="","",'Proxy Price Data'!J11) -> 91.18 | I14: =IF('Proxy Price Data'!K11="","",'Proxy Price Data'!K11) -> 81.19 | J14: =IF('Proxy Price Data'!L11="","",'Proxy Price Data'!L11) -> 63.8 | K14: =IF('Proxy Price Data'!M11="","",'Proxy Price Data'!M11) -> 64.26 | L14: =IF('Proxy Price Data'!N11="","",'Proxy Price Data'!N11) -> 66.38 | M14: =IF('Proxy Price Data'!O11="","",'Proxy Price Data'!O11) -> 96.97 | N14: =IF('Proxy Price Data'!P11="","",'Proxy Price Data'!P11) -> 70.12 | O14: =IF('Proxy Price Data'!Q11="","",'Proxy Price Data'!Q11) -> 
A15: =IF('Proxy Price Data'!C12="","",'Proxy Price Data'!C12) -> 2021-08-18 | B15: =IF('Proxy Price Data'!D12="","",'Proxy Price Data'!D12) -> 89.28 | C15: =IF('Proxy Price Data'!E12="","",'Proxy Price Data'!E12) -> 41.96 | D15: =IF('Proxy Price Data'!F12="","",'Proxy Price Data'!F12) -> 71.84 | E15: =IF('Proxy Price Data'!G12="","",'Proxy Price Data'!G12) -> 63.82 | F15: =IF('Proxy Price Data'!H12="","",'Proxy Price Data'!H12) -> 107.05 | G15: =IF('Proxy Price Data'!I12="","",'Proxy Price Data'!I12) -> 76.6 | H15: =IF('Proxy Price Data'!J12="","",'Proxy Price Data'!J12) -> 90.22 | I15: =IF('Proxy Price Data'!K12="","",'Proxy Price Data'!K12) -> 80.78 | J15: =IF('Proxy Price Data'!L12="","",'Proxy Price Data'!L12) -> 63.64 | K15: =IF('Proxy Price Data'!M12="","",'Proxy Price Data'!M12) -> 64 | L15: =IF('Proxy Price Data'!N12="","",'Proxy Price Data'!N12) -> 66.01 | M15: =IF('Proxy Price Data'!O12="","",'Proxy Price Data'!O12) -> 96.46 | N15: =IF('Proxy Price Data'!P12="","",'Proxy Price Data'!P12) -> 69.33 | O15: =IF('Proxy Price Data'!Q12="","",'Proxy Price Data'!Q12) -> 
A16: =IF('Proxy Price Data'!C13="","",'Proxy Price Data'!C13) -> 2021-08-17 | B16: =IF('Proxy Price Data'!D13="","",'Proxy Price Data'!D13) -> 89.98 | C16: =IF('Proxy Price Data'!E13="","",'Proxy Price Data'!E13) -> 42.99 | D16: =IF('Proxy Price Data'!F13="","",'Proxy Price Data'!F13) -> 72.35 | E16: =IF('Proxy Price Data'!G13="","",'Proxy Price Data'!G13) -> 64.27 | F16: =IF('Proxy Price Data'!H13="","",'Proxy Price Data'!H13) -> 107.71 | G16: =IF('Proxy Price Data'!I13="","",'Proxy Price Data'!I13) -> 77.24 | H16: =IF('Proxy Price Data'!J13="","",'Proxy Price Data'!J13) -> 90.84 | I16: =IF('Proxy Price Data'!K13="","",'Proxy Price Data'!K13) -> 81.04 | J16: =IF('Proxy Price Data'!L13="","",'Proxy Price Data'!L13) -> 64.94 | K16: =IF('Proxy Price Data'!M13="","",'Proxy Price Data'!M13) -> 64.73 | L16: =IF('Proxy Price Data'!N13="","",'Proxy Price Data'!N13) -> 66.45 | M16: =IF('Proxy Price Data'!O13="","",'Proxy Price Data'!O13) -> 97.36 | N16: =IF('Proxy Price Data'!P13="","",'Proxy Price Data'!P13) -> 69.95 | O16: =IF('Proxy Price Data'!Q13="","",'Proxy Price Data'!Q13) -> 
A17: =IF('Proxy Price Data'!C14="","",'Proxy Price Data'!C14) -> 2021-08-16 | B17: =IF('Proxy Price Data'!D14="","",'Proxy Price Data'!D14) -> 89.61 | C17: =IF('Proxy Price Data'!E14="","",'Proxy Price Data'!E14) -> 42.26 | D17: =IF('Proxy Price Data'!F14="","",'Proxy Price Data'!F14) -> 72.39 | E17: =IF('Proxy Price Data'!G14="","",'Proxy Price Data'!G14) -> 63.87 | F17: =IF('Proxy Price Data'!H14="","",'Proxy Price Data'!H14) -> 107.81 | G17: =IF('Proxy Price Data'!I14="","",'Proxy Price Data'!I14) -> 78.25 | H17: =IF('Proxy Price Data'!J14="","",'Proxy Price Data'!J14) -> 90.81 | I17: =IF('Proxy Price Data'!K14="","",'Proxy Price Data'!K14) -> 81.22 | J17: =IF('Proxy Price Data'!L14="","",'Proxy Price Data'!L14) -> 63.79 | K17: =IF('Proxy Price Data'!M14="","",'Proxy Price Data'!M14) -> 64.82 | L17: =IF('Proxy Price Data'!N14="","",'Proxy Price Data'!N14) -> 66.38 | M17: =IF('Proxy Price Data'!O14="","",'Proxy Price Data'!O14) -> 97.18 | N17: =IF('Proxy Price Data'!P14="","",'Proxy Price Data'!P14) -> 69.77 | O17: =IF('Proxy Price Data'!Q14="","",'Proxy Price Data'!Q14) -> 
A18: =IF('Proxy Price Data'!C15="","",'Proxy Price Data'!C15) -> 2021-08-13 | B18: =IF('Proxy Price Data'!D15="","",'Proxy Price Data'!D15) -> 88.84 | C18: =IF('Proxy Price Data'!E15="","",'Proxy Price Data'!E15) -> 41.75 | D18: =IF('Proxy Price Data'!F15="","",'Proxy Price Data'!F15) -> 72.05 | E18: =IF('Proxy Price Data'!G15="","",'Proxy Price Data'!G15) -> 63.46 | F18: =IF('Proxy Price Data'!H15="","",'Proxy Price Data'!H15) -> 106 | G18: =IF('Proxy Price Data'!I15="","",'Proxy Price Data'!I15) -> 77.74 | H18: =IF('Proxy Price Data'!J15="","",'Proxy Price Data'!J15) -> 90.44 | I18: =IF('Proxy Price Data'!K15="","",'Proxy Price Data'!K15) -> 81.09 | J18: =IF('Proxy Price Data'!L15="","",'Proxy Price Data'!L15) -> 63.15 | K18: =IF('Proxy Price Data'!M15="","",'Proxy Price Data'!M15) -> 64.72 | L18: =IF('Proxy Price Data'!N15="","",'Proxy Price Data'!N15) -> 65.53 | M18: =IF('Proxy Price Data'!O15="","",'Proxy Price Data'!O15) -> 96.21 | N18: =IF('Proxy Price Data'!P15="","",'Proxy Price Data'!P15) -> 69.04 | O18: =IF('Proxy Price Data'!Q15="","",'Proxy Price Data'!Q15) -> 
A19: =IF('Proxy Price Data'!C16="","",'Proxy Price Data'!C16) -> 2021-08-12 | B19: =IF('Proxy Price Data'!D16="","",'Proxy Price Data'!D16) -> 87.92 | C19: =IF('Proxy Price Data'!E16="","",'Proxy Price Data'!E16) -> 41.9 | D19: =IF('Proxy Price Data'!F16="","",'Proxy Price Data'!F16) -> 71.21 | E19: =IF('Proxy Price Data'!G16="","",'Proxy Price Data'!G16) -> 63 | F19: =IF('Proxy Price Data'!H16="","",'Proxy Price Data'!H16) -> 105.69 | G19: =IF('Proxy Price Data'!I16="","",'Proxy Price Data'!I16) -> 77.25 | H19: =IF('Proxy Price Data'!J16="","",'Proxy Price Data'!J16) -> 89.6 | I19: =IF('Proxy Price Data'!K16="","",'Proxy Price Data'!K16) -> 80.57 | J19: =IF('Proxy Price Data'!L16="","",'Proxy Price Data'!L16) -> 62.51 | K19: =IF('Proxy Price Data'!M16="","",'Proxy Price Data'!M16) -> 63.85 | L19: =IF('Proxy Price Data'!N16="","",'Proxy Price Data'!N16) -> 65.72 | M19: =IF('Proxy Price Data'!O16="","",'Proxy Price Data'!O16) -> 95.6 | N19: =IF('Proxy Price Data'!P16="","",'Proxy Price Data'!P16) -> 68.79 | O19: =IF('Proxy Price Data'!Q16="","",'Proxy Price Data'!Q16) -> 
A20: =IF('Proxy Price Data'!C17="","",'Proxy Price Data'!C17) -> 2021-08-11 | B20: =IF('Proxy Price Data'!D17="","",'Proxy Price Data'!D17) -> 88.16 | C20: =IF('Proxy Price Data'!E17="","",'Proxy Price Data'!E17) -> 42.19 | D20: =IF('Proxy Price Data'!F17="","",'Proxy Price Data'!F17) -> 71.39 | E20: =IF('Proxy Price Data'!G17="","",'Proxy Price Data'!G17) -> 63.19 | F20: =IF('Proxy Price Data'!H17="","",'Proxy Price Data'!H17) -> 107.14 | G20: =IF('Proxy Price Data'!I17="","",'Proxy Price Data'!I17) -> 77.12 | H20: =IF('Proxy Price Data'!J17="","",'Proxy Price Data'!J17) -> 89.92 | I20: =IF('Proxy Price Data'!K17="","",'Proxy Price Data'!K17) -> 80.67 | J20: =IF('Proxy Price Data'!L17="","",'Proxy Price Data'!L17) -> 62.73 | K20: =IF('Proxy Price Data'!M17="","",'Proxy Price Data'!M17) -> 63.53 | L20: =IF('Proxy Price Data'!N17="","",'Proxy Price Data'!N17) -> 65.63 | M20: =IF('Proxy Price Data'!O17="","",'Proxy Price Data'!O17) -> 96.41 | N20: =IF('Proxy Price Data'!P17="","",'Proxy Price Data'!P17) -> 69.07 | O20: =IF('Proxy Price Data'!Q17="","",'Proxy Price Data'!Q17) -> 
A21: =IF('Proxy Price Data'!C18="","",'Proxy Price Data'!C18) -> 2021-08-10 | B21: =IF('Proxy Price Data'!D18="","",'Proxy Price Data'!D18) -> 87.68 | C21: =IF('Proxy Price Data'!E18="","",'Proxy Price Data'!E18) -> 42.14 | D21: =IF('Proxy Price Data'!F18="","",'Proxy Price Data'!F18) -> 70.24 | E21: =IF('Proxy Price Data'!G18="","",'Proxy Price Data'!G18) -> 62.94 | F21: =IF('Proxy Price Data'!H18="","",'Proxy Price Data'!H18) -> 106.9 | G21: =IF('Proxy Price Data'!I18="","",'Proxy Price Data'!I18) -> 76.4 | H21: =IF('Proxy Price Data'!J18="","",'Proxy Price Data'!J18) -> 88.92 | I21: =IF('Proxy Price Data'!K18="","",'Proxy Price Data'!K18) -> 80.06 | J21: =IF('Proxy Price Data'!L18="","",'Proxy Price Data'!L18) -> 62.24 | K21: =IF('Proxy Price Data'!M18="","",'Proxy Price Data'!M18) -> 62.9 | L21: =IF('Proxy Price Data'!N18="","",'Proxy Price Data'!N18) -> 65.21 | M21: =IF('Proxy Price Data'!O18="","",'Proxy Price Data'!O18) -> 96.1 | N21: =IF('Proxy Price Data'!P18="","",'Proxy Price Data'!P18) -> 68.71 | O21: =IF('Proxy Price Data'!Q18="","",'Proxy Price Data'!Q18) -> 
A22: =IF('Proxy Price Data'!C19="","",'Proxy Price Data'!C19) -> 2021-08-09 | B22: =IF('Proxy Price Data'!D19="","",'Proxy Price Data'!D19) -> 87.71 | C22: =IF('Proxy Price Data'!E19="","",'Proxy Price Data'!E19) -> 42.4 | D22: =IF('Proxy Price Data'!F19="","",'Proxy Price Data'!F19) -> 69.91 | E22: =IF('Proxy Price Data'!G19="","",'Proxy Price Data'!G19) -> 63.26 | F22: =IF('Proxy Price Data'!H19="","",'Proxy Price Data'!H19) -> 106.15 | G22: =IF('Proxy Price Data'!I19="","",'Proxy Price Data'!I19) -> 76.07 | H22: =IF('Proxy Price Data'!J19="","",'Proxy Price Data'!J19) -> 88.95 | I22: =IF('Proxy Price Data'!K19="","",'Proxy Price Data'!K19) -> 79.81 | J22: =IF('Proxy Price Data'!L19="","",'Proxy Price Data'!L19) -> 62.35 | K22: =IF('Proxy Price Data'!M19="","",'Proxy Price Data'!M19) -> 63.83 | L22: =IF('Proxy Price Data'!N19="","",'Proxy Price Data'!N19) -> 64.85 | M22: =IF('Proxy Price Data'!O19="","",'Proxy Price Data'!O19) -> 96.33 | N22: =IF('Proxy Price Data'!P19="","",'Proxy Price Data'!P19) -> 69.12 | O22: =IF('Proxy Price Data'!Q19="","",'Proxy Price Data'!Q19) -> 
A23: =IF('Proxy Price Data'!C20="","",'Proxy Price Data'!C20) -> 2021-08-06 | B23: =IF('Proxy Price Data'!D20="","",'Proxy Price Data'!D20) -> 86.86 | C23: =IF('Proxy Price Data'!E20="","",'Proxy Price Data'!E20) -> 42.67 | D23: =IF('Proxy Price Data'!F20="","",'Proxy Price Data'!F20) -> 70.25 | E23: =IF('Proxy Price Data'!G20="","",'Proxy Price Data'!G20) -> 63.27 | F23: =IF('Proxy Price Data'!H20="","",'Proxy Price Data'!H20) -> 106.96 | G23: =IF('Proxy Price Data'!I20="","",'Proxy Price Data'!I20) -> 75.52 | H23: =IF('Proxy Price Data'!J20="","",'Proxy Price Data'!J20) -> 88.96 | I23: =IF('Proxy Price Data'!K20="","",'Proxy Price Data'!K20) -> 80.52 | J23: =IF('Proxy Price Data'!L20="","",'Proxy Price Data'!L20) -> 62.59 | K23: =IF('Proxy Price Data'!M20="","",'Proxy Price Data'!M20) -> 63.86 | L23: =IF('Proxy Price Data'!N20="","",'Proxy Price Data'!N20) -> 64.7 | M23: =IF('Proxy Price Data'!O20="","",'Proxy Price Data'!O20) -> 96.31 | N23: =IF('Proxy Price Data'!P20="","",'Proxy Price Data'!P20) -> 69.08 | O23: =IF('Proxy Price Data'!Q20="","",'Proxy Price Data'!Q20) -> 
A24: =IF('Proxy Price Data'!C21="","",'Proxy Price Data'!C21) -> 2021-08-05 | B24: =IF('Proxy Price Data'!D21="","",'Proxy Price Data'!D21) -> 86.13 | C24: =IF('Proxy Price Data'!E21="","",'Proxy Price Data'!E21) -> 43.13 | D24: =IF('Proxy Price Data'!F21="","",'Proxy Price Data'!F21) -> 70.59 | E24: =IF('Proxy Price Data'!G21="","",'Proxy Price Data'!G21) -> 63.21 | F24: =IF('Proxy Price Data'!H21="","",'Proxy Price Data'!H21) -> 107.93 | G24: =IF('Proxy Price Data'!I21="","",'Proxy Price Data'!I21) -> 75.32 | H24: =IF('Proxy Price Data'!J21="","",'Proxy Price Data'!J21) -> 89.03 | I24: =IF('Proxy Price Data'!K21="","",'Proxy Price Data'!K21) -> 79.73 | J24: =IF('Proxy Price Data'!L21="","",'Proxy Price Data'!L21) -> 62.91 | K24: =IF('Proxy Price Data'!M21="","",'Proxy Price Data'!M21) -> 63.9 | L24: =IF('Proxy Price Data'!N21="","",'Proxy Price Data'!N21) -> 64.78 | M24: =IF('Proxy Price Data'!O21="","",'Proxy Price Data'!O21) -> 96.48 | N24: =IF('Proxy Price Data'!P21="","",'Proxy Price Data'!P21) -> 69.24 | O24: =IF('Proxy Price Data'!Q21="","",'Proxy Price Data'!Q21) -> 
A25: =IF('Proxy Price Data'!C22="","",'Proxy Price Data'!C22) -> 2021-08-04 | B25: =IF('Proxy Price Data'!D22="","",'Proxy Price Data'!D22) -> 85.25 | C25: =IF('Proxy Price Data'!E22="","",'Proxy Price Data'!E22) -> 42.77 | D25: =IF('Proxy Price Data'!F22="","",'Proxy Price Data'!F22) -> 69.96 | E25: =IF('Proxy Price Data'!G22="","",'Proxy Price Data'!G22) -> 63.26 | F25: =IF('Proxy Price Data'!H22="","",'Proxy Price Data'!H22) -> 106.73 | G25: =IF('Proxy Price Data'!I22="","",'Proxy Price Data'!I22) -> 74.87 | H25: =IF('Proxy Price Data'!J22="","",'Proxy Price Data'!J22) -> 88.17 | I25: =IF('Proxy Price Data'!K22="","",'Proxy Price Data'!K22) -> 79.48 | J25: =IF('Proxy Price Data'!L22="","",'Proxy Price Data'!L22) -> 61.94 | K25: =IF('Proxy Price Data'!M22="","",'Proxy Price Data'!M22) -> 63.27 | L25: =IF('Proxy Price Data'!N22="","",'Proxy Price Data'!N22) -> 64.03 | M25: =IF('Proxy Price Data'!O22="","",'Proxy Price Data'!O22) -> 95.83 | N25: =IF('Proxy Price Data'!P22="","",'Proxy Price Data'!P22) -> 68.95 | O25: =IF('Proxy Price Data'!Q22="","",'Proxy Price Data'!Q22) -> 
A26: =IF('Proxy Price Data'!C23="","",'Proxy Price Data'!C23) -> 2021-08-03 | B26: =IF('Proxy Price Data'!D23="","",'Proxy Price Data'!D23) -> 85.61 | C26: =IF('Proxy Price Data'!E23="","",'Proxy Price Data'!E23) -> 44.24 | D26: =IF('Proxy Price Data'!F23="","",'Proxy Price Data'!F23) -> 69.93 | E26: =IF('Proxy Price Data'!G23="","",'Proxy Price Data'!G23) -> 63.24 | F26: =IF('Proxy Price Data'!H23="","",'Proxy Price Data'!H23) -> 106.61 | G26: =IF('Proxy Price Data'!I23="","",'Proxy Price Data'!I23) -> 74.85 | H26: =IF('Proxy Price Data'!J23="","",'Proxy Price Data'!J23) -> 87.8 | I26: =IF('Proxy Price Data'!K23="","",'Proxy Price Data'!K23) -> 79.44 | J26: =IF('Proxy Price Data'!L23="","",'Proxy Price Data'!L23) -> 62.47 | K26: =IF('Proxy Price Data'!M23="","",'Proxy Price Data'!M23) -> 63.51 | L26: =IF('Proxy Price Data'!N23="","",'Proxy Price Data'!N23) -> 64.13 | M26: =IF('Proxy Price Data'!O23="","",'Proxy Price Data'!O23) -> 95.61 | N26: =IF('Proxy Price Data'!P23="","",'Proxy Price Data'!P23) -> 68.7 | O26: =IF('Proxy Price Data'!Q23="","",'Proxy Price Data'!Q23) -> 
A27: =IF('Proxy Price Data'!C24="","",'Proxy Price Data'!C24) -> 2021-08-02 | B27: =IF('Proxy Price Data'!D24="","",'Proxy Price Data'!D24) -> 84.81 | C27: =IF('Proxy Price Data'!E24="","",'Proxy Price Data'!E24) -> 42.96 | D27: =IF('Proxy Price Data'!F24="","",'Proxy Price Data'!F24) -> 68.03 | E27: =IF('Proxy Price Data'!G24="","",'Proxy Price Data'!G24) -> 62.66 | F27: =IF('Proxy Price Data'!H24="","",'Proxy Price Data'!H24) -> 106.19 | G27: =IF('Proxy Price Data'!I24="","",'Proxy Price Data'!I24) -> 74.5 | H27: =IF('Proxy Price Data'!J24="","",'Proxy Price Data'!J24) -> 87.3 | I27: =IF('Proxy Price Data'!K24="","",'Proxy Price Data'!K24) -> 78.49 | J27: =IF('Proxy Price Data'!L24="","",'Proxy Price Data'!L24) -> 61.92 | K27: =IF('Proxy Price Data'!M24="","",'Proxy Price Data'!M24) -> 62.86 | L27: =IF('Proxy Price Data'!N24="","",'Proxy Price Data'!N24) -> 64.08 | M27: =IF('Proxy Price Data'!O24="","",'Proxy Price Data'!O24) -> 94.7 | N27: =IF('Proxy Price Data'!P24="","",'Proxy Price Data'!P24) -> 68.56 | O27: =IF('Proxy Price Data'!Q24="","",'Proxy Price Data'!Q24) -> 
A28: =IF('Proxy Price Data'!C25="","",'Proxy Price Data'!C25) -> 2021-07-30 | B28: =IF('Proxy Price Data'!D25="","",'Proxy Price Data'!D25) -> 83.92 | C28: =IF('Proxy Price Data'!E25="","",'Proxy Price Data'!E25) -> 42.83 | D28: =IF('Proxy Price Data'!F25="","",'Proxy Price Data'!F25) -> 67.65 | E28: =IF('Proxy Price Data'!G25="","",'Proxy Price Data'!G25) -> 61.79 | F28: =IF('Proxy Price Data'!H25="","",'Proxy Price Data'!H25) -> 105.11 | G28: =IF('Proxy Price Data'!I25="","",'Proxy Price Data'!I25) -> 73.77 | H28: =IF('Proxy Price Data'!J25="","",'Proxy Price Data'!J25) -> 86.27 | I28: =IF('Proxy Price Data'!K25="","",'Proxy Price Data'!K25) -> 78.12 | J28: =IF('Proxy Price Data'!L25="","",'Proxy Price Data'!L25) -> 61.99 | K28: =IF('Proxy Price Data'!M25="","",'Proxy Price Data'!M25) -> 62.23 | L28: =IF('Proxy Price Data'!N25="","",'Proxy Price Data'!N25) -> 63.87 | M28: =IF('Proxy Price Data'!O25="","",'Proxy Price Data'!O25) -> 94.14 | N28: =IF('Proxy Price Data'!P25="","",'Proxy Price Data'!P25) -> 68.25 | O28: =IF('Proxy Price Data'!Q25="","",'Proxy Price Data'!Q25) -> 
A29: =IF('Proxy Price Data'!C26="","",'Proxy Price Data'!C26) -> 2021-07-29 | B29: =IF('Proxy Price Data'!D26="","",'Proxy Price Data'!D26) -> 84.27 | C29: =IF('Proxy Price Data'!E26="","",'Proxy Price Data'!E26) -> 43.35 | D29: =IF('Proxy Price Data'!F26="","",'Proxy Price Data'!F26) -> 68.24 | E29: =IF('Proxy Price Data'!G26="","",'Proxy Price Data'!G26) -> 62.35 | F29: =IF('Proxy Price Data'!H26="","",'Proxy Price Data'!H26) -> 105.68 | G29: =IF('Proxy Price Data'!I26="","",'Proxy Price Data'!I26) -> 74.52 | H29: =IF('Proxy Price Data'!J26="","",'Proxy Price Data'!J26) -> 86.39 | I29: =IF('Proxy Price Data'!K26="","",'Proxy Price Data'!K26) -> 78.31 | J29: =IF('Proxy Price Data'!L26="","",'Proxy Price Data'!L26) -> 62.46 | K29: =IF('Proxy Price Data'!M26="","",'Proxy Price Data'!M26) -> 63.07 | L29: =IF('Proxy Price Data'!N26="","",'Proxy Price Data'!N26) -> 64.46 | M29: =IF('Proxy Price Data'!O26="","",'Proxy Price Data'!O26) -> 94.58 | N29: =IF('Proxy Price Data'!P26="","",'Proxy Price Data'!P26) -> 68.79 | O29: =IF('Proxy Price Data'!Q26="","",'Proxy Price Data'!Q26) -> 
A30: =IF('Proxy Price Data'!C27="","",'Proxy Price Data'!C27) -> 2021-07-28 | B30: =IF('Proxy Price Data'!D27="","",'Proxy Price Data'!D27) -> 84.19 | C30: =IF('Proxy Price Data'!E27="","",'Proxy Price Data'!E27) -> 43.65 | D30: =IF('Proxy Price Data'!F27="","",'Proxy Price Data'!F27) -> 68.37 | E30: =IF('Proxy Price Data'!G27="","",'Proxy Price Data'!G27) -> 62.26 | F30: =IF('Proxy Price Data'!H27="","",'Proxy Price Data'!H27) -> 105.65 | G30: =IF('Proxy Price Data'!I27="","",'Proxy Price Data'!I27) -> 74.59 | H30: =IF('Proxy Price Data'!J27="","",'Proxy Price Data'!J27) -> 86.38 | I30: =IF('Proxy Price Data'!K27="","",'Proxy Price Data'!K27) -> 78.17 | J30: =IF('Proxy Price Data'!L27="","",'Proxy Price Data'!L27) -> 63.54 | K30: =IF('Proxy Price Data'!M27="","",'Proxy Price Data'!M27) -> 62.5 | L30: =IF('Proxy Price Data'!N27="","",'Proxy Price Data'!N27) -> 63.99 | M30: =IF('Proxy Price Data'!O27="","",'Proxy Price Data'!O27) -> 94.44 | N30: =IF('Proxy Price Data'!P27="","",'Proxy Price Data'!P27) -> 68.7 | O30: =IF('Proxy Price Data'!Q27="","",'Proxy Price Data'!Q27) -> 
A31: =IF('Proxy Price Data'!C28="","",'Proxy Price Data'!C28) -> 2021-07-27 | B31: =IF('Proxy Price Data'!D28="","",'Proxy Price Data'!D28) -> 84.99 | C31: =IF('Proxy Price Data'!E28="","",'Proxy Price Data'!E28) -> 43.31 | D31: =IF('Proxy Price Data'!F28="","",'Proxy Price Data'!F28) -> 68.06 | E31: =IF('Proxy Price Data'!G28="","",'Proxy Price Data'!G28) -> 63.22 | F31: =IF('Proxy Price Data'!H28="","",'Proxy Price Data'!H28) -> 106.36 | G31: =IF('Proxy Price Data'!I28="","",'Proxy Price Data'!I28) -> 75.53 | H31: =IF('Proxy Price Data'!J28="","",'Proxy Price Data'!J28) -> 87.6 | I31: =IF('Proxy Price Data'!K28="","",'Proxy Price Data'!K28) -> 78.07 | J31: =IF('Proxy Price Data'!L28="","",'Proxy Price Data'!L28) -> 62.72 | K31: =IF('Proxy Price Data'!M28="","",'Proxy Price Data'!M28) -> 62.85 | L31: =IF('Proxy Price Data'!N28="","",'Proxy Price Data'!N28) -> 64.54 | M31: =IF('Proxy Price Data'!O28="","",'Proxy Price Data'!O28) -> 96.5 | N31: =IF('Proxy Price Data'!P28="","",'Proxy Price Data'!P28) -> 69.46 | O31: =IF('Proxy Price Data'!Q28="","",'Proxy Price Data'!Q28) -> 
A32: =IF('Proxy Price Data'!C29="","",'Proxy Price Data'!C29) -> 2021-07-26 | B32: =IF('Proxy Price Data'!D29="","",'Proxy Price Data'!D29) -> 83.25 | C32: =IF('Proxy Price Data'!E29="","",'Proxy Price Data'!E29) -> 43.33 | D32: =IF('Proxy Price Data'!F29="","",'Proxy Price Data'!F29) -> 67.49 | E32: =IF('Proxy Price Data'!G29="","",'Proxy Price Data'!G29) -> 61.98 | F32: =IF('Proxy Price Data'!H29="","",'Proxy Price Data'!H29) -> 104.58 | G32: =IF('Proxy Price Data'!I29="","",'Proxy Price Data'!I29) -> 73.96 | H32: =IF('Proxy Price Data'!J29="","",'Proxy Price Data'!J29) -> 85.82 | I32: =IF('Proxy Price Data'!K29="","",'Proxy Price Data'!K29) -> 76.77 | J32: =IF('Proxy Price Data'!L29="","",'Proxy Price Data'!L29) -> 62.64 | K32: =IF('Proxy Price Data'!M29="","",'Proxy Price Data'!M29) -> 61.55 | L32: =IF('Proxy Price Data'!N29="","",'Proxy Price Data'!N29) -> 63.73 | M32: =IF('Proxy Price Data'!O29="","",'Proxy Price Data'!O29) -> 94.16 | N32: =IF('Proxy Price Data'!P29="","",'Proxy Price Data'!P29) -> 68.31 | O32: =IF('Proxy Price Data'!Q29="","",'Proxy Price Data'!Q29) -> 
A33: =IF('Proxy Price Data'!C30="","",'Proxy Price Data'!C30) -> 2021-07-23 | B33: =IF('Proxy Price Data'!D30="","",'Proxy Price Data'!D30) -> 83.39 | C33: =IF('Proxy Price Data'!E30="","",'Proxy Price Data'!E30) -> 43.18 | D33: =IF('Proxy Price Data'!F30="","",'Proxy Price Data'!F30) -> 67.66 | E33: =IF('Proxy Price Data'!G30="","",'Proxy Price Data'!G30) -> 62.08 | F33: =IF('Proxy Price Data'!H30="","",'Proxy Price Data'!H30) -> 104.47 | G33: =IF('Proxy Price Data'!I30="","",'Proxy Price Data'!I30) -> 74.18 | H33: =IF('Proxy Price Data'!J30="","",'Proxy Price Data'!J30) -> 86.22 | I33: =IF('Proxy Price Data'!K30="","",'Proxy Price Data'!K30) -> 77 | J33: =IF('Proxy Price Data'!L30="","",'Proxy Price Data'!L30) -> 62.99 | K33: =IF('Proxy Price Data'!M30="","",'Proxy Price Data'!M30) -> 61.22 | L33: =IF('Proxy Price Data'!N30="","",'Proxy Price Data'!N30) -> 63.86 | M33: =IF('Proxy Price Data'!O30="","",'Proxy Price Data'!O30) -> 94.03 | N33: =IF('Proxy Price Data'!P30="","",'Proxy Price Data'!P30) -> 68.27 | O33: =IF('Proxy Price Data'!Q30="","",'Proxy Price Data'!Q30) -> 
A34: =IF('Proxy Price Data'!C31="","",'Proxy Price Data'!C31) -> 2021-07-22 | B34: =IF('Proxy Price Data'!D31="","",'Proxy Price Data'!D31) -> 82.49 | C34: =IF('Proxy Price Data'!E31="","",'Proxy Price Data'!E31) -> 42.66 | D34: =IF('Proxy Price Data'!F31="","",'Proxy Price Data'!F31) -> 66.33 | E34: =IF('Proxy Price Data'!G31="","",'Proxy Price Data'!G31) -> 61.23 | F34: =IF('Proxy Price Data'!H31="","",'Proxy Price Data'!H31) -> 102.92 | G34: =IF('Proxy Price Data'!I31="","",'Proxy Price Data'!I31) -> 73.04 | H34: =IF('Proxy Price Data'!J31="","",'Proxy Price Data'!J31) -> 84.81 | I34: =IF('Proxy Price Data'!K31="","",'Proxy Price Data'!K31) -> 75.85 | J34: =IF('Proxy Price Data'!L31="","",'Proxy Price Data'!L31) -> 61.48 | K34: =IF('Proxy Price Data'!M31="","",'Proxy Price Data'!M31) -> 60.21 | L34: =IF('Proxy Price Data'!N31="","",'Proxy Price Data'!N31) -> 62.98 | M34: =IF('Proxy Price Data'!O31="","",'Proxy Price Data'!O31) -> 92.47 | N34: =IF('Proxy Price Data'!P31="","",'Proxy Price Data'!P31) -> 67.24 | O34: =IF('Proxy Price Data'!Q31="","",'Proxy Price Data'!Q31) -> 
A35: =IF('Proxy Price Data'!C32="","",'Proxy Price Data'!C32) -> 2021-07-21 | B35: =IF('Proxy Price Data'!D32="","",'Proxy Price Data'!D32) -> 82.3 | C35: =IF('Proxy Price Data'!E32="","",'Proxy Price Data'!E32) -> 42.9 | D35: =IF('Proxy Price Data'!F32="","",'Proxy Price Data'!F32) -> 67.12 | E35: =IF('Proxy Price Data'!G32="","",'Proxy Price Data'!G32) -> 61.04 | F35: =IF('Proxy Price Data'!H32="","",'Proxy Price Data'!H32) -> 103.16 | G35: =IF('Proxy Price Data'!I32="","",'Proxy Price Data'!I32) -> 72.78 | H35: =IF('Proxy Price Data'!J32="","",'Proxy Price Data'!J32) -> 83.78 | I35: =IF('Proxy Price Data'!K32="","",'Proxy Price Data'!K32) -> 76.34 | J35: =IF('Proxy Price Data'!L32="","",'Proxy Price Data'!L32) -> 61.94 | K35: =IF('Proxy Price Data'!M32="","",'Proxy Price Data'!M32) -> 60.05 | L35: =IF('Proxy Price Data'!N32="","",'Proxy Price Data'!N32) -> 62.82 | M35: =IF('Proxy Price Data'!O32="","",'Proxy Price Data'!O32) -> 92.1 | N35: =IF('Proxy Price Data'!P32="","",'Proxy Price Data'!P32) -> 67.06 | O35: =IF('Proxy Price Data'!Q32="","",'Proxy Price Data'!Q32) -> 
A36: =IF('Proxy Price Data'!C33="","",'Proxy Price Data'!C33) -> 2021-07-20 | B36: =IF('Proxy Price Data'!D33="","",'Proxy Price Data'!D33) -> 83.98 | C36: =IF('Proxy Price Data'!E33="","",'Proxy Price Data'!E33) -> 43.54 | D36: =IF('Proxy Price Data'!F33="","",'Proxy Price Data'!F33) -> 67.92 | E36: =IF('Proxy Price Data'!G33="","",'Proxy Price Data'!G33) -> 61.94 | F36: =IF('Proxy Price Data'!H33="","",'Proxy Price Data'!H33) -> 103.74 | G36: =IF('Proxy Price Data'!I33="","",'Proxy Price Data'!I33) -> 73.57 | H36: =IF('Proxy Price Data'!J33="","",'Proxy Price Data'!J33) -> 85.94 | I36: =IF('Proxy Price Data'!K33="","",'Proxy Price Data'!K33) -> 77.01 | J36: =IF('Proxy Price Data'!L33="","",'Proxy Price Data'!L33) -> 62.27 | K36: =IF('Proxy Price Data'!M33="","",'Proxy Price Data'!M33) -> 60.67 | L36: =IF('Proxy Price Data'!N33="","",'Proxy Price Data'!N33) -> 62.95 | M36: =IF('Proxy Price Data'!O33="","",'Proxy Price Data'!O33) -> 93.82 | N36: =IF('Proxy Price Data'!P33="","",'Proxy Price Data'!P33) -> 68.16 | O36: =IF('Proxy Price Data'!Q33="","",'Proxy Price Data'!Q33) -> 
A37: =IF('Proxy Price Data'!C34="","",'Proxy Price Data'!C34) -> 2021-07-19 | B37: =IF('Proxy Price Data'!D34="","",'Proxy Price Data'!D34) -> 83.98 | C37: =IF('Proxy Price Data'!E34="","",'Proxy Price Data'!E34) -> 42.9 | D37: =IF('Proxy Price Data'!F34="","",'Proxy Price Data'!F34) -> 66.37 | E37: =IF('Proxy Price Data'!G34="","",'Proxy Price Data'!G34) -> 61.45 | F37: =IF('Proxy Price Data'!H34="","",'Proxy Price Data'!H34) -> 103.89 | G37: =IF('Proxy Price Data'!I34="","",'Proxy Price Data'!I34) -> 73.77 | H37: =IF('Proxy Price Data'!J34="","",'Proxy Price Data'!J34) -> 86.23 | I37: =IF('Proxy Price Data'!K34="","",'Proxy Price Data'!K34) -> 76.29 | J37: =IF('Proxy Price Data'!L34="","",'Proxy Price Data'!L34) -> 61.17 | K37: =IF('Proxy Price Data'!M34="","",'Proxy Price Data'!M34) -> 60.19 | L37: =IF('Proxy Price Data'!N34="","",'Proxy Price Data'!N34) -> 62.79 | M37: =IF('Proxy Price Data'!O34="","",'Proxy Price Data'!O34) -> 94.23 | N37: =IF('Proxy Price Data'!P34="","",'Proxy Price Data'!P34) -> 68.27 | O37: =IF('Proxy Price Data'!Q34="","",'Proxy Price Data'!Q34) -> 
A38: =IF('Proxy Price Data'!C35="","",'Proxy Price Data'!C35) -> 2021-07-16 | B38: =IF('Proxy Price Data'!D35="","",'Proxy Price Data'!D35) -> 85.06 | C38: =IF('Proxy Price Data'!E35="","",'Proxy Price Data'!E35) -> 43 | D38: =IF('Proxy Price Data'!F35="","",'Proxy Price Data'!F35) -> 68.48 | E38: =IF('Proxy Price Data'!G35="","",'Proxy Price Data'!G35) -> 62.01 | F38: =IF('Proxy Price Data'!H35="","",'Proxy Price Data'!H35) -> 104.76 | G38: =IF('Proxy Price Data'!I35="","",'Proxy Price Data'!I35) -> 74.93 | H38: =IF('Proxy Price Data'!J35="","",'Proxy Price Data'!J35) -> 87.36 | I38: =IF('Proxy Price Data'!K35="","",'Proxy Price Data'!K35) -> 78.03 | J38: =IF('Proxy Price Data'!L35="","",'Proxy Price Data'!L35) -> 62.83 | K38: =IF('Proxy Price Data'!M35="","",'Proxy Price Data'!M35) -> 61.74 | L38: =IF('Proxy Price Data'!N35="","",'Proxy Price Data'!N35) -> 63.11 | M38: =IF('Proxy Price Data'!O35="","",'Proxy Price Data'!O35) -> 95.44 | N38: =IF('Proxy Price Data'!P35="","",'Proxy Price Data'!P35) -> 69.13 | O38: =IF('Proxy Price Data'!Q35="","",'Proxy Price Data'!Q35) -> 
A39: =IF('Proxy Price Data'!C36="","",'Proxy Price Data'!C36) -> 2021-07-15 | B39: =IF('Proxy Price Data'!D36="","",'Proxy Price Data'!D36) -> 84.07 | C39: =IF('Proxy Price Data'!E36="","",'Proxy Price Data'!E36) -> 42.74 | D39: =IF('Proxy Price Data'!F36="","",'Proxy Price Data'!F36) -> 67.87 | E39: =IF('Proxy Price Data'!G36="","",'Proxy Price Data'!G36) -> 61.51 | F39: =IF('Proxy Price Data'!H36="","",'Proxy Price Data'!H36) -> 103.94 | G39: =IF('Proxy Price Data'!I36="","",'Proxy Price Data'!I36) -> 74.36 | H39: =IF('Proxy Price Data'!J36="","",'Proxy Price Data'!J36) -> 86.11 | I39: =IF('Proxy Price Data'!K36="","",'Proxy Price Data'!K36) -> 77.16 | J39: =IF('Proxy Price Data'!L36="","",'Proxy Price Data'!L36) -> 62.81 | K39: =IF('Proxy Price Data'!M36="","",'Proxy Price Data'!M36) -> 61.19 | L39: =IF('Proxy Price Data'!N36="","",'Proxy Price Data'!N36) -> 62.67 | M39: =IF('Proxy Price Data'!O36="","",'Proxy Price Data'!O36) -> 94.75 | N39: =IF('Proxy Price Data'!P36="","",'Proxy Price Data'!P36) -> 68.72 | O39: =IF('Proxy Price Data'!Q36="","",'Proxy Price Data'!Q36) -> 
A40: =IF('Proxy Price Data'!C37="","",'Proxy Price Data'!C37) -> 2021-07-14 | B40: =IF('Proxy Price Data'!D37="","",'Proxy Price Data'!D37) -> 83.22 | C40: =IF('Proxy Price Data'!E37="","",'Proxy Price Data'!E37) -> 41.97 | D40: =IF('Proxy Price Data'!F37="","",'Proxy Price Data'!F37) -> 66.46 | E40: =IF('Proxy Price Data'!G37="","",'Proxy Price Data'!G37) -> 60.48 | F40: =IF('Proxy Price Data'!H37="","",'Proxy Price Data'!H37) -> 102.7 | G40: =IF('Proxy Price Data'!I37="","",'Proxy Price Data'!I37) -> 73.19 | H40: =IF('Proxy Price Data'!J37="","",'Proxy Price Data'!J37) -> 84.04 | I40: =IF('Proxy Price Data'!K37="","",'Proxy Price Data'!K37) -> 75.75 | J40: =IF('Proxy Price Data'!L37="","",'Proxy Price Data'!L37) -> 61.56 | K40: =IF('Proxy Price Data'!M37="","",'Proxy Price Data'!M37) -> 60.39 | L40: =IF('Proxy Price Data'!N37="","",'Proxy Price Data'!N37) -> 61.89 | M40: =IF('Proxy Price Data'!O37="","",'Proxy Price Data'!O37) -> 93.15 | N40: =IF('Proxy Price Data'!P37="","",'Proxy Price Data'!P37) -> 68.09 | O40: =IF('Proxy Price Data'!Q37="","",'Proxy Price Data'!Q37) -> 
A41: =IF('Proxy Price Data'!C38="","",'Proxy Price Data'!C38) -> 2021-07-13 | B41: =IF('Proxy Price Data'!D38="","",'Proxy Price Data'!D38) -> 82.63 | C41: =IF('Proxy Price Data'!E38="","",'Proxy Price Data'!E38) -> 41.79 | D41: =IF('Proxy Price Data'!F38="","",'Proxy Price Data'!F38) -> 66.09 | E41: =IF('Proxy Price Data'!G38="","",'Proxy Price Data'!G38) -> 60 | F41: =IF('Proxy Price Data'!H38="","",'Proxy Price Data'!H38) -> 101.53 | G41: =IF('Proxy Price Data'!I38="","",'Proxy Price Data'!I38) -> 72.63 | H41: =IF('Proxy Price Data'!J38="","",'Proxy Price Data'!J38) -> 82.93 | I41: =IF('Proxy Price Data'!K38="","",'Proxy Price Data'!K38) -> 75.08 | J41: =IF('Proxy Price Data'!L38="","",'Proxy Price Data'!L38) -> 61.13 | K41: =IF('Proxy Price Data'!M38="","",'Proxy Price Data'!M38) -> 59.83 | L41: =IF('Proxy Price Data'!N38="","",'Proxy Price Data'!N38) -> 61.34 | M41: =IF('Proxy Price Data'!O38="","",'Proxy Price Data'!O38) -> 91.89 | N41: =IF('Proxy Price Data'!P38="","",'Proxy Price Data'!P38) -> 67.58 | O41: =IF('Proxy Price Data'!Q38="","",'Proxy Price Data'!Q38) -> 
A42: =IF('Proxy Price Data'!C39="","",'Proxy Price Data'!C39) -> 2021-07-12 | B42: =IF('Proxy Price Data'!D39="","",'Proxy Price Data'!D39) -> 82.88 | C42: =IF('Proxy Price Data'!E39="","",'Proxy Price Data'!E39) -> 42.56 | D42: =IF('Proxy Price Data'!F39="","",'Proxy Price Data'!F39) -> 66.81 | E42: =IF('Proxy Price Data'!G39="","",'Proxy Price Data'!G39) -> 60.36 | F42: =IF('Proxy Price Data'!H39="","",'Proxy Price Data'!H39) -> 101.53 | G42: =IF('Proxy Price Data'!I39="","",'Proxy Price Data'!I39) -> 73.36 | H42: =IF('Proxy Price Data'!J39="","",'Proxy Price Data'!J39) -> 82.5 | I42: =IF('Proxy Price Data'!K39="","",'Proxy Price Data'!K39) -> 76 | J42: =IF('Proxy Price Data'!L39="","",'Proxy Price Data'!L39) -> 61.42 | K42: =IF('Proxy Price Data'!M39="","",'Proxy Price Data'!M39) -> 60.7 | L42: =IF('Proxy Price Data'!N39="","",'Proxy Price Data'!N39) -> 61.8 | M42: =IF('Proxy Price Data'!O39="","",'Proxy Price Data'!O39) -> 92.37 | N42: =IF('Proxy Price Data'!P39="","",'Proxy Price Data'!P39) -> 67.84 | O42: =IF('Proxy Price Data'!Q39="","",'Proxy Price Data'!Q39) -> 
A43: =IF('Proxy Price Data'!C40="","",'Proxy Price Data'!C40) -> 2021-07-09 | B43: =IF('Proxy Price Data'!D40="","",'Proxy Price Data'!D40) -> 81.92 | C43: =IF('Proxy Price Data'!E40="","",'Proxy Price Data'!E40) -> 42.53 | D43: =IF('Proxy Price Data'!F40="","",'Proxy Price Data'!F40) -> 66.66 | E43: =IF('Proxy Price Data'!G40="","",'Proxy Price Data'!G40) -> 60.31 | F43: =IF('Proxy Price Data'!H40="","",'Proxy Price Data'!H40) -> 100.66 | G43: =IF('Proxy Price Data'!I40="","",'Proxy Price Data'!I40) -> 73.3 | H43: =IF('Proxy Price Data'!J40="","",'Proxy Price Data'!J40) -> 82.63 | I43: =IF('Proxy Price Data'!K40="","",'Proxy Price Data'!K40) -> 76.22 | J43: =IF('Proxy Price Data'!L40="","",'Proxy Price Data'!L40) -> 60.83 | K43: =IF('Proxy Price Data'!M40="","",'Proxy Price Data'!M40) -> 60.49 | L43: =IF('Proxy Price Data'!N40="","",'Proxy Price Data'!N40) -> 61.47 | M43: =IF('Proxy Price Data'!O40="","",'Proxy Price Data'!O40) -> 91.84 | N43: =IF('Proxy Price Data'!P40="","",'Proxy Price Data'!P40) -> 67.67 | O43: =IF('Proxy Price Data'!Q40="","",'Proxy Price Data'!Q40) -> 
A44: =IF('Proxy Price Data'!C41="","",'Proxy Price Data'!C41) -> 2021-07-08 | B44: =IF('Proxy Price Data'!D41="","",'Proxy Price Data'!D41) -> 82.06 | C44: =IF('Proxy Price Data'!E41="","",'Proxy Price Data'!E41) -> 42.19 | D44: =IF('Proxy Price Data'!F41="","",'Proxy Price Data'!F41) -> 65.61 | E44: =IF('Proxy Price Data'!G41="","",'Proxy Price Data'!G41) -> 60.27 | F44: =IF('Proxy Price Data'!H41="","",'Proxy Price Data'!H41) -> 100.56 | G44: =IF('Proxy Price Data'!I41="","",'Proxy Price Data'!I41) -> 73.36 | H44: =IF('Proxy Price Data'!J41="","",'Proxy Price Data'!J41) -> 82.61 | I44: =IF('Proxy Price Data'!K41="","",'Proxy Price Data'!K41) -> 75.38 | J44: =IF('Proxy Price Data'!L41="","",'Proxy Price Data'!L41) -> 60.28 | K44: =IF('Proxy Price Data'!M41="","",'Proxy Price Data'!M41) -> 60.54 | L44: =IF('Proxy Price Data'!N41="","",'Proxy Price Data'!N41) -> 61.55 | M44: =IF('Proxy Price Data'!O41="","",'Proxy Price Data'!O41) -> 92.21 | N44: =IF('Proxy Price Data'!P41="","",'Proxy Price Data'!P41) -> 67.5 | O44: =IF('Proxy Price Data'!Q41="","",'Proxy Price Data'!Q41) -> 
A45: =IF('Proxy Price Data'!C42="","",'Proxy Price Data'!C42) -> 2021-07-07 | B45: =IF('Proxy Price Data'!D42="","",'Proxy Price Data'!D42) -> 82.32 | C45: =IF('Proxy Price Data'!E42="","",'Proxy Price Data'!E42) -> 42.69 | D45: =IF('Proxy Price Data'!F42="","",'Proxy Price Data'!F42) -> 66 | E45: =IF('Proxy Price Data'!G42="","",'Proxy Price Data'!G42) -> 60.15 | F45: =IF('Proxy Price Data'!H42="","",'Proxy Price Data'!H42) -> 100.37 | G45: =IF('Proxy Price Data'!I42="","",'Proxy Price Data'!I42) -> 73.34 | H45: =IF('Proxy Price Data'!J42="","",'Proxy Price Data'!J42) -> 82.7 | I45: =IF('Proxy Price Data'!K42="","",'Proxy Price Data'!K42) -> 75.24 | J45: =IF('Proxy Price Data'!L42="","",'Proxy Price Data'!L42) -> 61.09 | K45: =IF('Proxy Price Data'!M42="","",'Proxy Price Data'!M42) -> 60.85 | L45: =IF('Proxy Price Data'!N42="","",'Proxy Price Data'!N42) -> 61.69 | M45: =IF('Proxy Price Data'!O42="","",'Proxy Price Data'!O42) -> 91.79 | N45: =IF('Proxy Price Data'!P42="","",'Proxy Price Data'!P42) -> 67.69 | O45: =IF('Proxy Price Data'!Q42="","",'Proxy Price Data'!Q42) -> 
A46: =IF('Proxy Price Data'!C43="","",'Proxy Price Data'!C43) -> 2021-07-06 | B46: =IF('Proxy Price Data'!D43="","",'Proxy Price Data'!D43) -> 81.4 | C46: =IF('Proxy Price Data'!E43="","",'Proxy Price Data'!E43) -> 42.59 | D46: =IF('Proxy Price Data'!F43="","",'Proxy Price Data'!F43) -> 65.49 | E46: =IF('Proxy Price Data'!G43="","",'Proxy Price Data'!G43) -> 59.81 | F46: =IF('Proxy Price Data'!H43="","",'Proxy Price Data'!H43) -> 99.83 | G46: =IF('Proxy Price Data'!I43="","",'Proxy Price Data'!I43) -> 72.94 | H46: =IF('Proxy Price Data'!J43="","",'Proxy Price Data'!J43) -> 81.04 | I46: =IF('Proxy Price Data'!K43="","",'Proxy Price Data'!K43) -> 74.25 | J46: =IF('Proxy Price Data'!L43="","",'Proxy Price Data'!L43) -> 60.19 | K46: =IF('Proxy Price Data'!M43="","",'Proxy Price Data'!M43) -> 60.3 | L46: =IF('Proxy Price Data'!N43="","",'Proxy Price Data'!N43) -> 61.64 | M46: =IF('Proxy Price Data'!O43="","",'Proxy Price Data'!O43) -> 90.7 | N46: =IF('Proxy Price Data'!P43="","",'Proxy Price Data'!P43) -> 67.07 | O46: =IF('Proxy Price Data'!Q43="","",'Proxy Price Data'!Q43) -> 
A47: =IF('Proxy Price Data'!C44="","",'Proxy Price Data'!C44) -> 2021-07-02 | B47: =IF('Proxy Price Data'!D44="","",'Proxy Price Data'!D44) -> 80.7 | C47: =IF('Proxy Price Data'!E44="","",'Proxy Price Data'!E44) -> 42.56 | D47: =IF('Proxy Price Data'!F44="","",'Proxy Price Data'!F44) -> 65.77 | E47: =IF('Proxy Price Data'!G44="","",'Proxy Price Data'!G44) -> 59.91 | F47: =IF('Proxy Price Data'!H44="","",'Proxy Price Data'!H44) -> 99.51 | G47: =IF('Proxy Price Data'!I44="","",'Proxy Price Data'!I44) -> 72.47 | H47: =IF('Proxy Price Data'!J44="","",'Proxy Price Data'!J44) -> 80.7 | I47: =IF('Proxy Price Data'!K44="","",'Proxy Price Data'!K44) -> 74.53 | J47: =IF('Proxy Price Data'!L44="","",'Proxy Price Data'!L44) -> 60.42 | K47: =IF('Proxy Price Data'!M44="","",'Proxy Price Data'!M44) -> 60.1 | L47: =IF('Proxy Price Data'!N44="","",'Proxy Price Data'!N44) -> 61.53 | M47: =IF('Proxy Price Data'!O44="","",'Proxy Price Data'!O44) -> 90.02 | N47: =IF('Proxy Price Data'!P44="","",'Proxy Price Data'!P44) -> 66.82 | O47: =IF('Proxy Price Data'!Q44="","",'Proxy Price Data'!Q44) -> 
A48: =IF('Proxy Price Data'!C45="","",'Proxy Price Data'!C45) -> 2021-07-01 | B48: =IF('Proxy Price Data'!D45="","",'Proxy Price Data'!D45) -> 80.7 | C48: =IF('Proxy Price Data'!E45="","",'Proxy Price Data'!E45) -> 42.97 | D48: =IF('Proxy Price Data'!F45="","",'Proxy Price Data'!F45) -> 66.21 | E48: =IF('Proxy Price Data'!G45="","",'Proxy Price Data'!G45) -> 60.07 | F48: =IF('Proxy Price Data'!H45="","",'Proxy Price Data'!H45) -> 99.55 | G48: =IF('Proxy Price Data'!I45="","",'Proxy Price Data'!I45) -> 72.54 | H48: =IF('Proxy Price Data'!J45="","",'Proxy Price Data'!J45) -> 79.86 | I48: =IF('Proxy Price Data'!K45="","",'Proxy Price Data'!K45) -> 75.18 | J48: =IF('Proxy Price Data'!L45="","",'Proxy Price Data'!L45) -> 60.96 | K48: =IF('Proxy Price Data'!M45="","",'Proxy Price Data'!M45) -> 60.24 | L48: =IF('Proxy Price Data'!N45="","",'Proxy Price Data'!N45) -> 61.48 | M48: =IF('Proxy Price Data'!O45="","",'Proxy Price Data'!O45) -> 90.19 | N48: =IF('Proxy Price Data'!P45="","",'Proxy Price Data'!P45) -> 67.03 | O48: =IF('Proxy Price Data'!Q45="","",'Proxy Price Data'!Q45) -> 
A49: =IF('Proxy Price Data'!C46="","",'Proxy Price Data'!C46) -> 2021-06-30 | B49: =IF('Proxy Price Data'!D46="","",'Proxy Price Data'!D46) -> 80.04 | C49: =IF('Proxy Price Data'!E46="","",'Proxy Price Data'!E46) -> 42.67 | D49: =IF('Proxy Price Data'!F46="","",'Proxy Price Data'!F46) -> 65.63 | E49: =IF('Proxy Price Data'!G46="","",'Proxy Price Data'!G46) -> 59.08 | F49: =IF('Proxy Price Data'!H46="","",'Proxy Price Data'!H46) -> 98.72 | G49: =IF('Proxy Price Data'!I46="","",'Proxy Price Data'!I46) -> 71.72 | H49: =IF('Proxy Price Data'!J46="","",'Proxy Price Data'!J46) -> 80.24 | I49: =IF('Proxy Price Data'!K46="","",'Proxy Price Data'!K46) -> 74.44 | J49: =IF('Proxy Price Data'!L46="","",'Proxy Price Data'!L46) -> 60.22 | K49: =IF('Proxy Price Data'!M46="","",'Proxy Price Data'!M46) -> 59.74 | L49: =IF('Proxy Price Data'!N46="","",'Proxy Price Data'!N46) -> 60.51 | M49: =IF('Proxy Price Data'!O46="","",'Proxy Price Data'!O46) -> 88.95 | N49: =IF('Proxy Price Data'!P46="","",'Proxy Price Data'!P46) -> 65.88 | O49: =IF('Proxy Price Data'!Q46="","",'Proxy Price Data'!Q46) -> 
A50: =IF('Proxy Price Data'!C47="","",'Proxy Price Data'!C47) -> 2021-06-29 | B50: =IF('Proxy Price Data'!D47="","",'Proxy Price Data'!D47) -> 79.91 | C50: =IF('Proxy Price Data'!E47="","",'Proxy Price Data'!E47) -> 42.88 | D50: =IF('Proxy Price Data'!F47="","",'Proxy Price Data'!F47) -> 65.63 | E50: =IF('Proxy Price Data'!G47="","",'Proxy Price Data'!G47) -> 58.85 | F50: =IF('Proxy Price Data'!H47="","",'Proxy Price Data'!H47) -> 98.12 | G50: =IF('Proxy Price Data'!I47="","",'Proxy Price Data'!I47) -> 72.05 | H50: =IF('Proxy Price Data'!J47="","",'Proxy Price Data'!J47) -> 80.13 | I50: =IF('Proxy Price Data'!K47="","",'Proxy Price Data'!K47) -> 74.11 | J50: =IF('Proxy Price Data'!L47="","",'Proxy Price Data'!L47) -> 59.7 | K50: =IF('Proxy Price Data'!M47="","",'Proxy Price Data'!M47) -> 59.49 | L50: =IF('Proxy Price Data'!N47="","",'Proxy Price Data'!N47) -> 60.46 | M50: =IF('Proxy Price Data'!O47="","",'Proxy Price Data'!O47) -> 89.02 | N50: =IF('Proxy Price Data'!P47="","",'Proxy Price Data'!P47) -> 65.71 | O50: =IF('Proxy Price Data'!Q47="","",'Proxy Price Data'!Q47) -> 
A51: =IF('Proxy Price Data'!C48="","",'Proxy Price Data'!C48) -> 2021-06-28 | B51: =IF('Proxy Price Data'!D48="","",'Proxy Price Data'!D48) -> 81.92 | C51: =IF('Proxy Price Data'!E48="","",'Proxy Price Data'!E48) -> 43.48 | D51: =IF('Proxy Price Data'!F48="","",'Proxy Price Data'!F48) -> 67.46 | E51: =IF('Proxy Price Data'!G48="","",'Proxy Price Data'!G48) -> 60.01 | F51: =IF('Proxy Price Data'!H48="","",'Proxy Price Data'!H48) -> 100.01 | G51: =IF('Proxy Price Data'!I48="","",'Proxy Price Data'!I48) -> 73.82 | H51: =IF('Proxy Price Data'!J48="","",'Proxy Price Data'!J48) -> 81.46 | I51: =IF('Proxy Price Data'!K48="","",'Proxy Price Data'!K48) -> 75.42 | J51: =IF('Proxy Price Data'!L48="","",'Proxy Price Data'!L48) -> 60.95 | K51: =IF('Proxy Price Data'!M48="","",'Proxy Price Data'!M48) -> 60.24 | L51: =IF('Proxy Price Data'!N48="","",'Proxy Price Data'!N48) -> 61.49 | M51: =IF('Proxy Price Data'!O48="","",'Proxy Price Data'!O48) -> 90.96 | N51: =IF('Proxy Price Data'!P48="","",'Proxy Price Data'!P48) -> 67.06 | O51: =IF('Proxy Price Data'!Q48="","",'Proxy Price Data'!Q48) -> 
A52: =IF('Proxy Price Data'!C49="","",'Proxy Price Data'!C49) -> 2021-06-25 | B52: =IF('Proxy Price Data'!D49="","",'Proxy Price Data'!D49) -> 81.74 | C52: =IF('Proxy Price Data'!E49="","",'Proxy Price Data'!E49) -> 43.57 | D52: =IF('Proxy Price Data'!F49="","",'Proxy Price Data'!F49) -> 67.98 | E52: =IF('Proxy Price Data'!G49="","",'Proxy Price Data'!G49) -> 60.13 | F52: =IF('Proxy Price Data'!H49="","",'Proxy Price Data'!H49) -> 99.72 | G52: =IF('Proxy Price Data'!I49="","",'Proxy Price Data'!I49) -> 73.87 | H52: =IF('Proxy Price Data'!J49="","",'Proxy Price Data'!J49) -> 80.29 | I52: =IF('Proxy Price Data'!K49="","",'Proxy Price Data'!K49) -> 76 | J52: =IF('Proxy Price Data'!L49="","",'Proxy Price Data'!L49) -> 61.1 | K52: =IF('Proxy Price Data'!M49="","",'Proxy Price Data'!M49) -> 59.86 | L52: =IF('Proxy Price Data'!N49="","",'Proxy Price Data'!N49) -> 61.53 | M52: =IF('Proxy Price Data'!O49="","",'Proxy Price Data'!O49) -> 90.1 | N52: =IF('Proxy Price Data'!P49="","",'Proxy Price Data'!P49) -> 67.1 | O52: =IF('Proxy Price Data'!Q49="","",'Proxy Price Data'!Q49) -> 
A53: =IF('Proxy Price Data'!C50="","",'Proxy Price Data'!C50) -> 2021-06-24 | B53: =IF('Proxy Price Data'!D50="","",'Proxy Price Data'!D50) -> 81.25 | C53: =IF('Proxy Price Data'!E50="","",'Proxy Price Data'!E50) -> 43.34 | D53: =IF('Proxy Price Data'!F50="","",'Proxy Price Data'!F50) -> 67.59 | E53: =IF('Proxy Price Data'!G50="","",'Proxy Price Data'!G50) -> 59.1 | F53: =IF('Proxy Price Data'!H50="","",'Proxy Price Data'!H50) -> 99.07 | G53: =IF('Proxy Price Data'!I50="","",'Proxy Price Data'!I50) -> 73.43 | H53: =IF('Proxy Price Data'!J50="","",'Proxy Price Data'!J50) -> 79.28 | I53: =IF('Proxy Price Data'!K50="","",'Proxy Price Data'!K50) -> 75.16 | J53: =IF('Proxy Price Data'!L50="","",'Proxy Price Data'!L50) -> 60.92 | K53: =IF('Proxy Price Data'!M50="","",'Proxy Price Data'!M50) -> 59.37 | L53: =IF('Proxy Price Data'!N50="","",'Proxy Price Data'!N50) -> 60.98 | M53: =IF('Proxy Price Data'!O50="","",'Proxy Price Data'!O50) -> 89.08 | N53: =IF('Proxy Price Data'!P50="","",'Proxy Price Data'!P50) -> 66.26 | O53: =IF('Proxy Price Data'!Q50="","",'Proxy Price Data'!Q50) -> 
A54: =IF('Proxy Price Data'!C51="","",'Proxy Price Data'!C51) -> 2021-06-23 | B54: =IF('Proxy Price Data'!D51="","",'Proxy Price Data'!D51) -> 81.69 | C54: =IF('Proxy Price Data'!E51="","",'Proxy Price Data'!E51) -> 43.32 | D54: =IF('Proxy Price Data'!F51="","",'Proxy Price Data'!F51) -> 67.13 | E54: =IF('Proxy Price Data'!G51="","",'Proxy Price Data'!G51) -> 58.54 | F54: =IF('Proxy Price Data'!H51="","",'Proxy Price Data'!H51) -> 99.23 | G54: =IF('Proxy Price Data'!I51="","",'Proxy Price Data'!I51) -> 73.47 | H54: =IF('Proxy Price Data'!J51="","",'Proxy Price Data'!J51) -> 78.74 | I54: =IF('Proxy Price Data'!K51="","",'Proxy Price Data'!K51) -> 74.54 | J54: =IF('Proxy Price Data'!L51="","",'Proxy Price Data'!L51) -> 60.98 | K54: =IF('Proxy Price Data'!M51="","",'Proxy Price Data'!M51) -> 59.19 | L54: =IF('Proxy Price Data'!N51="","",'Proxy Price Data'!N51) -> 61.47 | M54: =IF('Proxy Price Data'!O51="","",'Proxy Price Data'!O51) -> 88.97 | N54: =IF('Proxy Price Data'!P51="","",'Proxy Price Data'!P51) -> 66.23 | O54: =IF('Proxy Price Data'!Q51="","",'Proxy Price Data'!Q51) -> 
A55: =IF('Proxy Price Data'!C52="","",'Proxy Price Data'!C52) -> 2021-06-22 | B55: =IF('Proxy Price Data'!D52="","",'Proxy Price Data'!D52) -> 82.52 | C55: =IF('Proxy Price Data'!E52="","",'Proxy Price Data'!E52) -> 44.4 | D55: =IF('Proxy Price Data'!F52="","",'Proxy Price Data'!F52) -> 68.58 | E55: =IF('Proxy Price Data'!G52="","",'Proxy Price Data'!G52) -> 58.61 | F55: =IF('Proxy Price Data'!H52="","",'Proxy Price Data'!H52) -> 100.4 | G55: =IF('Proxy Price Data'!I52="","",'Proxy Price Data'!I52) -> 74.46 | H55: =IF('Proxy Price Data'!J52="","",'Proxy Price Data'!J52) -> 80.22 | I55: =IF('Proxy Price Data'!K52="","",'Proxy Price Data'!K52) -> 75.21 | J55: =IF('Proxy Price Data'!L52="","",'Proxy Price Data'!L52) -> 61.63 | K55: =IF('Proxy Price Data'!M52="","",'Proxy Price Data'!M52) -> 59.62 | L55: =IF('Proxy Price Data'!N52="","",'Proxy Price Data'!N52) -> 62.08 | M55: =IF('Proxy Price Data'!O52="","",'Proxy Price Data'!O52) -> 90.17 | N55: =IF('Proxy Price Data'!P52="","",'Proxy Price Data'!P52) -> 66.75 | O55: =IF('Proxy Price Data'!Q52="","",'Proxy Price Data'!Q52) -> 
A56: =IF('Proxy Price Data'!C53="","",'Proxy Price Data'!C53) -> 2021-06-21 | B56: =IF('Proxy Price Data'!D53="","",'Proxy Price Data'!D53) -> 83.39 | C56: =IF('Proxy Price Data'!E53="","",'Proxy Price Data'!E53) -> 44.4 | D56: =IF('Proxy Price Data'!F53="","",'Proxy Price Data'!F53) -> 69.55 | E56: =IF('Proxy Price Data'!G53="","",'Proxy Price Data'!G53) -> 58.53 | F56: =IF('Proxy Price Data'!H53="","",'Proxy Price Data'!H53) -> 101.31 | G56: =IF('Proxy Price Data'!I53="","",'Proxy Price Data'!I53) -> 75.19 | H56: =IF('Proxy Price Data'!J53="","",'Proxy Price Data'!J53) -> 80.69 | I56: =IF('Proxy Price Data'!K53="","",'Proxy Price Data'!K53) -> 75.71 | J56: =IF('Proxy Price Data'!L53="","",'Proxy Price Data'!L53) -> 62.29 | K56: =IF('Proxy Price Data'!M53="","",'Proxy Price Data'!M53) -> 60.06 | L56: =IF('Proxy Price Data'!N53="","",'Proxy Price Data'!N53) -> 62.5 | M56: =IF('Proxy Price Data'!O53="","",'Proxy Price Data'!O53) -> 90.67 | N56: =IF('Proxy Price Data'!P53="","",'Proxy Price Data'!P53) -> 67.14 | O56: =IF('Proxy Price Data'!Q53="","",'Proxy Price Data'!Q53) -> 
A57: =IF('Proxy Price Data'!C54="","",'Proxy Price Data'!C54) -> 2021-06-18 | B57: =IF('Proxy Price Data'!D54="","",'Proxy Price Data'!D54) -> 82.11 | C57: =IF('Proxy Price Data'!E54="","",'Proxy Price Data'!E54) -> 43.33 | D57: =IF('Proxy Price Data'!F54="","",'Proxy Price Data'!F54) -> 67.59 | E57: =IF('Proxy Price Data'!G54="","",'Proxy Price Data'!G54) -> 58.12 | F57: =IF('Proxy Price Data'!H54="","",'Proxy Price Data'!H54) -> 99.61 | G57: =IF('Proxy Price Data'!I54="","",'Proxy Price Data'!I54) -> 74.49 | H57: =IF('Proxy Price Data'!J54="","",'Proxy Price Data'!J54) -> 79.92 | I57: =IF('Proxy Price Data'!K54="","",'Proxy Price Data'!K54) -> 73.87 | J57: =IF('Proxy Price Data'!L54="","",'Proxy Price Data'!L54) -> 61.29 | K57: =IF('Proxy Price Data'!M54="","",'Proxy Price Data'!M54) -> 59.34 | L57: =IF('Proxy Price Data'!N54="","",'Proxy Price Data'!N54) -> 61.45 | M57: =IF('Proxy Price Data'!O54="","",'Proxy Price Data'!O54) -> 89.43 | N57: =IF('Proxy Price Data'!P54="","",'Proxy Price Data'!P54) -> 66.6 | O57: =IF('Proxy Price Data'!Q54="","",'Proxy Price Data'!Q54) -> 
A58: =IF('Proxy Price Data'!C55="","",'Proxy Price Data'!C55) -> 2021-06-17 | B58: =IF('Proxy Price Data'!D55="","",'Proxy Price Data'!D55) -> 84.49 | C58: =IF('Proxy Price Data'!E55="","",'Proxy Price Data'!E55) -> 44.78 | D58: =IF('Proxy Price Data'!F55="","",'Proxy Price Data'!F55) -> 69.93 | E58: =IF('Proxy Price Data'!G55="","",'Proxy Price Data'!G55) -> 59.51 | F58: =IF('Proxy Price Data'!H55="","",'Proxy Price Data'!H55) -> 102.42 | G58: =IF('Proxy Price Data'!I55="","",'Proxy Price Data'!I55) -> 76.28 | H58: =IF('Proxy Price Data'!J55="","",'Proxy Price Data'!J55) -> 82.69 | I58: =IF('Proxy Price Data'!K55="","",'Proxy Price Data'!K55) -> 76.51 | J58: =IF('Proxy Price Data'!L55="","",'Proxy Price Data'!L55) -> 63.84 | K58: =IF('Proxy Price Data'!M55="","",'Proxy Price Data'!M55) -> 61.2 | L58: =IF('Proxy Price Data'!N55="","",'Proxy Price Data'!N55) -> 63.35 | M58: =IF('Proxy Price Data'!O55="","",'Proxy Price Data'!O55) -> 92.38 | N58: =IF('Proxy Price Data'!P55="","",'Proxy Price Data'!P55) -> 68.35 | O58: =IF('Proxy Price Data'!Q55="","",'Proxy Price Data'!Q55) -> 
A59: =IF('Proxy Price Data'!C56="","",'Proxy Price Data'!C56) -> 2021-06-16 | B59: =IF('Proxy Price Data'!D56="","",'Proxy Price Data'!D56) -> 83.91 | C59: =IF('Proxy Price Data'!E56="","",'Proxy Price Data'!E56) -> 45.17 | D59: =IF('Proxy Price Data'!F56="","",'Proxy Price Data'!F56) -> 69.95 | E59: =IF('Proxy Price Data'!G56="","",'Proxy Price Data'!G56) -> 59.67 | F59: =IF('Proxy Price Data'!H56="","",'Proxy Price Data'!H56) -> 101.81 | G59: =IF('Proxy Price Data'!I56="","",'Proxy Price Data'!I56) -> 76.22 | H59: =IF('Proxy Price Data'!J56="","",'Proxy Price Data'!J56) -> 81.97 | I59: =IF('Proxy Price Data'!K56="","",'Proxy Price Data'!K56) -> 76.65 | J59: =IF('Proxy Price Data'!L56="","",'Proxy Price Data'!L56) -> 63.9 | K59: =IF('Proxy Price Data'!M56="","",'Proxy Price Data'!M56) -> 61.23 | L59: =IF('Proxy Price Data'!N56="","",'Proxy Price Data'!N56) -> 62.98 | M59: =IF('Proxy Price Data'!O56="","",'Proxy Price Data'!O56) -> 91.93 | N59: =IF('Proxy Price Data'!P56="","",'Proxy Price Data'!P56) -> 67.76 | O59: =IF('Proxy Price Data'!Q56="","",'Proxy Price Data'!Q56) -> 
A60: =IF('Proxy Price Data'!C57="","",'Proxy Price Data'!C57) -> 2021-06-15 | B60: =IF('Proxy Price Data'!D57="","",'Proxy Price Data'!D57) -> 86.14 | C60: =IF('Proxy Price Data'!E57="","",'Proxy Price Data'!E57) -> 45.44 | D60: =IF('Proxy Price Data'!F57="","",'Proxy Price Data'!F57) -> 69.82 | E60: =IF('Proxy Price Data'!G57="","",'Proxy Price Data'!G57) -> 60.5 | F60: =IF('Proxy Price Data'!H57="","",'Proxy Price Data'!H57) -> 103.22 | G60: =IF('Proxy Price Data'!I57="","",'Proxy Price Data'!I57) -> 77.75 | H60: =IF('Proxy Price Data'!J57="","",'Proxy Price Data'!J57) -> 83.77 | I60: =IF('Proxy Price Data'!K57="","",'Proxy Price Data'!K57) -> 76.99 | J60: =IF('Proxy Price Data'!L57="","",'Proxy Price Data'!L57) -> 64.72 | K60: =IF('Proxy Price Data'!M57="","",'Proxy Price Data'!M57) -> 62.35 | L60: =IF('Proxy Price Data'!N57="","",'Proxy Price Data'!N57) -> 64.32 | M60: =IF('Proxy Price Data'!O57="","",'Proxy Price Data'!O57) -> 93.1 | N60: =IF('Proxy Price Data'!P57="","",'Proxy Price Data'!P57) -> 69.19 | O60: =IF('Proxy Price Data'!Q57="","",'Proxy Price Data'!Q57) -> 
A61: =IF('Proxy Price Data'!C58="","",'Proxy Price Data'!C58) -> 2021-06-14 | B61: =IF('Proxy Price Data'!D58="","",'Proxy Price Data'!D58) -> 85.84 | C61: =IF('Proxy Price Data'!E58="","",'Proxy Price Data'!E58) -> 44.94 | D61: =IF('Proxy Price Data'!F58="","",'Proxy Price Data'!F58) -> 69.44 | E61: =IF('Proxy Price Data'!G58="","",'Proxy Price Data'!G58) -> 60.3 | F61: =IF('Proxy Price Data'!H58="","",'Proxy Price Data'!H58) -> 102.53 | G61: =IF('Proxy Price Data'!I58="","",'Proxy Price Data'!I58) -> 77.75 | H61: =IF('Proxy Price Data'!J58="","",'Proxy Price Data'!J58) -> 82.55 | I61: =IF('Proxy Price Data'!K58="","",'Proxy Price Data'!K58) -> 76.1 | J61: =IF('Proxy Price Data'!L58="","",'Proxy Price Data'!L58) -> 64.25 | K61: =IF('Proxy Price Data'!M58="","",'Proxy Price Data'!M58) -> 61.84 | L61: =IF('Proxy Price Data'!N58="","",'Proxy Price Data'!N58) -> 63.79 | M61: =IF('Proxy Price Data'!O58="","",'Proxy Price Data'!O58) -> 92.69 | N61: =IF('Proxy Price Data'!P58="","",'Proxy Price Data'!P58) -> 69.08 | O61: =IF('Proxy Price Data'!Q58="","",'Proxy Price Data'!Q58) -> 
A62: =IF('Proxy Price Data'!C59="","",'Proxy Price Data'!C59) -> 2021-06-11 | B62: =IF('Proxy Price Data'!D59="","",'Proxy Price Data'!D59) -> 85.79 | C62: =IF('Proxy Price Data'!E59="","",'Proxy Price Data'!E59) -> 44.95 | D62: =IF('Proxy Price Data'!F59="","",'Proxy Price Data'!F59) -> 69.67 | E62: =IF('Proxy Price Data'!G59="","",'Proxy Price Data'!G59) -> 60.67 | F62: =IF('Proxy Price Data'!H59="","",'Proxy Price Data'!H59) -> 101.93 | G62: =IF('Proxy Price Data'!I59="","",'Proxy Price Data'!I59) -> 77.23 | H62: =IF('Proxy Price Data'!J59="","",'Proxy Price Data'!J59) -> 82.81 | I62: =IF('Proxy Price Data'!K59="","",'Proxy Price Data'!K59) -> 76.73 | J62: =IF('Proxy Price Data'!L59="","",'Proxy Price Data'!L59) -> 65.11 | K62: =IF('Proxy Price Data'!M59="","",'Proxy Price Data'!M59) -> 61.8 | L62: =IF('Proxy Price Data'!N59="","",'Proxy Price Data'!N59) -> 63.85 | M62: =IF('Proxy Price Data'!O59="","",'Proxy Price Data'!O59) -> 92.9 | N62: =IF('Proxy Price Data'!P59="","",'Proxy Price Data'!P59) -> 69.54 | O62: =IF('Proxy Price Data'!Q59="","",'Proxy Price Data'!Q59) -> 
A63: =IF('Proxy Price Data'!C60="","",'Proxy Price Data'!C60) -> 2021-06-10 | B63: =IF('Proxy Price Data'!D60="","",'Proxy Price Data'!D60) -> 85.85 | C63: =IF('Proxy Price Data'!E60="","",'Proxy Price Data'!E60) -> 45.21 | D63: =IF('Proxy Price Data'!F60="","",'Proxy Price Data'!F60) -> 69.15 | E63: =IF('Proxy Price Data'!G60="","",'Proxy Price Data'!G60) -> 60.24 | F63: =IF('Proxy Price Data'!H60="","",'Proxy Price Data'!H60) -> 101.71 | G63: =IF('Proxy Price Data'!I60="","",'Proxy Price Data'!I60) -> 77.04 | H63: =IF('Proxy Price Data'!J60="","",'Proxy Price Data'!J60) -> 83.12 | I63: =IF('Proxy Price Data'!K60="","",'Proxy Price Data'!K60) -> 75.5 | J63: =IF('Proxy Price Data'!L60="","",'Proxy Price Data'!L60) -> 64.85 | K63: =IF('Proxy Price Data'!M60="","",'Proxy Price Data'!M60) -> 61.63 | L63: =IF('Proxy Price Data'!N60="","",'Proxy Price Data'!N60) -> 63.88 | M63: =IF('Proxy Price Data'!O60="","",'Proxy Price Data'!O60) -> 93.13 | N63: =IF('Proxy Price Data'!P60="","",'Proxy Price Data'!P60) -> 69.63 | O63: =IF('Proxy Price Data'!Q60="","",'Proxy Price Data'!Q60) -> 
A64: =IF('Proxy Price Data'!C61="","",'Proxy Price Data'!C61) -> 2021-06-09 | B64: =IF('Proxy Price Data'!D61="","",'Proxy Price Data'!D61) -> 85.36 | C64: =IF('Proxy Price Data'!E61="","",'Proxy Price Data'!E61) -> 44.85 | D64: =IF('Proxy Price Data'!F61="","",'Proxy Price Data'!F61) -> 69.05 | E64: =IF('Proxy Price Data'!G61="","",'Proxy Price Data'!G61) -> 59.93 | F64: =IF('Proxy Price Data'!H61="","",'Proxy Price Data'!H61) -> 101.39 | G64: =IF('Proxy Price Data'!I61="","",'Proxy Price Data'!I61) -> 76.88 | H64: =IF('Proxy Price Data'!J61="","",'Proxy Price Data'!J61) -> 82.56 | I64: =IF('Proxy Price Data'!K61="","",'Proxy Price Data'!K61) -> 75.5 | J64: =IF('Proxy Price Data'!L61="","",'Proxy Price Data'!L61) -> 64.66 | K64: =IF('Proxy Price Data'!M61="","",'Proxy Price Data'!M61) -> 61.13 | L64: =IF('Proxy Price Data'!N61="","",'Proxy Price Data'!N61) -> 63.63 | M64: =IF('Proxy Price Data'!O61="","",'Proxy Price Data'!O61) -> 92.91 | N64: =IF('Proxy Price Data'!P61="","",'Proxy Price Data'!P61) -> 69.35 | O64: =IF('Proxy Price Data'!Q61="","",'Proxy Price Data'!Q61) -> 
A65: =IF('Proxy Price Data'!C62="","",'Proxy Price Data'!C62) -> 2021-06-08 | B65: =IF('Proxy Price Data'!D62="","",'Proxy Price Data'!D62) -> 84.75 | C65: =IF('Proxy Price Data'!E62="","",'Proxy Price Data'!E62) -> 44.8 | D65: =IF('Proxy Price Data'!F62="","",'Proxy Price Data'!F62) -> 68.77 | E65: =IF('Proxy Price Data'!G62="","",'Proxy Price Data'!G62) -> 60.33 | F65: =IF('Proxy Price Data'!H62="","",'Proxy Price Data'!H62) -> 100.59 | G65: =IF('Proxy Price Data'!I62="","",'Proxy Price Data'!I62) -> 76.29 | H65: =IF('Proxy Price Data'!J62="","",'Proxy Price Data'!J62) -> 81.15 | I65: =IF('Proxy Price Data'!K62="","",'Proxy Price Data'!K62) -> 75.53 | J65: =IF('Proxy Price Data'!L62="","",'Proxy Price Data'!L62) -> 63.71 | K65: =IF('Proxy Price Data'!M62="","",'Proxy Price Data'!M62) -> 61.01 | L65: =IF('Proxy Price Data'!N62="","",'Proxy Price Data'!N62) -> 63.44 | M65: =IF('Proxy Price Data'!O62="","",'Proxy Price Data'!O62) -> 91.93 | N65: =IF('Proxy Price Data'!P62="","",'Proxy Price Data'!P62) -> 68.8 | O65: =IF('Proxy Price Data'!Q62="","",'Proxy Price Data'!Q62) -> 
A67: Average Price | B67: =IFERROR(ROUND(AVERAGE(B6:B65),2),0) -> 84.86 | C67: =IFERROR(ROUND(AVERAGE(C6:C65),2),0) -> 43 | D67: =IFERROR(ROUND(AVERAGE(D6:D65),2),0) -> 68.82 | E67: 61.61 | F67: =IFERROR(ROUND(AVERAGE(F6:F65),2),0) -> 103.51 | G67: 74.96 | H67: 85.54 | I67: =IFERROR(ROUND(AVERAGE(I6:I65),2),0) -> 77.67 | J67: =IFERROR(ROUND(AVERAGE(J6:J65),2),0) -> 62.53 | K67: 61.96 | L67: 63.68 | M67: =IFERROR(ROUND(AVERAGE(M6:M65),2),0) -> 93.52 | N67: 68.29
A69: Indicated Dividend | B69: ='Proxy Data Lookup'!$J3 -> 2.2 | C69: ='Proxy Data Lookup'!$J4 -> 1.69 | D69: ='Proxy Data Lookup'!$J5 -> 2.26 | E69: ='Proxy Data Lookup'!$J6 -> 1.74 | F69: ='Proxy Data Lookup'!$J7 -> 3.94 | G69: ='Proxy Data Lookup'!$J8 -> 3.1 | H69: ='Proxy Data Lookup'!$J9 -> 2.41 | I69: ='Proxy Data Lookup'!$J10 -> 1.55 | J69: ='Proxy Data Lookup'!$J11 -> 2.48 | K69: ='Proxy Data Lookup'!$J12 -> 2.04 | L69: ='Proxy Data Lookup'!$J13 -> 2.64 | M69: ='Proxy Data Lookup'!$J14 -> 2.71 | N69: ='Proxy Data Lookup'!$J15 -> 1.83
A71: Indicated Dividend Yield | B71: =IFERROR(ROUND(B69/B67,4),0) -> 0.0259 | C71: 0.0393 | D71: 0.0328 | E71: 0.0282 | F71: 0.0381 | G71: 0.0414 | H71: 0.0282 | I71: 0.02 | J71: 0.0397 | K71: 0.0329 | L71: 0.0415 | M71: 0.029 | N71: 0.0268

Sheet CEM Data Lookup
C2: EPS Growth Rates | G2: Beta | J2: Annual Div. | K2: Bond Ratings | M2: Value Line Beta Calculation
A3: Ticker | B3: Company Name | C3: Zacks | D3: Yahoo | E3: Bloomberg | F3: Value Line | G3: Value Line | H3: Bloomberg | I3: Unadjusted | K3: Moody's | L3: S&P | M3: R Factor | N3: Std. Error | O3: Std. Dev Y | P3: Std. Dev Beta
A4: ABT | B4: Abbott Labs. | C4: 0.119 | D4: 0.1253 | E4: 0.11468 | F4: 0.115 | G4: 0.9 | H4: 0.8410950303 | I4: 0.84 | J4: 1.8 | K4: A2 | L4: A+ | M4: 0.6078 | N4: 2.7516 | O4: 3.4583 | P4: 0.0687
A5: ADI | B5: Analog Devices | C5: 0.123 | D5: 0.1352 | E5: 0.128 | F5: 0.085 | G5: 0.95 | H5: 1.018524528 | I5: 0.87 | J5: 2.76 | K5: Baa1 | L5: BBB | M5: 0.6219 | N5: 2.7247 | O5: 3.4727 | P5: 0.068
A6: AIZ | B6: Assurant Inc. | C6: 0.179 | D6: 0.179 | E6: 0.1792 | F6: 0.115 | G6: 0.9 | H6: 1.009007573 | I6: 0.84 | J6: 2.64 | K6: Baa3 | L6: BBB | M6: 0.5966 | N6: 2.8245 | O6: 3.5125 | P6: 0.0705
A7: AOS | B7: Smith (A.O.) | C7: 0.09 | D7: 0.08 | E7: 0.1 | F7: 0.095 | G7: 0.85 | H7: 1.00094986 | I7: 0.75 | J7: 1.04 | K7: NA | L7: NA | M7: 0.5685 | N7: 2.7193 | O7: 3.2989 | P7: 0.0678
A8: BDX | B8: Becton, Dickinson | C8: 0.083 | D8: 0.101 | E8: 0.0774 | F8: 0.075 | G8: 0.8 | H8: 0.567345202 | I8: 0.62 | J8: 3.32 | K8: Baa3 | L8: BBB | M8: 0.4746 | N8: 2.8971 | O8: 3.2851 | P8: 0.0723
A9: BFB | B9: Brown-Forman 'B' | C9: NA | D9: 0.0844 | E9: NA | F9: 0.13 | G9: 0.9 | H9: 0.9664310217 | I9: 0.81 | J9: 0.718 | K9: A1 | L9: A- | M9: 0.5985 | N9: 2.7054 | O9: 3.3705 | P9: 0.0675
A10: BR | B10: Broadridge Fin'l | C10: NA | D10: 0.118 | E10: 0.119 | F10: 0.085 | G10: 0.8 | H10: 0.8321838975 | I10: 0.69 | J10: 2.56 | K10: Baa1 | L10: BBB+ | M10: 0.5298 | N10: 2.7697 | O10: 3.2593 | P10: 0.0691
A11: CACI | B11: CACI Int'l | C11: 0.054 | D11: 0.0144 | E11: 0.03225 | F11: 0.135 | G11: 0.95 | H11: 1.000490069 | I11: 0.89 | J11: 0 | K11: NA | L11: BB+ | M11: 0.5966 | N11: 2.993 | O11: 3.7223 | P11: 0.0747
A12: CERN | B12: Cerner Corp. | C12: 0.123 | D12: 0.1181 | E12: 0.0789 | F12: 0.09 | G12: 0.9 | H12: 0.8886209726 | I12: 0.82 | J12: 0.88 | K12: NA | L12: NA | M12: 0.61 | N12: 2.6729 | O12: 3.3666 | P12: 0.0667
A13: CHE | B13: Chemed Corp. | C13: 0.075 | D13: 0.0755 | E13: 0.0754 | F13: 0.09 | G13: 0.85 | H13: 0.9201996922 | I13: 0.7 | J13: 1.44 | K13: WR | L13: NR | M13: 0.5507 | N13: 2.6649 | O13: 3.1865 | P13: 0.0665
A14: COO | B14: Cooper Cos. | C14: 0.1 | D14: 0.1 | E14: 0.11067 | F14: 0.145 | G14: 0.95 | H14: 0.9429140091 | I14: 0.9 | J14: 0.06 | K14: WR | L14: NR | M14: 0.6403 | N14: 2.6935 | O14: 3.4996 | P14: 0.0672
A15: CSWI | B15: CSW Industrials | C15: NA | D15: 0.12 | E15: 0.15 | F15: 0.115 | G15: 0.9 | H15: 1.05188787 | I15: 0.82 | J15: 0.6 | K15: NA | L15: NA | M15: 0.5893 | N15: 2.8095 | O15: 3.4707 | P15: 0.0701
A16: DGX | B16: Quest Diagnostics | C16: 0.265 | D16: -0.086 | E16: -0.0479 | F16: 0.07 | G16: 0.8 | H16: 0.9653949142 | I16: 0.69 | J16: 2.48 | K16: Baa2 | L16: BBB+ | M16: 0.509 | N16: 2.9288 | O16: 3.396 | P16: 0.0731
A17: EL | B17: Lauder (Estee) | C17: 0.113 | D17: 0.1871 | E17: 0.15 | F17: 0.11 | G17: 0.95 | H17: 1.008448243 | I17: 0.91 | J17: 2.12 | K17: A1 | L17: A+ | M17: 0.6233 | N17: 2.8562 | O17: 3.6454 | P17: 0.0713
A18: EXPO | B18: Exponent, Inc. | C18: NA | D18: 0.15 | E18: NA | F18: 0.12 | G18: 0.9 | H18: 0.9618644118 | I18: 0.81 | J18: 0.8 | K18: NA | L18: NA | M18: 0.5662 | N18: 2.9605 | O18: 3.5846 | P18: 0.0739
A19: HSY | B19: Hershey Co. | C19: 0.077 | D19: 0.0882 | E19: 0.076 | F19: 0.055 | G19: 0.85 | H19: 0.8450450897 | I19: 0.74 | J19: 3.604 | K19: A1 | L19: A | M19: 0.5666 | N19: 2.6733 | O19: 3.238 | P19: 0.0667
A20: INGR | B20: Ingredion Inc. | C20: NA | D20: 0.019 | E20: 0.107 | F20: 0.075 | G20: 0.9 | H20: 0.9282200933 | I20: 0.84 | J20: 2.56 | K20: Baa1 | L20: BBB | M20: 0.591 | N20: 2.8771 | O20: 3.5598 | P20: 0.0718
A21: JBHT | B21: Hunt (J.B.) | C21: 0.15 | D21: 0.205 | E21: 0.1465 | F21: 0.08 | G21: 0.95 | H21: 0.9370615482 | I21: 0.87 | J21: 1.2 | K21: Baa1 | L21: BBB+ | M21: 0.6043 | N21: 2.8702 | O21: 3.5954 | P21: 0.0716
A22: JJSF | B22: J&J Snack Foods | C22: NA | D22: 0.06 | E22: NA | F22: 0.1 | G22: 0.95 | H22: 0.8071634173 | I22: 0.86 | J22: 2.532 | K22: NA | L22: NA | M22: 0.5891 | N22: 2.9559 | O22: 3.6511 | P22: 0.0738
A23: JKHY | B23: Henry (Jack) & Assoc | C23: 0.11 | D23: 0.0964 | E23: 0.12467 | F23: 0.095 | G23: 0.85 | H23: 0.8818188906 | I23: 0.71 | J23: 1.84 | K23: NA | L23: NA | M23: 0.5307 | N23: 2.8328 | O23: 3.3357 | P23: 0.0707
A24: MANT | B24: ManTech Int'l 'A' | C24: 0.051 | D24: 0.0538 | E24: 0.0553 | F24: 0.09 | G24: 0.85 | H24: 1.12703836 | I24: 0.77 | J24: 1.52 | K24: WR | L24: BB+ | M24: 0.5271 | N24: 3.1011 | O24: 3.6422 | P24: 0.0774
A25: MKC | B25: McCormick & Co. | C25: 0.068 | D25: 0.065 | E25: 0.06353 | F25: 0.06 | G25: 0.8 | H25: 0.6966209412 | I25: 0.68 | J25: 1.36 | K25: Baa2 | L25: BBB | M25: 0.5218 | N25: 2.7869 | O25: 3.2606 | P25: 0.0695
A26: MNST | B26: Monster Beverage | C26: 0.147 | D26: 0.1485 | E26: 0.1217 | F26: 0.115 | G26: 0.85 | H26: 0.969692111 | I26: 0.76 | J26: 0 | K26: NA | L26: NA | M26: 0.531 | N26: 3.0195 | O26: 3.5565 | P26: 0.0753
A27: MO | B27: Altria Group | C27: 0.04 | D27: 0.0467 | E27: 0.0425 | F27: 0.06 | G27: 0.95 | H27: 0.9050288796 | I27: 0.86 | J27: 3.6 | K27: A3 | L27: BBB | M27: 0.5877 | N27: 2.9525 | O27: 3.6422 | P27: 0.0737
A28: MSCI | B28: MSCI Inc. | C28: NA | D28: 0.1779 | E28: 0.133 | F28: 0.16 | G28: 0.95 | H28: 0.9251448512 | I28: 0.87 | J28: 4.16 | K28: Ba1 | L28: BB+ | M28: 0.5895 | N28: 2.9742 | O28: 3.6748 | P28: 0.0742
A29: MSI | B29: Motorola Solutions | C29: 0.09 | D29: 0.1373 | E29: 0.124 | F29: 0.07 | G29: 0.9 | H29: 0.9618915915 | I29: 0.79 | J29: 2.84 | K29: Baa3 | L29: BBB- | M29: 0.5881 | N29: 2.7312 | O29: 3.3703 | P29: 0.0681
A30: NOC | B30: Northrop Grumman | C30: 0.09 | D30: 0.0666 | E30: 0.0529 | F30: 0.07 | G30: 0.85 | H30: 0.7880980372 | I30: 0.72 | J30: 6.28 | K30: Baa1 | L30: BBB+ | M30: 0.5285 | N30: 2.8865 | O30: 3.3936 | P30: 0.072
A31: ODFL | B31: Old Dominion Freight | C31: 0.227 | D31: 0.227 | E31: 0.20877 | F31: 0.095 | G31: 0.95 | H31: 0.9841076732 | I31: 0.86 | J31: 0.8 | K31: NA | L31: NA | M31: 0.5826 | N31: 2.9913 | O31: 3.6733 | P31: 0.0746
A32: PKI | B32: PerkinElmer Inc. | C32: 0.379 | D32: 0.379 | E32: -0.03565 | F32: 0.11 | G32: 0.9 | H32: 0.7970013022 | I32: 0.82 | J32: 0.28 | K32: Baa3 | L32: BBB | M32: 0.5601 | N32: 3.0422 | O32: 3.6651 | P32: 0.0759
A33: POST | B33: Post Holdings | C33: NA | D33: 0.282 | E33: 0.217 | F33: 0.095 | G33: 0.95 | H33: 0.8971431255 | I33: 0.87 | J33: 0 | K33: B2 | L33: B+ | M33: 0.5952 | N33: 2.9481 | O33: 3.6615 | P33: 0.0736
A34: RLI | B34: RLI Corp. | C34: NA | D34: 0.098 | E34: NA | F34: 0.12 | G34: 0.8 | H34: 0.907401979 | I34: 0.67 | J34: 1 | K34: Baa2 | L34: BBB | M34: 0.484 | N34: 3.0423 | O34: 3.4699 | P34: 0.0759
A35: ROL | B35: Rollins, Inc. | C35: NA | D35: 0.082 | E35: NA | F35: 0.115 | G35: 0.85 | H35: 0.6859084368 | I35: 0.73 | J35: 0.32 | K35: NA | L35: NA | M35: 0.5234 | N35: 2.958 | O35: 3.4648 | P35: 0.0738
A36: SHW | B36: Sherwin-Williams | C36: 0.126 | D36: 0.1187 | E36: 0.018 | F36: 0.105 | G36: 0.95 | H36: 0.9921346903 | I36: 0.85 | J36: 2.2 | K36: Baa2 | L36: BBB | M36: 0.623 | N36: 2.6598 | O36: 3.3939 | P36: 0.0664
A37: SIGI | B37: Selective Ins. Group | C37: 0.124 | D37: 0.1 | E37: 0.1244 | F37: 0.095 | G37: 0.9 | H37: 0.9898458123 | I37: 0.8 | J37: 1 | K37: Baa2 | L37: BBB | M37: 0.5556 | N37: 2.9918 | O37: 3.5914 | P37: 0.0746
A38: SIRI | B38: Sirius XM Holdings | C38: 0.122 | D38: 0.1005 | E38: 0.28977 | F38: 0.315 | G38: 0.95 | H38: 1.124804974 | I38: 0.88 | J38: 0.058564 | K38: NA | L38: BB | M38: 0.6107 | N38: 2.8551 | O38: 3.5984 | P38: 0.0712
A39: SNPS | B39: Synopsys, Inc. | C39: 0.16 | D39: 0.16 | E39: 0.15887 | F39: 0.13 | G39: 0.95 | H39: 1.016545415 | I39: 0.91 | J39: 0 | K39: NA | L39: NA | M39: 0.6187 | N39: 2.8936 | O39: 3.6759 | P39: 0.0722
A40: TXN | B40: Texas Instruments | C40: 0.093 | D40: 0.1 | E40: 0.106 | F40: 0.085 | G40: 0.85 | H40: 0.8931639194 | I40: 0.76 | J40: 4.08 | K40: A1 | L40: A+ | M40: 0.579 | N40: 2.6736 | O40: 3.2727 | P40: 0.0667
A41: UHAL | B41: AMERCO | C41: NA | D41: 0.15 | E41: NA | F41: 0.135 | G41: 0.95 | H41: 1.076723456 | I41: 0.89 | J41: NA | K41: WR | L41: NR | M41: 0.6391 | N41: 2.6678 | O41: 3.4618 | P41: 0.0666
A42: UPS | B42: United Parcel Serv. | C42: 0.117 | D42: 0.1589 | E42: 0.14388 | F42: 0.105 | G42: 0.8 | H42: 0.8297113776 | I42: 0.64 | J42: 4.08 | K42: A2 | L42: A- | M42: 0.4686 | N42: 3.0134 | O42: 3.4044 | P42: 0.0752
A43: VRSN | B43: VeriSign Inc. | C43: NA | D43: 0.08 | E43: NA | F43: 0.085 | G43: 0.9 | H43: 0.7701163888 | I43: 0.79 | J43: NA | K43: Baa3 | L43: BBB | M43: 0.594 | N43: 2.6717 | O43: 3.3146 | P43: 0.0667
A44: WAT | B44: Waters Corp. | C44: 0.094 | D44: 0.093 | E44: 0.10757 | F44: 0.06 | G44: 0.95 | H44: 0.8468253613 | I44: 0.87 | J44: 0 | K44: NA | L44: NA | M44: 0.6126 | N44: 2.7917 | O44: 3.5251 | P44: 0.0697
A45: WSO | B45: Watsco, Inc. | C45: NA | D45: 0.15 | E45: NA | F45: 0.08 | G45: 0.85 | H45: 0.8023084998 | I45: 0.73 | J45: 7.8 | K45: NA | L45: NA | M45: 0.5551 | N45: 2.7408 | O45: 3.2888 | P45: 0.0684
A46: WU | B46: Western Union | C46: NA | D46: 0.0919 | E46: 0.0335 | F46: 0.06 | G46: 0.8 | H46: 1.068183184 | I46: 0.66 | J46: 0.94 | K46: Baa2 | L46: BBB | M46: 0.52 | N46: 2.721 | O46: 3.1795 | P46: 0.0679

Sheet CEM Price Data
A1: Lookup Reference | B1: Tickers | C1: ABT | D1: ADI | E1: AIZ | F1: AOS | G1: BDX | H1: BFB | I1: BR | J1: CACI | K1: CERN | L1: CHE | M1: COO | N1: CSWI | O1: DGX | P1: EL | Q1: EXPO | R1: HSY | S1: INGR | T1: JBHT | U1: JJSF | V1: JKHY | W1: MANT | X1: MKC | Y1: MNST | Z1: MO | AA1: MSCI | AB1: MSI | AC1: NOC | AD1: ODFL | AE1: PKI | AF1: POST | AG1: RLI | AH1: ROL | AI1: SHW | AJ1: SIGI | AK1: SIRI | AL1: SNPS | AM1: TXN | AN1: UHAL | AO1: UPS | AP1: VRSN | AQ1: WAT | AR1: WSO | AS1: WU
B2: PX_LAST | C2: =C1&" US Equity" -> ABT US Equity | D2: =D1&" US Equity" -> ADI US Equity | E2: AIZ US Equity | F2: AOS US Equity | G2: BDX US Equity | H2: BFB US Equity | I2: BR US Equity | J2: CACI US Equity | K2: CERN US Equity | L2: CHE US Equity | M2: COO US Equity | N2: CSWI US Equity | O2: DGX US Equity | P2: EL US Equity | Q2: EXPO US Equity | R2: HSY US Equity | S2: INGR US Equity | T2: JBHT US Equity | U2: JJSF US Equity | V2: JKHY US Equity | W2: MANT US Equity | X2: MKC US Equity | Y2: MNST US Equity | Z2: MO US Equity | AA2: MSCI US Equity | AB2: MSI US Equity | AC2: NOC US Equity | AD2: ODFL US Equity | AE2: PKI US Equity | AF2: POST US Equity | AG2: RLI US Equity | AH2: ROL US Equity | AI2: SHW US Equity | AJ2: SIGI US Equity | AK2: SIRI US Equity | AL2: SNPS US Equity | AM2: TXN US Equity | AN2: UHAL US Equity | AO2: UPS US Equity | AP2: VRSN US Equity | AQ2: WAT US Equity | AR2: WSO US Equity | AS2: WU US Equity
A3: 1 | B3: 2021-08-31 | C3: 126.37 | D3: 162.95 | E3: 170.11 | F3: 72.72 | G3: 251.7 | H3: 70.22 | I3: 172.22 | J3: 257.54 | K3: 76.35 | L3: 476.7 | M3: 450.71 | N3: 132.79 | O3: 152.83 | P3: 340.49 | Q3: 116.9 | R3: 177.7 | S3: 87.86 | T3: 177.4 | U3: 163.76 | V3: 176.38 | W3: 79.17 | X3: 86.29 | Y3: 97.57 | Z3: 50.23 | AA3: 634.58 | AB3: 244.22 | AC3: 367.7 | AD3: 288.72 | AE3: 184.8 | AF3: 111.91 | AG3: 109.23 | AH3: 38.92 | AI3: 303.67 | AJ3: 83.57 | AK3: 6.27 | AL3: 332.24 | AM3: 190.91 | AN3: 661.15 | AO3: 195.63 | AP3: 216.26 | AQ3: 414.02 | AR3: 278.42 | AS3: 21.64
A4: =A3+1 -> 2 | B4: 2021-08-30 | C4: 125.94 | D4: 166.98 | E4: 168.61 | F4: 72.94 | G4: 250.47 | H4: 70.4 | I4: 172.33 | J4: 256.74 | K4: 76.22 | L4: 472.31 | M4: 449.38 | N4: 135.2 | O4: 150.77 | P4: 343.48 | Q4: 116.89 | R4: 176.53 | S4: 87.77 | T4: 182.71 | U4: 162.02 | V4: 176.32 | W4: 79.75 | X4: 85.45 | Y4: 97.81 | Z4: 49.7 | AA4: 638.43 | AB4: 244.56 | AC4: 367.62 | AD4: 293.84 | AE4: 187.95 | AF4: 111.93 | AG4: 109.57 | AH4: 39.16 | AI4: 305.31 | AJ4: 84.02 | AK4: 6.27 | AL4: 334.28 | AM4: 191.43 | AN4: 671.53 | AO4: 194.01 | AP4: 216.15 | AQ4: 413.06 | AR4: 281.49 | AS4: 21.27
A5: =A4+1 -> 3 | B5: 2021-08-27 | C5: 124.59 | D5: 166.48 | E5: 169.36 | F5: 72.38 | G5: 248.5 | H5: 70.17 | I5: 171.58 | J5: 257.74 | K5: 76.84 | L5: 473.68 | M5: 446.58 | N5: 137.04 | O5: 149.14 | P5: 340.82 | Q5: 115.85 | R5: 175.63 | S5: 88.66 | T5: 179.56 | U5: 163.83 | V5: 175.93 | W5: 79.18 | X5: 85.22 | Y5: 97.33 | Z5: 49.53 | AA5: 629.59 | AB5: 242.81 | AC5: 364.84 | AD5: 289.78 | AE5: 182.91 | AF5: 112 | AG5: 110.71 | AH5: 38.61 | AI5: 302.87 | AJ5: 84.69 | AK5: 6.25 | AL5: 331.81 | AM5: 190.52 | AN5: 673.74 | AO5: 193.3 | AP5: 214.66 | AQ5: 407.35 | AR5: 278.1 | AS5: 21.65
A6: 4 | B6: 2021-08-26 | C6: 125.47 | D6: 167.36 | E6: 167.22 | F6: 71.74 | G6: 247.53 | H6: 69.68 | I6: 169.81 | J6: 256.61 | K6: 76.07 | L6: 466.29 | M6: 446.07 | N6: 131.35 | O6: 149.59 | P6: 336.49 | Q6: 113.48 | R6: 175.11 | S6: 87.36 | T6: 174.95 | U6: 160.65 | V6: 173.95 | W6: 77.3 | X6: 84.93 | Y6: 96.84 | Z6: 48.75 | AA6: 623.91 | AB6: 243.05 | AC6: 366.76 | AD6: 286.1 | AE6: 183.68 | AF6: 111.05 | AG6: 107.98 | AH6: 38.34 | AI6: 302.27 | AJ6: 82.93 | AK6: 6.2 | AL6: 326.51 | AM6: 187.97 | AN6: 660.15 | AO6: 192.36 | AP6: 212.73 | AQ6: 407.35 | AR6: 275.46 | AS6: 21.47
A7: 5 | B7: 2021-08-25 | C7: 124.74 | D7: 164 | E7: 168.81 | F7: 72.25 | G7: 247 | H7: 69.39 | I7: 170.98 | J7: 257.31 | K7: 76.51 | L7: 465.5 | M7: 446.74 | N7: 133.32 | O7: 149.71 | P7: 335.32 | Q7: 114.8 | R7: 175.6 | S7: 87.96 | T7: 175.21 | U7: 161.9 | V7: 173.45 | W7: 78.26 | X7: 85.56 | Y7: 97.13 | Z7: 48.65 | AA7: 627.91 | AB7: 241.33 | AC7: 362.66 | AD7: 286.06 | AE7: 185.02 | AF7: 112.9 | AG7: 110.02 | AH7: 38.22 | AI7: 302.73 | AJ7: 84.09 | AK7: 6.31 | AL7: 325.01 | AM7: 188.09 | AN7: 652.95 | AO7: 192.87 | AP7: 211.96 | AQ7: 407.1 | AR7: 277.99 | AS7: 21.75
A8: 6 | B8: 2021-08-24 | C8: 125.5 | D8: 165.85 | E8: 166.74 | F8: 71.81 | G8: 247.87 | H8: 69.8 | I8: 171.27 | J8: 256.5 | K8: 77.19 | L8: 465 | M8: 447.79 | N8: 133.28 | O8: 149.53 | P8: 337.6 | Q8: 115.2 | R8: 176.14 | S8: 87.12 | T8: 174.06 | U8: 163.05 | V8: 173.21 | W8: 78.15 | X8: 85.88 | Y8: 96.63 | Z8: 48.21 | AA8: 618.37 | AB8: 239.12 | AC8: 362.77 | AD8: 285.53 | AE8: 182.2 | AF8: 112.78 | AG8: 111.7 | AH8: 38.05 | AI8: 303.11 | AJ8: 84.36 | AK8: 6.31 | AL8: 324.95 | AM8: 187.82 | AN8: 645.05 | AO8: 193.27 | AP8: 213.36 | AQ8: 402.27 | AR8: 276.27 | AS8: 21.69
A9: 7 | B9: 2021-08-23 | C9: 125.84 | D9: 169.63 | E9: 166.69 | F9: 71.29 | G9: 249.85 | H9: 69.5 | I9: 172.5 | J9: 257.54 | K9: 77.92 | L9: 466.19 | M9: 444.84 | N9: 134.25 | O9: 150.53 | P9: 336.29 | Q9: 116.77 | R9: 178.75 | S9: 86.95 | T9: 174.9 | U9: 161.73 | V9: 176.52 | W9: 79.12 | X9: 86.73 | Y9: 96.75 | Z9: 48.48 | AA9: 621.19 | AB9: 239.03 | AC9: 362.92 | AD9: 284.14 | AE9: 181.51 | AF9: 113.13 | AG9: 111.48 | AH9: 38.38 | AI9: 304.72 | AJ9: 84.83 | AK9: 6.24 | AL9: 320.92 | AM9: 187.85 | AN9: 648.11 | AO9: 193 | AP9: 214.69 | AQ9: 402.78 | AR9: 275.35 | AS9: 21.67
A10: 8 | B10: 2021-08-20 | C10: 126.32 | D10: 166.64 | E10: 165.13 | F10: 71.06 | G10: 249.3 | H10: 69.54 | I10: 174.54 | J10: 259.65 | K10: 78.96 | L10: 466.16 | M10: 444.18 | N10: 131.27 | O10: 152 | P10: 330.18 | Q10: 115.6 | R10: 180.03 | S10: 86.28 | T10: 174.49 | U10: 161.6 | V10: 177.13 | W10: 79.73 | X10: 87.56 | Y10: 96.74 | Z10: 48.47 | AA10: 618.86 | AB10: 240 | AC10: 363 | AD10: 282.51 | AE10: 181.1 | AF10: 113.58 | AG10: 110.42 | AH10: 39.33 | AI10: 307.06 | AJ10: 85.18 | AK10: 6.3 | AL10: 316.88 | AM10: 184.97 | AN10: 644.3 | AO10: 193.24 | AP10: 213.04 | AQ10: 402.25 | AR10: 274.86 | AS10: 21.61
A11: 9 | B11: 2021-08-19 | C11: 125.72 | D11: 166.79 | E11: 163.54 | F11: 70.33 | G11: 247.88 | H11: 68.83 | I11: 173.73 | J11: 257.79 | K11: 79.62 | L11: 459.88 | M11: 442.04 | N11: 129.12 | O11: 151.6 | P11: 327.4 | Q11: 114.44 | R11: 180.25 | S11: 85.43 | T11: 171.53 | U11: 161.29 | V11: 176.29 | W11: 79.35 | X11: 87.48 | Y11: 97.18 | Z11: 48.24 | AA11: 610 | AB11: 237.41 | AC11: 361.09 | AD11: 279.51 | AE11: 181.77 | AF11: 113.22 | AG11: 108.16 | AH11: 38.77 | AI11: 302.64 | AJ11: 84.4 | AK11: 6.17 | AL11: 315.99 | AM11: 185.04 | AN11: 640 | AO11: 194.06 | AP11: 211.84 | AQ11: 404.86 | AR11: 273.05 | AS11: 21.67
A12: 10 | B12: 2021-08-18 | C12: 123.93 | D12: 165.78 | E12: 165.03 | F12: 70.31 | G12: 248.31 | H12: 68.51 | I12: 173.67 | J12: 257.53 | K12: 79.36 | L12: 451.98 | M12: 432.61 | N12: 128.25 | O12: 149.13 | P12: 319.08 | Q12: 113.04 | R12: 179.51 | S12: 86.51 | T12: 173.25 | U12: 161.33 | V12: 172.38 | W12: 81.33 | X12: 86.34 | Y12: 95.86 | Z12: 48.22 | AA12: 610.21 | AB12: 233.91 | AC12: 363.16 | AD12: 276.47 | AE12: 181.07 | AF12: 114.31 | AG12: 107.54 | AH12: 37.83 | AI12: 301.11 | AJ12: 83.7 | AK12: 6.14 | AL12: 290.63 | AM12: 183.8 | AN12: 648.06 | AO12: 194.8 | AP12: 208.71 | AQ12: 400.74 | AR12: 271.48 | AS12: 21.91
A13: 11 | B13: 2021-08-17 | C13: 125.69 | D13: 166.3 | E13: 167.48 | F13: 70.96 | G13: 253.48 | H13: 69.98 | I13: 176.8 | J13: 260.02 | K13: 80.78 | L13: 456.46 | M13: 438.59 | N13: 127.22 | O13: 152.28 | P13: 322.6 | Q13: 113.42 | R13: 182.13 | S13: 87.67 | T13: 174.87 | U13: 164.03 | V13: 178.58 | W13: 83.42 | X13: 87.84 | Y13: 97.52 | Z13: 48.56 | AA13: 629.48 | AB13: 234.41 | AC13: 368.63 | AD13: 279.8 | AE13: 182.85 | AF13: 116.55 | AG13: 109.13 | AH13: 37.95 | AI13: 304.92 | AJ13: 84.74 | AK13: 6.12 | AL13: 291.62 | AM13: 186.32 | AN13: 653.11 | AO13: 197.76 | AP13: 211.55 | AQ13: 406.12 | AR13: 274.6 | AS13: 22.33
A14: 12 | B14: 2021-08-16 | C14: 124.66 | D14: 171.07 | E14: 166.64 | F14: 72.64 | G14: 249.61 | H14: 69.89 | I14: 176.99 | J14: 255.22 | K14: 80.15 | L14: 456.22 | M14: 439.54 | N14: 129.66 | O14: 151.35 | P14: 327.98 | Q14: 114.79 | R14: 181.16 | S14: 88.66 | T14: 176.81 | U14: 163.95 | V14: 177.74 | W14: 82.94 | X14: 87.38 | Y14: 98.42 | Z14: 48.39 | AA14: 630.21 | AB14: 234.9 | AC14: 368.62 | AD14: 281.68 | AE14: 184.61 | AF14: 114.72 | AG14: 108.79 | AH14: 37.58 | AI14: 307.76 | AJ14: 84.14 | AK14: 6.07 | AL14: 294.42 | AM14: 189.85 | AN14: 659.8 | AO14: 197.07 | AP14: 210.6 | AQ14: 408.13 | AR14: 278.75 | AS14: 22.42
A15: 13 | B15: 2021-08-13 | C15: 123.06 | D15: 170.08 | E15: 165 | F15: 71.96 | G15: 246.79 | H15: 69.23 | I15: 174.36 | J15: 251.96 | K15: 79.63 | L15: 457.28 | M15: 436.99 | N15: 129.85 | O15: 148.22 | P15: 326.6 | Q15: 114.47 | R15: 179.4 | S15: 88.35 | T15: 175.61 | U15: 164 | V15: 177.12 | W15: 81.83 | X15: 86.68 | Y15: 98.12 | Z15: 48.6 | AA15: 630.02 | AB15: 233.03 | AC15: 363.11 | AD15: 281 | AE15: 183.11 | AF15: 114.22 | AG15: 108.83 | AH15: 37.15 | AI15: 305.66 | AJ15: 83.7 | AK15: 6.03 | AL15: 293.12 | AM15: 188.7 | AN15: 659.72 | AO15: 193.98 | AP15: 209.44 | AQ15: 405.27 | AR15: 276.24 | AS15: 22.49
A16: 14 | B16: 2021-08-12 | C16: 122.81 | D16: 168.58 | E16: 165.94 | F16: 71.42 | G16: 246.1 | H16: 68.37 | I16: 172.9 | J16: 253.6 | K16: 79.54 | L16: 455.95 | M16: 440.12 | N16: 132.22 | O16: 148.07 | P16: 326.78 | Q16: 114.63 | R16: 177.64 | S16: 87.22 | T16: 173.15 | U16: 162.3 | V16: 174.31 | W16: 82.99 | X16: 85.68 | Y16: 97.62 | Z16: 48.12 | AA16: 625.16 | AB16: 230.54 | AC16: 363.86 | AD16: 279.05 | AE16: 182.29 | AF16: 113.16 | AG16: 108.67 | AH16: 37.19 | AI16: 303.71 | AJ16: 83.89 | AK16: 6.03 | AL16: 292.19 | AM16: 187.87 | AN16: 654.98 | AO16: 193.64 | AP16: 210.3 | AQ16: 401.33 | AR16: 275.99 | AS16: 22.44
A17: 15 | B17: 2021-08-11 | C17: 121.46 | D17: 170.46 | E17: 164.01 | F17: 72.25 | G17: 240.66 | H17: 69.36 | I17: 172.12 | J17: 253.64 | K17: 79.48 | L17: 457.55 | M17: 408.2 | N17: 132.14 | O17: 148.55 | P17: 327.59 | Q17: 116.08 | R17: 178.67 | S17: 87.69 | T17: 172.76 | U17: 161.72 | V17: 173.71 | W17: 83.3 | X17: 85.48 | Y17: 98.72 | Z17: 48.17 | AA17: 624.94 | AB17: 227.15 | AC17: 366.1 | AD17: 276.33 | AE17: 179.23 | AF17: 110.9 | AG17: 108.74 | AH17: 37.39 | AI17: 302.33 | AJ17: 84.36 | AK17: 6.14 | AL17: 288.95 | AM17: 189.5 | AN17: 660.39 | AO17: 192.4 | AP17: 211.74 | AQ17: 397.78 | AR17: 277.33 | AS17: 22.65
A18: 16 | B18: 2021-08-10 | C18: 122.7 | D18: 171 | E18: 162.28 | F18: 71.89 | G18: 238.63 | H18: 69.67 | I18: 171.53 | J18: 253.29 | K18: 79.1 | L18: 459.77 | M18: 406.55 | N18: 132.44 | O18: 148.57 | P18: 327.72 | Q18: 114.48 | R18: 178.96 | S18: 86.97 | T18: 167.12 | U18: 161.68 | V18: 172.24 | W18: 83.75 | X18: 84.24 | Y18: 98.79 | Z18: 48.11 | AA18: 625.08 | AB18: 229.72 | AC18: 362.68 | AD18: 272.41 | AE18: 183.5 | AF18: 109.88 | AG18: 108.69 | AH18: 37.38 | AI18: 296.07 | AJ18: 83.62 | AK18: 6.16 | AL18: 288.25 | AM18: 189.65 | AN18: 649.14 | AO18: 190.61 | AP18: 211.96 | AQ18: 394.88 | AR18: 275.33 | AS18: 22.61
A19: 17 | B19: 2021-08-09 | C19: 123.16 | D19: 171.31 | E19: 159.69 | F19: 71.41 | G19: 238.54 | H19: 70.04 | I19: 172.93 | J19: 251.18 | K19: 80 | L19: 470.46 | M19: 407.28 | N19: 128.06 | O19: 147.9 | P19: 326.47 | Q19: 113.32 | R19: 178.47 | S19: 86.05 | T19: 165.37 | U19: 162.5 | V19: 172.89 | W19: 83.67 | X19: 83.7 | Y19: 98.47 | Z19: 47.48 | AA19: 627.68 | AB19: 228.17 | AC19: 360.99 | AD19: 272.19 | AE19: 186.68 | AF19: 109.74 | AG19: 109.3 | AH19: 37.68 | AI19: 297.41 | AJ19: 83.28 | AK19: 6.25 | AL19: 291.4 | AM19: 190.45 | AN19: 638.01 | AO19: 190.98 | AP19: 214.39 | AQ19: 393.62 | AR19: 277.16 | AS19: 22.73
A20: 18 | B20: 2021-08-06 | C20: 122.17 | D20: 171.13 | E20: 160.03 | F20: 71.67 | G20: 241.04 | H20: 70.34 | I20: 173.37 | J20: 252.31 | K20: 80 | L20: 466.81 | M20: 413 | N20: 127.68 | O20: 146.6 | P20: 328.83 | Q20: 115.04 | R20: 178.59 | S20: 86.1 | T20: 167.05 | U20: 163.78 | V20: 173.95 | W20: 84.57 | X20: 83.43 | Y20: 96.97 | Z20: 47.35 | AA20: 628.9 | AB20: 228.52 | AC20: 362.11 | AD20: 272.72 | AE20: 185.43 | AF20: 107.75 | AG20: 109.91 | AH20: 38.16 | AI20: 296.95 | AJ20: 82.8 | AK20: 6.5 | AL20: 292.43 | AM20: 192.96 | AN20: 625.69 | AO20: 192.6 | AP20: 213.91 | AQ20: 395.47 | AR20: 276.71 | AS20: 22.7
A21: 19 | B21: 2021-08-05 | C21: 122.21 | D21: 169.93 | E21: 158.79 | F21: 71.34 | G21: 243.08 | H21: 70.47 | I21: 173.93 | J21: 251.6 | K21: 79.9 | L21: 469.63 | M21: 411.7 | N21: 123.54 | O21: 147.3 | P21: 328.69 | Q21: 114.19 | R21: 178.75 | S21: 84.69 | T21: 166.87 | U21: 162.42 | V21: 173.44 | W21: 84.42 | X21: 83.25 | Y21: 91.95 | Z21: 47.36 | AA21: 627.38 | AB21: 222.27 | AC21: 358.72 | AD21: 272.19 | AE21: 187.05 | AF21: 99.32 | AG21: 108.52 | AH21: 38.41 | AI21: 295.66 | AJ21: 80.95 | AK21: 6.51 | AL21: 293.2 | AM21: 193.16 | AN21: 627.96 | AO21: 190.42 | AP21: 214.87 | AQ21: 397.34 | AR21: 278.15 | AS21: 22.27
A22: 20 | B22: 2021-08-04 | C22: 121.57 | D22: 172.58 | E22: 155.62 | F22: 71.52 | G22: 254.74 | H22: 69.96 | I22: 174.04 | J22: 252.75 | K22: 80.09 | L22: 473.89 | M22: 414.13 | N22: 119.87 | O22: 146.71 | P22: 325.78 | Q22: 111.06 | R22: 178.16 | S22: 85.09 | T22: 167.64 | U22: 160.76 | V22: 173.59 | W22: 82.94 | X22: 83.18 | Y22: 92.01 | Z22: 47.03 | AA22: 624.22 | AB22: 222.77 | AC22: 357.25 | AD22: 270.36 | AE22: 186.85 | AF22: 99.08 | AG22: 107.6 | AH22: 39 | AI22: 296.23 | AJ22: 79.35 | AK22: 6.43 | AL22: 291.49 | AM22: 192.38 | AN22: 584.11 | AO22: 190.79 | AP22: 213.88 | AQ22: 394.25 | AR22: 279.8 | AS22: 22.13
A23: 21 | B23: 2021-08-03 | C23: 122.12 | D23: 168.68 | E23: 158.04 | F23: 71.64 | G23: 255.77 | H23: 70.78 | I23: 174.99 | J23: 256.44 | K23: 81.91 | L23: 474.72 | M23: 423.98 | N23: 119.58 | O23: 145.36 | P23: 327.54 | Q23: 109.53 | R23: 179.85 | S23: 87.72 | T23: 171.22 | U23: 164.43 | V23: 175.83 | W23: 84.37 | X23: 83.79 | Y23: 93.04 | Z23: 47.79 | AA23: 619.07 | AB23: 224.99 | AC23: 364.44 | AD23: 273.82 | AE23: 185.07 | AF23: 102 | AG23: 108.17 | AH23: 38.99 | AI23: 295.98 | AJ23: 80.73 | AK23: 6.45 | AL23: 289.2 | AM23: 189.34 | AN23: 590.3 | AO23: 194.15 | AP23: 215.77 | AQ23: 391.75 | AR23: 283.32 | AS23: 22.74
A24: 22 | B24: 2021-08-02 | C24: 120.92 | D24: 167.62 | E24: 157.26 | F24: 69.84 | G24: 256.13 | H24: 70.79 | I24: 173.39 | J24: 268.27 | K24: 80.11 | L24: 476.07 | M24: 423.61 | N24: 117.68 | O24: 143.04 | P24: 327.67 | Q24: 108.25 | R24: 178.41 | S24: 89.13 | T24: 167.47 | U24: 163.46 | V24: 174.57 | W24: 87.44 | X24: 84.09 | Y24: 93.36 | Z24: 47.73 | AA24: 610.92 | AB24: 223.93 | AC24: 361.84 | AD24: 266.79 | AE24: 183.84 | AF24: 101.65 | AG24: 108.07 | AH24: 38.54 | AI24: 291.57 | AJ24: 80.8 | AK24: 6.49 | AL24: 287.61 | AM24: 190.72 | AN24: 582.265 | AO24: 191.94 | AP24: 216.44 | AQ24: 388.85 | AR24: 281.27 | AS24: 22.79
A25: 23 | B25: 2021-07-30 | C25: 120.98 | D25: 167.42 | E25: 157.81 | F25: 70.33 | G25: 255.75 | H25: 70.92 | I25: 173.49 | J25: 266.96 | K25: 80.39 | L25: 476.02 | M25: 421.77 | N25: 118.29 | O25: 141.8 | P25: 333.83 | Q25: 107.09 | R25: 178.88 | S25: 87.81 | T25: 168.45 | U25: 164.38 | V25: 174.09 | W25: 87.46 | X25: 84.17 | Y25: 94.32 | Z25: 48.04 | AA25: 595.96 | AB25: 223.92 | AC25: 363.02 | AD25: 269.15 | AE25: 182.23 | AF25: 102.34 | AG25: 108.38 | AH25: 38.33 | AI25: 291.03 | AJ25: 81.35 | AK25: 6.47 | AL25: 287.99 | AM25: 190.62 | AN25: 587.96 | AO25: 191.36 | AP25: 216.37 | AQ25: 389.81 | AR25: 282.44 | AS25: 23.21
A26: 24 | B26: 2021-07-29 | C26: 121.09 | D26: 166.54 | E26: 157.95 | F26: 70.43 | G26: 255.31 | H26: 71.46 | I26: 172.47 | J26: 268.87 | K26: 78.53 | L26: 470.81 | M26: 416.9 | N26: 117.51 | O26: 141.24 | P26: 333.59 | Q26: 100.15 | R26: 178.52 | S26: 88.95 | T26: 167.41 | U26: 165.02 | V26: 173.29 | W26: 87.77 | X26: 84.25 | Y26: 94.58 | Z26: 48.6 | AA26: 594.76 | AB26: 223.78 | AC26: 365.66 | AD26: 267.99 | AE26: 179.3 | AF26: 102.13 | AG26: 109.55 | AH26: 37.83 | AI26: 289.39 | AJ26: 80.2 | AK26: 6.49 | AL26: 285.53 | AM26: 189.83 | AN26: 588.84 | AO26: 191.81 | AP26: 216.04 | AQ26: 391.02 | AR26: 279.35 | AS26: 23.26
